Workbook

Sheet Home
B1: Click the top left cell in any tab to return Home
B2: Weekly Reports | C2: Useful Info | D2: Admin (Weekly) | E2: Admin (Other)
B3: League Table | C3: Pics for Publication | D3: Add Matches | E3: Calculations
B4: Weekly Results | C4: Prizes - Summary | D4: Add Predictions | E4: Entrants
B5: Cup Draw | C5: Prizes - Divisional Splits | D5: Add Predictions (double-week) | E5: Last Season Places
B6: Season Diary | C6: FAQ | D6: 1-2-3 Pivot | E6: Brought Forward
B7: Current Week Fixtures | C7: Sample Bets | D7: Top Picks | E7: End of Season Finance
B8: Current Week Predictions | D8: Cup Draw Raw | E8: Mini Leagues

Sheet Players
A1: Prev/Final Pos | B1: Prev/Final Div | C1: Players | D1: Resigned? | E1: Next Div | F1: Closing Balance
A2: 1 | B2: A | C2: Kevin Carter | D2: N | E2: A | H2: Row Labels | I2: Count of Players
A3: 2 | B3: A | C3: Mark Saunders | D3: N | E3: A | H3: A | I3: 16
A4: 3 | B4: A | C4: Alick Rocca | D4: N | E4: A | H4: B | I4: 16
A5: 4 | B5: A | C5: Alfie Davies | D5: N | E5: A | H5: C | I5: 16
A6: 5 | B6: A | C6: Steve Carter | D6: N | E6: A | H6: D | I6: 14
A7: 6 | B7: A | C7: Mo Sudell | D7: N | E7: A | H7: E | I7: 2
A8: 7 | B8: A | C8: Stephen Troop | D8: N | E8: A | H8: (blank)
A9: 8 | B9: A | C9: Paul Fiddler | D9: N | E9: A | H9: Grand Total | I9: 64
A10: 9 | B10: A | C10: Stephen Barr | D10: N | E10: A
A11: 10 | B11: A | C11: Lennie Bow | D11: N | E11: A
A12: 1 | B12: B | C12: Mike Penk | D12: N | E12: A
A13: 2 | B13: B | C13: Alan Rogers | D13: N | E13: A
A14: 3 | B14: B | C14: Oscar Jackson | D14: N | E14: A
A15: 4 | B15: B | C15: Gerard Ventom | D15: N | E15: A
A16: 5 | B16: B | C16: Rob England | D16: N | E16: A
A17: 6 | B17: B | C17: Chris Luck | D17: N | E17: A
A18: 11 | B18: A | C18: Steve Baxter | D18: N | E18: B
A19: 12 | B19: A | C19: Andy White | D19: N | E19: B
A20: 13 | B20: A | C20: Tom Robinson | D20: N | E20: B
A21: 15 | B21: A | C21: Phil Miller | D21: N | E21: B
A22: 16 | B22: A | C22: Gareth Powell | D22: N | E22: B
A23: 7 | B23: B | C23: Barry Birchall | D23: N | E23: B
A24: 8 | B24: B | C24: Nigel Heyes | D24: N | E24: B
A25: 9 | B25: B | C25: Pete Baron | D25: N | E25: B
A26: 1 | B26: C | C26: Dave Bell | D26: N | E26: B
A27: 2 | B27: C | C27: John Evans | D27: N | E27: B
A28: 3 | B28: C | C28: Paul Allen | D28: N | E28: B
A29: 4 | B29: C | C29: Kei Lok Ma | D29: N | E29: B
A30: 5 | B30: C | C30: Vinny Topping | D30: N | E30: B
A31: 6 | B31: C | C31: Mark Bunn | D31: N | E31: B
A32: 7 | B32: C | C32: James Bell | D32: N | E32: B
A33: 8 | B33: C | C33: Martin Molyneux | D33: N | E33: B
A34: 10 | B34: B | C34: Andy Charleston | D34: N | E34: C
A35: 11 | B35: B | C35: Gareth Fallows | D35: N | E35: C
A36: 12 | B36: B | C36: Chris Townsend | D36: N | E36: C
A37: 13 | B37: B | C37: Paul Fairhurst | D37: N | E37: C
A38: 14 | B38: B | C38: Paul Ridgeway | D38: N | E38: C
A39: 15 | B39: B | C39: David Dunn | D39: N | E39: C
A40: 16 | B40: B | C40: Mal Stott | D40: N | E40: C
A41: 9 | B41: C | C41: Chris Griffin | D41: N | E41: C
A42: 10 | B42: C | C42: Ian Davies | D42: N | E42: C
A43: 1 | B43: D | C43: Sally Williams | D43: N | E43: C
A44: 2 | B44: D | C44: Gareth McGuire | D44: N | E44: C
A45: 3 | B45: D | C45: Charlie Griffiths | D45: N | E45: C
A46: 5 | B46: D | C46: Alan White | D46: N | E46: C
A47: 6 | B47: D | C47: Liam Wah | D47: N | E47: C
A48: 7 | B48: D | C48: Chris Bow | D48: N | E48: C
A49: 8 | B49: D | C49: Jack Walsh | D49: N | E49: C
A50: 11 | B50: C | C50: Joel Bent | D50: N | E50: D
A51: 12 | B51: C | C51: Ashley Houghton | D51: N | E51: D
A52: 13 | B52: C | C52: Dave Orrell | D52: N | E52: D
A53: 14 | B53: C | C53: Graham Miller | D53: N | E53: D
A54: 15 | B54: C | C54: Nick Blocksidge | D54: N | E54: D
A55: 16 | B55: C | C55: Howard Bradley | D55: N | E55: D
A56: 9 | B56: D | C56: Simon Greenhalgh | D56: N | E56: D
A57: 10 | B57: D | C57: John Ronan | D57: N | E57: D
A58: 11 | B58: D | C58: Ben Rosser | D58: N | E58: D
A59: 12 | B59: D | C59: Martin Tarbuck | D59: N | E59: D
A60: 13 | B60: D | C60: Paul Adderley | D60: N | E60: D
A61: 14 | B61: D | C61: Dan Baxter | D61: N | E61: D
A62: 15 | B62: D | C62: Lewis Buckley | D62: N | E62: D
A63: 16 | B63: D | C63: Paul Barnes | D63: N | E63: D
A64: 14 | B64: A | C64: Ste Bentley | D64: Y | E64: E
A65: 4 | B65: D | C65: Sophie Bentley | D65: Y | E65: E

Sheet Fixture
A1: Date | B1: Competition | C1: Odds | D1: Result
A2: =IF(Match!A2="","",Match!A2) -> 2020-09-18 | B2: =IF(Match!C2="","",Match!C2) -> Champ | C2: =IF(Match!S2="","",Match!S2) -> Coventry v QPR 6/4 9/4 19/10 | D2: =IF(Match!T2="","",Match!T2) -> Coventry 3-2 QPR
A3: =IF(Match!A3="","",Match!A3) -> 2020-09-19 | B3: =IF(Match!C3="","",Match!C3) -> Premier | C3: =IF(Match!S3="","",Match!S3) -> Arsenal v West Ham 1/2 17/5 5/1 | D3: =IF(Match!T3="","",Match!T3) -> Arsenal 2-1 West Ham
A4: =IF(Match!A4="","",Match!A4) -> 2020-09-19 | B4: =IF(Match!C4="","",Match!C4) -> Premier | C4: =IF(Match!S4="","",Match!S4) -> Everton v West Brom 11/20 16/5 5/1 | D4: =IF(Match!T4="","",Match!T4) -> Everton 5-2 West Brom
A5: =IF(Match!A5="","",Match!A5) -> 2020-09-19 | B5: =IF(Match!C5="","",Match!C5) -> Premier | C5: =IF(Match!S5="","",Match!S5) -> Leeds v Fulham 8/13 3/1 9/2 | D5: =IF(Match!T5="","",Match!T5) -> Leeds 4-3 Fulham
A6: =IF(Match!A6="","",Match!A6) -> 2020-09-19 | B6: =IF(Match!C6="","",Match!C6) -> Premier | C6: =IF(Match!S6="","",Match!S6) -> Man U v Palace 2/7 9/2 10/1 | D6: =IF(Match!T6="","",Match!T6) -> Man U 1-3 Palace
A7: =IF(Match!A7="","",Match!A7) -> 2020-09-19 | B7: =IF(Match!C7="","",Match!C7) -> Champ | C7: =IF(Match!S7="","",Match!S7) -> Blackburn v Wycombe 4/7 3/1 5/1 | D7: =IF(Match!T7="","",Match!T7) -> Blackburn 5-0 Wycombe
A8: =IF(Match!A8="","",Match!A8) -> 2020-09-19 | B8: =IF(Match!C8="","",Match!C8) -> Champ | C8: =IF(Match!S8="","",Match!S8) -> Brentford v Huddersfield 11/20 14/5 6/1 | D8: =IF(Match!T8="","",Match!T8) -> Brentford 3-0 Huddersfield
A9: =IF(Match!A9="","",Match!A9) -> 2020-09-19 | B9: =IF(Match!C9="","",Match!C9) -> Champ | C9: =IF(Match!S9="","",Match!S9) -> Forest v Cardiff 29/20 11/5 2/1 | D9: =IF(Match!T9="","",Match!T9) -> Forest 0-2 Cardiff
A10: =IF(Match!A10="","",Match!A10) -> 2020-09-19 | B10: =IF(Match!C10="","",Match!C10) -> Champ | C10: =IF(Match!S10="","",Match!S10) -> Luton v Derby 15/8 9/4 31/20 | D10: =IF(Match!T10="","",Match!T10) -> Luton 2-1 Derby
A11: =IF(Match!A11="","",Match!A11) -> 2020-09-19 | B11: =IF(Match!C11="","",Match!C11) -> Champ | C11: =IF(Match!S11="","",Match!S11) -> Middlesbro v Bournemouth 17/10 11/5 17/10 | D11: =IF(Match!T11="","",Match!T11) -> Middlesbro 1-1 Bournemouth
A12: =IF(Match!A12="","",Match!A12) -> 2020-09-19 | B12: =IF(Match!C12="","",Match!C12) -> Champ | C12: =IF(Match!S12="","",Match!S12) -> Norwich v Preston 4/5 5/2 19/5 | D12: =IF(Match!T12="","",Match!T12) -> Norwich 2-2 Preston
A13: =IF(Match!A13="","",Match!A13) -> 2020-09-19 | B13: =IF(Match!C13="","",Match!C13) -> Champ | C13: =IF(Match!S13="","",Match!S13) -> Reading v Barnsley 7/5 23/10 2/1 | D13: =IF(Match!T13="","",Match!T13) -> Reading 2-0 Barnsley
A14: =IF(Match!A14="","",Match!A14) -> 2020-09-19 | B14: =IF(Match!C14="","",Match!C14) -> Champ | C14: =IF(Match!S14="","",Match!S14) -> Rotherham v Millwall 9/5 21/10 17/10 | D14: =IF(Match!T14="","",Match!T14) -> Rotherham 0-1 Millwall
A15: =IF(Match!A15="","",Match!A15) -> 2020-09-19 | B15: =IF(Match!C15="","",Match!C15) -> Champ | C15: =IF(Match!S15="","",Match!S15) -> Sheff W v Watford 19/10 11/5 31/20 | D15: =IF(Match!T15="","",Match!T15) -> Sheff W 0-0 Watford
A16: =IF(Match!A16="","",Match!A16) -> 2020-09-19 | B16: =IF(Match!C16="","",Match!C16) -> Champ | C16: =IF(Match!S16="","",Match!S16) -> Swansea v Birmingham 11/10 11/5 14/5 | D16: =IF(Match!T16="","",Match!T16) -> Swansea 0-0 Birmingham
A17: =IF(Match!A17="","",Match!A17) -> 2020-09-19 | B17: =IF(Match!C17="","",Match!C17) -> League 1 | C17: =IF(Match!S17="","",Match!S17) -> Blackpool v Swindon 23/20 23/10 5/2 | D17: =IF(Match!T17="","",Match!T17) -> Blackpool 2-0 Swindon
A18: =IF(Match!A18="","",Match!A18) -> 2020-09-19 | B18: =IF(Match!C18="","",Match!C18) -> League 1 | C18: =IF(Match!S18="","",Match!S18) -> Bristol R v Ipswich 17/10 23/10 8/5 | D18: =IF(Match!T18="","",Match!T18) -> Bristol R 0-2 Ipswich
A19: =IF(Match!A19="","",Match!A19) -> 2020-09-19 | B19: =IF(Match!C19="","",Match!C19) -> League 1 | C19: =IF(Match!S19="","",Match!S19) -> Burton v Accrington 27/20 23/10 2/1 | D19: =IF(Match!T19="","",Match!T19) -> Burton 2-1 Accrington
A20: =IF(Match!A20="","",Match!A20) -> 2020-09-19 | B20: =IF(Match!C20="","",Match!C20) -> League 1 | C20: =IF(Match!S20="","",Match!S20) -> Charlton v Doncaster 1/1 12/5 27/10 | D20: =IF(Match!T20="","",Match!T20) -> Charlton 1-3 Doncaster
A21: =IF(Match!A21="","",Match!A21) -> 2020-09-19 | B21: =IF(Match!C21="","",Match!C21) -> League 1 | C21: =IF(Match!S21="","",Match!S21) -> Hull v Crewe 19/20 13/5 11/4 | D21: =IF(Match!T21="","",Match!T21) -> Hull 1-0 Crewe
A22: =IF(Match!A22="","",Match!A22) -> 2020-09-19 | B22: =IF(Match!C22="","",Match!C22) -> League 1 | C22: =IF(Match!S22="","",Match!S22) -> MK Dons v Lincoln 17/10 21/10 7/4 | D22: =IF(Match!T22="","",Match!T22) -> MK Dons 1-2 Lincoln
A23: =IF(Match!A23="","",Match!A23) -> 2020-09-19 | B23: =IF(Match!C23="","",Match!C23) -> League 1 | C23: =IF(Match!S23="","",Match!S23) -> Oxford v Sunderland 31/20 11/5 9/5 | D23: =IF(Match!T23="","",Match!T23) -> Oxford 0-2 Sunderland
A24: =IF(Match!A24="","",Match!A24) -> 2020-09-19 | B24: =IF(Match!C24="","",Match!C24) -> League 1 | C24: =IF(Match!S24="","",Match!S24) -> Peterborough v Fleetwood 6/5 9/4 12/5 | D24: =IF(Match!T24="","",Match!T24) -> Peterborough 2-1 Fleetwood
A25: =IF(Match!A25="","",Match!A25) -> 2020-09-19 | B25: =IF(Match!C25="","",Match!C25) -> League 1 | C25: =IF(Match!S25="","",Match!S25) -> Shrewsbury v Northampton 6/5 11/5 12/5 | D25: =IF(Match!T25="","",Match!T25) -> Shrewsbury 1-2 Northampton
A26: =IF(Match!A26="","",Match!A26) -> 2020-09-19 | B26: =IF(Match!C26="","",Match!C26) -> League 1 | C26: =IF(Match!S26="","",Match!S26) -> Wimbledon v Plymouth 8/5 23/10 17/10 | D26: =IF(Match!T26="","",Match!T26) -> Wimbledon 4-4 Plymouth
A27: =IF(Match!A27="","",Match!A27) -> 2020-09-19 | B27: =IF(Match!C27="","",Match!C27) -> League 2 | C27: =IF(Match!S27="","",Match!S27) -> Carlisle v Southend 21/20 12/5 13/5 | D27: =IF(Match!T27="","",Match!T27) -> Carlisle 2-0 Southend
A28: =IF(Match!A28="","",Match!A28) -> 2020-09-19 | B28: =IF(Match!C28="","",Match!C28) -> League 2 | C28: =IF(Match!S28="","",Match!S28) -> Colchester v Bolton 13/8 23/10 17/10 | D28: =IF(Match!T28="","",Match!T28) -> Colchester 2-0 Bolton
A29: =IF(Match!A29="","",Match!A29) -> 2020-09-19 | B29: =IF(Match!C29="","",Match!C29) -> League 2 | C29: =IF(Match!S29="","",Match!S29) -> Crawley v Scunthorpe 13/10 23/10 21/10 | D29: =IF(Match!T29="","",Match!T29) -> Crawley 1-0 Scunthorpe
A30: =IF(Match!A30="","",Match!A30) -> 2020-09-19 | B30: =IF(Match!C30="","",Match!C30) -> League 2 | C30: =IF(Match!S30="","",Match!S30) -> Exeter v Port Vale 5/4 11/5 9/4 | D30: =IF(Match!T30="","",Match!T30) -> Exeter 0-2 Port Vale
A31: =IF(Match!A31="","",Match!A31) -> 2020-09-19 | B31: =IF(Match!C31="","",Match!C31) -> League 2 | C31: =IF(Match!S31="","",Match!S31) -> Forest Green v Bradford 13/10 9/4 11/5 | D31: =IF(Match!T31="","",Match!T31) -> Forest Green 2-2 Bradford
A32: =IF(Match!A32="","",Match!A32) -> 2020-09-19 | B32: =IF(Match!C32="","",Match!C32) -> League 2 | C32: =IF(Match!S32="","",Match!S32) -> Grimsby v Salford 21/10 23/10 13/10 | D32: =IF(Match!T32="","",Match!T32) -> Grimsby 0-4 Salford
A33: =IF(Match!A33="","",Match!A33) -> 2020-09-19 | B33: =IF(Match!C33="","",Match!C33) -> League 2 | C33: =IF(Match!S33="","",Match!S33) -> Harrogate v Walsall 6/5 23/10 23/10 | D33: =IF(Match!T33="","",Match!T33) -> Harrogate 2-2 Walsall
A34: =IF(Match!A34="","",Match!A34) -> 2020-09-19 | B34: =IF(Match!C34="","",Match!C34) -> League 2 | C34: =IF(Match!S34="","",Match!S34) -> Morecambe v Cambridge 27/20 9/4 21/10 | D34: =IF(Match!T34="","",Match!T34) -> Morecambe 0-5 Cambridge
A35: =IF(Match!A35="","",Match!A35) -> 2020-09-19 | B35: =IF(Match!C35="","",Match!C35) -> League 2 | C35: =IF(Match!S35="","",Match!S35) -> Newport v Barrow 5/4 11/5 23/10 | D35: =IF(Match!T35="","",Match!T35) -> Newport 2-1 Barrow
A36: =IF(Match!A36="","",Match!A36) -> 2020-09-19 | B36: =IF(Match!C36="","",Match!C36) -> League 2 | C36: =IF(Match!S36="","",Match!S36) -> Orient v Mansfield 9/5 12/5 29/20 | D36: =IF(Match!T36="","",Match!T36) -> Orient 2-2 Mansfield
A37: =IF(Match!A37="","",Match!A37) -> 2020-09-19 | B37: =IF(Match!C37="","",Match!C37) -> League 2 | C37: =IF(Match!S37="","",Match!S37) -> Stevenage v Oldham 7/5 11/5 2/1 | D37: =IF(Match!T37="","",Match!T37) -> Stevenage 3-0 Oldham
A38: =IF(Match!A38="","",Match!A38) -> 2020-09-19 | B38: =IF(Match!C38="","",Match!C38) -> League 2 | C38: =IF(Match!S38="","",Match!S38) -> Tranmere v Cheltenham 13/10 23/10 21/10 | D38: =IF(Match!T38="","",Match!T38) -> Tranmere 0-3 Cheltenham
A39: =IF(Match!A39="","",Match!A39) -> 2020-09-20 | B39: =IF(Match!C39="","",Match!C39) -> Premier | C39: =IF(Match!S39="","",Match!S39) -> Chelsea v Liverpool 21/10 27/10 6/5 | D39: =IF(Match!T39="","",Match!T39) -> Chelsea 0-2 Liverpool
A40: =IF(Match!A40="","",Match!A40) -> 2020-09-20 | B40: =IF(Match!C40="","",Match!C40) -> Premier | C40: =IF(Match!S40="","",Match!S40) -> Leicester v Burnley 13/20 14/5 9/2 | D40: =IF(Match!T40="","",Match!T40) -> Leicester 4-2 Burnley
A41: =IF(Match!A41="","",Match!A41) -> 2020-09-20 | B41: =IF(Match!C41="","",Match!C41) -> Premier | C41: =IF(Match!S41="","",Match!S41) -> Newcastle v Brighton 31/20 11/5 19/10 | D41: =IF(Match!T41="","",Match!T41) -> Newcastle 0-3 Brighton
A42: =IF(Match!A42="","",Match!A42) -> 2020-09-20 | B42: =IF(Match!C42="","",Match!C42) -> Premier | C42: =IF(Match!S42="","",Match!S42) -> Southampton v Spurs 2/1 9/4 29/20 | D42: =IF(Match!T42="","",Match!T42) -> Southampton 2-5 Spurs
A43: =IF(Match!A43="","",Match!A43) -> 2020-09-20 | B43: =IF(Match!C43="","",Match!C43) -> Champ | C43: =IF(Match!S43="","",Match!S43) -> Stoke v Bristol C 11/10 12/5 13/5 | D43: =IF(Match!T43="","",Match!T43) -> Stoke 0-2 Bristol C
A44: =IF(Match!A44="","",Match!A44) -> 2020-09-20 | B44: =IF(Match!C44="","",Match!C44) -> League 1 | C44: =IF(Match!S44="","",Match!S44) -> Rochdale v Portsmouth 15/4 13/5 3/4 | D44: =IF(Match!T44="","",Match!T44) -> Rochdale 0-0 Portsmouth
A45: =IF(Match!A45="","",Match!A45) ->  | B45: =IF(Match!C45="","",Match!C45) ->  | C45: =IF(Match!S45="","",Match!S45) ->  | D45: =IF(Match!T45="","",Match!T45) -> -
A46: =IF(Match!A46="","",Match!A46) ->  | B46: =IF(Match!C46="","",Match!C46) ->  | C46: =IF(Match!S46="","",Match!S46) ->  | D46: =IF(Match!T46="","",Match!T46) -> -
A47: =IF(Match!A47="","",Match!A47) ->  | B47: =IF(Match!C47="","",Match!C47) ->  | C47: =IF(Match!S47="","",Match!S47) ->  | D47: =IF(Match!T47="","",Match!T47) -> -

Sheet Table
A1: PL35 | B1: Place Prize | C1: Promotion/ Relegation | D1: Pos | E1: Div | F1: Player | G1: Total Score | H1: Total correct | I1: Week Score | J1: Week Correct | K1: Brought Forward | L1: League Place Prize | M1: Weekly Prizes | N1: Cup Prize | O1: Total Prize | P1: Season Balance
A2: Division A | B2: =CONCATENATE(E2,D2) -> A1 | D2: 1 | E2: A | F2: Gerard Ventom | G2: =INDEX(Weekly!F:F,MATCH($F2,Weekly!$E:$E,0)) -> 172.3 | H2: =INDEX(Weekly!G:G,MATCH($F2,Weekly!$E:$E,0)) -> 5 | I2: =INDEX(Weekly!H:H,MATCH($F2,Weekly!$E:$E,0)) -> 164.8 | J2: =INDEX(Weekly!I:I,MATCH($F2,Weekly!$E:$E,0)) -> 3 | K2: =INDEX(Players!F:F,MATCH($F2,Players!#REF!,0)) ->  | L2: =INDEX(Prizes!F:F,MATCH($B2,Prizes!A:A,0)) -> 108.675 | M2: =INDEX(Weekly!J:J,MATCH($F2,Weekly!$E:$E,0)) -> 5 | N2: =INDEX(Weekly!K:K,MATCH($F2,Weekly!$E:$E,0)) -> 0 | O2: =INDEX(Weekly!M:M,MATCH($F2,Weekly!$E:$E,0)) -> 113.675 | P2: =O2+K2 -> 
B3: =CONCATENATE(E3,D3) -> A2 | D3: 2 | E3: A | F3: Steve Carter | G3: =INDEX(Weekly!F:F,MATCH($F3,Weekly!$E:$E,0)) -> 16.2225 | H3: =INDEX(Weekly!G:G,MATCH($F3,Weekly!$E:$E,0)) -> 4 | I3: =INDEX(Weekly!H:H,MATCH($F3,Weekly!$E:$E,0)) -> -4.6 | J3: =INDEX(Weekly!I:I,MATCH($F3,Weekly!$E:$E,0)) -> 1 | K3: =INDEX(Players!F:F,MATCH($F3,Players!#REF!,0)) ->  | L3: =INDEX(Prizes!F:F,MATCH($B3,Prizes!A:A,0)) -> 77.625 | M3: =INDEX(Weekly!J:J,MATCH($F3,Weekly!$E:$E,0)) -> 5 | N3: =INDEX(Weekly!K:K,MATCH($F3,Weekly!$E:$E,0)) -> 0 | O3: =INDEX(Weekly!M:M,MATCH($F3,Weekly!$E:$E,0)) -> 82.625 | P3: =O3+K3 -> 
B4: A3 | D4: 3 | E4: A | F4: Mark Saunders | G4: =INDEX(Weekly!F:F,MATCH($F4,Weekly!$E:$E,0)) -> 7.545 | H4: =INDEX(Weekly!G:G,MATCH($F4,Weekly!$E:$E,0)) -> 4 | I4: =INDEX(Weekly!H:H,MATCH($F4,Weekly!$E:$E,0)) -> -5.5 | J4: =INDEX(Weekly!I:I,MATCH($F4,Weekly!$E:$E,0)) -> 1 | K4: =INDEX(Players!F:F,MATCH($F4,Players!#REF!,0)) ->  | L4: =INDEX(Prizes!F:F,MATCH($B4,Prizes!A:A,0)) -> 55.89 | M4: =INDEX(Weekly!J:J,MATCH($F4,Weekly!$E:$E,0)) -> 5 | N4: =INDEX(Weekly!K:K,MATCH($F4,Weekly!$E:$E,0)) -> 0 | O4: =INDEX(Weekly!M:M,MATCH($F4,Weekly!$E:$E,0)) -> 60.89 | P4: =O4+K4 ->  | S4: Promotion and Relegation Key
B5: A4 | D5: 4 | E5: A | F5: Alick Rocca | G5: =INDEX(Weekly!F:F,MATCH($F5,Weekly!$E:$E,0)) -> 3.80625 | H5: =INDEX(Weekly!G:G,MATCH($F5,Weekly!$E:$E,0)) -> 3 | I5: =INDEX(Weekly!H:H,MATCH($F5,Weekly!$E:$E,0)) -> 10.80625 | J5: =INDEX(Weekly!I:I,MATCH($F5,Weekly!$E:$E,0)) -> 3 | K5: =INDEX(Players!F:F,MATCH($F5,Players!#REF!,0)) ->  | L5: =INDEX(Prizes!F:F,MATCH($B5,Prizes!A:A,0)) -> 37.26 | M5: =INDEX(Weekly!J:J,MATCH($F5,Weekly!$E:$E,0)) -> 0 | N5: =INDEX(Weekly!K:K,MATCH($F5,Weekly!$E:$E,0)) -> 0 | O5: =INDEX(Weekly!M:M,MATCH($F5,Weekly!$E:$E,0)) -> 37.26 | P5: =O5+K5 ->  | S5: No change
B6: A5 | D6: 5 | E6: A | F6: Stephen Barr | G6: =INDEX(Weekly!F:F,MATCH($F6,Weekly!$E:$E,0)) -> 1.87 | H6: =INDEX(Weekly!G:G,MATCH($F6,Weekly!$E:$E,0)) -> 3 | I6: =INDEX(Weekly!H:H,MATCH($F6,Weekly!$E:$E,0)) -> 6.72 | J6: =INDEX(Weekly!I:I,MATCH($F6,Weekly!$E:$E,0)) -> 2 | K6: =INDEX(Players!F:F,MATCH($F6,Players!#REF!,0)) ->  | L6: =INDEX(Prizes!F:F,MATCH($B6,Prizes!A:A,0)) -> 21.735 | M6: =INDEX(Weekly!J:J,MATCH($F6,Weekly!$E:$E,0)) -> 0 | N6: =INDEX(Weekly!K:K,MATCH($F6,Weekly!$E:$E,0)) -> 0 | O6: =INDEX(Weekly!M:M,MATCH($F6,Weekly!$E:$E,0)) -> 21.735 | P6: =O6+K6 ->  | S6: Promoted to Division above
B7: A6 | D7: 6 | E7: A | F7: Kevin Carter | G7: =INDEX(Weekly!F:F,MATCH($F7,Weekly!$E:$E,0)) -> 1.673076923 | H7: =INDEX(Weekly!G:G,MATCH($F7,Weekly!$E:$E,0)) -> 3 | I7: =INDEX(Weekly!H:H,MATCH($F7,Weekly!$E:$E,0)) -> 8.673076923 | J7: =INDEX(Weekly!I:I,MATCH($F7,Weekly!$E:$E,0)) -> 3 | K7: =INDEX(Players!F:F,MATCH($F7,Players!#REF!,0)) ->  | L7: =INDEX(Prizes!F:F,MATCH($B7,Prizes!A:A,0)) -> 9.315 | M7: =INDEX(Weekly!J:J,MATCH($F7,Weekly!$E:$E,0)) -> 0 | N7: =INDEX(Weekly!K:K,MATCH($F7,Weekly!$E:$E,0)) -> 0 | O7: =INDEX(Weekly!M:M,MATCH($F7,Weekly!$E:$E,0)) -> 9.315 | P7: =O7+K7 ->  | S7: Relegated to Division below
B8: A7 | D8: 7 | E8: A | F8: Paul Fiddler | G8: =INDEX(Weekly!F:F,MATCH($F8,Weekly!$E:$E,0)) -> 0.3075 | H8: =INDEX(Weekly!G:G,MATCH($F8,Weekly!$E:$E,0)) -> 4 | I8: =INDEX(Weekly!H:H,MATCH($F8,Weekly!$E:$E,0)) -> 1.2925 | J8: =INDEX(Weekly!I:I,MATCH($F8,Weekly!$E:$E,0)) -> 2 | K8: =INDEX(Players!F:F,MATCH($F8,Players!#REF!,0)) ->  | L8: =INDEX(Prizes!F:F,MATCH($B8,Prizes!A:A,0)) -> 0 | M8: =INDEX(Weekly!J:J,MATCH($F8,Weekly!$E:$E,0)) -> 0 | N8: =INDEX(Weekly!K:K,MATCH($F8,Weekly!$E:$E,0)) -> 0 | O8: =INDEX(Weekly!M:M,MATCH($F8,Weekly!$E:$E,0)) -> 0 | P8: =O8+K8 ->  | S8: Best two up to Div A, Worst two down to Div B
B9: A8 | D9: 8 | E9: A | F9: Alan Rogers | G9: =INDEX(Weekly!F:F,MATCH($F9,Weekly!$E:$E,0)) -> -0.04 | H9: =INDEX(Weekly!G:G,MATCH($F9,Weekly!$E:$E,0)) -> 2 | I9: =INDEX(Weekly!H:H,MATCH($F9,Weekly!$E:$E,0)) -> -7 | J9: =INDEX(Weekly!I:I,MATCH($F9,Weekly!$E:$E,0)) -> 0 | K9: =INDEX(Players!F:F,MATCH($F9,Players!#REF!,0)) ->  | L9: =INDEX(Prizes!F:F,MATCH($B9,Prizes!A:A,0)) -> 0 | M9: =INDEX(Weekly!J:J,MATCH($F9,Weekly!$E:$E,0)) -> 0 | N9: =INDEX(Weekly!K:K,MATCH($F9,Weekly!$E:$E,0)) -> 0 | O9: =INDEX(Weekly!M:M,MATCH($F9,Weekly!$E:$E,0)) -> 0 | P9: =O9+K9 ->  | S9: Best two up to Div B, Worst two down to Div C
B10: A9 | C10: Play-off | D10: 9 | E10: A | F10: Chris Luck | G10: =INDEX(Weekly!F:F,MATCH($F10,Weekly!$E:$E,0)) -> -1.825 | H10: =INDEX(Weekly!G:G,MATCH($F10,Weekly!$E:$E,0)) -> 2 | I10: =INDEX(Weekly!H:H,MATCH($F10,Weekly!$E:$E,0)) -> 5.175 | J10: =INDEX(Weekly!I:I,MATCH($F10,Weekly!$E:$E,0)) -> 2 | K10: =INDEX(Players!F:F,MATCH($F10,Players!#REF!,0)) ->  | L10: =INDEX(Prizes!F:F,MATCH($B10,Prizes!A:A,0)) -> 0 | M10: =INDEX(Weekly!J:J,MATCH($F10,Weekly!$E:$E,0)) -> 0 | N10: =INDEX(Weekly!K:K,MATCH($F10,Weekly!$E:$E,0)) -> 0 | O10: =INDEX(Weekly!M:M,MATCH($F10,Weekly!$E:$E,0)) -> 0 | P10: =O10+K10 ->  | S10: Best two up to Div C, Worst two down to Div D
B11: A10 | C11: Play-off | D11: 10 | E11: A | F11: Lennie Bow | G11: =INDEX(Weekly!F:F,MATCH($F11,Weekly!$E:$E,0)) -> -3.16875 | H11: =INDEX(Weekly!G:G,MATCH($F11,Weekly!$E:$E,0)) -> 3 | I11: =INDEX(Weekly!H:H,MATCH($F11,Weekly!$E:$E,0)) -> 1.88125 | J11: =INDEX(Weekly!I:I,MATCH($F11,Weekly!$E:$E,0)) -> 2 | K11: =INDEX(Players!F:F,MATCH($F11,Players!#REF!,0)) ->  | L11: =INDEX(Prizes!F:F,MATCH($B11,Prizes!A:A,0)) -> 0 | M11: =INDEX(Weekly!J:J,MATCH($F11,Weekly!$E:$E,0)) -> 0 | N11: =INDEX(Weekly!K:K,MATCH($F11,Weekly!$E:$E,0)) -> 0 | O11: =INDEX(Weekly!M:M,MATCH($F11,Weekly!$E:$E,0)) -> 0 | P11: =O11+K11 -> 
B12: A11 | C12: ↓ | D12: 11 | E12: A | F12: Stephen Troop | G12: =INDEX(Weekly!F:F,MATCH($F12,Weekly!$E:$E,0)) -> -6.280769231 | H12: =INDEX(Weekly!G:G,MATCH($F12,Weekly!$E:$E,0)) -> 3 | I12: =INDEX(Weekly!H:H,MATCH($F12,Weekly!$E:$E,0)) -> -1.330769231 | J12: =INDEX(Weekly!I:I,MATCH($F12,Weekly!$E:$E,0)) -> 2 | K12: =INDEX(Players!F:F,MATCH($F12,Players!#REF!,0)) ->  | L12: =INDEX(Prizes!F:F,MATCH($B12,Prizes!A:A,0)) -> 0 | M12: =INDEX(Weekly!J:J,MATCH($F12,Weekly!$E:$E,0)) -> 0 | N12: =INDEX(Weekly!K:K,MATCH($F12,Weekly!$E:$E,0)) -> 0 | O12: =INDEX(Weekly!M:M,MATCH($F12,Weekly!$E:$E,0)) -> 0 | P12: =O12+K12 -> 
B13: A12 | C13: ↓ | D13: 12 | E13: A | F13: Mo Sudell | G13: =INDEX(Weekly!F:F,MATCH($F13,Weekly!$E:$E,0)) -> -6.392857143 | H13: =INDEX(Weekly!G:G,MATCH($F13,Weekly!$E:$E,0)) -> 3 | I13: =INDEX(Weekly!H:H,MATCH($F13,Weekly!$E:$E,0)) -> -1.442857143 | J13: =INDEX(Weekly!I:I,MATCH($F13,Weekly!$E:$E,0)) -> 2 | K13: =INDEX(Players!F:F,MATCH($F13,Players!#REF!,0)) ->  | L13: =INDEX(Prizes!F:F,MATCH($B13,Prizes!A:A,0)) -> 0 | M13: =INDEX(Weekly!J:J,MATCH($F13,Weekly!$E:$E,0)) -> 0 | N13: =INDEX(Weekly!K:K,MATCH($F13,Weekly!$E:$E,0)) -> 0 | O13: =INDEX(Weekly!M:M,MATCH($F13,Weekly!$E:$E,0)) -> 0 | P13: =O13+K13 -> 
B14: A13 | C14: ↓ | D14: 13 | E14: A | F14: Oscar Jackson | G14: =INDEX(Weekly!F:F,MATCH($F14,Weekly!$E:$E,0)) -> -10.55 | H14: =INDEX(Weekly!G:G,MATCH($F14,Weekly!$E:$E,0)) -> 2 | I14: =INDEX(Weekly!H:H,MATCH($F14,Weekly!$E:$E,0)) -> -5.5 | J14: =INDEX(Weekly!I:I,MATCH($F14,Weekly!$E:$E,0)) -> 1 | K14: =INDEX(Players!F:F,MATCH($F14,Players!#REF!,0)) ->  | L14: =INDEX(Prizes!F:F,MATCH($B14,Prizes!A:A,0)) -> 0 | M14: =INDEX(Weekly!J:J,MATCH($F14,Weekly!$E:$E,0)) -> 0 | N14: =INDEX(Weekly!K:K,MATCH($F14,Weekly!$E:$E,0)) -> 0 | O14: =INDEX(Weekly!M:M,MATCH($F14,Weekly!$E:$E,0)) -> 0 | P14: =O14+K14 -> 
B15: A14 | C15: ↓ | D15: 14 | E15: A | F15: Alfie Davies | G15: =INDEX(Weekly!F:F,MATCH($F15,Weekly!$E:$E,0)) -> -10.75 | H15: =INDEX(Weekly!G:G,MATCH($F15,Weekly!$E:$E,0)) -> 1 | I15: =INDEX(Weekly!H:H,MATCH($F15,Weekly!$E:$E,0)) -> -7 | J15: =INDEX(Weekly!I:I,MATCH($F15,Weekly!$E:$E,0)) -> 0 | K15: =INDEX(Players!F:F,MATCH($F15,Players!#REF!,0)) ->  | L15: =INDEX(Prizes!F:F,MATCH($B15,Prizes!A:A,0)) -> 0 | M15: =INDEX(Weekly!J:J,MATCH($F15,Weekly!$E:$E,0)) -> 0 | N15: =INDEX(Weekly!K:K,MATCH($F15,Weekly!$E:$E,0)) -> 0 | O15: =INDEX(Weekly!M:M,MATCH($F15,Weekly!$E:$E,0)) -> 0 | P15: =O15+K15 -> 
B16: A15 | C16: ↓ | D16: 15 | E16: A | F16: Mike Penk | G16: =INDEX(Weekly!F:F,MATCH($F16,Weekly!$E:$E,0)) -> -11.3 | H16: =INDEX(Weekly!G:G,MATCH($F16,Weekly!$E:$E,0)) -> 1 | I16: =INDEX(Weekly!H:H,MATCH($F16,Weekly!$E:$E,0)) -> -4.3 | J16: =INDEX(Weekly!I:I,MATCH($F16,Weekly!$E:$E,0)) -> 1 | K16: =INDEX(Players!F:F,MATCH($F16,Players!#REF!,0)) ->  | L16: =INDEX(Prizes!F:F,MATCH($B16,Prizes!A:A,0)) -> 0 | M16: =INDEX(Weekly!J:J,MATCH($F16,Weekly!$E:$E,0)) -> 0 | N16: =INDEX(Weekly!K:K,MATCH($F16,Weekly!$E:$E,0)) -> 0 | O16: =INDEX(Weekly!M:M,MATCH($F16,Weekly!$E:$E,0)) -> 0 | P16: =O16+K16 -> 
B17: A16 | C17: ↓ | D17: 16 | E17: A | F17: Rob England | G17: =INDEX(Weekly!F:F,MATCH($F17,Weekly!$E:$E,0)) -> -11.375 | H17: =INDEX(Weekly!G:G,MATCH($F17,Weekly!$E:$E,0)) -> 1 | I17: =INDEX(Weekly!H:H,MATCH($F17,Weekly!$E:$E,0)) -> -4.375 | J17: =INDEX(Weekly!I:I,MATCH($F17,Weekly!$E:$E,0)) -> 1 | K17: =INDEX(Players!F:F,MATCH($F17,Players!#REF!,0)) ->  | L17: =INDEX(Prizes!F:F,MATCH($B17,Prizes!A:A,0)) -> 0 | M17: =INDEX(Weekly!J:J,MATCH($F17,Weekly!$E:$E,0)) -> 0 | N17: =INDEX(Weekly!K:K,MATCH($F17,Weekly!$E:$E,0)) -> 0 | O17: =INDEX(Weekly!M:M,MATCH($F17,Weekly!$E:$E,0)) -> 0 | P17: =O17+K17 -> 
A18: Division B | B18: B1 | C18: ↑ | D18: 1 | E18: B | F18: Steve Baxter | G18: =INDEX(Weekly!F:F,MATCH($F18,Weekly!$E:$E,0)) -> 10.03857143 | H18: =INDEX(Weekly!G:G,MATCH($F18,Weekly!$E:$E,0)) -> 5 | I18: =INDEX(Weekly!H:H,MATCH($F18,Weekly!$E:$E,0)) -> 0 | J18: =INDEX(Weekly!I:I,MATCH($F18,Weekly!$E:$E,0)) -> 2 | K18: =INDEX(Players!F:F,MATCH($F18,Players!#REF!,0)) ->  | L18: =INDEX(Prizes!F:F,MATCH($B18,Prizes!A:A,0)) -> 72.45 | M18: =INDEX(Weekly!J:J,MATCH($F18,Weekly!$E:$E,0)) -> 0 | N18: =INDEX(Weekly!K:K,MATCH($F18,Weekly!$E:$E,0)) -> 0 | O18: =INDEX(Weekly!M:M,MATCH($F18,Weekly!$E:$E,0)) -> 72.45 | P18: =O18+K18 -> 
B19: B2 | C19: ↑ | D19: 2 | E19: B | F19: Vinny Topping | G19: =INDEX(Weekly!F:F,MATCH($F19,Weekly!$E:$E,0)) -> 6.6875 | H19: =INDEX(Weekly!G:G,MATCH($F19,Weekly!$E:$E,0)) -> 4 | I19: =INDEX(Weekly!H:H,MATCH($F19,Weekly!$E:$E,0)) -> 3.0625 | J19: =INDEX(Weekly!I:I,MATCH($F19,Weekly!$E:$E,0)) -> 2 | K19: =INDEX(Players!F:F,MATCH($F19,Players!#REF!,0)) ->  | L19: =INDEX(Prizes!F:F,MATCH($B19,Prizes!A:A,0)) -> 51.75 | M19: =INDEX(Weekly!J:J,MATCH($F19,Weekly!$E:$E,0)) -> 0 | N19: =INDEX(Weekly!K:K,MATCH($F19,Weekly!$E:$E,0)) -> 0 | O19: =INDEX(Weekly!M:M,MATCH($F19,Weekly!$E:$E,0)) -> 51.75 | P19: =O19+K19 -> 
B20: B3 | C20: ↑ | D20: 3 | E20: B | F20: Pete Baron | G20: =INDEX(Weekly!F:F,MATCH($F20,Weekly!$E:$E,0)) -> 5 | H20: =INDEX(Weekly!G:G,MATCH($F20,Weekly!$E:$E,0)) -> 2 | I20: =INDEX(Weekly!H:H,MATCH($F20,Weekly!$E:$E,0)) -> -7 | J20: =INDEX(Weekly!I:I,MATCH($F20,Weekly!$E:$E,0)) -> 0 | K20: =INDEX(Players!F:F,MATCH($F20,Players!#REF!,0)) ->  | L20: =INDEX(Prizes!F:F,MATCH($B20,Prizes!A:A,0)) -> 37.26 | M20: =INDEX(Weekly!J:J,MATCH($F20,Weekly!$E:$E,0)) -> 5 | N20: =INDEX(Weekly!K:K,MATCH($F20,Weekly!$E:$E,0)) -> 0 | O20: =INDEX(Weekly!M:M,MATCH($F20,Weekly!$E:$E,0)) -> 42.26 | P20: =O20+K20 -> 
B21: B4 | C21: ↑ | D21: 4 | E21: B | F21: Andy White | G21: =INDEX(Weekly!F:F,MATCH($F21,Weekly!$E:$E,0)) -> -0.73125 | H21: =INDEX(Weekly!G:G,MATCH($F21,Weekly!$E:$E,0)) -> 3 | I21: =INDEX(Weekly!H:H,MATCH($F21,Weekly!$E:$E,0)) -> -4.55 | J21: =INDEX(Weekly!I:I,MATCH($F21,Weekly!$E:$E,0)) -> 1 | K21: =INDEX(Players!F:F,MATCH($F21,Players!#REF!,0)) ->  | L21: =INDEX(Prizes!F:F,MATCH($B21,Prizes!A:A,0)) -> 24.84 | M21: =INDEX(Weekly!J:J,MATCH($F21,Weekly!$E:$E,0)) -> 0 | N21: =INDEX(Weekly!K:K,MATCH($F21,Weekly!$E:$E,0)) -> 0 | O21: =INDEX(Weekly!M:M,MATCH($F21,Weekly!$E:$E,0)) -> 24.84 | P21: =O21+K21 -> 
B22: B5 | C22: ↑ | D22: 5 | E22: B | F22: Phil Miller | G22: =INDEX(Weekly!F:F,MATCH($F22,Weekly!$E:$E,0)) -> -1.642857143 | H22: =INDEX(Weekly!G:G,MATCH($F22,Weekly!$E:$E,0)) -> 3 | I22: =INDEX(Weekly!H:H,MATCH($F22,Weekly!$E:$E,0)) -> -4.7 | J22: =INDEX(Weekly!I:I,MATCH($F22,Weekly!$E:$E,0)) -> 1 | K22: =INDEX(Players!F:F,MATCH($F22,Players!#REF!,0)) ->  | L22: =INDEX(Prizes!F:F,MATCH($B22,Prizes!A:A,0)) -> 14.49 | M22: =INDEX(Weekly!J:J,MATCH($F22,Weekly!$E:$E,0)) -> 0 | N22: =INDEX(Weekly!K:K,MATCH($F22,Weekly!$E:$E,0)) -> 0 | O22: =INDEX(Weekly!M:M,MATCH($F22,Weekly!$E:$E,0)) -> 14.49 | P22: =O22+K22 -> 
B23: B6 | C23: ↑ | D23: 6 | E23: B | F23: Nigel Heyes | G23: =INDEX(Weekly!F:F,MATCH($F23,Weekly!$E:$E,0)) -> -2.82 | H23: =INDEX(Weekly!G:G,MATCH($F23,Weekly!$E:$E,0)) -> 3 | I23: =INDEX(Weekly!H:H,MATCH($F23,Weekly!$E:$E,0)) -> 2.03 | J23: =INDEX(Weekly!I:I,MATCH($F23,Weekly!$E:$E,0)) -> 2 | K23: =INDEX(Players!F:F,MATCH($F23,Players!#REF!,0)) ->  | L23: =INDEX(Prizes!F:F,MATCH($B23,Prizes!A:A,0)) -> 6.21 | M23: =INDEX(Weekly!J:J,MATCH($F23,Weekly!$E:$E,0)) -> 0 | N23: =INDEX(Weekly!K:K,MATCH($F23,Weekly!$E:$E,0)) -> 0 | O23: =INDEX(Weekly!M:M,MATCH($F23,Weekly!$E:$E,0)) -> 6.21 | P23: =O23+K23 -> 
B24: B7 | C24: Play-off | D24: 7 | E24: B | F24: Dave Bell | G24: =INDEX(Weekly!F:F,MATCH($F24,Weekly!$E:$E,0)) -> -3 | H24: =INDEX(Weekly!G:G,MATCH($F24,Weekly!$E:$E,0)) -> 1 | I24: =INDEX(Weekly!H:H,MATCH($F24,Weekly!$E:$E,0)) -> 4 | J24: =INDEX(Weekly!I:I,MATCH($F24,Weekly!$E:$E,0)) -> 1 | K24: =INDEX(Players!F:F,MATCH($F24,Players!#REF!,0)) ->  | L24: =INDEX(Prizes!F:F,MATCH($B24,Prizes!A:A,0)) -> 0 | M24: =INDEX(Weekly!J:J,MATCH($F24,Weekly!$E:$E,0)) -> 0 | N24: =INDEX(Weekly!K:K,MATCH($F24,Weekly!$E:$E,0)) -> 0 | O24: =INDEX(Weekly!M:M,MATCH($F24,Weekly!$E:$E,0)) -> 0 | P24: =O24+K24 -> 
B25: B8 | C25: Play-off | D25: 8 | E25: B | F25: Gareth Powell | G25: =INDEX(Weekly!F:F,MATCH($F25,Weekly!$E:$E,0)) -> -4.480769231 | H25: =INDEX(Weekly!G:G,MATCH($F25,Weekly!$E:$E,0)) -> 3 | I25: =INDEX(Weekly!H:H,MATCH($F25,Weekly!$E:$E,0)) -> 0.3692307692 | J25: =INDEX(Weekly!I:I,MATCH($F25,Weekly!$E:$E,0)) -> 2 | K25: =INDEX(Players!F:F,MATCH($F25,Players!#REF!,0)) ->  | L25: =INDEX(Prizes!F:F,MATCH($B25,Prizes!A:A,0)) -> 0 | M25: =INDEX(Weekly!J:J,MATCH($F25,Weekly!$E:$E,0)) -> 0 | N25: =INDEX(Weekly!K:K,MATCH($F25,Weekly!$E:$E,0)) -> 0 | O25: =INDEX(Weekly!M:M,MATCH($F25,Weekly!$E:$E,0)) -> 0 | P25: =O25+K25 -> 
B26: B9 | C26: Play-off | D26: 9 | E26: B | F26: Kei Lok Ma | G26: =INDEX(Weekly!F:F,MATCH($F26,Weekly!$E:$E,0)) -> -5.3925 | H26: =INDEX(Weekly!G:G,MATCH($F26,Weekly!$E:$E,0)) -> 2 | I26: =INDEX(Weekly!H:H,MATCH($F26,Weekly!$E:$E,0)) -> -7 | J26: =INDEX(Weekly!I:I,MATCH($F26,Weekly!$E:$E,0)) -> 0 | K26: =INDEX(Players!F:F,MATCH($F26,Players!#REF!,0)) ->  | L26: =INDEX(Prizes!F:F,MATCH($B26,Prizes!A:A,0)) -> 0 | M26: =INDEX(Weekly!J:J,MATCH($F26,Weekly!$E:$E,0)) -> 0 | N26: =INDEX(Weekly!K:K,MATCH($F26,Weekly!$E:$E,0)) -> 0 | O26: =INDEX(Weekly!M:M,MATCH($F26,Weekly!$E:$E,0)) -> 0 | P26: =O26+K26 -> 
B27: B10 | C27: Play-off | D27: 10 | E27: B | F27: Martin Molyneux | G27: =INDEX(Weekly!F:F,MATCH($F27,Weekly!$E:$E,0)) -> -6.325 | H27: =INDEX(Weekly!G:G,MATCH($F27,Weekly!$E:$E,0)) -> 3 | I27: =INDEX(Weekly!H:H,MATCH($F27,Weekly!$E:$E,0)) -> -1.375 | J27: =INDEX(Weekly!I:I,MATCH($F27,Weekly!$E:$E,0)) -> 2 | K27: =INDEX(Players!F:F,MATCH($F27,Players!#REF!,0)) ->  | L27: =INDEX(Prizes!F:F,MATCH($B27,Prizes!A:A,0)) -> 0 | M27: =INDEX(Weekly!J:J,MATCH($F27,Weekly!$E:$E,0)) -> 0 | N27: =INDEX(Weekly!K:K,MATCH($F27,Weekly!$E:$E,0)) -> 0 | O27: =INDEX(Weekly!M:M,MATCH($F27,Weekly!$E:$E,0)) -> 0 | P27: =O27+K27 -> 
B28: B11 | C28: ↓ | D28: 11 | E28: B | F28: John Evans | G28: =INDEX(Weekly!F:F,MATCH($F28,Weekly!$E:$E,0)) -> -8.125 | H28: =INDEX(Weekly!G:G,MATCH($F28,Weekly!$E:$E,0)) -> 2 | I28: =INDEX(Weekly!H:H,MATCH($F28,Weekly!$E:$E,0)) -> -4.375 | J28: =INDEX(Weekly!I:I,MATCH($F28,Weekly!$E:$E,0)) -> 1 | K28: =INDEX(Players!F:F,MATCH($F28,Players!#REF!,0)) ->  | L28: =INDEX(Prizes!F:F,MATCH($B28,Prizes!A:A,0)) -> 0 | M28: =INDEX(Weekly!J:J,MATCH($F28,Weekly!$E:$E,0)) -> 0 | N28: =INDEX(Weekly!K:K,MATCH($F28,Weekly!$E:$E,0)) -> 0 | O28: =INDEX(Weekly!M:M,MATCH($F28,Weekly!$E:$E,0)) -> 0 | P28: =O28+K28 -> 
B29: B12 | C29: ↓ | D29: 12 | E29: B | F29: Barry Birchall | G29: =INDEX(Weekly!F:F,MATCH($F29,Weekly!$E:$E,0)) -> -8.442857143 | H29: =INDEX(Weekly!G:G,MATCH($F29,Weekly!$E:$E,0)) -> 2 | I29: =INDEX(Weekly!H:H,MATCH($F29,Weekly!$E:$E,0)) -> -1.442857143 | J29: =INDEX(Weekly!I:I,MATCH($F29,Weekly!$E:$E,0)) -> 2 | K29: =INDEX(Players!F:F,MATCH($F29,Players!#REF!,0)) ->  | L29: =INDEX(Prizes!F:F,MATCH($B29,Prizes!A:A,0)) -> 0 | M29: =INDEX(Weekly!J:J,MATCH($F29,Weekly!$E:$E,0)) -> 0 | N29: =INDEX(Weekly!K:K,MATCH($F29,Weekly!$E:$E,0)) -> 0 | O29: =INDEX(Weekly!M:M,MATCH($F29,Weekly!$E:$E,0)) -> 0 | P29: =O29+K29 -> 
B30: B13 | C30: ↓ | D30: 13 | E30: B | F30: Paul Allen | G30: =INDEX(Weekly!F:F,MATCH($F30,Weekly!$E:$E,0)) -> -9.4 | H30: =INDEX(Weekly!G:G,MATCH($F30,Weekly!$E:$E,0)) -> 2 | I30: =INDEX(Weekly!H:H,MATCH($F30,Weekly!$E:$E,0)) -> -4.55 | J30: =INDEX(Weekly!I:I,MATCH($F30,Weekly!$E:$E,0)) -> 1 | K30: =INDEX(Players!F:F,MATCH($F30,Players!#REF!,0)) ->  | L30: =INDEX(Prizes!F:F,MATCH($B30,Prizes!A:A,0)) -> 0 | M30: =INDEX(Weekly!J:J,MATCH($F30,Weekly!$E:$E,0)) -> 0 | N30: =INDEX(Weekly!K:K,MATCH($F30,Weekly!$E:$E,0)) -> 0 | O30: =INDEX(Weekly!M:M,MATCH($F30,Weekly!$E:$E,0)) -> 0 | P30: =O30+K30 -> 
B31: B14 | C31: ↓ | D31: 14 | E31: B | F31: Mark Bunn | G31: =INDEX(Weekly!F:F,MATCH($F31,Weekly!$E:$E,0)) -> -9.45 | H31: =INDEX(Weekly!G:G,MATCH($F31,Weekly!$E:$E,0)) -> 2 | I31: =INDEX(Weekly!H:H,MATCH($F31,Weekly!$E:$E,0)) -> -4.6 | J31: =INDEX(Weekly!I:I,MATCH($F31,Weekly!$E:$E,0)) -> 1 | K31: =INDEX(Players!F:F,MATCH($F31,Players!#REF!,0)) ->  | L31: =INDEX(Prizes!F:F,MATCH($B31,Prizes!A:A,0)) -> 0 | M31: =INDEX(Weekly!J:J,MATCH($F31,Weekly!$E:$E,0)) -> 0 | N31: =INDEX(Weekly!K:K,MATCH($F31,Weekly!$E:$E,0)) -> 0 | O31: =INDEX(Weekly!M:M,MATCH($F31,Weekly!$E:$E,0)) -> 0 | P31: =O31+K31 -> 
B32: B15 | C32: ↓ | D32: 15 | E32: B | F32: Tom Robinson | G32: =INDEX(Weekly!F:F,MATCH($F32,Weekly!$E:$E,0)) -> -14 | H32: =INDEX(Weekly!G:G,MATCH($F32,Weekly!$E:$E,0)) -> 0 | I32: =INDEX(Weekly!H:H,MATCH($F32,Weekly!$E:$E,0)) -> -7 | J32: =INDEX(Weekly!I:I,MATCH($F32,Weekly!$E:$E,0)) -> 0 | K32: =INDEX(Players!F:F,MATCH($F32,Players!#REF!,0)) ->  | L32: =INDEX(Prizes!F:F,MATCH($B32,Prizes!A:A,0)) -> 0 | M32: =INDEX(Weekly!J:J,MATCH($F32,Weekly!$E:$E,0)) -> 0 | N32: =INDEX(Weekly!K:K,MATCH($F32,Weekly!$E:$E,0)) -> 0 | O32: =INDEX(Weekly!M:M,MATCH($F32,Weekly!$E:$E,0)) -> 0 | P32: =O32+K32 -> 
B33: B16 | C33: ↓ | D33: 16 | E33: B | F33: James Bell | G33: =INDEX(Weekly!F:F,MATCH($F33,Weekly!$E:$E,0)) -> -14 | H33: =INDEX(Weekly!G:G,MATCH($F33,Weekly!$E:$E,0)) -> 0 | I33: =INDEX(Weekly!H:H,MATCH($F33,Weekly!$E:$E,0)) -> -7 | J33: =INDEX(Weekly!I:I,MATCH($F33,Weekly!$E:$E,0)) -> 0 | K33: =INDEX(Players!F:F,MATCH($F33,Players!#REF!,0)) ->  | L33: =INDEX(Prizes!F:F,MATCH($B33,Prizes!A:A,0)) -> 0 | M33: =INDEX(Weekly!J:J,MATCH($F33,Weekly!$E:$E,0)) -> 0 | N33: =INDEX(Weekly!K:K,MATCH($F33,Weekly!$E:$E,0)) -> 0 | O33: =INDEX(Weekly!M:M,MATCH($F33,Weekly!$E:$E,0)) -> 0 | P33: =O33+K33 -> 
A34: Division C | B34: C1 | C34: ↑ | D34: 1 | E34: C | F34: Paul Fairhurst | G34: =INDEX(Weekly!F:F,MATCH($F34,Weekly!$E:$E,0)) -> 203.72 | H34: =INDEX(Weekly!G:G,MATCH($F34,Weekly!$E:$E,0)) -> 4 | I34: =INDEX(Weekly!H:H,MATCH($F34,Weekly!$E:$E,0)) -> 208.72 | J34: =INDEX(Weekly!I:I,MATCH($F34,Weekly!$E:$E,0)) -> 3 | K34: =INDEX(Players!F:F,MATCH($F34,Players!#REF!,0)) ->  | L34: =INDEX(Prizes!F:F,MATCH($B34,Prizes!A:A,0)) -> 36.225 | M34: =INDEX(Weekly!J:J,MATCH($F34,Weekly!$E:$E,0)) -> 10 | N34: =INDEX(Weekly!K:K,MATCH($F34,Weekly!$E:$E,0)) -> 0 | O34: =INDEX(Weekly!M:M,MATCH($F34,Weekly!$E:$E,0)) -> 46.225 | P34: =O34+K34 -> 
B35: C2 | C35: ↑ | D35: 2 | E35: C | F35: Chris Bow | G35: =INDEX(Weekly!F:F,MATCH($F35,Weekly!$E:$E,0)) -> 193.13 | H35: =INDEX(Weekly!G:G,MATCH($F35,Weekly!$E:$E,0)) -> 6 | I35: =INDEX(Weekly!H:H,MATCH($F35,Weekly!$E:$E,0)) -> 150.1 | J35: =INDEX(Weekly!I:I,MATCH($F35,Weekly!$E:$E,0)) -> 3 | K35: =INDEX(Players!F:F,MATCH($F35,Players!#REF!,0)) ->  | L35: =INDEX(Prizes!F:F,MATCH($B35,Prizes!A:A,0)) -> 25.875 | M35: =INDEX(Weekly!J:J,MATCH($F35,Weekly!$E:$E,0)) -> 15 | N35: =INDEX(Weekly!K:K,MATCH($F35,Weekly!$E:$E,0)) -> 0 | O35: =INDEX(Weekly!M:M,MATCH($F35,Weekly!$E:$E,0)) -> 40.875 | P35: =O35+K35 -> 
B36: C3 | C36: ↑ | D36: 3 | E36: C | F36: Chris Townsend | G36: =INDEX(Weekly!F:F,MATCH($F36,Weekly!$E:$E,0)) -> 15.375 | H36: =INDEX(Weekly!G:G,MATCH($F36,Weekly!$E:$E,0)) -> 3 | I36: =INDEX(Weekly!H:H,MATCH($F36,Weekly!$E:$E,0)) -> 4 | J36: =INDEX(Weekly!I:I,MATCH($F36,Weekly!$E:$E,0)) -> 1 | K36: =INDEX(Players!F:F,MATCH($F36,Players!#REF!,0)) ->  | L36: =INDEX(Prizes!F:F,MATCH($B36,Prizes!A:A,0)) -> 18.63 | M36: =INDEX(Weekly!J:J,MATCH($F36,Weekly!$E:$E,0)) -> 0 | N36: =INDEX(Weekly!K:K,MATCH($F36,Weekly!$E:$E,0)) -> 0 | O36: =INDEX(Weekly!M:M,MATCH($F36,Weekly!$E:$E,0)) -> 18.63 | P36: =O36+K36 -> 
B37: C4 | C37: ↑ | D37: 4 | E37: C | F37: Mal Stott | G37: =INDEX(Weekly!F:F,MATCH($F37,Weekly!$E:$E,0)) -> 8.5025 | H37: =INDEX(Weekly!G:G,MATCH($F37,Weekly!$E:$E,0)) -> 4 | I37: =INDEX(Weekly!H:H,MATCH($F37,Weekly!$E:$E,0)) -> 5.95 | J37: =INDEX(Weekly!I:I,MATCH($F37,Weekly!$E:$E,0)) -> 2 | K37: =INDEX(Players!F:F,MATCH($F37,Players!#REF!,0)) ->  | L37: =INDEX(Prizes!F:F,MATCH($B37,Prizes!A:A,0)) -> 12.42 | M37: =INDEX(Weekly!J:J,MATCH($F37,Weekly!$E:$E,0)) -> 0 | N37: =INDEX(Weekly!K:K,MATCH($F37,Weekly!$E:$E,0)) -> 0 | O37: =INDEX(Weekly!M:M,MATCH($F37,Weekly!$E:$E,0)) -> 12.42 | P37: =O37+K37 -> 
B38: C5 | C38: ↑ | D38: 5 | E38: C | F38: Charlie Griffiths | G38: =INDEX(Weekly!F:F,MATCH($F38,Weekly!$E:$E,0)) -> 7.32 | H38: =INDEX(Weekly!G:G,MATCH($F38,Weekly!$E:$E,0)) -> 3 | I38: =INDEX(Weekly!H:H,MATCH($F38,Weekly!$E:$E,0)) -> 10.92 | J38: =INDEX(Weekly!I:I,MATCH($F38,Weekly!$E:$E,0)) -> 2 | K38: =INDEX(Players!F:F,MATCH($F38,Players!#REF!,0)) ->  | L38: =INDEX(Prizes!F:F,MATCH($B38,Prizes!A:A,0)) -> 7.245 | M38: =INDEX(Weekly!J:J,MATCH($F38,Weekly!$E:$E,0)) -> 0 | N38: =INDEX(Weekly!K:K,MATCH($F38,Weekly!$E:$E,0)) -> 0 | O38: =INDEX(Weekly!M:M,MATCH($F38,Weekly!$E:$E,0)) -> 7.245 | P38: =O38+K38 -> 
B39: C6 | C39: ↑ | D39: 6 | E39: C | F39: Paul Ridgeway | G39: =INDEX(Weekly!F:F,MATCH($F39,Weekly!$E:$E,0)) -> 4.350769231 | H39: =INDEX(Weekly!G:G,MATCH($F39,Weekly!$E:$E,0)) -> 4 | I39: =INDEX(Weekly!H:H,MATCH($F39,Weekly!$E:$E,0)) -> -1.069230769 | J39: =INDEX(Weekly!I:I,MATCH($F39,Weekly!$E:$E,0)) -> 2 | K39: =INDEX(Players!F:F,MATCH($F39,Players!#REF!,0)) ->  | L39: =INDEX(Prizes!F:F,MATCH($B39,Prizes!A:A,0)) -> 3.105 | M39: =INDEX(Weekly!J:J,MATCH($F39,Weekly!$E:$E,0)) -> 0 | N39: =INDEX(Weekly!K:K,MATCH($F39,Weekly!$E:$E,0)) -> 0 | O39: =INDEX(Weekly!M:M,MATCH($F39,Weekly!$E:$E,0)) -> 3.105 | P39: =O39+K39 -> 
B40: C7 | C40: Play-off | D40: 7 | E40: C | F40: Sally Williams | G40: =INDEX(Weekly!F:F,MATCH($F40,Weekly!$E:$E,0)) -> 1.46875 | H40: =INDEX(Weekly!G:G,MATCH($F40,Weekly!$E:$E,0)) -> 2 | I40: =INDEX(Weekly!H:H,MATCH($F40,Weekly!$E:$E,0)) -> -7 | J40: =INDEX(Weekly!I:I,MATCH($F40,Weekly!$E:$E,0)) -> 0 | K40: =INDEX(Players!F:F,MATCH($F40,Players!#REF!,0)) ->  | L40: =INDEX(Prizes!F:F,MATCH($B40,Prizes!A:A,0)) -> 0 | M40: =INDEX(Weekly!J:J,MATCH($F40,Weekly!$E:$E,0)) -> 0 | N40: =INDEX(Weekly!K:K,MATCH($F40,Weekly!$E:$E,0)) -> 0 | O40: =INDEX(Weekly!M:M,MATCH($F40,Weekly!$E:$E,0)) -> 0 | P40: =O40+K40 -> 
B41: C8 | C41: Play-off | D41: 8 | E41: C | F41: Liam Wah | G41: =INDEX(Weekly!F:F,MATCH($F41,Weekly!$E:$E,0)) -> 0.1 | H41: =INDEX(Weekly!G:G,MATCH($F41,Weekly!$E:$E,0)) -> 3 | I41: =INDEX(Weekly!H:H,MATCH($F41,Weekly!$E:$E,0)) -> -4.8 | J41: =INDEX(Weekly!I:I,MATCH($F41,Weekly!$E:$E,0)) -> 1 | K41: =INDEX(Players!F:F,MATCH($F41,Players!#REF!,0)) ->  | L41: =INDEX(Prizes!F:F,MATCH($B41,Prizes!A:A,0)) -> 0 | M41: =INDEX(Weekly!J:J,MATCH($F41,Weekly!$E:$E,0)) -> 0 | N41: =INDEX(Weekly!K:K,MATCH($F41,Weekly!$E:$E,0)) -> 0 | O41: =INDEX(Weekly!M:M,MATCH($F41,Weekly!$E:$E,0)) -> 0 | P41: =O41+K41 -> 
B42: C9 | C42: Play-off | D42: 9 | E42: C | F42: David Dunn | G42: =INDEX(Weekly!F:F,MATCH($F42,Weekly!$E:$E,0)) -> -1.618681319 | H42: =INDEX(Weekly!G:G,MATCH($F42,Weekly!$E:$E,0)) -> 4 | I42: =INDEX(Weekly!H:H,MATCH($F42,Weekly!$E:$E,0)) -> -1.461538462 | J42: =INDEX(Weekly!I:I,MATCH($F42,Weekly!$E:$E,0)) -> 2 | K42: =INDEX(Players!F:F,MATCH($F42,Players!#REF!,0)) ->  | L42: =INDEX(Prizes!F:F,MATCH($B42,Prizes!A:A,0)) -> 0 | M42: =INDEX(Weekly!J:J,MATCH($F42,Weekly!$E:$E,0)) -> 0 | N42: =INDEX(Weekly!K:K,MATCH($F42,Weekly!$E:$E,0)) -> 0 | O42: =INDEX(Weekly!M:M,MATCH($F42,Weekly!$E:$E,0)) -> 0 | P42: =O42+K42 -> 
B43: C10 | C43: Play-off | D43: 10 | E43: C | F43: Andy Charleston | G43: =INDEX(Weekly!F:F,MATCH($F43,Weekly!$E:$E,0)) -> -3.1 | H43: =INDEX(Weekly!G:G,MATCH($F43,Weekly!$E:$E,0)) -> 3 | I43: =INDEX(Weekly!H:H,MATCH($F43,Weekly!$E:$E,0)) -> -4.55 | J43: =INDEX(Weekly!I:I,MATCH($F43,Weekly!$E:$E,0)) -> 1 | K43: =INDEX(Players!F:F,MATCH($F43,Players!#REF!,0)) ->  | L43: =INDEX(Prizes!F:F,MATCH($B43,Prizes!A:A,0)) -> 0 | M43: =INDEX(Weekly!J:J,MATCH($F43,Weekly!$E:$E,0)) -> 0 | N43: =INDEX(Weekly!K:K,MATCH($F43,Weekly!$E:$E,0)) -> 0 | O43: =INDEX(Weekly!M:M,MATCH($F43,Weekly!$E:$E,0)) -> 0 | P43: =O43+K43 -> 
B44: C11 | C44: ↓ | D44: 11 | E44: C | F44: Chris Griffin | G44: =INDEX(Weekly!F:F,MATCH($F44,Weekly!$E:$E,0)) -> -5.284615385 | H44: =INDEX(Weekly!G:G,MATCH($F44,Weekly!$E:$E,0)) -> 3 | I44: =INDEX(Weekly!H:H,MATCH($F44,Weekly!$E:$E,0)) -> -0.2846153846 | J44: =INDEX(Weekly!I:I,MATCH($F44,Weekly!$E:$E,0)) -> 2 | K44: =INDEX(Players!F:F,MATCH($F44,Players!#REF!,0)) ->  | L44: =INDEX(Prizes!F:F,MATCH($B44,Prizes!A:A,0)) -> 0 | M44: =INDEX(Weekly!J:J,MATCH($F44,Weekly!$E:$E,0)) -> 0 | N44: =INDEX(Weekly!K:K,MATCH($F44,Weekly!$E:$E,0)) -> 0 | O44: =INDEX(Weekly!M:M,MATCH($F44,Weekly!$E:$E,0)) -> 0 | P44: =O44+K44 -> 
B45: C12 | C45: ↓ | D45: 12 | E45: C | F45: Jack Walsh | G45: =INDEX(Weekly!F:F,MATCH($F45,Weekly!$E:$E,0)) -> -6.369230769 | H45: =INDEX(Weekly!G:G,MATCH($F45,Weekly!$E:$E,0)) -> 2 | I45: =INDEX(Weekly!H:H,MATCH($F45,Weekly!$E:$E,0)) -> 0.6307692308 | J45: =INDEX(Weekly!I:I,MATCH($F45,Weekly!$E:$E,0)) -> 2 | K45: =INDEX(Players!F:F,MATCH($F45,Players!#REF!,0)) ->  | L45: =INDEX(Prizes!F:F,MATCH($B45,Prizes!A:A,0)) -> 0 | M45: =INDEX(Weekly!J:J,MATCH($F45,Weekly!$E:$E,0)) -> 0 | N45: =INDEX(Weekly!K:K,MATCH($F45,Weekly!$E:$E,0)) -> 0 | O45: =INDEX(Weekly!M:M,MATCH($F45,Weekly!$E:$E,0)) -> 0 | P45: =O45+K45 -> 
B46: C13 | C46: ↓ | D46: 13 | E46: C | F46: Alan White | G46: =INDEX(Weekly!F:F,MATCH($F46,Weekly!$E:$E,0)) -> -6.575 | H46: =INDEX(Weekly!G:G,MATCH($F46,Weekly!$E:$E,0)) -> 3 | I46: =INDEX(Weekly!H:H,MATCH($F46,Weekly!$E:$E,0)) -> -1.625 | J46: =INDEX(Weekly!I:I,MATCH($F46,Weekly!$E:$E,0)) -> 2 | K46: =INDEX(Players!F:F,MATCH($F46,Players!#REF!,0)) ->  | L46: =INDEX(Prizes!F:F,MATCH($B46,Prizes!A:A,0)) -> 0 | M46: =INDEX(Weekly!J:J,MATCH($F46,Weekly!$E:$E,0)) -> 0 | N46: =INDEX(Weekly!K:K,MATCH($F46,Weekly!$E:$E,0)) -> 0 | O46: =INDEX(Weekly!M:M,MATCH($F46,Weekly!$E:$E,0)) -> 0 | P46: =O46+K46 -> 
B47: C14 | C47: ↓ | D47: 14 | E47: C | F47: Gareth McGuire | G47: =INDEX(Weekly!F:F,MATCH($F47,Weekly!$E:$E,0)) -> -9.9 | H47: =INDEX(Weekly!G:G,MATCH($F47,Weekly!$E:$E,0)) -> 2 | I47: =INDEX(Weekly!H:H,MATCH($F47,Weekly!$E:$E,0)) -> -5.05 | J47: =INDEX(Weekly!I:I,MATCH($F47,Weekly!$E:$E,0)) -> 1 | K47: =INDEX(Players!F:F,MATCH($F47,Players!#REF!,0)) ->  | L47: =INDEX(Prizes!F:F,MATCH($B47,Prizes!A:A,0)) -> 0 | M47: =INDEX(Weekly!J:J,MATCH($F47,Weekly!$E:$E,0)) -> 0 | N47: =INDEX(Weekly!K:K,MATCH($F47,Weekly!$E:$E,0)) -> 0 | O47: =INDEX(Weekly!M:M,MATCH($F47,Weekly!$E:$E,0)) -> 0 | P47: =O47+K47 -> 
B48: C15 | C48: ↓ | D48: 15 | E48: C | F48: Ian Davies | G48: =INDEX(Weekly!F:F,MATCH($F48,Weekly!$E:$E,0)) -> -11.125 | H48: =INDEX(Weekly!G:G,MATCH($F48,Weekly!$E:$E,0)) -> 1 | I48: =INDEX(Weekly!H:H,MATCH($F48,Weekly!$E:$E,0)) -> -4.125 | J48: =INDEX(Weekly!I:I,MATCH($F48,Weekly!$E:$E,0)) -> 1 | K48: =INDEX(Players!F:F,MATCH($F48,Players!#REF!,0)) ->  | L48: =INDEX(Prizes!F:F,MATCH($B48,Prizes!A:A,0)) -> 0 | M48: =INDEX(Weekly!J:J,MATCH($F48,Weekly!$E:$E,0)) -> 0 | N48: =INDEX(Weekly!K:K,MATCH($F48,Weekly!$E:$E,0)) -> 0 | O48: =INDEX(Weekly!M:M,MATCH($F48,Weekly!$E:$E,0)) -> 0 | P48: =O48+K48 -> 
B49: C16 | C49: ↓ | D49: 16 | E49: C | F49: Gareth Fallows | G49: =INDEX(Weekly!F:F,MATCH($F49,Weekly!$E:$E,0)) -> -14 | H49: =INDEX(Weekly!G:G,MATCH($F49,Weekly!$E:$E,0)) -> 0 | I49: =INDEX(Weekly!H:H,MATCH($F49,Weekly!$E:$E,0)) -> -7 | J49: =INDEX(Weekly!I:I,MATCH($F49,Weekly!$E:$E,0)) -> 0 | K49: =INDEX(Players!F:F,MATCH($F49,Players!#REF!,0)) ->  | L49: =INDEX(Prizes!F:F,MATCH($B49,Prizes!A:A,0)) -> 0 | M49: =INDEX(Weekly!J:J,MATCH($F49,Weekly!$E:$E,0)) -> 0 | N49: =INDEX(Weekly!K:K,MATCH($F49,Weekly!$E:$E,0)) -> 0 | O49: =INDEX(Weekly!M:M,MATCH($F49,Weekly!$E:$E,0)) -> 0 | P49: =O49+K49 -> 
A50: Division D | B50: D1 | C50: ↑ | D50: 1 | E50: D | F50: Dave Orrell | G50: =INDEX(Weekly!F:F,MATCH($F50,Weekly!$E:$E,0)) -> 23.60625 | H50: =INDEX(Weekly!G:G,MATCH($F50,Weekly!$E:$E,0)) -> 4 | I50: =INDEX(Weekly!H:H,MATCH($F50,Weekly!$E:$E,0)) -> 28.50625 | J50: =INDEX(Weekly!I:I,MATCH($F50,Weekly!$E:$E,0)) -> 3 | K50: =INDEX(Players!F:F,MATCH($F50,Players!#REF!,0)) ->  | L50: =INDEX(Prizes!F:F,MATCH($B50,Prizes!A:A,0)) -> 24.15 | M50: =INDEX(Weekly!J:J,MATCH($F50,Weekly!$E:$E,0)) -> 5 | N50: =INDEX(Weekly!K:K,MATCH($F50,Weekly!$E:$E,0)) -> 0 | O50: =INDEX(Weekly!M:M,MATCH($F50,Weekly!$E:$E,0)) -> 29.15 | P50: =O50+K50 -> 
B51: D2 | C51: ↑ | D51: 2 | E51: D | F51: Paul Barnes | G51: =INDEX(Weekly!F:F,MATCH($F51,Weekly!$E:$E,0)) -> 1.673076923 | H51: =INDEX(Weekly!G:G,MATCH($F51,Weekly!$E:$E,0)) -> 3 | I51: =INDEX(Weekly!H:H,MATCH($F51,Weekly!$E:$E,0)) -> 8.673076923 | J51: =INDEX(Weekly!I:I,MATCH($F51,Weekly!$E:$E,0)) -> 3 | K51: =INDEX(Players!F:F,MATCH($F51,Players!#REF!,0)) ->  | L51: =INDEX(Prizes!F:F,MATCH($B51,Prizes!A:A,0)) -> 17.25 | M51: =INDEX(Weekly!J:J,MATCH($F51,Weekly!$E:$E,0)) -> 0 | N51: =INDEX(Weekly!K:K,MATCH($F51,Weekly!$E:$E,0)) -> 0 | O51: =INDEX(Weekly!M:M,MATCH($F51,Weekly!$E:$E,0)) -> 17.25 | P51: =O51+K51 -> 
B52: D3 | C52: ↑ | D52: 3 | E52: D | F52: Lewis Buckley | G52: =INDEX(Weekly!F:F,MATCH($F52,Weekly!$E:$E,0)) -> -0.235 | H52: =INDEX(Weekly!G:G,MATCH($F52,Weekly!$E:$E,0)) -> 3 | I52: =INDEX(Weekly!H:H,MATCH($F52,Weekly!$E:$E,0)) -> -5.35 | J52: =INDEX(Weekly!I:I,MATCH($F52,Weekly!$E:$E,0)) -> 1 | K52: =INDEX(Players!F:F,MATCH($F52,Players!#REF!,0)) ->  | L52: =INDEX(Prizes!F:F,MATCH($B52,Prizes!A:A,0)) -> 12.42 | M52: =INDEX(Weekly!J:J,MATCH($F52,Weekly!$E:$E,0)) -> 0 | N52: =INDEX(Weekly!K:K,MATCH($F52,Weekly!$E:$E,0)) -> 0 | O52: =INDEX(Weekly!M:M,MATCH($F52,Weekly!$E:$E,0)) -> 12.42 | P52: =O52+K52 -> 
B53: D4 | C53: ↑ | D53: 4 | E53: D | F53: Ashley Houghton | G53: =INDEX(Weekly!F:F,MATCH($F53,Weekly!$E:$E,0)) -> -0.345 | H53: =INDEX(Weekly!G:G,MATCH($F53,Weekly!$E:$E,0)) -> 4 | I53: =INDEX(Weekly!H:H,MATCH($F53,Weekly!$E:$E,0)) -> -0.625 | J53: =INDEX(Weekly!I:I,MATCH($F53,Weekly!$E:$E,0)) -> 2 | K53: =INDEX(Players!F:F,MATCH($F53,Players!#REF!,0)) ->  | L53: =INDEX(Prizes!F:F,MATCH($B53,Prizes!A:A,0)) -> 8.28 | M53: =INDEX(Weekly!J:J,MATCH($F53,Weekly!$E:$E,0)) -> 0 | N53: =INDEX(Weekly!K:K,MATCH($F53,Weekly!$E:$E,0)) -> 0 | O53: =INDEX(Weekly!M:M,MATCH($F53,Weekly!$E:$E,0)) -> 8.28 | P53: =O53+K53 -> 
B54: D5 | C54: ↑ | D54: 5 | E54: D | F54: Graham Miller | G54: =INDEX(Weekly!F:F,MATCH($F54,Weekly!$E:$E,0)) -> -3.4425 | H54: =INDEX(Weekly!G:G,MATCH($F54,Weekly!$E:$E,0)) -> 3 | I54: =INDEX(Weekly!H:H,MATCH($F54,Weekly!$E:$E,0)) -> -5.05 | J54: =INDEX(Weekly!I:I,MATCH($F54,Weekly!$E:$E,0)) -> 1 | K54: =INDEX(Players!F:F,MATCH($F54,Players!#REF!,0)) ->  | L54: =INDEX(Prizes!F:F,MATCH($B54,Prizes!A:A,0)) -> 4.83 | M54: =INDEX(Weekly!J:J,MATCH($F54,Weekly!$E:$E,0)) -> 0 | N54: =INDEX(Weekly!K:K,MATCH($F54,Weekly!$E:$E,0)) -> 0 | O54: =INDEX(Weekly!M:M,MATCH($F54,Weekly!$E:$E,0)) -> 4.83 | P54: =O54+K54 -> 
B55: D6 | C55: ↑ | D55: 6 | E55: D | F55: Martin Tarbuck | G55: =INDEX(Weekly!F:F,MATCH($F55,Weekly!$E:$E,0)) -> -4.6 | H55: =INDEX(Weekly!G:G,MATCH($F55,Weekly!$E:$E,0)) -> 3 | I55: =INDEX(Weekly!H:H,MATCH($F55,Weekly!$E:$E,0)) -> -4.7 | J55: =INDEX(Weekly!I:I,MATCH($F55,Weekly!$E:$E,0)) -> 1 | K55: =INDEX(Players!F:F,MATCH($F55,Players!#REF!,0)) ->  | L55: =INDEX(Prizes!F:F,MATCH($B55,Prizes!A:A,0)) -> 2.07 | M55: =INDEX(Weekly!J:J,MATCH($F55,Weekly!$E:$E,0)) -> 0 | N55: =INDEX(Weekly!K:K,MATCH($F55,Weekly!$E:$E,0)) -> 0 | O55: =INDEX(Weekly!M:M,MATCH($F55,Weekly!$E:$E,0)) -> 2.07 | P55: =O55+K55 -> 
B56: D7 | C56: Play-off | D56: 7 | E56: D | F56: Nick Blocksidge | G56: =INDEX(Weekly!F:F,MATCH($F56,Weekly!$E:$E,0)) -> -6.292857143 | H56: =INDEX(Weekly!G:G,MATCH($F56,Weekly!$E:$E,0)) -> 3 | I56: =INDEX(Weekly!H:H,MATCH($F56,Weekly!$E:$E,0)) -> -1.442857143 | J56: =INDEX(Weekly!I:I,MATCH($F56,Weekly!$E:$E,0)) -> 2 | K56: =INDEX(Players!F:F,MATCH($F56,Players!#REF!,0)) ->  | L56: =INDEX(Prizes!F:F,MATCH($B56,Prizes!A:A,0)) -> 0 | M56: =INDEX(Weekly!J:J,MATCH($F56,Weekly!$E:$E,0)) -> 0 | N56: =INDEX(Weekly!K:K,MATCH($F56,Weekly!$E:$E,0)) -> 0 | O56: =INDEX(Weekly!M:M,MATCH($F56,Weekly!$E:$E,0)) -> 0 | P56: =O56+K56 -> 
B57: D8 | C57: Play-off | D57: 8 | E57: D | F57: Paul Adderley | G57: =INDEX(Weekly!F:F,MATCH($F57,Weekly!$E:$E,0)) -> -6.461538462 | H57: =INDEX(Weekly!G:G,MATCH($F57,Weekly!$E:$E,0)) -> 3 | I57: =INDEX(Weekly!H:H,MATCH($F57,Weekly!$E:$E,0)) -> -1.461538462 | J57: =INDEX(Weekly!I:I,MATCH($F57,Weekly!$E:$E,0)) -> 2 | K57: =INDEX(Players!F:F,MATCH($F57,Players!#REF!,0)) ->  | L57: =INDEX(Prizes!F:F,MATCH($B57,Prizes!A:A,0)) -> 0 | M57: =INDEX(Weekly!J:J,MATCH($F57,Weekly!$E:$E,0)) -> 0 | N57: =INDEX(Weekly!K:K,MATCH($F57,Weekly!$E:$E,0)) -> 0 | O57: =INDEX(Weekly!M:M,MATCH($F57,Weekly!$E:$E,0)) -> 0 | P57: =O57+K57 -> 
B58: D9 | D58: 9 | E58: D | F58: John Ronan | G58: =INDEX(Weekly!F:F,MATCH($F58,Weekly!$E:$E,0)) -> -9.7 | H58: =INDEX(Weekly!G:G,MATCH($F58,Weekly!$E:$E,0)) -> 2 | I58: =INDEX(Weekly!H:H,MATCH($F58,Weekly!$E:$E,0)) -> -4.85 | J58: =INDEX(Weekly!I:I,MATCH($F58,Weekly!$E:$E,0)) -> 1 | K58: =INDEX(Players!F:F,MATCH($F58,Players!#REF!,0)) ->  | L58: =INDEX(Prizes!F:F,MATCH($B58,Prizes!A:A,0)) -> 0 | M58: =INDEX(Weekly!J:J,MATCH($F58,Weekly!$E:$E,0)) -> 0 | N58: =INDEX(Weekly!K:K,MATCH($F58,Weekly!$E:$E,0)) -> 0 | O58: =INDEX(Weekly!M:M,MATCH($F58,Weekly!$E:$E,0)) -> 0 | P58: =O58+K58 -> 
B59: D10 | D59: 10 | E59: D | F59: Joel Bent | G59: =INDEX(Weekly!F:F,MATCH($F59,Weekly!$E:$E,0)) -> -10.77857143 | H59: =INDEX(Weekly!G:G,MATCH($F59,Weekly!$E:$E,0)) -> 2 | I59: =INDEX(Weekly!H:H,MATCH($F59,Weekly!$E:$E,0)) -> -5.35 | J59: =INDEX(Weekly!I:I,MATCH($F59,Weekly!$E:$E,0)) -> 1 | K59: =INDEX(Players!F:F,MATCH($F59,Players!#REF!,0)) ->  | L59: =INDEX(Prizes!F:F,MATCH($B59,Prizes!A:A,0)) -> 0 | M59: =INDEX(Weekly!J:J,MATCH($F59,Weekly!$E:$E,0)) -> 0 | N59: =INDEX(Weekly!K:K,MATCH($F59,Weekly!$E:$E,0)) -> 0 | O59: =INDEX(Weekly!M:M,MATCH($F59,Weekly!$E:$E,0)) -> 0 | P59: =O59+K59 -> 
B60: D11 | D60: 11 | E60: D | F60: Ben Rosser | G60: =INDEX(Weekly!F:F,MATCH($F60,Weekly!$E:$E,0)) -> -11.95 | H60: =INDEX(Weekly!G:G,MATCH($F60,Weekly!$E:$E,0)) -> 1 | I60: =INDEX(Weekly!H:H,MATCH($F60,Weekly!$E:$E,0)) -> -7 | J60: =INDEX(Weekly!I:I,MATCH($F60,Weekly!$E:$E,0)) -> 0 | K60: =INDEX(Players!F:F,MATCH($F60,Players!#REF!,0)) ->  | L60: =INDEX(Prizes!F:F,MATCH($B60,Prizes!A:A,0)) -> 0 | M60: =INDEX(Weekly!J:J,MATCH($F60,Weekly!$E:$E,0)) -> 0 | N60: =INDEX(Weekly!K:K,MATCH($F60,Weekly!$E:$E,0)) -> 0 | O60: =INDEX(Weekly!M:M,MATCH($F60,Weekly!$E:$E,0)) -> 0 | P60: =O60+K60 -> 
B61: D12 | D61: 12 | E61: D | F61: Howard Bradley | G61: =INDEX(Weekly!F:F,MATCH($F61,Weekly!$E:$E,0)) -> -12.42857143 | H61: =INDEX(Weekly!G:G,MATCH($F61,Weekly!$E:$E,0)) -> 1 | I61: =INDEX(Weekly!H:H,MATCH($F61,Weekly!$E:$E,0)) -> -5.428571429 | J61: =INDEX(Weekly!I:I,MATCH($F61,Weekly!$E:$E,0)) -> 1 | K61: =INDEX(Players!F:F,MATCH($F61,Players!#REF!,0)) ->  | L61: =INDEX(Prizes!F:F,MATCH($B61,Prizes!A:A,0)) -> 0 | M61: =INDEX(Weekly!J:J,MATCH($F61,Weekly!$E:$E,0)) -> 0 | N61: =INDEX(Weekly!K:K,MATCH($F61,Weekly!$E:$E,0)) -> 0 | O61: =INDEX(Weekly!M:M,MATCH($F61,Weekly!$E:$E,0)) -> 0 | P61: =O61+K61 -> 
B62: D13 | D62: 13 | E62: D | F62: Simon Greenhalgh | G62: =INDEX(Weekly!F:F,MATCH($F62,Weekly!$E:$E,0)) -> -12.5 | H62: =INDEX(Weekly!G:G,MATCH($F62,Weekly!$E:$E,0)) -> 1 | I62: =INDEX(Weekly!H:H,MATCH($F62,Weekly!$E:$E,0)) -> -5.5 | J62: =INDEX(Weekly!I:I,MATCH($F62,Weekly!$E:$E,0)) -> 1 | K62: =INDEX(Players!F:F,MATCH($F62,Players!#REF!,0)) ->  | L62: =INDEX(Prizes!F:F,MATCH($B62,Prizes!A:A,0)) -> 0 | M62: =INDEX(Weekly!J:J,MATCH($F62,Weekly!$E:$E,0)) -> 0 | N62: =INDEX(Weekly!K:K,MATCH($F62,Weekly!$E:$E,0)) -> 0 | O62: =INDEX(Weekly!M:M,MATCH($F62,Weekly!$E:$E,0)) -> 0 | P62: =O62+K62 -> 
B63: D14 | D63: 14 | E63: D | F63: Dan Baxter | G63: =INDEX(Weekly!F:F,MATCH($F63,Weekly!$E:$E,0)) -> -14 | H63: =INDEX(Weekly!G:G,MATCH($F63,Weekly!$E:$E,0)) -> 0 | I63: =INDEX(Weekly!H:H,MATCH($F63,Weekly!$E:$E,0)) -> -7 | J63: =INDEX(Weekly!I:I,MATCH($F63,Weekly!$E:$E,0)) -> 0 | K63: =INDEX(Players!F:F,MATCH($F63,Players!#REF!,0)) ->  | L63: =INDEX(Prizes!F:F,MATCH($B63,Prizes!A:A,0)) -> 0 | M63: =INDEX(Weekly!J:J,MATCH($F63,Weekly!$E:$E,0)) -> 0 | N63: =INDEX(Weekly!K:K,MATCH($F63,Weekly!$E:$E,0)) -> 0 | O63: =INDEX(Weekly!M:M,MATCH($F63,Weekly!$E:$E,0)) -> 0 | P63: =O63+K63 -> 
K66: =INDEX(Players!F:F,MATCH($F66,Players!#REF!,0)) -> 
B67: =CONCATENATE(E67,D67) ->  | K67: =INDEX(Players!F:F,MATCH($F67,Players!#REF!,0)) -> 
B68: =CONCATENATE(E68,D68) ->  | K68: =INDEX(Players!F:F,MATCH($F68,Players!#REF!,0)) -> 
B69: =CONCATENATE(E69,D69) ->  | K69: =INDEX(Players!F:F,MATCH($F69,Players!#REF!,0)) -> 
L72: =SUM(L2:L70) -> 690 | M72: =SUM(M2:M70) -> 50 | N72: =SUM(N2:N70) -> 0 | O72: =SUM(O2:O70) -> 740 | P72: =SUM(P2:P70) -> 

Sheet Weekly
A1: Rank Seas | B1: Rank Wk | C1: Pos L/W | D1: Div | E1: Player | F1: Season Score | G1: Season Correct | H1: Week Score | I1: Week ? of 3 | J1: Weekly Prizes | K1: Cup Prize | L1: League Place Prize | M1: Total Prize | N1: W1 | O1: W1Q | P1: W1P | Q1: W2 | R1: W2Q | S1: W2P | T1: W3 | U1: W3Q | V1: W3P | W1: W4 | X1: W4Q | Y1: W4P | Z1: W5 | AA1: W5Q | AB1: W5P | AC1: W6 | AD1: W6Q | AE1: W6P | AF1: W7 | AG1: W7Q | AH1: W7P | AI1: W8 | AJ1: W8Q | AK1: W8P | AL1: W9 | AM1: W9Q | AN1: W9P | AO1: W10 | AP1: W10Q | AQ1: W10P | AR1: W11 | AS1: W11Q | AT1: W11P | AU1: W12 | AV1: W12Q | AW1: W12P | AX1: W13 | AY1: W13Q | AZ1: W13P | BA1: W14 | BB1: W14Q | BC1: W14P | BD1: W15 | BE1: W15Q | BF1: W15P | BG1: W16 | BH1: W16Q | BI1: W16P | BJ1: W17 | BK1: W17Q | BL1: W17P | BM1: W18 | BN1: W18Q | BO1: W18P | BP1: W19 | BQ1: W19Q | BR1: W19P | BS1: W20 | BT1: W20Q | BU1: W20P | BV1: Seas | BW1: SeasQ | BX1: SeasP
A2: =_xlfn.RANK.EQ(F2,totalscores,0) -> 21 | B2: =_xlfn.RANK.EQ(H2,thisweekscore,0) -> 53 | C2: 9 | D2: =INDEX(Table!E:E,MATCH(E2,Table!F:F,0)) -> A | E2: Alan Rogers | F2: =+N2+Q2+T2+W2+Z2+AC2+AF2+AI2+AL2+AO2+AR2+AU2+AX2+BA2+BD2+BG2+BJ2+BM2+BP2+BS2 -> -0.04 | G2: =+O2+R2+U2+X2+AA2+AD2+AG2+AJ2+AM2+AP2+AS2+AV2+AY2+BB2+BE2+BH2+BK2+BN2+BQ2+BT2 -> 2 | H2: -7 | I2: 0 | J2: =P2+S2+V2+Y2+AB2+AE2+AH2+AK2+AN2+AQ2+AT2+AW2+AZ2+BC2+BF2+BI2+BL2+BO2+BR2+BU2 -> 0 | L2: =INDEX(Table!L:L,MATCH(E2,Table!F:F,0)) -> 0 | M2: =K2+J2+L2 -> 0 | N2: 6.96 | O2: 2 | Q2: -7 | R2: 0 | BV2: =BS2+BP2+BM2+BJ2+BG2+BD2+BA2+AX2+AU2+AR2+AO2+AL2+AI2+AF2+AC2+Z2+W2+T2+Q2+N2 -> -0.04 | BW2: =BT2+BQ2+BN2+BK2+BH2+BE2+BB2+AY2+AV2+AS2+AP2+AM2+AJ2+AG2+AD2+AA2+X2+U2+R2+O2 -> 2 | BX2: =BU2+BR2+BO2+BL2+BI2+BF2+BC2+AZ2+AW2+AT2+AQ2+AN2+AK2+AH2+AE2+AB2+Y2+V2+S2+P2 -> 0
A3: 43 | B3: 31 | C3: 36 | D3: =INDEX(Table!E:E,MATCH(E3,Table!F:F,0)) -> C | E3: Alan White | F3: -6.575 | G3: 3 | H3: -1.625 | I3: 2 | J3: =P3+S3+V3+Y3+AB3+AE3+AH3+AK3+AN3+AQ3+AT3+AW3+AZ3+BC3+BF3+BI3+BL3+BO3+BR3+BU3 -> 0 | L3: =INDEX(Table!L:L,MATCH(E3,Table!F:F,0)) -> 0 | M3: =K3+J3+L3 -> 0 | N3: -4.95 | O3: 1 | Q3: -1.625 | R3: 2 | BV3: -6.575 | BW3: 3 | BX3: 0
A4: 51 | B4: 53 | C4: 25 | D4: =INDEX(Table!E:E,MATCH(E4,Table!F:F,0)) -> A | E4: Alfie Davies | F4: -10.75 | G4: 1 | H4: -7 | I4: 0 | J4: 0 | L4: =INDEX(Table!L:L,MATCH(E4,Table!F:F,0)) -> 0 | M4: 0 | N4: -3.75 | O4: 1 | Q4: -7 | R4: 0 | BV4: -10.75 | BW4: 1 | BX4: 0
A5: 14 | B5: 6 | C5: 47 | D5: =INDEX(Table!E:E,MATCH(E5,Table!F:F,0)) -> A | E5: Alick Rocca | F5: 3.80625 | G5: 3 | H5: 10.80625 | I5: 3 | J5: 0 | L5: =INDEX(Table!L:L,MATCH(E5,Table!F:F,0)) -> 37.26 | M5: 37.26 | N5: -7 | O5: 0 | Q5: 10.80625 | R5: 3 | BV5: 3.80625 | BW5: 3 | BX5: 0
A6: 30 | B6: 36 | C6: 19 | D6: =INDEX(Table!E:E,MATCH(E6,Table!F:F,0)) -> C | E6: Andy Charleston | F6: -3.1 | G6: 3 | H6: -4.55 | I6: 1 | J6: 0 | L6: =INDEX(Table!L:L,MATCH(E6,Table!F:F,0)) -> 0 | M6: 0 | N6: 1.45 | O6: 2 | Q6: -4.55 | R6: 1 | BV6: -3.1 | BW6: 3 | BX6: 0
A7: 24 | B7: 36 | C7: 13 | D7: =INDEX(Table!E:E,MATCH(E7,Table!F:F,0)) -> B | E7: Andy White | F7: -0.73125 | G7: 3 | H7: -4.55 | I7: 1 | J7: 0 | L7: =INDEX(Table!L:L,MATCH(E7,Table!F:F,0)) -> 24.84 | M7: 24.84 | N7: 3.81875 | O7: 2 | Q7: -4.55 | R7: 1 | BV7: -0.73125 | BW7: 3 | BX7: 0
A8: 23 | B8: 22 | C8: 20 | D8: =INDEX(Table!E:E,MATCH(E8,Table!F:F,0)) -> D | E8: Ashley Houghton | F8: -0.345 | G8: 4 | H8: -0.625 | I8: 2 | J8: 0 | L8: =INDEX(Table!L:L,MATCH(E8,Table!F:F,0)) -> 8.28 | M8: 8.28 | N8: 0.28 | O8: 2 | Q8: -0.625 | R8: 2 | BV8: -0.345 | BW8: 4 | BX8: 0
A9: 45 | B9: 26 | C9: 47 | D9: =INDEX(Table!E:E,MATCH(E9,Table!F:F,0)) -> B | E9: Barry Birchall | F9: -8.442857143 | G9: 2 | H9: -1.442857143 | I9: 2 | J9: 0 | L9: =INDEX(Table!L:L,MATCH(E9,Table!F:F,0)) -> 0 | M9: 0 | N9: -7 | O9: 0 | Q9: -1.442857143 | R9: 2 | BV9: -8.442857143 | BW9: 2 | BX9: 0
A10: 56 | B10: 53 | C10: 36 | D10: =INDEX(Table!E:E,MATCH(E10,Table!F:F,0)) -> D | E10: Ben Rosser | F10: -11.95 | G10: 1 | H10: -7 | I10: 0 | J10: 0 | L10: =INDEX(Table!L:L,MATCH(E10,Table!F:F,0)) -> 0 | M10: 0 | N10: -4.95 | O10: 1 | Q10: -7 | R10: 0 | BV10: -11.95 | BW10: 1 | BX10: 0
A11: 10 | B11: 5 | C11: 24 | D11: =INDEX(Table!E:E,MATCH(E11,Table!F:F,0)) -> C | E11: Charlie Griffiths | F11: 7.32 | G11: 3 | H11: 10.92 | I11: 2 | J11: 0 | L11: =INDEX(Table!L:L,MATCH(E11,Table!F:F,0)) -> 7.245 | M11: 7.245 | N11: -3.6 | O11: 1 | Q11: 10.92 | R11: 2 | BV11: 7.32 | BW11: 3 | BX11: 0
A12: 2 | B12: 3 | C12: 1 | D12: =INDEX(Table!E:E,MATCH(E12,Table!F:F,0)) -> C | E12: Chris Bow | F12: 193.13 | G12: 6 | H12: 150.1 | I12: 3 | J12: 15 | L12: =INDEX(Table!L:L,MATCH(E12,Table!F:F,0)) -> 25.875 | M12: 40.875 | N12: 43.03 | O12: 3 | P12: 10 | Q12: 150.1 | R12: 3 | S12: 5 | BV12: 193.13 | BW12: 6 | BX12: 15
A13: 35 | B13: 21 | C13: 41 | D13: =INDEX(Table!E:E,MATCH(E13,Table!F:F,0)) -> C | E13: Chris Griffin | F13: -5.284615385 | G13: 3 | H13: -0.2846153846 | I13: 2 | J13: 0 | L13: =INDEX(Table!L:L,MATCH(E13,Table!F:F,0)) -> 0 | M13: 0 | N13: -5 | O13: 1 | Q13: -0.2846153846 | R13: 2 | BV13: -5.284615385 | BW13: 3 | BX13: 0
A14: 27 | B14: 11 | C14: 47 | D14: =INDEX(Table!E:E,MATCH(E14,Table!F:F,0)) -> A | E14: Chris Luck | F14: -1.825 | G14: 2 | H14: 5.175 | I14: 2 | J14: 0 | L14: =INDEX(Table!L:L,MATCH(E14,Table!F:F,0)) -> 0 | M14: 0 | N14: -7 | O14: 0 | Q14: 5.175 | R14: 2 | BV14: -1.825 | BW14: 2 | BX14: 0
A15: 6 | B15: 12 | C15: 5 | D15: =INDEX(Table!E:E,MATCH(E15,Table!F:F,0)) -> C | E15: Chris Townsend | F15: 15.375 | G15: 3 | H15: 4 | I15: 1 | J15: 0 | L15: =INDEX(Table!L:L,MATCH(E15,Table!F:F,0)) -> 18.63 | M15: 18.63 | N15: 11.375 | O15: 2 | Q15: 4 | R15: 1 | BV15: 15.375 | BW15: 3 | BX15: 0
A16: 59 | B16: 53 | C16: 47 | D16: =INDEX(Table!E:E,MATCH(E16,Table!F:F,0)) -> D | E16: Dan Baxter | F16: -14 | G16: 0 | H16: -7 | I16: 0 | J16: 0 | L16: =INDEX(Table!L:L,MATCH(E16,Table!F:F,0)) -> 0 | M16: 0 | N16: -7 | O16: 0 | Q16: -7 | R16: 0 | BV16: -14 | BW16: 0 | BX16: 0
A17: 29 | B17: 12 | C17: 47 | D17: =INDEX(Table!E:E,MATCH(E17,Table!F:F,0)) -> B | E17: Dave Bell | F17: -3 | G17: 1 | H17: 4 | I17: 1 | J17: 0 | L17: =INDEX(Table!L:L,MATCH(E17,Table!F:F,0)) -> 0 | M17: 0 | N17: -7 | O17: 0 | Q17: 4 | R17: 1 | BV17: -3 | BW17: 1 | BX17: 0
A18: 4 | B18: 4 | C18: 35 | D18: =INDEX(Table!E:E,MATCH(E18,Table!F:F,0)) -> D | E18: Dave Orrell | F18: 23.60625 | G18: 4 | H18: 28.50625 | I18: 3 | J18: 5 | L18: =INDEX(Table!L:L,MATCH(E18,Table!F:F,0)) -> 24.15 | M18: 29.15 | N18: -4.9 | O18: 1 | Q18: 28.50625 | R18: 3 | S18: 5 | BV18: 23.60625 | BW18: 4 | BX18: 5
A19: 25 | B19: 29 | C19: 22 | D19: =INDEX(Table!E:E,MATCH(E19,Table!F:F,0)) -> C | E19: David Dunn | F19: -1.618681319 | G19: 4 | H19: -1.461538462 | I19: 2 | J19: 0 | L19: =INDEX(Table!L:L,MATCH(E19,Table!F:F,0)) -> 0 | M19: 0 | N19: -0.1571428571 | O19: 2 | Q19: -1.461538462 | R19: 2 | BV19: -1.618681319 | BW19: 4 | BX19: 0
A20: 59 | B20: 53 | C20: 47 | D20: =INDEX(Table!E:E,MATCH(E20,Table!F:F,0)) -> C | E20: Gareth Fallows | F20: -14 | G20: 0 | H20: -7 | I20: 0 | J20: 0 | L20: =INDEX(Table!L:L,MATCH(E20,Table!F:F,0)) -> 0 | M20: 0 | N20: -7 | O20: 0 | Q20: -7 | R20: 0 | BV20: -14 | BW20: 0 | BX20: 0
A21: 49 | B21: 45 | C21: 27 | D21: =INDEX(Table!E:E,MATCH(E21,Table!F:F,0)) -> C | E21: Gareth McGuire | F21: -9.9 | G21: 2 | H21: -5.05 | I21: 1 | J21: 0 | L21: =INDEX(Table!L:L,MATCH(E21,Table!F:F,0)) -> 0 | M21: 0 | N21: -4.85 | O21: 1 | Q21: -5.05 | R21: 1 | BV21: -9.9 | BW21: 2 | BX21: 0
A22: 33 | B22: 19 | C22: 27 | D22: =INDEX(Table!E:E,MATCH(E22,Table!F:F,0)) -> B | E22: Gareth Powell | F22: -4.480769231 | G22: 3 | H22: 0.3692307692 | I22: 2 | J22: 0 | L22: =INDEX(Table!L:L,MATCH(E22,Table!F:F,0)) -> 0 | M22: 0 | N22: -4.85 | O22: 1 | Q22: 0.3692307692 | R22: 2 | BV22: -4.480769231 | BW22: 3 | BX22: 0
A23: 3 | B23: 2 | C23: 8 | D23: =INDEX(Table!E:E,MATCH(E23,Table!F:F,0)) -> A | E23: Gerard Ventom | F23: 172.3 | G23: 5 | H23: 164.8 | I23: 3 | J23: 5 | L23: =INDEX(Table!L:L,MATCH(E23,Table!F:F,0)) -> 108.675 | M23: 113.675 | N23: 7.5 | O23: 2 | Q23: 164.8 | R23: 3 | S23: 5 | BV23: 172.3 | BW23: 5 | BX23: 5
A24: 32 | B24: 45 | C24: 17 | D24: =INDEX(Table!E:E,MATCH(E24,Table!F:F,0)) -> D | E24: Graham Miller | F24: -3.4425 | G24: 3 | H24: -5.05 | I24: 1 | J24: 0 | L24: =INDEX(Table!L:L,MATCH(E24,Table!F:F,0)) -> 4.83 | M24: 4.83 | N24: 1.6075 | O24: 2 | Q24: -5.05 | R24: 1 | BV24: -3.4425 | BW24: 3 | BX24: 0
A25: 57 | B25: 49 | C25: 47 | D25: =INDEX(Table!E:E,MATCH(E25,Table!F:F,0)) -> D | E25: Howard Bradley | F25: -12.42857143 | G25: 1 | H25: -5.428571429 | I25: 1 | J25: 0 | L25: =INDEX(Table!L:L,MATCH(E25,Table!F:F,0)) -> 0 | M25: 0 | N25: -7 | O25: 0 | Q25: -5.428571429 | R25: 1 | BV25: -12.42857143 | BW25: 1 | BX25: 0
A26: 53 | B26: 32 | C26: 47 | D26: =INDEX(Table!E:E,MATCH(E26,Table!F:F,0)) -> C | E26: Ian Davies | F26: -11.125 | G26: 1 | H26: -4.125 | I26: 1 | J26: 0 | L26: =INDEX(Table!L:L,MATCH(E26,Table!F:F,0)) -> 0 | M26: 0 | N26: -7 | O26: 0 | Q26: -4.125 | R26: 1 | BV26: -11.125 | BW26: 1 | BX26: 0
A27: 40 | B27: 18 | C27: 47 | D27: =INDEX(Table!E:E,MATCH(E27,Table!F:F,0)) -> C | E27: Jack Walsh | F27: -6.369230769 | G27: 2 | H27: 0.6307692308 | I27: 2 | J27: 0 | L27: =INDEX(Table!L:L,MATCH(E27,Table!F:F,0)) -> 0 | M27: 0 | N27: -7 | O27: 0 | Q27: 0.6307692308 | R27: 2 | BV27: -6.369230769 | BW27: 2 | BX27: 0
A28: 59 | B28: 53 | C28: 47 | D28: =INDEX(Table!E:E,MATCH(E28,Table!F:F,0)) -> B | E28: James Bell | F28: -14 | G28: 0 | H28: -7 | I28: 0 | J28: 0 | L28: =INDEX(Table!L:L,MATCH(E28,Table!F:F,0)) -> 0 | M28: 0 | N28: -7 | O28: 0 | Q28: -7 | R28: 0 | BV28: -14 | BW28: 0 | BX28: 0
A29: 52 | B29: 47 | C29: 46 | D29: =INDEX(Table!E:E,MATCH(E29,Table!F:F,0)) -> D | E29: Joel Bent | F29: -10.77857143 | G29: 2 | H29: -5.35 | I29: 1 | J29: 0 | L29: =INDEX(Table!L:L,MATCH(E29,Table!F:F,0)) -> 0 | M29: 0 | N29: -5.428571429 | O29: 1 | Q29: -5.35 | R29: 1 | BV29: -10.77857143 | BW29: 2 | BX29: 0
A30: 44 | B30: 34 | C30: 25 | D30: =INDEX(Table!E:E,MATCH(E30,Table!F:F,0)) -> B | E30: John Evans | F30: -8.125 | G30: 2 | H30: -4.375 | I30: 1 | J30: 0 | L30: =INDEX(Table!L:L,MATCH(E30,Table!F:F,0)) -> 0 | M30: 0 | N30: -3.75 | O30: 1 | Q30: -4.375 | R30: 1 | BV30: -8.125 | BW30: 2 | BX30: 0
A31: 48 | B31: 44 | C31: 27 | D31: =INDEX(Table!E:E,MATCH(E31,Table!F:F,0)) -> D | E31: John Ronan | F31: -9.7 | G31: 2 | H31: -4.85 | I31: 1 | J31: 0 | L31: =INDEX(Table!L:L,MATCH(E31,Table!F:F,0)) -> 0 | M31: 0 | N31: -4.85 | O31: 1 | Q31: -4.85 | R31: 1 | BV31: -9.7 | BW31: 2 | BX31: 0
A32: 36 | B32: 53 | C32: 17 | D32: =INDEX(Table!E:E,MATCH(E32,Table!F:F,0)) -> B | E32: Kei Lok Ma | F32: -5.3925 | G32: 2 | H32: -7 | I32: 0 | J32: 0 | L32: =INDEX(Table!L:L,MATCH(E32,Table!F:F,0)) -> 0 | M32: 0 | N32: 1.6075 | O32: 2 | Q32: -7 | R32: 0 | BV32: -5.3925 | BW32: 2 | BX32: 0
A33: 16 | B33: 7 | C33: 47 | D33: =INDEX(Table!E:E,MATCH(E33,Table!F:F,0)) -> A | E33: Kevin Carter | F33: 1.673076923 | G33: 3 | H33: 8.673076923 | I33: 3 | J33: 0 | L33: =INDEX(Table!L:L,MATCH(E33,Table!F:F,0)) -> 9.315 | M33: 9.315 | N33: -7 | O33: 0 | Q33: 8.673076923 | R33: 3 | BV33: 1.673076923 | BW33: 3 | BX33: 0
A34: =_xlfn.RANK.EQ(F34,totalscores,0) -> 31 | B34: 16 | C34: 44 | D34: =INDEX(Table!E:E,MATCH(E34,Table!F:F,0)) -> A | E34: Lennie Bow | F34: =+N34+Q34+T34+W34+Z34+AC34+AF34+AI34+AL34+AO34+AR34+AU34+AX34+BA34+BD34+BG34+BJ34+BM34+BP34+BS34 -> -3.16875 | G34: =+O34+R34+U34+X34+AA34+AD34+AG34+AJ34+AM34+AP34+AS34+AV34+AY34+BB34+BE34+BH34+BK34+BN34+BQ34+BT34 -> 3 | H34: 1.88125 | I34: 2 | J34: 0 | L34: =INDEX(Table!L:L,MATCH(E34,Table!F:F,0)) -> 0 | M34: 0 | N34: -5.05 | O34: 1 | Q34: 1.88125 | R34: 2 | BV34: =BS34+BP34+BM34+BJ34+BG34+BD34+BA34+AX34+AU34+AR34+AO34+AL34+AI34+AF34+AC34+Z34+W34+T34+Q34+N34 -> -3.16875 | BW34: =BT34+BQ34+BN34+BK34+BH34+BE34+BB34+AY34+AV34+AS34+AP34+AM34+AJ34+AG34+AD34+AA34+X34+U34+R34+O34 -> 3 | BX34: =BU34+BR34+BO34+BL34+BI34+BF34+BC34+AZ34+AW34+AT34+AQ34+AN34+AK34+AH34+AE34+AB34+Y34+V34+S34+P34 -> 0
A35: 22 | B35: 47 | C35: 11 | D35: =INDEX(Table!E:E,MATCH(E35,Table!F:F,0)) -> D | E35: Lewis Buckley | F35: -0.235 | G35: 3 | H35: -5.35 | I35: 1 | J35: 0 | L35: =INDEX(Table!L:L,MATCH(E35,Table!F:F,0)) -> 12.42 | M35: 12.42 | N35: 5.115 | O35: 2 | Q35: -5.35 | R35: 1 | BV35: -0.235 | BW35: 3 | BX35: 0
A36: 20 | B36: 43 | C36: 12 | D36: =INDEX(Table!E:E,MATCH(E36,Table!F:F,0)) -> C | E36: Liam Wah | F36: 0.1 | G36: 3 | H36: -4.8 | I36: 1 | J36: 0 | L36: =INDEX(Table!L:L,MATCH(E36,Table!F:F,0)) -> 0 | M36: 0 | N36: 4.9 | O36: 2 | Q36: -4.8 | R36: 1 | BV36: 0.1 | BW36: 3 | BX36: 0
A37: 8 | B37: 10 | C37: 16 | D37: =INDEX(Table!E:E,MATCH(E37,Table!F:F,0)) -> C | E37: Mal Stott | F37: 8.5025 | G37: 4 | H37: 5.95 | I37: 2 | J37: 0 | L37: =INDEX(Table!L:L,MATCH(E37,Table!F:F,0)) -> 12.42 | M37: 12.42 | N37: 2.5525 | O37: 2 | Q37: 5.95 | R37: 2 | BV37: 8.5025 | BW37: 4 | BX37: 0
A38: 47 | B38: 39 | C38: 27 | D38: =INDEX(Table!E:E,MATCH(E38,Table!F:F,0)) -> B | E38: Mark Bunn | F38: -9.45 | G38: 2 | H38: -4.6 | I38: 1 | J38: 0 | L38: =INDEX(Table!L:L,MATCH(E38,Table!F:F,0)) -> 0 | M38: 0 | N38: -4.85 | O38: 1 | Q38: -4.6 | R38: 1 | BV38: -9.45 | BW38: 2 | BX38: 0
A39: 9 | B39: 50 | C39: 3 | D39: =INDEX(Table!E:E,MATCH(E39,Table!F:F,0)) -> A | E39: Mark Saunders | F39: 7.545 | G39: 4 | H39: -5.5 | I39: 1 | J39: 5 | L39: =INDEX(Table!L:L,MATCH(E39,Table!F:F,0)) -> 55.89 | M39: 60.89 | N39: 13.045 | O39: 3 | P39: 5 | Q39: -5.5 | R39: 1 | BV39: 7.545 | BW39: 4 | BX39: 5
A40: 39 | B40: 25 | C40: 36 | D40: =INDEX(Table!E:E,MATCH(E40,Table!F:F,0)) -> B | E40: Martin Molyneux | F40: -6.325 | G40: 3 | H40: -1.375 | I40: 2 | J40: 0 | L40: =INDEX(Table!L:L,MATCH(E40,Table!F:F,0)) -> 0 | M40: 0 | N40: -4.95 | O40: 1 | Q40: -1.375 | R40: 2 | BV40: -6.325 | BW40: 3 | BX40: 0
A41: 34 | B41: 41 | C41: 21 | D41: =INDEX(Table!E:E,MATCH(E41,Table!F:F,0)) -> D | E41: Martin Tarbuck | F41: -4.6 | G41: 3 | H41: -4.7 | I41: 1 | J41: 0 | L41: =INDEX(Table!L:L,MATCH(E41,Table!F:F,0)) -> 2.07 | M41: 2.07 | N41: 0.1 | O41: 2 | Q41: -4.7 | R41: 1 | BV41: -4.6 | BW41: 3 | BX41: 0
A42: 54 | B42: 33 | C42: 47 | D42: =INDEX(Table!E:E,MATCH(E42,Table!F:F,0)) -> A | E42: Mike Penk | F42: -11.3 | G42: 1 | H42: -4.3 | I42: 1 | J42: 0 | L42: =INDEX(Table!L:L,MATCH(E42,Table!F:F,0)) -> 0 | M42: 0 | N42: -7 | O42: 0 | Q42: -4.3 | R42: 1 | BV42: -11.3 | BW42: 1 | BX42: 0
A43: 41 | B43: 26 | C43: 36 | D43: =INDEX(Table!E:E,MATCH(E43,Table!F:F,0)) -> A | E43: Mo Sudell | F43: -6.392857143 | G43: 3 | H43: -1.442857143 | I43: 2 | J43: 0 | L43: =INDEX(Table!L:L,MATCH(E43,Table!F:F,0)) -> 0 | M43: 0 | N43: -4.95 | O43: 1 | Q43: -1.442857143 | R43: 2 | BV43: -6.392857143 | BW43: 3 | BX43: 0
A44: 38 | B44: 26 | C44: 27 | D44: =INDEX(Table!E:E,MATCH(E44,Table!F:F,0)) -> D | E44: Nick Blocksidge | F44: -6.292857143 | G44: 3 | H44: -1.442857143 | I44: 2 | J44: 0 | L44: =INDEX(Table!L:L,MATCH(E44,Table!F:F,0)) -> 0 | M44: 0 | N44: -4.85 | O44: 1 | Q44: -1.442857143 | R44: 2 | BV44: -6.292857143 | BW44: 3 | BX44: 0
A45: 28 | B45: 15 | C45: 27 | D45: =INDEX(Table!E:E,MATCH(E45,Table!F:F,0)) -> B | E45: Nigel Heyes | F45: -2.82 | G45: 3 | H45: 2.03 | I45: 2 | J45: 0 | L45: =INDEX(Table!L:L,MATCH(E45,Table!F:F,0)) -> 6.21 | M45: 6.21 | N45: -4.85 | O45: 1 | Q45: 2.03 | R45: 2 | BV45: -2.82 | BW45: 3 | BX45: 0
A46: 50 | B46: 50 | C46: 44 | D46: =INDEX(Table!E:E,MATCH(E46,Table!F:F,0)) -> A | E46: Oscar Jackson | F46: -10.55 | G46: 2 | H46: -5.5 | I46: 1 | J46: 0 | L46: =INDEX(Table!L:L,MATCH(E46,Table!F:F,0)) -> 0 | M46: 0 | N46: -5.05 | O46: 1 | Q46: -5.5 | R46: 1 | BV46: -10.55 | BW46: 2 | BX46: 0
A47: 42 | B47: 29 | C47: 41 | D47: =INDEX(Table!E:E,MATCH(E47,Table!F:F,0)) -> D | E47: Paul Adderley | F47: -6.461538462 | G47: 3 | H47: -1.461538462 | I47: 2 | J47: 0 | L47: =INDEX(Table!L:L,MATCH(E47,Table!F:F,0)) -> 0 | M47: 0 | N47: -5 | O47: 1 | Q47: -1.461538462 | R47: 2 | BV47: -6.461538462 | BW47: 3 | BX47: 0
A48: 46 | B48: 36 | C48: 27 | D48: =INDEX(Table!E:E,MATCH(E48,Table!F:F,0)) -> B | E48: Paul Allen | F48: -9.4 | G48: 2 | H48: -4.55 | I48: 1 | J48: 0 | L48: =INDEX(Table!L:L,MATCH(E48,Table!F:F,0)) -> 0 | M48: 0 | N48: -4.85 | O48: 1 | Q48: -4.55 | R48: 1 | BV48: -9.4 | BW48: 2 | BX48: 0
A49: 16 | B49: 7 | C49: 47 | D49: =INDEX(Table!E:E,MATCH(E49,Table!F:F,0)) -> D | E49: Paul Barnes | F49: 1.673076923 | G49: 3 | H49: 8.673076923 | I49: 3 | J49: 0 | L49: =INDEX(Table!L:L,MATCH(E49,Table!F:F,0)) -> 17.25 | M49: 17.25 | N49: -7 | O49: 0 | Q49: 8.673076923 | R49: 3 | BV49: 1.673076923 | BW49: 3 | BX49: 0
A50: 1 | B50: 1 | C50: 41 | D50: =INDEX(Table!E:E,MATCH(E50,Table!F:F,0)) -> C | E50: Paul Fairhurst | F50: 203.72 | G50: 4 | H50: 208.72 | I50: 3 | J50: 10 | L50: =INDEX(Table!L:L,MATCH(E50,Table!F:F,0)) -> 36.225 | M50: 46.225 | N50: -5 | O50: 1 | Q50: 208.72 | R50: 3 | S50: 10 | BV50: 203.72 | BW50: 4 | BX50: 10
A51: 19 | B51: 17 | C51: 23 | D51: =INDEX(Table!E:E,MATCH(E51,Table!F:F,0)) -> A | E51: Paul Fiddler | F51: 0.3075 | G51: 4 | H51: 1.2925 | I51: 2 | J51: 0 | L51: =INDEX(Table!L:L,MATCH(E51,Table!F:F,0)) -> 0 | M51: 0 | N51: -0.985 | O51: 2 | Q51: 1.2925 | R51: 2 | BV51: 0.3075 | BW51: 4 | BX51: 0
A52: 13 | B52: 23 | C52: 10 | D52: =INDEX(Table!E:E,MATCH(E52,Table!F:F,0)) -> C | E52: Paul Ridgeway | F52: 4.350769231 | G52: 4 | H52: -1.069230769 | I52: 2 | J52: 0 | L52: =INDEX(Table!L:L,MATCH(E52,Table!F:F,0)) -> 3.105 | M52: 3.105 | N52: 5.42 | O52: 2 | Q52: -1.069230769 | R52: 2 | BV52: 4.350769231 | BW52: 4 | BX52: 0
A53: 12 | B53: 53 | C53: 4 | D53: =INDEX(Table!E:E,MATCH(E53,Table!F:F,0)) -> B | E53: Pete Baron | F53: 5 | G53: 2 | H53: -7 | I53: 0 | J53: 5 | L53: =INDEX(Table!L:L,MATCH(E53,Table!F:F,0)) -> 37.26 | M53: 42.26 | N53: 12 | O53: 2 | P53: 5 | Q53: -7 | R53: 0 | BV53: 5 | BW53: 2 | BX53: 5
A54: 26 | B54: 41 | C54: 15 | D54: =INDEX(Table!E:E,MATCH(E54,Table!F:F,0)) -> B | E54: Phil Miller | F54: -1.642857143 | G54: 3 | H54: -4.7 | I54: 1 | J54: 0 | L54: =INDEX(Table!L:L,MATCH(E54,Table!F:F,0)) -> 14.49 | M54: 14.49 | N54: 3.057142857 | O54: 2 | Q54: -4.7 | R54: 1 | BV54: -1.642857143 | BW54: 3 | BX54: 0
A55: 55 | B55: 34 | C55: 47 | D55: =INDEX(Table!E:E,MATCH(E55,Table!F:F,0)) -> A | E55: Rob England | F55: -11.375 | G55: 1 | H55: -4.375 | I55: 1 | J55: 0 | L55: =INDEX(Table!L:L,MATCH(E55,Table!F:F,0)) -> 0 | M55: 0 | N55: -7 | O55: 0 | Q55: -4.375 | R55: 1 | BV55: -11.375 | BW55: 1 | BX55: 0
A56: 18 | B56: 53 | C56: 7 | D56: =INDEX(Table!E:E,MATCH(E56,Table!F:F,0)) -> C | E56: Sally Williams | F56: 1.46875 | G56: 2 | H56: -7 | I56: 0 | J56: 0 | L56: =INDEX(Table!L:L,MATCH(E56,Table!F:F,0)) -> 0 | M56: 0 | N56: 8.46875 | O56: 2 | Q56: -7 | R56: 0 | BV56: 1.46875 | BW56: 2 | BX56: 0
A57: 58 | B57: 50 | C57: 47 | D57: =INDEX(Table!E:E,MATCH(E57,Table!F:F,0)) -> D | E57: Simon Greenhalgh | F57: -12.5 | G57: 1 | H57: -5.5 | I57: 1 | J57: 0 | L57: =INDEX(Table!L:L,MATCH(E57,Table!F:F,0)) -> 0 | M57: 0 | N57: -7 | O57: 0 | Q57: -5.5 | R57: 1 | BV57: -12.5 | BW57: 1 | BX57: 0
A58: 15 | B58: 9 | C58: 27 | D58: =INDEX(Table!E:E,MATCH(E58,Table!F:F,0)) -> A | E58: Stephen Barr | F58: 1.87 | G58: 3 | H58: 6.72 | I58: 2 | J58: 0 | L58: =INDEX(Table!L:L,MATCH(E58,Table!F:F,0)) -> 21.735 | M58: 21.735 | N58: -4.85 | O58: 1 | Q58: 6.72 | R58: 2 | BV58: 1.87 | BW58: 3 | BX58: 0
A59: 37 | B59: 24 | C59: 36 | D59: =INDEX(Table!E:E,MATCH(E59,Table!F:F,0)) -> A | E59: Stephen Troop | F59: -6.280769231 | G59: 3 | H59: -1.330769231 | I59: 2 | J59: 0 | L59: =INDEX(Table!L:L,MATCH(E59,Table!F:F,0)) -> 0 | M59: 0 | N59: -4.95 | O59: 1 | Q59: -1.330769231 | R59: 2 | BV59: -6.280769231 | BW59: 3 | BX59: 0
A60: 7 | B60: 20 | C60: 6 | D60: =INDEX(Table!E:E,MATCH(E60,Table!F:F,0)) -> B | E60: Steve Baxter | F60: 10.03857143 | G60: 5 | H60: 0 | I60: 2 | J60: 0 | L60: =INDEX(Table!L:L,MATCH(E60,Table!F:F,0)) -> 72.45 | M60: 72.45 | N60: 10.03857143 | O60: 3 | Q60: 0 | R60: 2 | BV60: 10.03857143 | BW60: 5 | BX60: 0
A61: 5 | B61: 39 | C61: 2 | D61: =INDEX(Table!E:E,MATCH(E61,Table!F:F,0)) -> A | E61: Steve Carter | F61: 16.2225 | G61: 4 | H61: -4.6 | I61: 1 | J61: 5 | L61: =INDEX(Table!L:L,MATCH(E61,Table!F:F,0)) -> 77.625 | M61: 82.625 | N61: 20.8225 | O61: 3 | P61: 5 | Q61: -4.6 | R61: 1 | BV61: 16.2225 | BW61: 4 | BX61: 5
A62: 59 | B62: 53 | C62: 47 | D62: =INDEX(Table!E:E,MATCH(E62,Table!F:F,0)) -> B | E62: Tom Robinson | F62: =+N62+Q62+T62+W62+Z62+AC62+AF62+AI62+AL62+AO62+AR62+AU62+AX62+BA62+BD62+BG62+BJ62+BM62+BP62+BS62 -> -14 | G62: 0 | H62: -7 | I62: 0 | J62: =P62+S62+V62+Y62+AB62+AE62+AH62+AK62+AN62+AQ62+AT62+AW62+AZ62+BC62+BF62+BI62+BL62+BO62+BR62+BU62 -> 0 | L62: =INDEX(Table!L:L,MATCH(E62,Table!F:F,0)) -> 0 | M62: =K62+J62+L62 -> 0 | N62: -7 | O62: 0 | Q62: -7 | R62: 0 | BV62: =BS62+BP62+BM62+BJ62+BG62+BD62+BA62+AX62+AU62+AR62+AO62+AL62+AI62+AF62+AC62+Z62+W62+T62+Q62+N62 -> -14 | BW62: 0 | BX62: 0
A63: 11 | B63: 14 | C63: 14 | D63: =INDEX(Table!E:E,MATCH(E63,Table!F:F,0)) -> B | E63: Vinny Topping | F63: 6.6875 | G63: 4 | H63: 3.0625 | I63: 2 | J63: =P63+S63+V63+Y63+AB63+AE63+AH63+AK63+AN63+AQ63+AT63+AW63+AZ63+BC63+BF63+BI63+BL63+BO63+BR63+BU63 -> 0 | L63: =INDEX(Table!L:L,MATCH(E63,Table!F:F,0)) -> 51.75 | M63: =K63+J63+L63 -> 51.75 | N63: 3.625 | O63: 2 | Q63: 3.0625 | R63: 2 | BV63: 6.6875 | BW63: 4 | BX63: 0
J65: =SUM(J2:J63) -> 50 | K65: =SUM(K2:K63) -> 0 | P65: =SUM(P2:P63) -> 25 | S65: =SUM(S2:S63) -> 25 | V65: =SUM(V2:V63) -> 0 | Y65: =SUM(Y2:Y63) -> 0 | AB65: =SUM(AB2:AB63) -> 0 | AE65: =SUM(AE2:AE63) -> 0 | AH65: =SUM(AH2:AH63) -> 0 | AK65: =SUM(AK2:AK63) -> 0 | AN65: =SUM(AN2:AN63) -> 0 | AQ65: =SUM(AQ2:AQ63) -> 0 | AT65: =SUM(AT2:AT63) -> 0 | AW65: =SUM(AW2:AW63) -> 0 | AZ65: =SUM(AZ2:AZ63) -> 0 | BC65: =SUM(BC2:BC63) -> 0 | BF65: =SUM(BF2:BF63) -> 0 | BI65: =SUM(BI2:BI63) -> 0 | BL65: =SUM(BL2:BL63) -> 0 | BO65: =SUM(BO2:BO63) -> 0 | BR65: =SUM(BR2:BR63) -> 0 | BU65: =SUM(BU2:BU63) -> 0 | BX65: =SUM(BX2:BX63) -> 50

Sheet Cup
A1: Menu!A1
B2: Prelim | C2: =IF(CupDraw!J1="","",CupDraw!J1) ->  | H2: =CupDraw!O1 -> R1 (64) | I2: =CupDraw!P1 -> 2020-09-26 | N2: =CupDraw!U1 -> R2 (32) | O2: =CupDraw!V1 -> 2020-10-17 | T2: =CupDraw!AA1 -> R3 (16) | U2: =CupDraw!AB1 -> 2020-11-07
B3: =CupDraw!I2 -> 1 | C3: =IF(CupDraw!J2="","",CupDraw!J2) ->  | D3: =IF(CupDraw!K2="","",CupDraw!K2) ->  | E3: =IF(CupDraw!L2="","",CupDraw!L2) ->  | H3: =CupDraw!O2 -> 1 | I3: =IF(CupDraw!P2="","",CupDraw!P2) -> Gerard Ventom | J3: =IF(CupDraw!Q2="","",CupDraw!Q2) ->  | K3: =IF(CupDraw!R2="","",CupDraw!R2) ->  | N3: =CupDraw!U2 -> 1 | O3: =CupDraw!V2 -> Await earlier tie | P3: =IF(CupDraw!W2="","",CupDraw!W2) ->  | Q3: =IF(CupDraw!X2="","",CupDraw!X2) ->  | T3: =CupDraw!AA2 -> 1 | U3: =CupDraw!AB2 -> Await earlier tie | V3: =IF(CupDraw!AC2="","",CupDraw!AC2) ->  | W3: =CupDraw!AD2 -> 
C4: =IF(CupDraw!J3="","",CupDraw!J3) ->  | D4: =IF(CupDraw!K3="","",CupDraw!K3) ->  | E4: =IF(CupDraw!L3="","",CupDraw!L3) ->  | H4: =CupDraw!O3 -> 0 | I4: =IF(CupDraw!P3="","",CupDraw!P3) -> Rob England | J4: =IF(CupDraw!Q3="","",CupDraw!Q3) ->  | K4: =IF(CupDraw!R3="","",CupDraw!R3) ->  | O4: =CupDraw!V3 -> Await earlier tie | P4: =IF(CupDraw!W3="","",CupDraw!W3) ->  | Q4: =IF(CupDraw!X3="","",CupDraw!X3) ->  | U4: =CupDraw!AB3 -> Await earlier tie | V4: =IF(CupDraw!AC3="","",CupDraw!AC3) -> 
B5: =CupDraw!I4 -> 2 | C5: =IF(CupDraw!J4="","",CupDraw!J4) ->  | D5: =IF(CupDraw!K4="","",CupDraw!K4) ->  | E5: =IF(CupDraw!L4="","",CupDraw!L4) ->  | H5: =CupDraw!O4 -> 2 | I5: =IF(CupDraw!P4="","",CupDraw!P4) -> Pete Baron | J5: =IF(CupDraw!Q4="","",CupDraw!Q4) ->  | K5: =IF(CupDraw!R4="","",CupDraw!R4) ->  | N5: =CupDraw!U4 -> 2 | O5: =CupDraw!V4 -> Await earlier tie | P5: =IF(CupDraw!W4="","",CupDraw!W4) ->  | Q5: =IF(CupDraw!X4="","",CupDraw!X4) ->  | T5: =CupDraw!AA4 -> 2 | U5: =CupDraw!AB4 -> Await earlier tie | V5: =IF(CupDraw!AC4="","",CupDraw!AC4) ->  | W5: =CupDraw!AD4 -> 
C6: =IF(CupDraw!J5="","",CupDraw!J5) ->  | D6: =IF(CupDraw!K5="","",CupDraw!K5) ->  | E6: =IF(CupDraw!L5="","",CupDraw!L5) ->  | I6: =IF(CupDraw!P5="","",CupDraw!P5) -> Mark Saunders | J6: =IF(CupDraw!Q5="","",CupDraw!Q5) ->  | K6: =IF(CupDraw!R5="","",CupDraw!R5) ->  | O6: =CupDraw!V5 -> Await earlier tie | P6: =IF(CupDraw!W5="","",CupDraw!W5) ->  | Q6: =IF(CupDraw!X5="","",CupDraw!X5) ->  | U6: =CupDraw!AB5 -> Await earlier tie | V6: =IF(CupDraw!AC5="","",CupDraw!AC5) -> 
B7: =CupDraw!I6 -> 3 | C7: =IF(CupDraw!J6="","",CupDraw!J6) ->  | D7: =IF(CupDraw!K6="","",CupDraw!K6) ->  | E7: =IF(CupDraw!L6="","",CupDraw!L6) ->  | H7: =CupDraw!O6 -> 3 | I7: =IF(CupDraw!P6="","",CupDraw!P6) -> Dan Baxter | J7: =IF(CupDraw!Q6="","",CupDraw!Q6) ->  | K7: =IF(CupDraw!R6="","",CupDraw!R6) ->  | N7: =CupDraw!U6 -> 3 | O7: =CupDraw!V6 -> Await earlier tie | P7: =IF(CupDraw!W6="","",CupDraw!W6) ->  | Q7: =IF(CupDraw!X6="","",CupDraw!X6) ->  | T7: =CupDraw!AA6 -> 3 | U7: =CupDraw!AB6 -> Await earlier tie | V7: =IF(CupDraw!AC6="","",CupDraw!AC6) ->  | W7: =CupDraw!AD6 -> 
C8: =IF(CupDraw!J7="","",CupDraw!J7) ->  | D8: =IF(CupDraw!K7="","",CupDraw!K7) ->  | E8: =IF(CupDraw!L7="","",CupDraw!L7) ->  | I8: =IF(CupDraw!P7="","",CupDraw!P7) -> Ian Davies | J8: =IF(CupDraw!Q7="","",CupDraw!Q7) ->  | K8: =IF(CupDraw!R7="","",CupDraw!R7) ->  | O8: =CupDraw!V7 -> Await earlier tie | P8: =IF(CupDraw!W7="","",CupDraw!W7) ->  | Q8: =IF(CupDraw!X7="","",CupDraw!X7) ->  | U8: =CupDraw!AB7 -> Await earlier tie | V8: =IF(CupDraw!AC7="","",CupDraw!AC7) -> 
B9: =CupDraw!I8 -> 4 | C9: =IF(CupDraw!J8="","",CupDraw!J8) ->  | D9: =IF(CupDraw!K8="","",CupDraw!K8) ->  | E9: =IF(CupDraw!L8="","",CupDraw!L8) ->  | H9: =CupDraw!O8 -> 4 | I9: =IF(CupDraw!P8="","",CupDraw!P8) -> Nick Blocksidge | J9: =IF(CupDraw!Q8="","",CupDraw!Q8) ->  | K9: =IF(CupDraw!R8="","",CupDraw!R8) ->  | N9: =CupDraw!U8 -> 4 | O9: =CupDraw!V8 -> Await earlier tie | P9: =IF(CupDraw!W8="","",CupDraw!W8) ->  | Q9: =IF(CupDraw!X8="","",CupDraw!X8) ->  | T9: =CupDraw!AA8 -> 4 | U9: =CupDraw!AB8 -> Await earlier tie | V9: =IF(CupDraw!AC8="","",CupDraw!AC8) ->  | W9: =CupDraw!AD8 -> 
C10: =IF(CupDraw!J9="","",CupDraw!J9) ->  | D10: =IF(CupDraw!K9="","",CupDraw!K9) ->  | E10: =IF(CupDraw!L9="","",CupDraw!L9) ->  | I10: =IF(CupDraw!P9="","",CupDraw!P9) -> Ben Rosser | J10: =IF(CupDraw!Q9="","",CupDraw!Q9) ->  | K10: =IF(CupDraw!R9="","",CupDraw!R9) ->  | O10: =CupDraw!V9 -> Await earlier tie | P10: =IF(CupDraw!W9="","",CupDraw!W9) ->  | Q10: =IF(CupDraw!X9="","",CupDraw!X9) ->  | U10: =CupDraw!AB9 -> Await earlier tie | V10: =IF(CupDraw!AC9="","",CupDraw!AC9) -> 
B11: =CupDraw!I10 -> 5 | C11: =IF(CupDraw!J10="","",CupDraw!J10) ->  | D11: =IF(CupDraw!K10="","",CupDraw!K10) ->  | E11: =IF(CupDraw!L10="","",CupDraw!L10) ->  | H11: =CupDraw!O10 -> 5 | I11: =IF(CupDraw!P10="","",CupDraw!P10) -> Phil Miller | J11: =IF(CupDraw!Q10="","",CupDraw!Q10) ->  | K11: =IF(CupDraw!R10="","",CupDraw!R10) ->  | N11: =CupDraw!U10 -> 5 | O11: =CupDraw!V10 -> Await earlier tie | P11: =IF(CupDraw!W10="","",CupDraw!W10) ->  | Q11: =IF(CupDraw!X10="","",CupDraw!X10) ->  | T11: =CupDraw!AA10 -> 5 | U11: =CupDraw!AB10 -> Await earlier tie | V11: =IF(CupDraw!AC10="","",CupDraw!AC10) ->  | W11: =CupDraw!AD10 -> 
C12: =IF(CupDraw!J11="","",CupDraw!J11) ->  | D12: =IF(CupDraw!K11="","",CupDraw!K11) ->  | E12: =IF(CupDraw!L11="","",CupDraw!L11) ->  | I12: =IF(CupDraw!P11="","",CupDraw!P11) -> Ashley Houghton | J12: =IF(CupDraw!Q11="","",CupDraw!Q11) ->  | K12: =IF(CupDraw!R11="","",CupDraw!R11) ->  | O12: =CupDraw!V11 -> Await earlier tie | P12: =IF(CupDraw!W11="","",CupDraw!W11) ->  | Q12: =IF(CupDraw!X11="","",CupDraw!X11) ->  | U12: =CupDraw!AB11 -> Await earlier tie | V12: =IF(CupDraw!AC11="","",CupDraw!AC11) -> 
B13: =CupDraw!I12 -> 6 | C13: =IF(CupDraw!J12="","",CupDraw!J12) ->  | D13: =IF(CupDraw!K12="","",CupDraw!K12) ->  | E13: =IF(CupDraw!L12="","",CupDraw!L12) ->  | H13: =CupDraw!O12 -> 6 | I13: =IF(CupDraw!P12="","",CupDraw!P12) -> Chris Griffin | J13: =IF(CupDraw!Q12="","",CupDraw!Q12) ->  | K13: =IF(CupDraw!R12="","",CupDraw!R12) ->  | N13: =CupDraw!U12 -> 6 | O13: =CupDraw!V12 -> Await earlier tie | P13: =IF(CupDraw!W12="","",CupDraw!W12) ->  | Q13: =IF(CupDraw!X12="","",CupDraw!X12) ->  | T13: =CupDraw!AA12 -> 6 | U13: =CupDraw!AB12 -> Await earlier tie | V13: =IF(CupDraw!AC12="","",CupDraw!AC12) ->  | W13: =CupDraw!AD12 -> 
C14: =IF(CupDraw!J13="","",CupDraw!J13) ->  | D14: =IF(CupDraw!K13="","",CupDraw!K13) ->  | E14: =IF(CupDraw!L13="","",CupDraw!L13) ->  | I14: =IF(CupDraw!P13="","",CupDraw!P13) -> Dave Orrell | J14: =IF(CupDraw!Q13="","",CupDraw!Q13) ->  | K14: =IF(CupDraw!R13="","",CupDraw!R13) ->  | O14: =CupDraw!V13 -> Await earlier tie | P14: =IF(CupDraw!W13="","",CupDraw!W13) ->  | Q14: =IF(CupDraw!X13="","",CupDraw!X13) ->  | U14: =CupDraw!AB13 -> Await earlier tie | V14: =IF(CupDraw!AC13="","",CupDraw!AC13) -> 
B15: =CupDraw!I14 -> 7 | C15: =IF(CupDraw!J14="","",CupDraw!J14) ->  | D15: =IF(CupDraw!K14="","",CupDraw!K14) ->  | E15: =IF(CupDraw!L14="","",CupDraw!L14) ->  | H15: =CupDraw!O14 -> 7 | I15: =IF(CupDraw!P14="","",CupDraw!P14) -> Alick Rocca | J15: =IF(CupDraw!Q14="","",CupDraw!Q14) ->  | K15: =IF(CupDraw!R14="","",CupDraw!R14) ->  | N15: =CupDraw!U14 -> 7 | O15: =CupDraw!V14 -> Await earlier tie | P15: =IF(CupDraw!W14="","",CupDraw!W14) ->  | Q15: =IF(CupDraw!X14="","",CupDraw!X14) ->  | T15: =CupDraw!AA14 -> 7 | U15: =CupDraw!AB14 -> Await earlier tie | V15: =IF(CupDraw!AC14="","",CupDraw!AC14) ->  | W15: =CupDraw!AD14 -> 
C16: =IF(CupDraw!J15="","",CupDraw!J15) ->  | D16: =IF(CupDraw!K15="","",CupDraw!K15) ->  | E16: =IF(CupDraw!L15="","",CupDraw!L15) ->  | I16: =IF(CupDraw!P15="","",CupDraw!P15) -> Joel Bent | J16: =IF(CupDraw!Q15="","",CupDraw!Q15) ->  | K16: =IF(CupDraw!R15="","",CupDraw!R15) ->  | O16: =CupDraw!V15 -> Await earlier tie | P16: =IF(CupDraw!W15="","",CupDraw!W15) ->  | Q16: =IF(CupDraw!X15="","",CupDraw!X15) ->  | U16: =CupDraw!AB15 -> Await earlier tie | V16: =IF(CupDraw!AC15="","",CupDraw!AC15) -> 
B17: =CupDraw!I16 -> 8 | C17: =IF(CupDraw!J16="","",CupDraw!J16) ->  | D17: =IF(CupDraw!K16="","",CupDraw!K16) ->  | E17: =IF(CupDraw!L16="","",CupDraw!L16) ->  | H17: =CupDraw!O16 -> 8 | I17: =IF(CupDraw!P16="","",CupDraw!P16) -> Oscar Jackson | J17: =IF(CupDraw!Q16="","",CupDraw!Q16) ->  | K17: =IF(CupDraw!R16="","",CupDraw!R16) ->  | N17: =CupDraw!U16 -> 8 | O17: =CupDraw!V16 -> Await earlier tie | P17: =IF(CupDraw!W16="","",CupDraw!W16) ->  | Q17: =IF(CupDraw!X16="","",CupDraw!X16) ->  | T17: =CupDraw!AA16 -> 8 | U17: =CupDraw!AB16 -> Await earlier tie | V17: =IF(CupDraw!AC16="","",CupDraw!AC16) ->  | W17: =CupDraw!AD16 -> 
C18: =IF(CupDraw!J17="","",CupDraw!J17) ->  | D18: =IF(CupDraw!K17="","",CupDraw!K17) ->  | E18: =IF(CupDraw!L17="","",CupDraw!L17) ->  | I18: =IF(CupDraw!P17="","",CupDraw!P17) -> Lennie Bow | J18: =IF(CupDraw!Q17="","",CupDraw!Q17) ->  | K18: =IF(CupDraw!R17="","",CupDraw!R17) ->  | O18: =CupDraw!V17 -> Await earlier tie | P18: =IF(CupDraw!W17="","",CupDraw!W17) ->  | Q18: =IF(CupDraw!X17="","",CupDraw!X17) ->  | U18: =CupDraw!AB17 -> Await earlier tie | V18: =IF(CupDraw!AC17="","",CupDraw!AC17) -> 
B19: =CupDraw!I18 -> 9 | C19: =IF(CupDraw!J18="","",CupDraw!J18) ->  | D19: =IF(CupDraw!K18="","",CupDraw!K18) ->  | E19: =IF(CupDraw!L18="","",CupDraw!L18) ->  | H19: =CupDraw!O18 -> 9 | I19: =IF(CupDraw!P18="","",CupDraw!P18) -> Alan Rogers | J19: =IF(CupDraw!Q18="","",CupDraw!Q18) ->  | K19: =IF(CupDraw!R18="","",CupDraw!R18) ->  | N19: =CupDraw!U18 -> 9 | O19: =CupDraw!V18 -> Await earlier tie | P19: =IF(CupDraw!W18="","",CupDraw!W18) ->  | Q19: =IF(CupDraw!X18="","",CupDraw!X18) -> 
C20: =IF(CupDraw!J19="","",CupDraw!J19) ->  | D20: =IF(CupDraw!K19="","",CupDraw!K19) ->  | E20: =IF(CupDraw!L19="","",CupDraw!L19) ->  | I20: =IF(CupDraw!P19="","",CupDraw!P19) -> James Bell | J20: =IF(CupDraw!Q19="","",CupDraw!Q19) ->  | K20: =IF(CupDraw!R19="","",CupDraw!R19) ->  | O20: =CupDraw!V19 -> Await earlier tie | P20: =IF(CupDraw!W19="","",CupDraw!W19) ->  | Q20: =IF(CupDraw!X19="","",CupDraw!X19) -> 
B21: =CupDraw!I20 -> 10 | C21: =IF(CupDraw!J20="","",CupDraw!J20) ->  | D21: =IF(CupDraw!K20="","",CupDraw!K20) ->  | E21: =IF(CupDraw!L20="","",CupDraw!L20) ->  | H21: =CupDraw!O20 -> 10 | I21: =IF(CupDraw!P20="","",CupDraw!P20) -> Mike Penk | J21: =IF(CupDraw!Q20="","",CupDraw!Q20) ->  | K21: =IF(CupDraw!R20="","",CupDraw!R20) ->  | N21: =CupDraw!U20 -> 10 | O21: =CupDraw!V20 -> Await earlier tie | P21: =IF(CupDraw!W20="","",CupDraw!W20) ->  | Q21: =IF(CupDraw!X20="","",CupDraw!X20) -> 
C22: =IF(CupDraw!J21="","",CupDraw!J21) ->  | D22: =IF(CupDraw!K21="","",CupDraw!K21) ->  | E22: =IF(CupDraw!L21="","",CupDraw!L21) ->  | I22: =IF(CupDraw!P21="","",CupDraw!P21) -> Sally Williams | J22: =IF(CupDraw!Q21="","",CupDraw!Q21) ->  | K22: =IF(CupDraw!R21="","",CupDraw!R21) ->  | O22: =CupDraw!V21 -> Await earlier tie | P22: =IF(CupDraw!W21="","",CupDraw!W21) ->  | Q22: =IF(CupDraw!X21="","",CupDraw!X21) ->  | T22: =CupDraw!AA21 -> Earlier Ties
B23: =CupDraw!I22 -> 11 | C23: =IF(CupDraw!J22="","",CupDraw!J22) ->  | D23: =IF(CupDraw!K22="","",CupDraw!K22) ->  | E23: =IF(CupDraw!L22="","",CupDraw!L22) ->  | H23: =CupDraw!O22 -> 11 | I23: =IF(CupDraw!P22="","",CupDraw!P22) -> John Evans | J23: =IF(CupDraw!Q22="","",CupDraw!Q22) ->  | K23: =IF(CupDraw!R22="","",CupDraw!R22) ->  | N23: =CupDraw!U22 -> 11 | O23: =CupDraw!V22 -> Await earlier tie | P23: =IF(CupDraw!W22="","",CupDraw!W22) ->  | Q23: =IF(CupDraw!X22="","",CupDraw!X22) -> 
C24: =IF(CupDraw!J23="","",CupDraw!J23) ->  | D24: =IF(CupDraw!K23="","",CupDraw!K23) ->  | E24: =IF(CupDraw!L23="","",CupDraw!L23) ->  | I24: =IF(CupDraw!P23="","",CupDraw!P23) -> Stephen Barr | J24: =IF(CupDraw!Q23="","",CupDraw!Q23) ->  | K24: =IF(CupDraw!R23="","",CupDraw!R23) ->  | O24: =CupDraw!V23 -> Await earlier tie | P24: =IF(CupDraw!W23="","",CupDraw!W23) ->  | Q24: =IF(CupDraw!X23="","",CupDraw!X23) -> 
B25: =CupDraw!I24 -> 12 | C25: =IF(CupDraw!J24="","",CupDraw!J24) ->  | D25: =IF(CupDraw!K24="","",CupDraw!K24) ->  | E25: =IF(CupDraw!L24="","",CupDraw!L24) ->  | H25: =CupDraw!O24 -> 12 | I25: =IF(CupDraw!P24="","",CupDraw!P24) -> Andy Charleston | J25: =IF(CupDraw!Q24="","",CupDraw!Q24) ->  | K25: =IF(CupDraw!R24="","",CupDraw!R24) ->  | N25: =CupDraw!U24 -> 12 | O25: =CupDraw!V24 -> Await earlier tie | P25: =IF(CupDraw!W24="","",CupDraw!W24) ->  | Q25: =IF(CupDraw!X24="","",CupDraw!X24) ->  | U25: =IF(CupDraw!AB24="","",CupDraw!AB24) ->  | V25: =IF(CupDraw!AC24="","",CupDraw!AC24) -> 
C26: =IF(CupDraw!J25="","",CupDraw!J25) ->  | D26: =IF(CupDraw!K25="","",CupDraw!K25) ->  | E26: =IF(CupDraw!L25="","",CupDraw!L25) ->  | I26: =IF(CupDraw!P25="","",CupDraw!P25) -> Martin Tarbuck | J26: =IF(CupDraw!Q25="","",CupDraw!Q25) ->  | K26: =IF(CupDraw!R25="","",CupDraw!R25) ->  | O26: =CupDraw!V25 -> Await earlier tie | P26: =IF(CupDraw!W25="","",CupDraw!W25) ->  | Q26: =IF(CupDraw!X25="","",CupDraw!X25) ->  | U26: =IF(CupDraw!AB25="","",CupDraw!AB25) ->  | V26: =IF(CupDraw!AC25="","",CupDraw!AC25) -> 
B27: =CupDraw!I26 -> 13 | C27: =IF(CupDraw!J26="","",CupDraw!J26) ->  | D27: =IF(CupDraw!K26="","",CupDraw!K26) ->  | E27: =IF(CupDraw!L26="","",CupDraw!L26) ->  | H27: =CupDraw!O26 -> 13 | I27: =IF(CupDraw!P26="","",CupDraw!P26) -> David Dunn | J27: =IF(CupDraw!Q26="","",CupDraw!Q26) ->  | K27: =IF(CupDraw!R26="","",CupDraw!R26) ->  | N27: =CupDraw!U26 -> 13 | O27: =CupDraw!V26 -> Await earlier tie | P27: =IF(CupDraw!W26="","",CupDraw!W26) ->  | Q27: =IF(CupDraw!X26="","",CupDraw!X26) ->  | U27: =IF(CupDraw!AB26="","",CupDraw!AB26) ->  | V27: =IF(CupDraw!AC26="","",CupDraw!AC26) ->  | W27: =CupDraw!AD26 -> 
C28: =IF(CupDraw!J27="","",CupDraw!J27) ->  | D28: =IF(CupDraw!K27="","",CupDraw!K27) ->  | E28: =IF(CupDraw!L27="","",CupDraw!L27) ->  | I28: =IF(CupDraw!P27="","",CupDraw!P27) -> Simon Greenhalgh | J28: =IF(CupDraw!Q27="","",CupDraw!Q27) ->  | K28: =IF(CupDraw!R27="","",CupDraw!R27) ->  | O28: =CupDraw!V27 -> Await earlier tie | P28: =IF(CupDraw!W27="","",CupDraw!W27) ->  | Q28: =IF(CupDraw!X27="","",CupDraw!X27) ->  | U28: =IF(CupDraw!AB27="","",CupDraw!AB27) ->  | V28: =IF(CupDraw!AC27="","",CupDraw!AC27) -> 
B29: =CupDraw!I28 -> 14 | C29: =IF(CupDraw!J28="","",CupDraw!J28) ->  | D29: =IF(CupDraw!K28="","",CupDraw!K28) ->  | E29: =IF(CupDraw!L28="","",CupDraw!L28) ->  | H29: =CupDraw!O28 -> 14 | I29: =IF(CupDraw!P28="","",CupDraw!P28) -> Graham Miller | J29: =IF(CupDraw!Q28="","",CupDraw!Q28) ->  | K29: =IF(CupDraw!R28="","",CupDraw!R28) ->  | N29: =CupDraw!U28 -> 14 | O29: =CupDraw!V28 -> Await earlier tie | P29: =IF(CupDraw!W28="","",CupDraw!W28) ->  | Q29: =IF(CupDraw!X28="","",CupDraw!X28) ->  | U29: =IF(CupDraw!AB28="","",CupDraw!AB28) ->  | V29: =IF(CupDraw!AC28="","",CupDraw!AC28) ->  | W29: =CupDraw!AD28 -> 
C30: =IF(CupDraw!J29="","",CupDraw!J29) ->  | D30: =IF(CupDraw!K29="","",CupDraw!K29) ->  | E30: =IF(CupDraw!L29="","",CupDraw!L29) ->  | I30: =IF(CupDraw!P29="","",CupDraw!P29) -> Gareth Fallows | J30: =IF(CupDraw!Q29="","",CupDraw!Q29) ->  | K30: =IF(CupDraw!R29="","",CupDraw!R29) ->  | O30: =CupDraw!V29 -> Await earlier tie | P30: =IF(CupDraw!W29="","",CupDraw!W29) ->  | Q30: =IF(CupDraw!X29="","",CupDraw!X29) ->  | U30: =IF(CupDraw!AB29="","",CupDraw!AB29) ->  | V30: =IF(CupDraw!AC29="","",CupDraw!AC29) -> 
B31: =CupDraw!I30 -> 15 | C31: =IF(CupDraw!J30="","",CupDraw!J30) ->  | D31: =IF(CupDraw!K30="","",CupDraw!K30) ->  | E31: =IF(CupDraw!L30="","",CupDraw!L30) ->  | H31: =CupDraw!O30 -> 15 | I31: =IF(CupDraw!P30="","",CupDraw!P30) -> Tom Robinson | J31: =IF(CupDraw!Q30="","",CupDraw!Q30) ->  | K31: =IF(CupDraw!R30="","",CupDraw!R30) ->  | N31: =CupDraw!U30 -> 15 | O31: =CupDraw!V30 -> Await earlier tie | P31: =IF(CupDraw!W30="","",CupDraw!W30) ->  | Q31: =IF(CupDraw!X30="","",CupDraw!X30) -> 
C32: =IF(CupDraw!J31="","",CupDraw!J31) ->  | D32: =IF(CupDraw!K31="","",CupDraw!K31) ->  | E32: =IF(CupDraw!L31="","",CupDraw!L31) ->  | I32: =IF(CupDraw!P31="","",CupDraw!P31) -> Mo Sudell | J32: =IF(CupDraw!Q31="","",CupDraw!Q31) ->  | K32: =IF(CupDraw!R31="","",CupDraw!R31) ->  | O32: =CupDraw!V31 -> Await earlier tie | P32: =IF(CupDraw!W31="","",CupDraw!W31) ->  | Q32: =IF(CupDraw!X31="","",CupDraw!X31) -> 
B33: =CupDraw!I32 -> 16 | C33: =IF(CupDraw!J32="","",CupDraw!J32) ->  | D33: =IF(CupDraw!K32="","",CupDraw!K32) ->  | E33: =IF(CupDraw!L32="","",CupDraw!L32) ->  | H33: =CupDraw!O32 -> 16 | I33: =IF(CupDraw!P32="","",CupDraw!P32) -> Paul Fairhurst | J33: =IF(CupDraw!Q32="","",CupDraw!Q32) ->  | K33: =IF(CupDraw!R32="","",CupDraw!R32) ->  | N33: =CupDraw!U32 -> 16 | O33: =CupDraw!V32 -> Await earlier tie | P33: =IF(CupDraw!W32="","",CupDraw!W32) ->  | Q33: =IF(CupDraw!X32="","",CupDraw!X32) -> 
C34: =IF(CupDraw!J33="","",CupDraw!J33) ->  | D34: =IF(CupDraw!K33="","",CupDraw!K33) ->  | E34: =IF(CupDraw!L33="","",CupDraw!L33) ->  | I34: =IF(CupDraw!P33="","",CupDraw!P33) -> Dave Bell | J34: =IF(CupDraw!Q33="","",CupDraw!Q33) ->  | K34: =IF(CupDraw!R33="","",CupDraw!R33) ->  | O34: =CupDraw!V33 -> Await earlier tie | P34: =IF(CupDraw!W33="","",CupDraw!W33) ->  | Q34: =IF(CupDraw!X33="","",CupDraw!X33) -> 
B35: =CupDraw!I34 -> 17 | C35: =IF(CupDraw!J34="","",CupDraw!J34) ->  | D35: =IF(CupDraw!K34="","",CupDraw!K34) ->  | E35: =IF(CupDraw!L34="","",CupDraw!L34) ->  | H35: =CupDraw!O34 -> 17 | I35: =IF(CupDraw!P34="","",CupDraw!P34) -> Barry Birchall | J35: =IF(CupDraw!Q34="","",CupDraw!Q34) ->  | K35: =IF(CupDraw!R34="","",CupDraw!R34) ->  | Q35: =IF(CupDraw!X34="","",CupDraw!X34) -> 
C36: =IF(CupDraw!J35="","",CupDraw!J35) ->  | D36: =IF(CupDraw!K35="","",CupDraw!K35) ->  | E36: =IF(CupDraw!L35="","",CupDraw!L35) ->  | I36: =IF(CupDraw!P35="","",CupDraw!P35) -> Martin Molyneux | J36: =IF(CupDraw!Q35="","",CupDraw!Q35) ->  | K36: =IF(CupDraw!R35="","",CupDraw!R35) ->  | Q36: =IF(CupDraw!X35="","",CupDraw!X35) -> 
B37: =CupDraw!I36 -> 18 | C37: =IF(CupDraw!J36="","",CupDraw!J36) ->  | D37: =IF(CupDraw!K36="","",CupDraw!K36) ->  | E37: =IF(CupDraw!L36="","",CupDraw!L36) ->  | H37: =CupDraw!O36 -> 18 | I37: =IF(CupDraw!P36="","",CupDraw!P36) -> Mal Stott | J37: =IF(CupDraw!Q36="","",CupDraw!Q36) ->  | K37: =IF(CupDraw!R36="","",CupDraw!R36) ->  | Q37: =IF(CupDraw!X36="","",CupDraw!X36) -> 
C38: =IF(CupDraw!J37="","",CupDraw!J37) ->  | D38: =IF(CupDraw!K37="","",CupDraw!K37) ->  | E38: =IF(CupDraw!L37="","",CupDraw!L37) ->  | I38: =IF(CupDraw!P37="","",CupDraw!P37) -> Nigel Heyes | J38: =IF(CupDraw!Q37="","",CupDraw!Q37) ->  | K38: =IF(CupDraw!R37="","",CupDraw!R37) ->  | N38: =CupDraw!U37 -> Replay | Q38: =IF(CupDraw!X37="","",CupDraw!X37) -> 
B39: =CupDraw!I38 -> 19 | C39: =IF(CupDraw!J38="","",CupDraw!J38) ->  | D39: =IF(CupDraw!K38="","",CupDraw!K38) ->  | E39: =IF(CupDraw!L38="","",CupDraw!L38) ->  | H39: =CupDraw!O38 -> 19 | I39: =IF(CupDraw!P38="","",CupDraw!P38) -> Charlie Griffiths | J39: =IF(CupDraw!Q38="","",CupDraw!Q38) ->  | K39: =IF(CupDraw!R38="","",CupDraw!R38) ->  | O39: =IF(CupDraw!V38="","",CupDraw!V38) ->  | P39: =IF(CupDraw!W38="","",CupDraw!W38) ->  | Q39: =IF(CupDraw!X38="","",CupDraw!X38) ->  | T39: =CupDraw!AA38 -> QF | U39: =CupDraw!AB38 -> 2020-11-21
C40: =IF(CupDraw!J39="","",CupDraw!J39) ->  | D40: =IF(CupDraw!K39="","",CupDraw!K39) ->  | E40: =IF(CupDraw!L39="","",CupDraw!L39) ->  | I40: =IF(CupDraw!P39="","",CupDraw!P39) -> Andy White | J40: =IF(CupDraw!Q39="","",CupDraw!Q39) ->  | K40: =IF(CupDraw!R39="","",CupDraw!R39) ->  | O40: =IF(CupDraw!V39="","",CupDraw!V39) ->  | P40: =IF(CupDraw!W39="","",CupDraw!W39) ->  | Q40: =IF(CupDraw!X39="","",CupDraw!X39) ->  | T40: =CupDraw!AA39 -> 1 | U40: =CupDraw!AB39 -> Await earlier tie | V40: =IF(CupDraw!AC39="","",CupDraw!AC39) ->  | W40: =IF(CupDraw!AD39="","",CupDraw!AD39) -> 
B41: =CupDraw!I40 -> 20 | C41: =IF(CupDraw!J40="","",CupDraw!J40) ->  | D41: =IF(CupDraw!K40="","",CupDraw!K40) ->  | E41: =IF(CupDraw!L40="","",CupDraw!L40) ->  | H41: =CupDraw!O40 -> 20 | I41: =IF(CupDraw!P40="","",CupDraw!P40) -> Vinny Topping | J41: =IF(CupDraw!Q40="","",CupDraw!Q40) ->  | K41: =IF(CupDraw!R40="","",CupDraw!R40) ->  | O41: =IF(CupDraw!V40="","",CupDraw!V40) ->  | P41: =IF(CupDraw!W40="","",CupDraw!W40) ->  | Q41: =IF(CupDraw!X40="","",CupDraw!X40) ->  | U41: =CupDraw!AB40 -> Await earlier tie | V41: =IF(CupDraw!AC40="","",CupDraw!AC40) ->  | W41: =IF(CupDraw!AD40="","",CupDraw!AD40) -> 
C42: =IF(CupDraw!J41="","",CupDraw!J41) ->  | D42: =IF(CupDraw!K41="","",CupDraw!K41) ->  | E42: =IF(CupDraw!L41="","",CupDraw!L41) ->  | I42: =IF(CupDraw!P41="","",CupDraw!P41) -> Howard Bradley | J42: =IF(CupDraw!Q41="","",CupDraw!Q41) ->  | K42: =IF(CupDraw!R41="","",CupDraw!R41) ->  | O42: =IF(CupDraw!V41="","",CupDraw!V41) ->  | P42: =IF(CupDraw!W41="","",CupDraw!W41) ->  | Q42: =IF(CupDraw!X41="","",CupDraw!X41) ->  | T42: =CupDraw!AA41 -> 2 | U42: =CupDraw!AB41 -> Await earlier tie | V42: =IF(CupDraw!AC41="","",CupDraw!AC41) ->  | W42: =IF(CupDraw!AD41="","",CupDraw!AD41) -> 
B43: =CupDraw!I42 -> 21 | C43: =IF(CupDraw!J42="","",CupDraw!J42) ->  | D43: =IF(CupDraw!K42="","",CupDraw!K42) ->  | E43: =IF(CupDraw!L42="","",CupDraw!L42) ->  | H43: =CupDraw!O42 -> 21 | I43: =IF(CupDraw!P42="","",CupDraw!P42) -> Kevin Carter | J43: =IF(CupDraw!Q42="","",CupDraw!Q42) ->  | K43: =IF(CupDraw!R42="","",CupDraw!R42) ->  | O43: =IF(CupDraw!V42="","",CupDraw!V42) ->  | P43: =IF(CupDraw!W42="","",CupDraw!W42) ->  | Q43: =IF(CupDraw!X42="","",CupDraw!X42) ->  | U43: =CupDraw!AB42 -> Await earlier tie | V43: =IF(CupDraw!AC42="","",CupDraw!AC42) ->  | W43: =IF(CupDraw!AD42="","",CupDraw!AD42) -> 
C44: =IF(CupDraw!J43="","",CupDraw!J43) ->  | D44: =IF(CupDraw!K43="","",CupDraw!K43) ->  | E44: =IF(CupDraw!L43="","",CupDraw!L43) ->  | I44: =IF(CupDraw!P43="","",CupDraw!P43) -> Gareth McGuire | J44: =IF(CupDraw!Q43="","",CupDraw!Q43) ->  | K44: =IF(CupDraw!R43="","",CupDraw!R43) ->  | O44: =IF(CupDraw!V43="","",CupDraw!V43) ->  | P44: =IF(CupDraw!W43="","",CupDraw!W43) ->  | Q44: =IF(CupDraw!X43="","",CupDraw!X43) ->  | T44: =CupDraw!AA43 -> 3 | U44: =CupDraw!AB43 -> Await earlier tie | V44: =IF(CupDraw!AC43="","",CupDraw!AC43) ->  | W44: =IF(CupDraw!AD43="","",CupDraw!AD43) -> 
B45: =CupDraw!I44 -> 22 | C45: =IF(CupDraw!J44="","",CupDraw!J44) ->  | D45: =IF(CupDraw!K44="","",CupDraw!K44) ->  | E45: =IF(CupDraw!L44="","",CupDraw!L44) ->  | H45: =CupDraw!O44 -> 22 | I45: =IF(CupDraw!P44="","",CupDraw!P44) -> Alfie Davies | J45: =IF(CupDraw!Q44="","",CupDraw!Q44) ->  | K45: =IF(CupDraw!R44="","",CupDraw!R44) ->  | O45: =IF(CupDraw!V44="","",CupDraw!V44) ->  | P45: =IF(CupDraw!W44="","",CupDraw!W44) ->  | Q45: =IF(CupDraw!X44="","",CupDraw!X44) ->  | U45: =CupDraw!AB44 -> Await earlier tie | V45: =IF(CupDraw!AC44="","",CupDraw!AC44) ->  | W45: =IF(CupDraw!AD44="","",CupDraw!AD44) -> 
C46: =IF(CupDraw!J45="","",CupDraw!J45) ->  | D46: =IF(CupDraw!K45="","",CupDraw!K45) ->  | E46: =IF(CupDraw!L45="","",CupDraw!L45) ->  | I46: =IF(CupDraw!P45="","",CupDraw!P45) -> John Ronan | J46: =IF(CupDraw!Q45="","",CupDraw!Q45) ->  | K46: =IF(CupDraw!R45="","",CupDraw!R45) ->  | O46: =IF(CupDraw!V45="","",CupDraw!V45) ->  | P46: =IF(CupDraw!W45="","",CupDraw!W45) ->  | Q46: =IF(CupDraw!X45="","",CupDraw!X45) ->  | T46: =CupDraw!AA45 -> 4 | U46: =CupDraw!AB45 -> Await earlier tie | V46: =IF(CupDraw!AC45="","",CupDraw!AC45) ->  | W46: =IF(CupDraw!AD45="","",CupDraw!AD45) -> 
B47: =CupDraw!I46 -> 23 | C47: =IF(CupDraw!J46="","",CupDraw!J46) ->  | D47: =IF(CupDraw!K46="","",CupDraw!K46) ->  | E47: =IF(CupDraw!L46="","",CupDraw!L46) ->  | H47: =CupDraw!O46 -> 23 | I47: =IF(CupDraw!P46="","",CupDraw!P46) -> Jack Walsh | J47: =IF(CupDraw!Q46="","",CupDraw!Q46) ->  | K47: =IF(CupDraw!R46="","",CupDraw!R46) ->  | O47: =IF(CupDraw!V46="","",CupDraw!V46) ->  | P47: =IF(CupDraw!W46="","",CupDraw!W46) ->  | Q47: =IF(CupDraw!X46="","",CupDraw!X46) ->  | U47: =CupDraw!AB46 -> Await earlier tie | V47: =IF(CupDraw!AC46="","",CupDraw!AC46) ->  | W47: =IF(CupDraw!AD46="","",CupDraw!AD46) -> 
C48: =IF(CupDraw!J47="","",CupDraw!J47) ->  | D48: =IF(CupDraw!K47="","",CupDraw!K47) ->  | E48: =IF(CupDraw!L47="","",CupDraw!L47) ->  | I48: =IF(CupDraw!P47="","",CupDraw!P47) -> Paul Adderley | J48: =IF(CupDraw!Q47="","",CupDraw!Q47) ->  | K48: =IF(CupDraw!R47="","",CupDraw!R47) ->  | O48: =IF(CupDraw!V47="","",CupDraw!V47) ->  | P48: =IF(CupDraw!W47="","",CupDraw!W47) ->  | Q48: =IF(CupDraw!X47="","",CupDraw!X47) -> 
B49: =CupDraw!I48 -> 24 | C49: =IF(CupDraw!J48="","",CupDraw!J48) ->  | D49: =IF(CupDraw!K48="","",CupDraw!K48) ->  | E49: =IF(CupDraw!L48="","",CupDraw!L48) ->  | H49: =CupDraw!O48 -> 24 | I49: =IF(CupDraw!P48="","",CupDraw!P48) -> Paul Fiddler | J49: =IF(CupDraw!Q48="","",CupDraw!Q48) ->  | K49: =IF(CupDraw!R48="","",CupDraw!R48) -> 
C50: =IF(CupDraw!J49="","",CupDraw!J49) ->  | D50: =IF(CupDraw!K49="","",CupDraw!K49) ->  | E50: =IF(CupDraw!L49="","",CupDraw!L49) ->  | I50: =IF(CupDraw!P49="","",CupDraw!P49) -> Chris Townsend | J50: =IF(CupDraw!Q49="","",CupDraw!Q49) ->  | K50: =IF(CupDraw!R49="","",CupDraw!R49) ->  | T50: =CupDraw!AA49 -> Earlier Ties
B51: =CupDraw!I50 -> 25 | C51: =IF(CupDraw!J50="","",CupDraw!J50) ->  | D51: =IF(CupDraw!K50="","",CupDraw!K50) ->  | E51: =IF(CupDraw!L50="","",CupDraw!L50) ->  | H51: =CupDraw!O50 -> 25 | I51: =IF(CupDraw!P50="","",CupDraw!P50) -> Mark Bunn | J51: =IF(CupDraw!Q50="","",CupDraw!Q50) ->  | K51: =IF(CupDraw!R50="","",CupDraw!R50) ->  | U51: =IF(CupDraw!AB50="","",CupDraw!AB50) ->  | V51: =IF(CupDraw!AC50="","",CupDraw!AC50) ->  | W51: =IF(CupDraw!AD50="","",CupDraw!AD50) -> 
C52: =IF(CupDraw!J51="","",CupDraw!J51) ->  | D52: =IF(CupDraw!K51="","",CupDraw!K51) ->  | E52: =IF(CupDraw!L51="","",CupDraw!L51) ->  | I52: =IF(CupDraw!P51="","",CupDraw!P51) -> Stephen Troop | J52: =IF(CupDraw!Q51="","",CupDraw!Q51) ->  | K52: =IF(CupDraw!R51="","",CupDraw!R51) ->  | U52: =IF(CupDraw!AB51="","",CupDraw!AB51) ->  | V52: =IF(CupDraw!AC51="","",CupDraw!AC51) ->  | W52: =IF(CupDraw!AD51="","",CupDraw!AD51) -> 
B53: =CupDraw!I52 -> 26 | C53: =IF(CupDraw!J52="","",CupDraw!J52) ->  | D53: =IF(CupDraw!K52="","",CupDraw!K52) ->  | E53: =IF(CupDraw!L52="","",CupDraw!L52) ->  | H53: =CupDraw!O52 -> 26 | I53: =IF(CupDraw!P52="","",CupDraw!P52) -> Steve Carter | J53: =IF(CupDraw!Q52="","",CupDraw!Q52) ->  | K53: =IF(CupDraw!R52="","",CupDraw!R52) ->  | U53: =IF(CupDraw!AB52="","",CupDraw!AB52) ->  | V53: =IF(CupDraw!AC52="","",CupDraw!AC52) ->  | W53: =IF(CupDraw!AD52="","",CupDraw!AD52) -> 
C54: =IF(CupDraw!J53="","",CupDraw!J53) ->  | D54: =IF(CupDraw!K53="","",CupDraw!K53) ->  | E54: =IF(CupDraw!L53="","",CupDraw!L53) ->  | I54: =IF(CupDraw!P53="","",CupDraw!P53) -> Liam Wah | J54: =IF(CupDraw!Q53="","",CupDraw!Q53) ->  | K54: =IF(CupDraw!R53="","",CupDraw!R53) ->  | U54: =IF(CupDraw!AB53="","",CupDraw!AB53) ->  | V54: =IF(CupDraw!AC53="","",CupDraw!AC53) ->  | W54: =IF(CupDraw!AD53="","",CupDraw!AD53) -> 
B55: =CupDraw!I54 -> 27 | C55: =IF(CupDraw!J54="","",CupDraw!J54) ->  | D55: =IF(CupDraw!K54="","",CupDraw!K54) ->  | E55: =IF(CupDraw!L54="","",CupDraw!L54) ->  | H55: =CupDraw!O54 -> 27 | I55: =IF(CupDraw!P54="","",CupDraw!P54) -> Paul Allen | J55: =IF(CupDraw!Q54="","",CupDraw!Q54) ->  | K55: =IF(CupDraw!R54="","",CupDraw!R54) ->  | U55: =IF(CupDraw!AB54="","",CupDraw!AB54) ->  | V55: =IF(CupDraw!AC54="","",CupDraw!AC54) ->  | W55: =IF(CupDraw!AD54="","",CupDraw!AD54) -> 
C56: =IF(CupDraw!J55="","",CupDraw!J55) ->  | D56: =IF(CupDraw!K55="","",CupDraw!K55) ->  | E56: =IF(CupDraw!L55="","",CupDraw!L55) ->  | I56: =IF(CupDraw!P55="","",CupDraw!P55) -> Kei Lok Ma | J56: =IF(CupDraw!Q55="","",CupDraw!Q55) ->  | K56: =IF(CupDraw!R55="","",CupDraw!R55) ->  | U56: =IF(CupDraw!AB55="","",CupDraw!AB55) ->  | V56: =IF(CupDraw!AC55="","",CupDraw!AC55) ->  | W56: =IF(CupDraw!AD55="","",CupDraw!AD55) -> 
B57: =CupDraw!I56 -> 28 | C57: =IF(CupDraw!J56="","",CupDraw!J56) ->  | D57: =IF(CupDraw!K56="","",CupDraw!K56) ->  | E57: =IF(CupDraw!L56="","",CupDraw!L56) ->  | H57: =CupDraw!O56 -> 28 | I57: =IF(CupDraw!P56="","",CupDraw!P56) -> Steve Baxter | J57: =IF(CupDraw!Q56="","",CupDraw!Q56) ->  | K57: =IF(CupDraw!R56="","",CupDraw!R56) ->  | U57: =IF(CupDraw!AB56="","",CupDraw!AB56) ->  | V57: =IF(CupDraw!AC56="","",CupDraw!AC56) ->  | W57: =IF(CupDraw!AD56="","",CupDraw!AD56) -> 
C58: =IF(CupDraw!J57="","",CupDraw!J57) ->  | D58: =IF(CupDraw!K57="","",CupDraw!K57) ->  | E58: =IF(CupDraw!L57="","",CupDraw!L57) ->  | I58: =IF(CupDraw!P57="","",CupDraw!P57) -> Chris Luck | J58: =IF(CupDraw!Q57="","",CupDraw!Q57) ->  | K58: =IF(CupDraw!R57="","",CupDraw!R57) ->  | U58: =IF(CupDraw!AB57="","",CupDraw!AB57) ->  | V58: =IF(CupDraw!AC57="","",CupDraw!AC57) ->  | W58: =IF(CupDraw!AD57="","",CupDraw!AD57) -> 
B59: =CupDraw!I58 -> 29 | C59: =IF(CupDraw!J58="","",CupDraw!J58) ->  | D59: =IF(CupDraw!K58="","",CupDraw!K58) ->  | E59: =IF(CupDraw!L58="","",CupDraw!L58) ->  | H59: =CupDraw!O58 -> 29 | I59: =IF(CupDraw!P58="","",CupDraw!P58) -> Paul Barnes | J59: =IF(CupDraw!Q58="","",CupDraw!Q58) ->  | K59: =IF(CupDraw!R58="","",CupDraw!R58) -> 
C60: =IF(CupDraw!J59="","",CupDraw!J59) ->  | D60: =IF(CupDraw!K59="","",CupDraw!K59) ->  | E60: =IF(CupDraw!L59="","",CupDraw!L59) ->  | I60: =IF(CupDraw!P59="","",CupDraw!P59) -> Alan White | J60: =IF(CupDraw!Q59="","",CupDraw!Q59) ->  | K60: =IF(CupDraw!R59="","",CupDraw!R59) -> 
B61: =CupDraw!I60 -> 30 | C61: =IF(CupDraw!J60="","",CupDraw!J60) ->  | D61: =IF(CupDraw!K60="","",CupDraw!K60) ->  | E61: =IF(CupDraw!L60="","",CupDraw!L60) ->  | H61: =CupDraw!O60 -> 30 | I61: =IF(CupDraw!P60="","",CupDraw!P60) -> Chris Bow | J61: =IF(CupDraw!Q60="","",CupDraw!Q60) ->  | K61: =IF(CupDraw!R60="","",CupDraw!R60) -> 
C62: =IF(CupDraw!J61="","",CupDraw!J61) ->  | D62: =IF(CupDraw!K61="","",CupDraw!K61) ->  | E62: =IF(CupDraw!L61="","",CupDraw!L61) ->  | I62: =IF(CupDraw!P61="","",CupDraw!P61) -> Lewis Buckley | J62: =IF(CupDraw!Q61="","",CupDraw!Q61) ->  | K62: =IF(CupDraw!R61="","",CupDraw!R61) -> 
B63: =CupDraw!I62 -> 31 | C63: =IF(CupDraw!J62="","",CupDraw!J62) ->  | D63: =IF(CupDraw!K62="","",CupDraw!K62) ->  | E63: =IF(CupDraw!L62="","",CupDraw!L62) ->  | H63: =CupDraw!O62 -> 31 | I63: =IF(CupDraw!P62="","",CupDraw!P62) -> Paul Ridgeway | J63: =IF(CupDraw!Q62="","",CupDraw!Q62) ->  | K63: =IF(CupDraw!R62="","",CupDraw!R62) -> 
C64: =IF(CupDraw!J63="","",CupDraw!J63) ->  | D64: =IF(CupDraw!K63="","",CupDraw!K63) ->  | E64: =IF(CupDraw!L63="","",CupDraw!L63) ->  | I64: =IF(CupDraw!P63="","",CupDraw!P63) -> Bye | J64: =IF(CupDraw!Q63="","",CupDraw!Q63) ->  | K64: =IF(CupDraw!R63="","",CupDraw!R63) ->  | T64: =CupDraw!AA63 -> SF | U64: =CupDraw!AB63 -> 2020-12-05
B65: =CupDraw!I64 -> 32 | C65: =IF(CupDraw!J64="","",CupDraw!J64) ->  | D65: =IF(CupDraw!K64="","",CupDraw!K64) ->  | E65: =IF(CupDraw!L64="","",CupDraw!L64) ->  | H65: =CupDraw!O64 -> 32 | I65: =IF(CupDraw!P64="","",CupDraw!P64) -> Gareth Powell | J65: =IF(CupDraw!Q64="","",CupDraw!Q64) ->  | K65: =IF(CupDraw!R64="","",CupDraw!R64) ->  | T65: =CupDraw!AA64 -> 1 | U65: =IF(CupDraw!AB64="","",CupDraw!AB64) -> Await earlier tie | V65: =IF(CupDraw!AC64="","",CupDraw!AC64) ->  | W65: =CupDraw!AD64 -> 
C66: =IF(CupDraw!J65="","",CupDraw!J65) ->  | D66: =IF(CupDraw!K65="","",CupDraw!K65) ->  | E66: =IF(CupDraw!L65="","",CupDraw!L65) ->  | I66: =IF(CupDraw!P65="","",CupDraw!P65) -> Bye | J66: =IF(CupDraw!Q65="","",CupDraw!Q65) ->  | K66: =IF(CupDraw!R65="","",CupDraw!R65) ->  | U66: =CupDraw!AB65 -> Await earlier tie | V66: =IF(CupDraw!AC65="","",CupDraw!AC65) -> 
B67: =CupDraw!I66 -> 33 | C67: =IF(CupDraw!J66="","",CupDraw!J66) ->  | D67: =IF(CupDraw!K66="","",CupDraw!K66) ->  | E67: =IF(CupDraw!L66="","",CupDraw!L66) ->  | T67: =CupDraw!AA66 -> 2 | U67: =CupDraw!AB66 -> Await earlier tie | V67: =IF(CupDraw!AC66="","",CupDraw!AC66) ->  | W67: =CupDraw!AD66 -> 
C68: =IF(CupDraw!J67="","",CupDraw!J67) ->  | D68: =IF(CupDraw!K67="","",CupDraw!K67) ->  | E68: =IF(CupDraw!L67="","",CupDraw!L67) ->  | U68: =CupDraw!AB67 -> Await earlier tie | V68: =IF(CupDraw!AC67="","",CupDraw!AC67) -> 
B69: =CupDraw!I68 -> 34 | C69: =IF(CupDraw!J68="","",CupDraw!J68) ->  | D69: =IF(CupDraw!K68="","",CupDraw!K68) ->  | E69: =IF(CupDraw!L68="","",CupDraw!L68) ->  | H69: =CupDraw!O68 -> Earlier ties
C70: =IF(CupDraw!J69="","",CupDraw!J69) ->  | D70: =IF(CupDraw!K69="","",CupDraw!K69) ->  | E70: =IF(CupDraw!L69="","",CupDraw!L69) ->  | H70: =IF(CupDraw!O69="","",CupDraw!O69) -> 5 | I70: =IF(CupDraw!P69="","",CupDraw!P69) ->  | J70: =IF(CupDraw!Q69="","",CupDraw!Q69) -> -7 | K70: =IF(CupDraw!R69="","",CupDraw!R69) -> R | T70: =CupDraw!AA69 -> Earlier ties
B71: =CupDraw!I70 -> 35 | C71: =IF(CupDraw!J70="","",CupDraw!J70) ->  | D71: =IF(CupDraw!K70="","",CupDraw!K70) ->  | E71: =IF(CupDraw!L70="","",CupDraw!L70) ->  | H71: =CupDraw!O70 -> 0 | I71: =IF(CupDraw!P70="","",CupDraw!P70) ->  | J71: =IF(CupDraw!Q70="","",CupDraw!Q70) -> -7 | K71: =IF(CupDraw!R70="","",CupDraw!R70) ->  | U71: =IF(CupDraw!AB70="","",CupDraw!AB70) ->  | V71: =IF(CupDraw!AC70="","",CupDraw!AC70) ->  | W71: =CupDraw!AD70 -> 
C72: =IF(CupDraw!J71="","",CupDraw!J71) ->  | D72: =IF(CupDraw!K71="","",CupDraw!K71) ->  | E72: =IF(CupDraw!L71="","",CupDraw!L71) ->  | H72: =IF(CupDraw!O71="","",CupDraw!O71) ->  | I72: =IF(CupDraw!P71="","",CupDraw!P71) ->  | J72: =IF(CupDraw!Q71="","",CupDraw!Q71) ->  | K72: =IF(CupDraw!R71="","",CupDraw!R71) ->  | U72: =IF(CupDraw!AB71="","",CupDraw!AB71) ->  | V72: =IF(CupDraw!AC71="","",CupDraw!AC71) -> 
B73: =CupDraw!I72 -> 36 | C73: =IF(CupDraw!J72="","",CupDraw!J72) ->  | D73: =IF(CupDraw!K72="","",CupDraw!K72) ->  | E73: =IF(CupDraw!L72="","",CupDraw!L72) ->  | H73: =CupDraw!O72 -> 0 | I73: =IF(CupDraw!P72="","",CupDraw!P72) ->  | J73: =IF(CupDraw!Q72="","",CupDraw!Q72) ->  | K73: =IF(CupDraw!R72="","",CupDraw!R72) ->  | U73: =IF(CupDraw!AB72="","",CupDraw!AB72) ->  | V73: =IF(CupDraw!AC72="","",CupDraw!AC72) ->  | W73: =CupDraw!AD72 -> 
C74: =IF(CupDraw!J73="","",CupDraw!J73) ->  | D74: =IF(CupDraw!K73="","",CupDraw!K73) ->  | E74: =IF(CupDraw!L73="","",CupDraw!L73) ->  | H74: =IF(CupDraw!O73="","",CupDraw!O73) ->  | I74: =IF(CupDraw!P73="","",CupDraw!P73) ->  | J74: =IF(CupDraw!Q73="","",CupDraw!Q73) ->  | K74: =IF(CupDraw!R73="","",CupDraw!R73) ->  | U74: =IF(CupDraw!AB73="","",CupDraw!AB73) ->  | V74: =IF(CupDraw!AC73="","",CupDraw!AC73) -> 
H75: =CupDraw!O74 -> 0 | I75: =IF(CupDraw!P74="","",CupDraw!P74) ->  | J75: =IF(CupDraw!Q74="","",CupDraw!Q74) ->  | K75: =IF(CupDraw!R74="","",CupDraw!R74) -> 
H76: =IF(CupDraw!O75="","",CupDraw!O75) ->  | I76: =IF(CupDraw!P75="","",CupDraw!P75) ->  | J76: =IF(CupDraw!Q75="","",CupDraw!Q75) ->  | K76: =IF(CupDraw!R75="","",CupDraw!R75) -> 
B77: Earlier ties | H77: =CupDraw!O76 -> 0 | I77: =IF(CupDraw!P76="","",CupDraw!P76) ->  | J77: =IF(CupDraw!Q76="","",CupDraw!Q76) ->  | K77: =IF(CupDraw!R76="","",CupDraw!R76) -> 
C78: =IF(CupDraw!J79="","",CupDraw!J79) -> Pete Baron | D78: =IF(CupDraw!K79="","",CupDraw!K79) ->  | E78: =IF(CupDraw!L79="","",CupDraw!L79) -> R | H78: =IF(CupDraw!O77="","",CupDraw!O77) ->  | I78: =IF(CupDraw!P77="","",CupDraw!P77) ->  | J78: =IF(CupDraw!Q77="","",CupDraw!Q77) ->  | K78: =IF(CupDraw!R77="","",CupDraw!R77) -> 
C79: =IF(CupDraw!J80="","",CupDraw!J80) -> Chris Townsend | D79: =IF(CupDraw!K80="","",CupDraw!K80) ->  | H79: =CupDraw!O78 -> 0 | I79: =IF(CupDraw!P78="","",CupDraw!P78) ->  | J79: =IF(CupDraw!Q78="","",CupDraw!Q78) ->  | K79: =IF(CupDraw!R78="","",CupDraw!R78) -> 
C80: =IF(CupDraw!J81="","",CupDraw!J81) ->  | D80: =IF(CupDraw!K81="","",CupDraw!K81) ->  | E80: =IF(CupDraw!L81="","",CupDraw!L81) ->  | H80: =IF(CupDraw!O79="","",CupDraw!O79) ->  | I80: =IF(CupDraw!P79="","",CupDraw!P79) ->  | J80: =IF(CupDraw!Q79="","",CupDraw!Q79) ->  | K80: =IF(CupDraw!R79="","",CupDraw!R79) -> 
C81: =IF(CupDraw!J82="","",CupDraw!J82) ->  | D81: =IF(CupDraw!K82="","",CupDraw!K82) ->  | H81: =CupDraw!O80 -> 0 | I81: =IF(CupDraw!P80="","",CupDraw!P80) ->  | J81: =IF(CupDraw!Q80="","",CupDraw!Q80) ->  | K81: =IF(CupDraw!R80="","",CupDraw!R80) ->  | T81: =CupDraw!AA80 -> Final | U81: =CupDraw!AB80 -> 2020-12-16
C82: =IF(CupDraw!J83="","",CupDraw!J83) ->  | D82: =IF(CupDraw!K83="","",CupDraw!K83) ->  | E82: =IF(CupDraw!L83="","",CupDraw!L83) ->  | H82: =IF(CupDraw!O81="","",CupDraw!O81) ->  | I82: =IF(CupDraw!P81="","",CupDraw!P81) ->  | J82: =IF(CupDraw!Q81="","",CupDraw!Q81) ->  | K82: =IF(CupDraw!R81="","",CupDraw!R81) ->  | T82: =CupDraw!AA81 -> 1 | U82: =CupDraw!AB81 -> Await earlier tie | V82: =IF(CupDraw!AC81="","",CupDraw!AC81) ->  | W82: =CupDraw!AD81 -> 
C83: =IF(CupDraw!J84="","",CupDraw!J84) ->  | D83: =IF(CupDraw!K84="","",CupDraw!K84) ->  | E83: =IF(CupDraw!L84="","",CupDraw!L84) ->  | H83: =CupDraw!O82 -> 0 | I83: =IF(CupDraw!P82="","",CupDraw!P82) ->  | J83: =IF(CupDraw!Q82="","",CupDraw!Q82) ->  | K83: =IF(CupDraw!R82="","",CupDraw!R82) ->  | U83: =CupDraw!AB82 -> Await earlier tie | V83: =IF(CupDraw!AC82="","",CupDraw!AC82) -> 
C84: =IF(CupDraw!J85="","",CupDraw!J85) ->  | D84: =IF(CupDraw!K85="","",CupDraw!K85) ->  | E84: =IF(CupDraw!L85="","",CupDraw!L85) ->  | H84: =IF(CupDraw!O83="","",CupDraw!O83) ->  | I84: =IF(CupDraw!P83="","",CupDraw!P83) ->  | J84: =IF(CupDraw!Q83="","",CupDraw!Q83) ->  | K84: =IF(CupDraw!R83="","",CupDraw!R83) -> 
C85: =IF(CupDraw!J86="","",CupDraw!J86) ->  | D85: =IF(CupDraw!K86="","",CupDraw!K86) ->  | E85: =IF(CupDraw!L86="","",CupDraw!L86) ->  | H85: =CupDraw!O84 -> 0 | I85: =IF(CupDraw!P84="","",CupDraw!P84) ->  | J85: =IF(CupDraw!Q84="","",CupDraw!Q84) ->  | K85: =IF(CupDraw!R84="","",CupDraw!R84) -> 
C86: =IF(CupDraw!J87="","",CupDraw!J87) ->  | D86: =IF(CupDraw!K87="","",CupDraw!K87) ->  | E86: =IF(CupDraw!L87="","",CupDraw!L87) ->  | H86: =IF(CupDraw!O85="","",CupDraw!O85) ->  | I86: =IF(CupDraw!P85="","",CupDraw!P85) ->  | J86: =IF(CupDraw!Q85="","",CupDraw!Q85) ->  | K86: =IF(CupDraw!R85="","",CupDraw!R85) ->  | T86: =CupDraw!AA85 -> Earlier ties
C87: =IF(CupDraw!J88="","",CupDraw!J88) ->  | D87: =IF(CupDraw!K88="","",CupDraw!K88) ->  | E87: =IF(CupDraw!L88="","",CupDraw!L88) ->  | H87: =CupDraw!O86 -> 0 | I87: =IF(CupDraw!P86="","",CupDraw!P86) ->  | J87: =IF(CupDraw!Q86="","",CupDraw!Q86) ->  | K87: =IF(CupDraw!R86="","",CupDraw!R86) ->  | U87: =IF(CupDraw!AB86="","",CupDraw!AB86) ->  | V87: =IF(CupDraw!AC86="","",CupDraw!AC86) ->  | W87: =IF(CupDraw!AD86="","",CupDraw!AD86) -> 
C88: =IF(CupDraw!J89="","",CupDraw!J89) ->  | D88: =IF(CupDraw!K89="","",CupDraw!K89) ->  | E88: =IF(CupDraw!L89="","",CupDraw!L89) ->  | H88: =IF(CupDraw!O87="","",CupDraw!O87) ->  | I88: =IF(CupDraw!P87="","",CupDraw!P87) ->  | J88: =IF(CupDraw!Q87="","",CupDraw!Q87) ->  | K88: =IF(CupDraw!R87="","",CupDraw!R87) ->  | U88: =IF(CupDraw!AB87="","",CupDraw!AB87) ->  | V88: =IF(CupDraw!AC87="","",CupDraw!AC87) ->  | W88: =IF(CupDraw!AD87="","",CupDraw!AD87) -> 
C89: =IF(CupDraw!J90="","",CupDraw!J90) ->  | D89: =IF(CupDraw!K90="","",CupDraw!K90) ->  | E89: =IF(CupDraw!L90="","",CupDraw!L90) ->  | H89: =CupDraw!O88 -> 0 | I89: =IF(CupDraw!P88="","",CupDraw!P88) ->  | J89: =IF(CupDraw!Q88="","",CupDraw!Q88) ->  | K89: =IF(CupDraw!R88="","",CupDraw!R88) ->  | U89: =IF(CupDraw!AB88="","",CupDraw!AB88) ->  | V89: =IF(CupDraw!AC88="","",CupDraw!AC88) ->  | W89: =IF(CupDraw!AD88="","",CupDraw!AD88) -> 
C90: =IF(CupDraw!J91="","",CupDraw!J91) ->  | D90: =IF(CupDraw!K91="","",CupDraw!K91) ->  | E90: =IF(CupDraw!L91="","",CupDraw!L91) ->  | H90: =IF(CupDraw!O89="","",CupDraw!O89) ->  | I90: =IF(CupDraw!P89="","",CupDraw!P89) ->  | J90: =IF(CupDraw!Q89="","",CupDraw!Q89) ->  | K90: =IF(CupDraw!R89="","",CupDraw!R89) ->  | U90: =IF(CupDraw!AB89="","",CupDraw!AB89) ->  | V90: =IF(CupDraw!AC89="","",CupDraw!AC89) ->  | W90: =IF(CupDraw!AD89="","",CupDraw!AD89) -> 
C91: =IF(CupDraw!J92="","",CupDraw!J92) ->  | D91: =IF(CupDraw!K92="","",CupDraw!K92) ->  | E91: =IF(CupDraw!L92="","",CupDraw!L92) ->  | H91: =CupDraw!O90 -> 0 | I91: =IF(CupDraw!P90="","",CupDraw!P90) ->  | J91: =IF(CupDraw!Q90="","",CupDraw!Q90) ->  | K91: =IF(CupDraw!R90="","",CupDraw!R90) -> 
C92: =IF(CupDraw!J93="","",CupDraw!J93) ->  | D92: =IF(CupDraw!K93="","",CupDraw!K93) ->  | E92: =IF(CupDraw!L93="","",CupDraw!L93) ->  | H92: =IF(CupDraw!O91="","",CupDraw!O91) ->  | I92: =IF(CupDraw!P91="","",CupDraw!P91) ->  | J92: =IF(CupDraw!Q91="","",CupDraw!Q91) ->  | K92: =IF(CupDraw!R91="","",CupDraw!R91) -> 
C93: =IF(CupDraw!J94="","",CupDraw!J94) ->  | D93: =IF(CupDraw!K94="","",CupDraw!K94) ->  | E93: =IF(CupDraw!L94="","",CupDraw!L94) ->  | H93: =CupDraw!O92 -> 0 | I93: =IF(CupDraw!P92="","",CupDraw!P92) ->  | J93: =IF(CupDraw!Q92="","",CupDraw!Q92) ->  | K93: =IF(CupDraw!R92="","",CupDraw!R92) -> 
C94: =IF(CupDraw!J95="","",CupDraw!J95) -> 

Sheet Predictions
A1: =IF(Picks!A1="","",Picks!A1) -> Player | B1: =IF(Picks!B1="","",Picks!B1) -> Prediction | C1: =IF(Picks!C1="","",Picks!C1) -> Match Day | D1: =IF(Picks!D1="","",Picks!D1) -> Decimal | E1: =IF(Picks!E1="","",Picks!E1) -> Bet in? | F1: =IF(Picks!F1="","",Picks!F1) -> Score | G1: =IF(Picks!G1="","",Picks!G1) -> Max
A2: =IF(Picks!A2="","",Picks!A2) -> Alan Rogers | B2: =IF(Picks!B2="","",Picks!B2) -> Harrogate | C2: =IF(Picks!C2="","",Picks!C2) -> 7 | D2: =IF(Picks!D2="","",Picks!D2) -> 2.2 | E2: =IF(Picks!E2="","",Picks!E2) -> x | F2: =IF(Picks!F2="","",Picks!F2) -> -7 | G2: =IF(Picks!G2="","",Picks!G2) -> 43.072
B3: =IF(Picks!B3="","",Picks!B3) -> Orient | C3: =IF(Picks!C3="","",Picks!C3) -> 7 | D3: =IF(Picks!D3="","",Picks!D3) -> 2.8 | E3: =IF(Picks!E3="","",Picks!E3) -> x | F3: =IF(Picks!F3="","",Picks!F3) ->  | G3: =IF(Picks!G3="","",Picks!G3) -> 
B4: =IF(Picks!B4="","",Picks!B4) -> Stevenage draw | C4: =IF(Picks!C4="","",Picks!C4) -> 7 | D4: =IF(Picks!D4="","",Picks!D4) -> 3.2 | E4: =IF(Picks!E4="","",Picks!E4) -> x | F4: =IF(Picks!F4="","",Picks!F4) ->  | G4: =IF(Picks!G4="","",Picks!G4) -> 
A5: =IF(Picks!A5="","",Picks!A5) -> Alan White | B5: =IF(Picks!B5="","",Picks!B5) -> Arsenal | C5: =IF(Picks!C5="","",Picks!C5) -> 7 | D5: =IF(Picks!D5="","",Picks!D5) -> 1.5 | E5: =IF(Picks!E5="","",Picks!E5) -> √ | F5: =IF(Picks!F5="","",Picks!F5) -> -1.625 | G5: =IF(Picks!G5="","",Picks!G5) -> 14.63125
B6: =IF(Picks!B6="","",Picks!B6) -> Everton | C6: =IF(Picks!C6="","",Picks!C6) -> 7 | D6: =IF(Picks!D6="","",Picks!D6) -> 1.55 | E6: =IF(Picks!E6="","",Picks!E6) -> √ | F6: =IF(Picks!F6="","",Picks!F6) ->  | G6: =IF(Picks!G6="","",Picks!G6) -> 
B7: =IF(Picks!B7="","",Picks!B7) -> Newcastle | C7: =IF(Picks!C7="","",Picks!C7) -> 1 | D7: =IF(Picks!D7="","",Picks!D7) -> 2.55 | E7: =IF(Picks!E7="","",Picks!E7) -> x | F7: =IF(Picks!F7="","",Picks!F7) ->  | G7: =IF(Picks!G7="","",Picks!G7) -> 
A8: =IF(Picks!A8="","",Picks!A8) -> Alfie Davies | B8: =IF(Picks!B8="","",Picks!B8) -> Everton Draw | C8: =IF(Picks!C8="","",Picks!C8) -> 7 | D8: =IF(Picks!D8="","",Picks!D8) -> 4.2 | E8: =IF(Picks!E8="","",Picks!E8) -> x | F8: =IF(Picks!F8="","",Picks!F8) -> -7 | G8: =IF(Picks!G8="","",Picks!G8) -> 84.82
B9: =IF(Picks!B9="","",Picks!B9) -> Newcastle Draw | C9: =IF(Picks!C9="","",Picks!C9) -> 1 | D9: =IF(Picks!D9="","",Picks!D9) -> 3.2 | E9: =IF(Picks!E9="","",Picks!E9) -> x | F9: =IF(Picks!F9="","",Picks!F9) ->  | G9: =IF(Picks!G9="","",Picks!G9) -> 
B10: =IF(Picks!B10="","",Picks!B10) -> Southampton Draw | C10: =IF(Picks!C10="","",Picks!C10) -> 1 | D10: =IF(Picks!D10="","",Picks!D10) -> 3.25 | E10: =IF(Picks!E10="","",Picks!E10) -> x | F10: =IF(Picks!F10="","",Picks!F10) ->  | G10: =IF(Picks!G10="","",Picks!G10) -> 
A11: =IF(Picks!A11="","",Picks!A11) -> Alick Rocca | B11: =IF(Picks!B11="","",Picks!B11) -> Arsenal | C11: =IF(Picks!C11="","",Picks!C11) -> 7 | D11: =IF(Picks!D11="","",Picks!D11) -> 1.5 | E11: =IF(Picks!E11="","",Picks!E11) -> √ | F11: =IF(Picks!F11="","",Picks!F11) -> 10.80625 | G11: =IF(Picks!G11="","",Picks!G11) -> 10.80625
B12: =IF(Picks!B12="","",Picks!B12) -> Everton | C12: =IF(Picks!C12="","",Picks!C12) -> 7 | D12: =IF(Picks!D12="","",Picks!D12) -> 1.55 | E12: =IF(Picks!E12="","",Picks!E12) -> √ | F12: =IF(Picks!F12="","",Picks!F12) ->  | G12: =IF(Picks!G12="","",Picks!G12) -> 
B13: =IF(Picks!B13="","",Picks!B13) -> Hull | C13: =IF(Picks!C13="","",Picks!C13) -> 7 | D13: =IF(Picks!D13="","",Picks!D13) -> 1.95 | E13: =IF(Picks!E13="","",Picks!E13) -> √ | F13: =IF(Picks!F13="","",Picks!F13) ->  | G13: =IF(Picks!G13="","",Picks!G13) -> 
A14: =IF(Picks!A14="","",Picks!A14) -> Andy Charleston | B14: =IF(Picks!B14="","",Picks!B14) -> Newcastle | C14: =IF(Picks!C14="","",Picks!C14) -> 1 | D14: =IF(Picks!D14="","",Picks!D14) -> 2.55 | E14: =IF(Picks!E14="","",Picks!E14) -> x | F14: =IF(Picks!F14="","",Picks!F14) -> -4.55 | G14: =IF(Picks!G14="","",Picks!G14) -> 29.96725
B15: =IF(Picks!B15="","",Picks!B15) -> Spurs | C15: =IF(Picks!C15="","",Picks!C15) -> 1 | D15: =IF(Picks!D15="","",Picks!D15) -> 2.45 | E15: =IF(Picks!E15="","",Picks!E15) -> √ | F15: =IF(Picks!F15="","",Picks!F15) ->  | G15: =IF(Picks!G15="","",Picks!G15) -> 
B16: =IF(Picks!B16="","",Picks!B16) -> Stoke | C16: =IF(Picks!C16="","",Picks!C16) -> 1 | D16: =IF(Picks!D16="","",Picks!D16) -> 2.1 | E16: =IF(Picks!E16="","",Picks!E16) -> x | F16: =IF(Picks!F16="","",Picks!F16) ->  | G16: =IF(Picks!G16="","",Picks!G16) -> 
A17: =IF(Picks!A17="","",Picks!A17) -> Andy White | B17: =IF(Picks!B17="","",Picks!B17) -> Spurs | C17: =IF(Picks!C17="","",Picks!C17) -> 1 | D17: =IF(Picks!D17="","",Picks!D17) -> 2.45 | E17: =IF(Picks!E17="","",Picks!E17) -> √ | F17: =IF(Picks!F17="","",Picks!F17) -> -4.55 | G17: =IF(Picks!G17="","",Picks!G17) -> 49.56325
B18: =IF(Picks!B18="","",Picks!B18) -> Newcastle | C18: =IF(Picks!C18="","",Picks!C18) -> 1 | D18: =IF(Picks!D18="","",Picks!D18) -> 2.55 | E18: =IF(Picks!E18="","",Picks!E18) -> x | F18: =IF(Picks!F18="","",Picks!F18) ->  | G18: =IF(Picks!G18="","",Picks!G18) -> 
B19: =IF(Picks!B19="","",Picks!B19) -> Chelsea draw | C19: =IF(Picks!C19="","",Picks!C19) -> 1 | D19: =IF(Picks!D19="","",Picks!D19) -> 3.7 | E19: =IF(Picks!E19="","",Picks!E19) -> x | F19: =IF(Picks!F19="","",Picks!F19) ->  | G19: =IF(Picks!G19="","",Picks!G19) -> 
A20: =IF(Picks!A20="","",Picks!A20) -> Ashley Houghton | B20: =IF(Picks!B20="","",Picks!B20) -> Arsenal | C20: =IF(Picks!C20="","",Picks!C20) -> 7 | D20: =IF(Picks!D20="","",Picks!D20) -> 1.5 | E20: =IF(Picks!E20="","",Picks!E20) -> √ | F20: =IF(Picks!F20="","",Picks!F20) -> -0.625 | G20: =IF(Picks!G20="","",Picks!G20) -> 14.8625
B21: =IF(Picks!B21="","",Picks!B21) -> Hull | C21: =IF(Picks!C21="","",Picks!C21) -> 7 | D21: =IF(Picks!D21="","",Picks!D21) -> 1.95 | E21: =IF(Picks!E21="","",Picks!E21) -> √ | F21: =IF(Picks!F21="","",Picks!F21) ->  | G21: =IF(Picks!G21="","",Picks!G21) -> 
B22: =IF(Picks!B22="","",Picks!B22) -> Swansea | C22: =IF(Picks!C22="","",Picks!C22) -> 7 | D22: =IF(Picks!D22="","",Picks!D22) -> 2.1 | E22: =IF(Picks!E22="","",Picks!E22) -> x | F22: =IF(Picks!F22="","",Picks!F22) ->  | G22: =IF(Picks!G22="","",Picks!G22) -> 
A23: =IF(Picks!A23="","",Picks!A23) -> Barry Birchall | B23: =IF(Picks!B23="","",Picks!B23) -> Blackburn | C23: =IF(Picks!C23="","",Picks!C23) -> 7 | D23: =IF(Picks!D23="","",Picks!D23) -> 1.571428571 | E23: =IF(Picks!E23="","",Picks!E23) -> √ | F23: =IF(Picks!F23="","",Picks!F23) -> -1.442857143 | G23: =IF(Picks!G23="","",Picks!G23) -> 20.19571429
B24: =IF(Picks!B24="","",Picks!B24) -> Brentford | C24: =IF(Picks!C24="","",Picks!C24) -> 7 | D24: =IF(Picks!D24="","",Picks!D24) -> 1.55 | E24: =IF(Picks!E24="","",Picks!E24) -> √ | F24: =IF(Picks!F24="","",Picks!F24) ->  | G24: =IF(Picks!G24="","",Picks!G24) -> 
B25: =IF(Picks!B25="","",Picks!B25) -> Walsall | C25: =IF(Picks!C25="","",Picks!C25) -> 7 | D25: =IF(Picks!D25="","",Picks!D25) -> 3.3 | E25: =IF(Picks!E25="","",Picks!E25) -> x | F25: =IF(Picks!F25="","",Picks!F25) ->  | G25: =IF(Picks!G25="","",Picks!G25) -> 
A26: =IF(Picks!A26="","",Picks!A26) -> Ben Rosser | B26: =IF(Picks!B26="","",Picks!B26) -> Arsenal draw | C26: =IF(Picks!C26="","",Picks!C26) -> 7 | D26: =IF(Picks!D26="","",Picks!D26) -> 4.4 | E26: =IF(Picks!E26="","",Picks!E26) -> x | F26: =IF(Picks!F26="","",Picks!F26) -> -7 | G26: =IF(Picks!G26="","",Picks!G26) -> 35.81714286
B27: =IF(Picks!B27="","",Picks!B27) -> Man U | C27: =IF(Picks!C27="","",Picks!C27) -> 7 | D27: =IF(Picks!D27="","",Picks!D27) -> 1.285714286 | E27: =IF(Picks!E27="","",Picks!E27) -> x | F27: =IF(Picks!F27="","",Picks!F27) ->  | G27: =IF(Picks!G27="","",Picks!G27) -> 
B28: =IF(Picks!B28="","",Picks!B28) -> Newcastle | C28: =IF(Picks!C28="","",Picks!C28) -> 1 | D28: =IF(Picks!D28="","",Picks!D28) -> 2.55 | E28: =IF(Picks!E28="","",Picks!E28) -> x | F28: =IF(Picks!F28="","",Picks!F28) ->  | G28: =IF(Picks!G28="","",Picks!G28) -> 
A29: =IF(Picks!A29="","",Picks!A29) -> Charlie Griffiths | B29: =IF(Picks!B29="","",Picks!B29) -> Wimbledon draw | C29: =IF(Picks!C29="","",Picks!C29) -> 7 | D29: =IF(Picks!D29="","",Picks!D29) -> 3.3 | E29: =IF(Picks!E29="","",Picks!E29) -> √ | F29: =IF(Picks!F29="","",Picks!F29) -> 10.92 | G29: =IF(Picks!G29="","",Picks!G29) -> 73.356
B30: =IF(Picks!B30="","",Picks!B30) -> Northampton | C30: =IF(Picks!C30="","",Picks!C30) -> 7 | D30: =IF(Picks!D30="","",Picks!D30) -> 3.4 | E30: =IF(Picks!E30="","",Picks!E30) -> √ | F30: =IF(Picks!F30="","",Picks!F30) ->  | G30: =IF(Picks!G30="","",Picks!G30) -> 
B31: =IF(Picks!B31="","",Picks!B31) -> Walsall | C31: =IF(Picks!C31="","",Picks!C31) -> 7 | D31: =IF(Picks!D31="","",Picks!D31) -> 3.3 | E31: =IF(Picks!E31="","",Picks!E31) -> x | F31: =IF(Picks!F31="","",Picks!F31) ->  | G31: =IF(Picks!G31="","",Picks!G31) -> 
A32: =IF(Picks!A32="","",Picks!A32) -> Chris Bow | B32: =IF(Picks!B32="","",Picks!B32) -> Palace | C32: =IF(Picks!C32="","",Picks!C32) -> 7 | D32: =IF(Picks!D32="","",Picks!D32) -> 11 | E32: =IF(Picks!E32="","",Picks!E32) -> √ | F32: =IF(Picks!F32="","",Picks!F32) -> 150.1 | G32: =IF(Picks!G32="","",Picks!G32) -> 150.1
B33: =IF(Picks!B33="","",Picks!B33) -> Luton | C33: =IF(Picks!C33="","",Picks!C33) -> 7 | D33: =IF(Picks!D33="","",Picks!D33) -> 2.875 | E33: =IF(Picks!E33="","",Picks!E33) -> √ | F33: =IF(Picks!F33="","",Picks!F33) ->  | G33: =IF(Picks!G33="","",Picks!G33) -> 
B34: =IF(Picks!B34="","",Picks!B34) -> Reading | C34: =IF(Picks!C34="","",Picks!C34) -> 7 | D34: =IF(Picks!D34="","",Picks!D34) -> 2.4 | E34: =IF(Picks!E34="","",Picks!E34) -> √ | F34: =IF(Picks!F34="","",Picks!F34) ->  | G34: =IF(Picks!G34="","",Picks!G34) -> 
A35: =IF(Picks!A35="","",Picks!A35) -> Chris Griffin | B35: =IF(Picks!B35="","",Picks!B35) -> Hull | C35: =IF(Picks!C35="","",Picks!C35) -> 7 | D35: =IF(Picks!D35="","",Picks!D35) -> 1.95 | E35: =IF(Picks!E35="","",Picks!E35) -> √ | F35: =IF(Picks!F35="","",Picks!F35) -> -0.2846153846 | G35: =IF(Picks!G35="","",Picks!G35) -> 13.60307692
B36: =IF(Picks!B36="","",Picks!B36) -> Norwich | C36: =IF(Picks!C36="","",Picks!C36) -> 7 | D36: =IF(Picks!D36="","",Picks!D36) -> 1.8 | E36: =IF(Picks!E36="","",Picks!E36) -> x | F36: =IF(Picks!F36="","",Picks!F36) ->  | G36: =IF(Picks!G36="","",Picks!G36) -> 
B37: =IF(Picks!B37="","",Picks!B37) -> Leeds | C37: =IF(Picks!C37="","",Picks!C37) -> 7 | D37: =IF(Picks!D37="","",Picks!D37) -> 1.615384615 | E37: =IF(Picks!E37="","",Picks!E37) -> √ | F37: =IF(Picks!F37="","",Picks!F37) ->  | G37: =IF(Picks!G37="","",Picks!G37) -> 
A38: =IF(Picks!A38="","",Picks!A38) -> Chris Luck | B38: =IF(Picks!B38="","",Picks!B38) -> Forest | C38: =IF(Picks!C38="","",Picks!C38) -> 7 | D38: =IF(Picks!D38="","",Picks!D38) -> 2.45 | E38: =IF(Picks!E38="","",Picks!E38) -> x | F38: =IF(Picks!F38="","",Picks!F38) -> 5.175 | G38: =IF(Picks!G38="","",Picks!G38) -> 37.45375
B39: =IF(Picks!B39="","",Picks!B39) -> Luton | C39: =IF(Picks!C39="","",Picks!C39) -> 7 | D39: =IF(Picks!D39="","",Picks!D39) -> 2.875 | E39: =IF(Picks!E39="","",Picks!E39) -> √ | F39: =IF(Picks!F39="","",Picks!F39) ->  | G39: =IF(Picks!G39="","",Picks!G39) -> 
B40: =IF(Picks!B40="","",Picks!B40) -> Reading | C40: =IF(Picks!C40="","",Picks!C40) -> 7 | D40: =IF(Picks!D40="","",Picks!D40) -> 2.4 | E40: =IF(Picks!E40="","",Picks!E40) -> √ | F40: =IF(Picks!F40="","",Picks!F40) ->  | G40: =IF(Picks!G40="","",Picks!G40) -> 
A41: =IF(Picks!A41="","",Picks!A41) -> Chris Townsend | B41: =IF(Picks!B41="","",Picks!B41) -> Burnley | C41: =IF(Picks!C41="","",Picks!C41) -> 1 | D41: =IF(Picks!D41="","",Picks!D41) -> 5.5 | E41: =IF(Picks!E41="","",Picks!E41) -> x | F41: =IF(Picks!F41="","",Picks!F41) -> 4 | G41: =IF(Picks!G41="","",Picks!G41) -> 538
B42: =IF(Picks!B42="","",Picks!B42) -> Palace | C42: =IF(Picks!C42="","",Picks!C42) -> 7 | D42: =IF(Picks!D42="","",Picks!D42) -> 11 | E42: =IF(Picks!E42="","",Picks!E42) -> √ | F42: =IF(Picks!F42="","",Picks!F42) ->  | G42: =IF(Picks!G42="","",Picks!G42) -> 
B43: =IF(Picks!B43="","",Picks!B43) -> West Brom | C43: =IF(Picks!C43="","",Picks!C43) -> 7 | D43: =IF(Picks!D43="","",Picks!D43) -> 6 | E43: =IF(Picks!E43="","",Picks!E43) -> x | F43: =IF(Picks!F43="","",Picks!F43) ->  | G43: =IF(Picks!G43="","",Picks!G43) -> 
A44: =IF(Picks!A44="","",Picks!A44) -> Dan Baxter | B44: =IF(Picks!B44="","",Picks!B44) -> Arsenal draw | C44: =IF(Picks!C44="","",Picks!C44) -> 7 | D44: =IF(Picks!D44="","",Picks!D44) -> 4.4 | E44: =IF(Picks!E44="","",Picks!E44) -> x | F44: =IF(Picks!F44="","",Picks!F44) -> -7 | G44: =IF(Picks!G44="","",Picks!G44) -> 60.04
B45: =IF(Picks!B45="","",Picks!B45) -> Norwich | C45: =IF(Picks!C45="","",Picks!C45) -> 7 | D45: =IF(Picks!D45="","",Picks!D45) -> 1.8 | E45: =IF(Picks!E45="","",Picks!E45) -> x | F45: =IF(Picks!F45="","",Picks!F45) ->  | G45: =IF(Picks!G45="","",Picks!G45) -> 
B46: =IF(Picks!B46="","",Picks!B46) -> Swindon | C46: =IF(Picks!C46="","",Picks!C46) -> 7 | D46: =IF(Picks!D46="","",Picks!D46) -> 3.5 | E46: =IF(Picks!E46="","",Picks!E46) -> x | F46: =IF(Picks!F46="","",Picks!F46) ->  | G46: =IF(Picks!G46="","",Picks!G46) -> 
A47: =IF(Picks!A47="","",Picks!A47) -> Dave Bell | B47: =IF(Picks!B47="","",Picks!B47) -> West Brom | C47: =IF(Picks!C47="","",Picks!C47) -> 7 | D47: =IF(Picks!D47="","",Picks!D47) -> 6 | E47: =IF(Picks!E47="","",Picks!E47) -> x | F47: =IF(Picks!F47="","",Picks!F47) -> 4 | G47: =IF(Picks!G47="","",Picks!G47) -> 538
B48: =IF(Picks!B48="","",Picks!B48) -> Palace | C48: =IF(Picks!C48="","",Picks!C48) -> 7 | D48: =IF(Picks!D48="","",Picks!D48) -> 11 | E48: =IF(Picks!E48="","",Picks!E48) -> √ | F48: =IF(Picks!F48="","",Picks!F48) ->  | G48: =IF(Picks!G48="","",Picks!G48) -> 
B49: =IF(Picks!B49="","",Picks!B49) -> Fulham | C49: =IF(Picks!C49="","",Picks!C49) -> 7 | D49: =IF(Picks!D49="","",Picks!D49) -> 5.5 | E49: =IF(Picks!E49="","",Picks!E49) -> x | F49: =IF(Picks!F49="","",Picks!F49) ->  | G49: =IF(Picks!G49="","",Picks!G49) -> 
A50: =IF(Picks!A50="","",Picks!A50) -> Dave Orrell | B50: =IF(Picks!B50="","",Picks!B50) -> Hull | C50: =IF(Picks!C50="","",Picks!C50) -> 7 | D50: =IF(Picks!D50="","",Picks!D50) -> 1.95 | E50: =IF(Picks!E50="","",Picks!E50) -> √ | F50: =IF(Picks!F50="","",Picks!F50) -> 28.50625 | G50: =IF(Picks!G50="","",Picks!G50) -> 28.50625
B51: =IF(Picks!B51="","",Picks!B51) -> Lincoln | C51: =IF(Picks!C51="","",Picks!C51) -> 7 | D51: =IF(Picks!D51="","",Picks!D51) -> 2.75 | E51: =IF(Picks!E51="","",Picks!E51) -> √ | F51: =IF(Picks!F51="","",Picks!F51) ->  | G51: =IF(Picks!G51="","",Picks!G51) -> 
B52: =IF(Picks!B52="","",Picks!B52) -> Salford | C52: =IF(Picks!C52="","",Picks!C52) -> 7 | D52: =IF(Picks!D52="","",Picks!D52) -> 2.3 | E52: =IF(Picks!E52="","",Picks!E52) -> √ | F52: =IF(Picks!F52="","",Picks!F52) ->  | G52: =IF(Picks!G52="","",Picks!G52) -> 
A53: =IF(Picks!A53="","",Picks!A53) -> David Dunn | B53: =IF(Picks!B53="","",Picks!B53) -> QPR | C53: =IF(Picks!C53="","",Picks!C53) -> 6 | D53: =IF(Picks!D53="","",Picks!D53) -> 2.9 | E53: =IF(Picks!E53="","",Picks!E53) -> x | F53: =IF(Picks!F53="","",Picks!F53) -> -1.461538462 | G53: =IF(Picks!G53="","",Picks!G53) -> 17.5
B54: =IF(Picks!B54="","",Picks!B54) -> Arsenal | C54: =IF(Picks!C54="","",Picks!C54) -> 7 | D54: =IF(Picks!D54="","",Picks!D54) -> 1.5 | E54: =IF(Picks!E54="","",Picks!E54) -> √ | F54: =IF(Picks!F54="","",Picks!F54) ->  | G54: =IF(Picks!G54="","",Picks!G54) -> 
B55: =IF(Picks!B55="","",Picks!B55) -> Leeds | C55: =IF(Picks!C55="","",Picks!C55) -> 7 | D55: =IF(Picks!D55="","",Picks!D55) -> 1.615384615 | E55: =IF(Picks!E55="","",Picks!E55) -> √ | F55: =IF(Picks!F55="","",Picks!F55) ->  | G55: =IF(Picks!G55="","",Picks!G55) -> 
A56: =IF(Picks!A56="","",Picks!A56) -> Gareth Fallows | B56: =IF(Picks!B56="","",Picks!B56) ->  | C56: =IF(Picks!C56="","",Picks!C56) ->  | D56: =IF(Picks!D56="","",Picks!D56) ->  | E56: =IF(Picks!E56="","",Picks!E56) ->  | F56: =IF(Picks!F56="","",Picks!F56) -> -10 | G56: =IF(Picks!G56="","",Picks!G56) -> 
B57: =IF(Picks!B57="","",Picks!B57) ->  | C57: =IF(Picks!C57="","",Picks!C57) ->  | D57: =IF(Picks!D57="","",Picks!D57) ->  | E57: =IF(Picks!E57="","",Picks!E57) ->  | F57: =IF(Picks!F57="","",Picks!F57) ->  | G57: =IF(Picks!G57="","",Picks!G57) -> 
B58: =IF(Picks!B58="","",Picks!B58) ->  | C58: =IF(Picks!C58="","",Picks!C58) ->  | D58: =IF(Picks!D58="","",Picks!D58) ->  | E58: =IF(Picks!E58="","",Picks!E58) ->  | F58: =IF(Picks!F58="","",Picks!F58) ->  | G58: =IF(Picks!G58="","",Picks!G58) -> 
A59: =IF(Picks!A59="","",Picks!A59) -> Gareth McGuire | B59: =IF(Picks!B59="","",Picks!B59) -> Bournemouth | C59: =IF(Picks!C59="","",Picks!C59) -> 7 | D59: =IF(Picks!D59="","",Picks!D59) -> 2.7 | E59: =IF(Picks!E59="","",Picks!E59) -> x | F59: =IF(Picks!F59="","",Picks!F59) -> -5.05 | G59: =IF(Picks!G59="","",Picks!G59) -> 30.74825
B60: =IF(Picks!B60="","",Picks!B60) -> Watford | C60: =IF(Picks!C60="","",Picks!C60) -> 7 | D60: =IF(Picks!D60="","",Picks!D60) -> 2.55 | E60: =IF(Picks!E60="","",Picks!E60) -> x | F60: =IF(Picks!F60="","",Picks!F60) ->  | G60: =IF(Picks!G60="","",Picks!G60) -> 
B61: =IF(Picks!B61="","",Picks!B61) -> Hull | C61: =IF(Picks!C61="","",Picks!C61) -> 7 | D61: =IF(Picks!D61="","",Picks!D61) -> 1.95 | E61: =IF(Picks!E61="","",Picks!E61) -> √ | F61: =IF(Picks!F61="","",Picks!F61) ->  | G61: =IF(Picks!G61="","",Picks!G61) -> 
A62: =IF(Picks!A62="","",Picks!A62) -> Gareth Powell | B62: =IF(Picks!B62="","",Picks!B62) -> Leeds | C62: =IF(Picks!C62="","",Picks!C62) -> 7 | D62: =IF(Picks!D62="","",Picks!D62) -> 1.615384615 | E62: =IF(Picks!E62="","",Picks!E62) -> √ | F62: =IF(Picks!F62="","",Picks!F62) -> 0.3692307692 | G62: =IF(Picks!G62="","",Picks!G62) -> 17.94461538
B63: =IF(Picks!B63="","",Picks!B63) -> Swansea | C63: =IF(Picks!C63="","",Picks!C63) -> 7 | D63: =IF(Picks!D63="","",Picks!D63) -> 2.1 | E63: =IF(Picks!E63="","",Picks!E63) -> x | F63: =IF(Picks!F63="","",Picks!F63) ->  | G63: =IF(Picks!G63="","",Picks!G63) -> 
B64: =IF(Picks!B64="","",Picks!B64) -> Liverpool | C64: =IF(Picks!C64="","",Picks!C64) -> 1 | D64: =IF(Picks!D64="","",Picks!D64) -> 2.2 | E64: =IF(Picks!E64="","",Picks!E64) -> √ | F64: =IF(Picks!F64="","",Picks!F64) ->  | G64: =IF(Picks!G64="","",Picks!G64) -> 
A65: =IF(Picks!A65="","",Picks!A65) -> Gerard Ventom | B65: =IF(Picks!B65="","",Picks!B65) -> Palace | C65: =IF(Picks!C65="","",Picks!C65) -> 7 | D65: =IF(Picks!D65="","",Picks!D65) -> 11 | E65: =IF(Picks!E65="","",Picks!E65) -> √ | F65: =IF(Picks!F65="","",Picks!F65) -> 164.8 | G65: =IF(Picks!G65="","",Picks!G65) -> 164.8
B66: =IF(Picks!B66="","",Picks!B66) -> Cardiff | C66: =IF(Picks!C66="","",Picks!C66) -> 7 | D66: =IF(Picks!D66="","",Picks!D66) -> 3 | E66: =IF(Picks!E66="","",Picks!E66) -> √ | F66: =IF(Picks!F66="","",Picks!F66) ->  | G66: =IF(Picks!G66="","",Picks!G66) -> 
B67: =IF(Picks!B67="","",Picks!B67) -> Ipswich | C67: =IF(Picks!C67="","",Picks!C67) -> 7 | D67: =IF(Picks!D67="","",Picks!D67) -> 2.6 | E67: =IF(Picks!E67="","",Picks!E67) -> √ | F67: =IF(Picks!F67="","",Picks!F67) ->  | G67: =IF(Picks!G67="","",Picks!G67) -> 
A68: =IF(Picks!A68="","",Picks!A68) -> Graham Miller | B68: =IF(Picks!B68="","",Picks!B68) -> Newcastle | C68: =IF(Picks!C68="","",Picks!C68) -> 1 | D68: =IF(Picks!D68="","",Picks!D68) -> 2.55 | E68: =IF(Picks!E68="","",Picks!E68) -> x | F68: =IF(Picks!F68="","",Picks!F68) -> -5.05 | G68: =IF(Picks!G68="","",Picks!G68) -> 23.4175
B69: =IF(Picks!B69="","",Picks!B69) -> Hull | C69: =IF(Picks!C69="","",Picks!C69) -> 7 | D69: =IF(Picks!D69="","",Picks!D69) -> 1.95 | E69: =IF(Picks!E69="","",Picks!E69) -> √ | F69: =IF(Picks!F69="","",Picks!F69) ->  | G69: =IF(Picks!G69="","",Picks!G69) -> 
B70: =IF(Picks!B70="","",Picks!B70) -> Charlton | C70: =IF(Picks!C70="","",Picks!C70) -> 7 | D70: =IF(Picks!D70="","",Picks!D70) -> 2 | E70: =IF(Picks!E70="","",Picks!E70) -> x | F70: =IF(Picks!F70="","",Picks!F70) ->  | G70: =IF(Picks!G70="","",Picks!G70) -> 
A71: =IF(Picks!A71="","",Picks!A71) -> Howard Bradley | B71: =IF(Picks!B71="","",Picks!B71) -> Blackburn | C71: =IF(Picks!C71="","",Picks!C71) -> 7 | D71: =IF(Picks!D71="","",Picks!D71) -> 1.571428571 | E71: =IF(Picks!E71="","",Picks!E71) -> √ | F71: =IF(Picks!F71="","",Picks!F71) -> -5.428571429 | G71: =IF(Picks!G71="","",Picks!G71) -> 17.10357143
B72: =IF(Picks!B72="","",Picks!B72) -> Portsmouth | C72: =IF(Picks!C72="","",Picks!C72) -> 1 | D72: =IF(Picks!D72="","",Picks!D72) -> 1.75 | E72: =IF(Picks!E72="","",Picks!E72) -> x | F72: =IF(Picks!F72="","",Picks!F72) ->  | G72: =IF(Picks!G72="","",Picks!G72) -> 
B73: =IF(Picks!B73="","",Picks!B73) -> Derby | C73: =IF(Picks!C73="","",Picks!C73) -> 7 | D73: =IF(Picks!D73="","",Picks!D73) -> 2.55 | E73: =IF(Picks!E73="","",Picks!E73) -> x | F73: =IF(Picks!F73="","",Picks!F73) ->  | G73: =IF(Picks!G73="","",Picks!G73) -> 
A74: =IF(Picks!A74="","",Picks!A74) -> Ian Davies | B74: =IF(Picks!B74="","",Picks!B74) -> Luton | C74: =IF(Picks!C74="","",Picks!C74) -> 7 | D74: =IF(Picks!D74="","",Picks!D74) -> 2.875 | E74: =IF(Picks!E74="","",Picks!E74) -> √ | F74: =IF(Picks!F74="","",Picks!F74) -> -4.125 | G74: =IF(Picks!G74="","",Picks!G74) -> 63.02875
B75: =IF(Picks!B75="","",Picks!B75) -> Sheff W | C75: =IF(Picks!C75="","",Picks!C75) -> 7 | D75: =IF(Picks!D75="","",Picks!D75) -> 2.9 | E75: =IF(Picks!E75="","",Picks!E75) -> x | F75: =IF(Picks!F75="","",Picks!F75) ->  | G75: =IF(Picks!G75="","",Picks!G75) -> 
B76: =IF(Picks!B76="","",Picks!B76) -> Chelsea draw | C76: =IF(Picks!C76="","",Picks!C76) -> 1 | D76: =IF(Picks!D76="","",Picks!D76) -> 3.7 | E76: =IF(Picks!E76="","",Picks!E76) -> x | F76: =IF(Picks!F76="","",Picks!F76) ->  | G76: =IF(Picks!G76="","",Picks!G76) -> 
A77: =IF(Picks!A77="","",Picks!A77) -> Jack Walsh | B77: =IF(Picks!B77="","",Picks!B77) -> Chelsea | C77: =IF(Picks!C77="","",Picks!C77) -> 1 | D77: =IF(Picks!D77="","",Picks!D77) -> 3.1 | E77: =IF(Picks!E77="","",Picks!E77) -> x | F77: =IF(Picks!F77="","",Picks!F77) -> 0.6307692308 | G77: =IF(Picks!G77="","",Picks!G77) -> 27.38615385
B78: =IF(Picks!B78="","",Picks!B78) -> Leeds | C78: =IF(Picks!C78="","",Picks!C78) -> 7 | D78: =IF(Picks!D78="","",Picks!D78) -> 1.615384615 | E78: =IF(Picks!E78="","",Picks!E78) -> √ | F78: =IF(Picks!F78="","",Picks!F78) ->  | G78: =IF(Picks!G78="","",Picks!G78) -> 
B79: =IF(Picks!B79="","",Picks!B79) -> Salford | C79: =IF(Picks!C79="","",Picks!C79) -> 7 | D79: =IF(Picks!D79="","",Picks!D79) -> 2.3 | E79: =IF(Picks!E79="","",Picks!E79) -> √ | F79: =IF(Picks!F79="","",Picks!F79) ->  | G79: =IF(Picks!G79="","",Picks!G79) -> 
A80: =IF(Picks!A80="","",Picks!A80) -> James Bell | B80: =IF(Picks!B80="","",Picks!B80) -> Leeds draw | C80: =IF(Picks!C80="","",Picks!C80) -> 7 | D80: =IF(Picks!D80="","",Picks!D80) -> 4 | E80: =IF(Picks!E80="","",Picks!E80) -> x | F80: =IF(Picks!F80="","",Picks!F80) -> -7 | G80: =IF(Picks!G80="","",Picks!G80) -> 140
B81: =IF(Picks!B81="","",Picks!B81) -> Huddersfield | C81: =IF(Picks!C81="","",Picks!C81) -> 7 | D81: =IF(Picks!D81="","",Picks!D81) -> 7 | E81: =IF(Picks!E81="","",Picks!E81) -> x | F81: =IF(Picks!F81="","",Picks!F81) ->  | G81: =IF(Picks!G81="","",Picks!G81) -> 
B82: =IF(Picks!B82="","",Picks!B82) -> MK Dons | C82: =IF(Picks!C82="","",Picks!C82) -> 7 | D82: =IF(Picks!D82="","",Picks!D82) -> 2.7 | E82: =IF(Picks!E82="","",Picks!E82) -> x | F82: =IF(Picks!F82="","",Picks!F82) ->  | G82: =IF(Picks!G82="","",Picks!G82) -> 
A83: =IF(Picks!A83="","",Picks!A83) -> Joel Bent | B83: =IF(Picks!B83="","",Picks!B83) -> Bournemouth | C83: =IF(Picks!C83="","",Picks!C83) -> 7 | D83: =IF(Picks!D83="","",Picks!D83) -> 2.7 | E83: =IF(Picks!E83="","",Picks!E83) -> x | F83: =IF(Picks!F83="","",Picks!F83) -> -5.35 | G83: =IF(Picks!G83="","",Picks!G83) -> 34.1615
B84: =IF(Picks!B84="","",Picks!B84) -> Bristol R draw | C84: =IF(Picks!C84="","",Picks!C84) -> 7 | D84: =IF(Picks!D84="","",Picks!D84) -> 3.3 | E84: =IF(Picks!E84="","",Picks!E84) -> x | F84: =IF(Picks!F84="","",Picks!F84) ->  | G84: =IF(Picks!G84="","",Picks!G84) -> 
B85: =IF(Picks!B85="","",Picks!B85) -> Leicester | C85: =IF(Picks!C85="","",Picks!C85) -> 1 | D85: =IF(Picks!D85="","",Picks!D85) -> 1.65 | E85: =IF(Picks!E85="","",Picks!E85) -> √ | F85: =IF(Picks!F85="","",Picks!F85) ->  | G85: =IF(Picks!G85="","",Picks!G85) -> 
A86: =IF(Picks!A86="","",Picks!A86) -> John Evans | B86: =IF(Picks!B86="","",Picks!B86) -> Derby | C86: =IF(Picks!C86="","",Picks!C86) -> 7 | D86: =IF(Picks!D86="","",Picks!D86) -> 2.55 | E86: =IF(Picks!E86="","",Picks!E86) -> x | F86: =IF(Picks!F86="","",Picks!F86) -> -4.375 | G86: =IF(Picks!G86="","",Picks!G86) -> 34.466875
B87: =IF(Picks!B87="","",Picks!B87) -> Colchester | C87: =IF(Picks!C87="","",Picks!C87) -> 7 | D87: =IF(Picks!D87="","",Picks!D87) -> 2.625 | E87: =IF(Picks!E87="","",Picks!E87) -> √ | F87: =IF(Picks!F87="","",Picks!F87) ->  | G87: =IF(Picks!G87="","",Picks!G87) -> 
B88: =IF(Picks!B88="","",Picks!B88) -> Forest Green | C88: =IF(Picks!C88="","",Picks!C88) -> 7 | D88: =IF(Picks!D88="","",Picks!D88) -> 2.3 | E88: =IF(Picks!E88="","",Picks!E88) -> x | F88: =IF(Picks!F88="","",Picks!F88) ->  | G88: =IF(Picks!G88="","",Picks!G88) -> 
A89: =IF(Picks!A89="","",Picks!A89) -> John Ronan | B89: =IF(Picks!B89="","",Picks!B89) -> Derby | C89: =IF(Picks!C89="","",Picks!C89) -> 7 | D89: =IF(Picks!D89="","",Picks!D89) -> 2.55 | E89: =IF(Picks!E89="","",Picks!E89) -> x | F89: =IF(Picks!F89="","",Picks!F89) -> -4.85 | G89: =IF(Picks!G89="","",Picks!G89) -> 26.66575
B90: =IF(Picks!B90="","",Picks!B90) -> Swansea | C90: =IF(Picks!C90="","",Picks!C90) -> 7 | D90: =IF(Picks!D90="","",Picks!D90) -> 2.1 | E90: =IF(Picks!E90="","",Picks!E90) -> x | F90: =IF(Picks!F90="","",Picks!F90) ->  | G90: =IF(Picks!G90="","",Picks!G90) -> 
B91: =IF(Picks!B91="","",Picks!B91) -> Blackpool | C91: =IF(Picks!C91="","",Picks!C91) -> 7 | D91: =IF(Picks!D91="","",Picks!D91) -> 2.15 | E91: =IF(Picks!E91="","",Picks!E91) -> √ | F91: =IF(Picks!F91="","",Picks!F91) ->  | G91: =IF(Picks!G91="","",Picks!G91) -> 
A92: =IF(Picks!A92="","",Picks!A92) -> Kei Lok Ma | B92: =IF(Picks!B92="","",Picks!B92) -> Newcastle | C92: =IF(Picks!C92="","",Picks!C92) -> 1 | D92: =IF(Picks!D92="","",Picks!D92) -> 2.55 | E92: =IF(Picks!E92="","",Picks!E92) -> x | F92: =IF(Picks!F92="","",Picks!F92) -> -7 | G92: =IF(Picks!G92="","",Picks!G92) -> 47.82375
B93: =IF(Picks!B93="","",Picks!B93) -> Southampton draw | C93: =IF(Picks!C93="","",Picks!C93) -> 1 | D93: =IF(Picks!D93="","",Picks!D93) -> 3.25 | E93: =IF(Picks!E93="","",Picks!E93) -> x | F93: =IF(Picks!F93="","",Picks!F93) ->  | G93: =IF(Picks!G93="","",Picks!G93) -> 
B94: =IF(Picks!B94="","",Picks!B94) -> Bournemouth | C94: =IF(Picks!C94="","",Picks!C94) -> 7 | D94: =IF(Picks!D94="","",Picks!D94) -> 2.7 | E94: =IF(Picks!E94="","",Picks!E94) -> x | F94: =IF(Picks!F94="","",Picks!F94) ->  | G94: =IF(Picks!G94="","",Picks!G94) -> 
A95: =IF(Picks!A95="","",Picks!A95) -> Kevin Carter | B95: =IF(Picks!B95="","",Picks!B95) -> Arsenal | C95: =IF(Picks!C95="","",Picks!C95) -> 7 | D95: =IF(Picks!D95="","",Picks!D95) -> 1.5 | E95: =IF(Picks!E95="","",Picks!E95) -> √ | F95: =IF(Picks!F95="","",Picks!F95) -> 8.673076923 | G95: =IF(Picks!G95="","",Picks!G95) -> 8.673076923
B96: =IF(Picks!B96="","",Picks!B96) -> Everton | C96: =IF(Picks!C96="","",Picks!C96) -> 7 | D96: =IF(Picks!D96="","",Picks!D96) -> 1.55 | E96: =IF(Picks!E96="","",Picks!E96) -> √ | F96: =IF(Picks!F96="","",Picks!F96) ->  | G96: =IF(Picks!G96="","",Picks!G96) -> 
B97: =IF(Picks!B97="","",Picks!B97) -> Leeds | C97: =IF(Picks!C97="","",Picks!C97) -> 7 | D97: =IF(Picks!D97="","",Picks!D97) -> 1.615384615 | E97: =IF(Picks!E97="","",Picks!E97) -> √ | F97: =IF(Picks!F97="","",Picks!F97) ->  | G97: =IF(Picks!G97="","",Picks!G97) -> 
A98: =IF(Picks!A98="","",Picks!A98) -> Lennie Bow | B98: =IF(Picks!B98="","",Picks!B98) -> Brentford | C98: =IF(Picks!C98="","",Picks!C98) -> 7 | D98: =IF(Picks!D98="","",Picks!D98) -> 1.55 | E98: =IF(Picks!E98="","",Picks!E98) -> √ | F98: =IF(Picks!F98="","",Picks!F98) -> 1.88125 | G98: =IF(Picks!G98="","",Picks!G98) -> 29.54875
B99: =IF(Picks!B99="","",Picks!B99) -> Luton | C99: =IF(Picks!C99="","",Picks!C99) -> 7 | D99: =IF(Picks!D99="","",Picks!D99) -> 2.875 | E99: =IF(Picks!E99="","",Picks!E99) -> √ | F99: =IF(Picks!F99="","",Picks!F99) ->  | G99: =IF(Picks!G99="","",Picks!G99) -> 
B100: =IF(Picks!B100="","",Picks!B100) -> Orient | C100: =IF(Picks!C100="","",Picks!C100) -> 7 | D100: =IF(Picks!D100="","",Picks!D100) -> 2.8 | E100: =IF(Picks!E100="","",Picks!E100) -> x | F100: =IF(Picks!F100="","",Picks!F100) ->  | G100: =IF(Picks!G100="","",Picks!G100) -> 
A101: =IF(Picks!A101="","",Picks!A101) -> Lewis Buckley | B101: =IF(Picks!B101="","",Picks!B101) -> Chelsea draw | C101: =IF(Picks!C101="","",Picks!C101) -> 1 | D101: =IF(Picks!D101="","",Picks!D101) -> 3.7 | E101: =IF(Picks!E101="","",Picks!E101) -> x | F101: =IF(Picks!F101="","",Picks!F101) -> -5.35 | G101: =IF(Picks!G101="","",Picks!G101) -> 36.21525
B102: =IF(Picks!B102="","",Picks!B102) -> Newcastle | C102: =IF(Picks!C102="","",Picks!C102) -> 1 | D102: =IF(Picks!D102="","",Picks!D102) -> 2.55 | E102: =IF(Picks!E102="","",Picks!E102) -> x | F102: =IF(Picks!F102="","",Picks!F102) ->  | G102: =IF(Picks!G102="","",Picks!G102) -> 
B103: =IF(Picks!B103="","",Picks!B103) -> Leicester | C103: =IF(Picks!C103="","",Picks!C103) -> 1 | D103: =IF(Picks!D103="","",Picks!D103) -> 1.65 | E103: =IF(Picks!E103="","",Picks!E103) -> √ | F103: =IF(Picks!F103="","",Picks!F103) ->  | G103: =IF(Picks!G103="","",Picks!G103) -> 
A104: =IF(Picks!A104="","",Picks!A104) -> Liam Wah | B104: =IF(Picks!B104="","",Picks!B104) -> Man U draw | C104: =IF(Picks!C104="","",Picks!C104) -> 7 | D104: =IF(Picks!D104="","",Picks!D104) -> 5.5 | E104: =IF(Picks!E104="","",Picks!E104) -> x | F104: =IF(Picks!F104="","",Picks!F104) -> -4.8 | G104: =IF(Picks!G104="","",Picks!G104) -> 65.84
B105: =IF(Picks!B105="","",Picks!B105) -> Liverpool | C105: =IF(Picks!C105="","",Picks!C105) -> 1 | D105: =IF(Picks!D105="","",Picks!D105) -> 2.2 | E105: =IF(Picks!E105="","",Picks!E105) -> √ | F105: =IF(Picks!F105="","",Picks!F105) ->  | G105: =IF(Picks!G105="","",Picks!G105) -> 
B106: =IF(Picks!B106="","",Picks!B106) -> Newcastle | C106: =IF(Picks!C106="","",Picks!C106) -> 1 | D106: =IF(Picks!D106="","",Picks!D106) -> 2.55 | E106: =IF(Picks!E106="","",Picks!E106) -> x | F106: =IF(Picks!F106="","",Picks!F106) ->  | G106: =IF(Picks!G106="","",Picks!G106) -> 
A107: =IF(Picks!A107="","",Picks!A107) -> Mal Stott | B107: =IF(Picks!B107="","",Picks!B107) -> Luton | C107: =IF(Picks!C107="","",Picks!C107) -> 7 | D107: =IF(Picks!D107="","",Picks!D107) -> 2.875 | E107: =IF(Picks!E107="","",Picks!E107) -> √ | F107: =IF(Picks!F107="","",Picks!F107) -> 5.95 | G107: =IF(Picks!G107="","",Picks!G107) -> 35.245
B108: =IF(Picks!B108="","",Picks!B108) -> Swansea | C108: =IF(Picks!C108="","",Picks!C108) -> 7 | D108: =IF(Picks!D108="","",Picks!D108) -> 2.1 | E108: =IF(Picks!E108="","",Picks!E108) -> x | F108: =IF(Picks!F108="","",Picks!F108) ->  | G108: =IF(Picks!G108="","",Picks!G108) -> 
B109: =IF(Picks!B109="","",Picks!B109) -> Ipswich | C109: =IF(Picks!C109="","",Picks!C109) -> 7 | D109: =IF(Picks!D109="","",Picks!D109) -> 2.6 | E109: =IF(Picks!E109="","",Picks!E109) -> √ | F109: =IF(Picks!F109="","",Picks!F109) ->  | G109: =IF(Picks!G109="","",Picks!G109) -> 
A110: =IF(Picks!A110="","",Picks!A110) -> Mark Bunn | B110: =IF(Picks!B110="","",Picks!B110) -> QPR | C110: =IF(Picks!C110="","",Picks!C110) -> 6 | D110: =IF(Picks!D110="","",Picks!D110) -> 2.9 | E110: =IF(Picks!E110="","",Picks!E110) -> x | F110: =IF(Picks!F110="","",Picks!F110) -> -4.6 | G110: =IF(Picks!G110="","",Picks!G110) -> 55.648
B111: =IF(Picks!B111="","",Picks!B111) -> Reading | C111: =IF(Picks!C111="","",Picks!C111) -> 7 | D111: =IF(Picks!D111="","",Picks!D111) -> 2.4 | E111: =IF(Picks!E111="","",Picks!E111) -> √ | F111: =IF(Picks!F111="","",Picks!F111) ->  | G111: =IF(Picks!G111="","",Picks!G111) -> 
B112: =IF(Picks!B112="","",Picks!B112) -> Birmingham | C112: =IF(Picks!C112="","",Picks!C112) -> 7 | D112: =IF(Picks!D112="","",Picks!D112) -> 3.8 | E112: =IF(Picks!E112="","",Picks!E112) -> x | F112: =IF(Picks!F112="","",Picks!F112) ->  | G112: =IF(Picks!G112="","",Picks!G112) -> 
A113: =IF(Picks!A113="","",Picks!A113) -> Mark Saunders | B113: =IF(Picks!B113="","",Picks!B113) -> Norwich | C113: =IF(Picks!C113="","",Picks!C113) -> 7 | D113: =IF(Picks!D113="","",Picks!D113) -> 1.8 | E113: =IF(Picks!E113="","",Picks!E113) -> x | F113: =IF(Picks!F113="","",Picks!F113) -> -5.5 | G113: =IF(Picks!G113="","",Picks!G113) -> 16.85
B114: =IF(Picks!B114="","",Picks!B114) -> Newcastle | C114: =IF(Picks!C114="","",Picks!C114) -> 1 | D114: =IF(Picks!D114="","",Picks!D114) -> 2.55 | E114: =IF(Picks!E114="","",Picks!E114) -> x | F114: =IF(Picks!F114="","",Picks!F114) ->  | G114: =IF(Picks!G114="","",Picks!G114) -> 
B115: =IF(Picks!B115="","",Picks!B115) -> Arsenal | C115: =IF(Picks!C115="","",Picks!C115) -> 7 | D115: =IF(Picks!D115="","",Picks!D115) -> 1.5 | E115: =IF(Picks!E115="","",Picks!E115) -> √ | F115: =IF(Picks!F115="","",Picks!F115) ->  | G115: =IF(Picks!G115="","",Picks!G115) -> 
A116: =IF(Picks!A116="","",Picks!A116) -> Martin Molyneux | B116: =IF(Picks!B116="","",Picks!B116) -> Arsenal | C116: =IF(Picks!C116="","",Picks!C116) -> 7 | D116: =IF(Picks!D116="","",Picks!D116) -> 1.5 | E116: =IF(Picks!E116="","",Picks!E116) -> √ | F116: =IF(Picks!F116="","",Picks!F116) -> -1.375 | G116: =IF(Picks!G116="","",Picks!G116) -> 23.1375
B117: =IF(Picks!B117="","",Picks!B117) -> Leicester | C117: =IF(Picks!C117="","",Picks!C117) -> 1 | D117: =IF(Picks!D117="","",Picks!D117) -> 1.65 | E117: =IF(Picks!E117="","",Picks!E117) -> √ | F117: =IF(Picks!F117="","",Picks!F117) ->  | G117: =IF(Picks!G117="","",Picks!G117) -> 
B118: =IF(Picks!B118="","",Picks!B118) -> Chelsea Draw | C118: =IF(Picks!C118="","",Picks!C118) -> 1 | D118: =IF(Picks!D118="","",Picks!D118) -> 3.7 | E118: =IF(Picks!E118="","",Picks!E118) -> x | F118: =IF(Picks!F118="","",Picks!F118) ->  | G118: =IF(Picks!G118="","",Picks!G118) -> 
A119: =IF(Picks!A119="","",Picks!A119) -> Martin Tarbuck | B119: =IF(Picks!B119="","",Picks!B119) -> Harrogate | C119: =IF(Picks!C119="","",Picks!C119) -> 7 | D119: =IF(Picks!D119="","",Picks!D119) -> 2.2 | E119: =IF(Picks!E119="","",Picks!E119) -> x | F119: =IF(Picks!F119="","",Picks!F119) -> -4.7 | G119: =IF(Picks!G119="","",Picks!G119) -> 29.488
B120: =IF(Picks!B120="","",Picks!B120) -> Salford | C120: =IF(Picks!C120="","",Picks!C120) -> 7 | D120: =IF(Picks!D120="","",Picks!D120) -> 2.3 | E120: =IF(Picks!E120="","",Picks!E120) -> √ | F120: =IF(Picks!F120="","",Picks!F120) ->  | G120: =IF(Picks!G120="","",Picks!G120) -> 
B121: =IF(Picks!B121="","",Picks!B121) -> Derby | C121: =IF(Picks!C121="","",Picks!C121) -> 7 | D121: =IF(Picks!D121="","",Picks!D121) -> 2.55 | E121: =IF(Picks!E121="","",Picks!E121) -> x | F121: =IF(Picks!F121="","",Picks!F121) ->  | G121: =IF(Picks!G121="","",Picks!G121) -> 
A122: =IF(Picks!A122="","",Picks!A122) -> Mike Penk | B122: =IF(Picks!B122="","",Picks!B122) -> Millwall | C122: =IF(Picks!C122="","",Picks!C122) -> 7 | D122: =IF(Picks!D122="","",Picks!D122) -> 2.7 | E122: =IF(Picks!E122="","",Picks!E122) -> √ | F122: =IF(Picks!F122="","",Picks!F122) -> -4.3 | G122: =IF(Picks!G122="","",Picks!G122) -> 44.54
B123: =IF(Picks!B123="","",Picks!B123) -> Newcastle | C123: =IF(Picks!C123="","",Picks!C123) -> 1 | D123: =IF(Picks!D123="","",Picks!D123) -> 2.55 | E123: =IF(Picks!E123="","",Picks!E123) -> x | F123: =IF(Picks!F123="","",Picks!F123) ->  | G123: =IF(Picks!G123="","",Picks!G123) -> 
B124: =IF(Picks!B124="","",Picks!B124) -> Southampton | C124: =IF(Picks!C124="","",Picks!C124) -> 1 | D124: =IF(Picks!D124="","",Picks!D124) -> 3 | E124: =IF(Picks!E124="","",Picks!E124) -> x | F124: =IF(Picks!F124="","",Picks!F124) ->  | G124: =IF(Picks!G124="","",Picks!G124) -> 
A125: =IF(Picks!A125="","",Picks!A125) -> Mo Sudell | B125: =IF(Picks!B125="","",Picks!B125) -> Everton | C125: =IF(Picks!C125="","",Picks!C125) -> 7 | D125: =IF(Picks!D125="","",Picks!D125) -> 1.55 | E125: =IF(Picks!E125="","",Picks!E125) -> √ | F125: =IF(Picks!F125="","",Picks!F125) -> -1.442857143 | G125: =IF(Picks!G125="","",Picks!G125) -> 10.03214286
B126: =IF(Picks!B126="","",Picks!B126) -> Blackburn | C126: =IF(Picks!C126="","",Picks!C126) -> 7 | D126: =IF(Picks!D126="","",Picks!D126) -> 1.571428571 | E126: =IF(Picks!E126="","",Picks!E126) -> √ | F126: =IF(Picks!F126="","",Picks!F126) ->  | G126: =IF(Picks!G126="","",Picks!G126) -> 
B127: =IF(Picks!B127="","",Picks!B127) -> Portsmouth | C127: =IF(Picks!C127="","",Picks!C127) -> 1 | D127: =IF(Picks!D127="","",Picks!D127) -> 1.75 | E127: =IF(Picks!E127="","",Picks!E127) -> x | F127: =IF(Picks!F127="","",Picks!F127) ->  | G127: =IF(Picks!G127="","",Picks!G127) -> 
A128: =IF(Picks!A128="","",Picks!A128) -> Nick Blocksidge | B128: =IF(Picks!B128="","",Picks!B128) -> Blackburn | C128: =IF(Picks!C128="","",Picks!C128) -> 7 | D128: =IF(Picks!D128="","",Picks!D128) -> 1.571428571 | E128: =IF(Picks!E128="","",Picks!E128) -> √ | F128: =IF(Picks!F128="","",Picks!F128) -> -1.442857143 | G128: =IF(Picks!G128="","",Picks!G128) -> 24.78571429
B129: =IF(Picks!B129="","",Picks!B129) -> Everton | C129: =IF(Picks!C129="","",Picks!C129) -> 7 | D129: =IF(Picks!D129="","",Picks!D129) -> 1.55 | E129: =IF(Picks!E129="","",Picks!E129) -> √ | F129: =IF(Picks!F129="","",Picks!F129) ->  | G129: =IF(Picks!G129="","",Picks!G129) -> 
B130: =IF(Picks!B130="","",Picks!B130) -> Leeds draw | C130: =IF(Picks!C130="","",Picks!C130) -> 7 | D130: =IF(Picks!D130="","",Picks!D130) -> 4 | E130: =IF(Picks!E130="","",Picks!E130) -> x | F130: =IF(Picks!F130="","",Picks!F130) ->  | G130: =IF(Picks!G130="","",Picks!G130) -> 
A131: =IF(Picks!A131="","",Picks!A131) -> Nigel Heyes | B131: =IF(Picks!B131="","",Picks!B131) -> Reading | C131: =IF(Picks!C131="","",Picks!C131) -> 7 | D131: =IF(Picks!D131="","",Picks!D131) -> 2.4 | E131: =IF(Picks!E131="","",Picks!E131) -> √ | F131: =IF(Picks!F131="","",Picks!F131) -> 2.03 | G131: =IF(Picks!G131="","",Picks!G131) -> 22.09
B132: =IF(Picks!B132="","",Picks!B132) -> Charlton | C132: =IF(Picks!C132="","",Picks!C132) -> 7 | D132: =IF(Picks!D132="","",Picks!D132) -> 2 | E132: =IF(Picks!E132="","",Picks!E132) -> x | F132: =IF(Picks!F132="","",Picks!F132) ->  | G132: =IF(Picks!G132="","",Picks!G132) -> 
B133: =IF(Picks!B133="","",Picks!B133) -> Hull | C133: =IF(Picks!C133="","",Picks!C133) -> 7 | D133: =IF(Picks!D133="","",Picks!D133) -> 1.95 | E133: =IF(Picks!E133="","",Picks!E133) -> √ | F133: =IF(Picks!F133="","",Picks!F133) ->  | G133: =IF(Picks!G133="","",Picks!G133) -> 
A134: =IF(Picks!A134="","",Picks!A134) -> Oscar Jackson | B134: =IF(Picks!B134="","",Picks!B134) -> Arsenal | C134: =IF(Picks!C134="","",Picks!C134) -> 7 | D134: =IF(Picks!D134="","",Picks!D134) -> 1.5 | E134: =IF(Picks!E134="","",Picks!E134) -> √ | F134: =IF(Picks!F134="","",Picks!F134) -> -5.5 | G134: =IF(Picks!G134="","",Picks!G134) -> 25.825
B135: =IF(Picks!B135="","",Picks!B135) -> Forest Green | C135: =IF(Picks!C135="","",Picks!C135) -> 7 | D135: =IF(Picks!D135="","",Picks!D135) -> 2.3 | E135: =IF(Picks!E135="","",Picks!E135) -> x | F135: =IF(Picks!F135="","",Picks!F135) ->  | G135: =IF(Picks!G135="","",Picks!G135) -> 
B136: =IF(Picks!B136="","",Picks!B136) -> Chelsea | C136: =IF(Picks!C136="","",Picks!C136) -> 1 | D136: =IF(Picks!D136="","",Picks!D136) -> 3.1 | E136: =IF(Picks!E136="","",Picks!E136) -> x | F136: =IF(Picks!F136="","",Picks!F136) ->  | G136: =IF(Picks!G136="","",Picks!G136) -> 
A137: =IF(Picks!A137="","",Picks!A137) -> Paul Adderley | B137: =IF(Picks!B137="","",Picks!B137) -> Arsenal | C137: =IF(Picks!C137="","",Picks!C137) -> 7 | D137: =IF(Picks!D137="","",Picks!D137) -> 1.5 | E137: =IF(Picks!E137="","",Picks!E137) -> √ | F137: =IF(Picks!F137="","",Picks!F137) -> -1.461538462 | G137: =IF(Picks!G137="","",Picks!G137) -> 6.945054945
B138: =IF(Picks!B138="","",Picks!B138) -> Man U | C138: =IF(Picks!C138="","",Picks!C138) -> 7 | D138: =IF(Picks!D138="","",Picks!D138) -> 1.285714286 | E138: =IF(Picks!E138="","",Picks!E138) -> x | F138: =IF(Picks!F138="","",Picks!F138) ->  | G138: =IF(Picks!G138="","",Picks!G138) -> 
B139: =IF(Picks!B139="","",Picks!B139) -> Leeds | C139: =IF(Picks!C139="","",Picks!C139) -> 7 | D139: =IF(Picks!D139="","",Picks!D139) -> 1.615384615 | E139: =IF(Picks!E139="","",Picks!E139) -> √ | F139: =IF(Picks!F139="","",Picks!F139) ->  | G139: =IF(Picks!G139="","",Picks!G139) -> 
A140: =IF(Picks!A140="","",Picks!A140) -> Paul Allen | B140: =IF(Picks!B140="","",Picks!B140) -> Bristol R | C140: =IF(Picks!C140="","",Picks!C140) -> 7 | D140: =IF(Picks!D140="","",Picks!D140) -> 2.7 | E140: =IF(Picks!E140="","",Picks!E140) -> x | F140: =IF(Picks!F140="","",Picks!F140) -> -4.55 | G140: =IF(Picks!G140="","",Picks!G140) -> 37.31575
B141: =IF(Picks!B141="","",Picks!B141) -> Newcastle | C141: =IF(Picks!C141="","",Picks!C141) -> 1 | D141: =IF(Picks!D141="","",Picks!D141) -> 2.55 | E141: =IF(Picks!E141="","",Picks!E141) -> x | F141: =IF(Picks!F141="","",Picks!F141) ->  | G141: =IF(Picks!G141="","",Picks!G141) -> 
B142: =IF(Picks!B142="","",Picks!B142) -> Spurs | C142: =IF(Picks!C142="","",Picks!C142) -> 1 | D142: =IF(Picks!D142="","",Picks!D142) -> 2.45 | E142: =IF(Picks!E142="","",Picks!E142) -> √ | F142: =IF(Picks!F142="","",Picks!F142) ->  | G142: =IF(Picks!G142="","",Picks!G142) -> 
A143: =IF(Picks!A143="","",Picks!A143) -> Paul Barnes | B143: =IF(Picks!B143="","",Picks!B143) -> Arsenal | C143: =IF(Picks!C143="","",Picks!C143) -> 7 | D143: =IF(Picks!D143="","",Picks!D143) -> 1.5 | E143: =IF(Picks!E143="","",Picks!E143) -> √ | F143: =IF(Picks!F143="","",Picks!F143) -> 8.673076923 | G143: =IF(Picks!G143="","",Picks!G143) -> 8.673076923
B144: =IF(Picks!B144="","",Picks!B144) -> Everton | C144: =IF(Picks!C144="","",Picks!C144) -> 7 | D144: =IF(Picks!D144="","",Picks!D144) -> 1.55 | E144: =IF(Picks!E144="","",Picks!E144) -> √ | F144: =IF(Picks!F144="","",Picks!F144) ->  | G144: =IF(Picks!G144="","",Picks!G144) -> 
B145: =IF(Picks!B145="","",Picks!B145) -> Leeds | C145: =IF(Picks!C145="","",Picks!C145) -> 7 | D145: =IF(Picks!D145="","",Picks!D145) -> 1.615384615 | E145: =IF(Picks!E145="","",Picks!E145) -> √ | F145: =IF(Picks!F145="","",Picks!F145) ->  | G145: =IF(Picks!G145="","",Picks!G145) -> 
A146: =IF(Picks!A146="","",Picks!A146) -> Paul Fairhurst | B146: =IF(Picks!B146="","",Picks!B146) -> Palace | C146: =IF(Picks!C146="","",Picks!C146) -> 7 | D146: =IF(Picks!D146="","",Picks!D146) -> 11 | E146: =IF(Picks!E146="","",Picks!E146) -> √ | F146: =IF(Picks!F146="","",Picks!F146) -> 208.72 | G146: =IF(Picks!G146="","",Picks!G146) -> 208.72
B147: =IF(Picks!B147="","",Picks!B147) -> Middlesbro draw | C147: =IF(Picks!C147="","",Picks!C147) -> 7 | D147: =IF(Picks!D147="","",Picks!D147) -> 3.2 | E147: =IF(Picks!E147="","",Picks!E147) -> √ | F147: =IF(Picks!F147="","",Picks!F147) ->  | G147: =IF(Picks!G147="","",Picks!G147) -> 
B148: =IF(Picks!B148="","",Picks!B148) -> Harrogate draw | C148: =IF(Picks!C148="","",Picks!C148) -> 7 | D148: =IF(Picks!D148="","",Picks!D148) -> 3.3 | E148: =IF(Picks!E148="","",Picks!E148) -> √ | F148: =IF(Picks!F148="","",Picks!F148) ->  | G148: =IF(Picks!G148="","",Picks!G148) -> 
A149: =IF(Picks!A149="","",Picks!A149) -> Paul Fiddler | B149: =IF(Picks!B149="","",Picks!B149) -> Blackpool | C149: =IF(Picks!C149="","",Picks!C149) -> 7 | D149: =IF(Picks!D149="","",Picks!D149) -> 2.15 | E149: =IF(Picks!E149="","",Picks!E149) -> √ | F149: =IF(Picks!F149="","",Picks!F149) -> 1.2925 | G149: =IF(Picks!G149="","",Picks!G149) -> 28.24075
B150: =IF(Picks!B150="","",Picks!B150) -> Hull | C150: =IF(Picks!C150="","",Picks!C150) -> 7 | D150: =IF(Picks!D150="","",Picks!D150) -> 1.95 | E150: =IF(Picks!E150="","",Picks!E150) -> √ | F150: =IF(Picks!F150="","",Picks!F150) ->  | G150: =IF(Picks!G150="","",Picks!G150) -> 
B151: =IF(Picks!B151="","",Picks!B151) -> QPR | C151: =IF(Picks!C151="","",Picks!C151) -> 6 | D151: =IF(Picks!D151="","",Picks!D151) -> 2.9 | E151: =IF(Picks!E151="","",Picks!E151) -> x | F151: =IF(Picks!F151="","",Picks!F151) ->  | G151: =IF(Picks!G151="","",Picks!G151) -> 
A152: =IF(Picks!A152="","",Picks!A152) -> Paul Ridgeway | B152: =IF(Picks!B152="","",Picks!B152) -> Leeds | C152: =IF(Picks!C152="","",Picks!C152) -> 7 | D152: =IF(Picks!D152="","",Picks!D152) -> 1.615384615 | E152: =IF(Picks!E152="","",Picks!E152) -> √ | F152: =IF(Picks!F152="","",Picks!F152) -> -1.069230769 | G152: =IF(Picks!G152="","",Picks!G152) -> 17.64384615
B153: =IF(Picks!B153="","",Picks!B153) -> Bournemouth | C153: =IF(Picks!C153="","",Picks!C153) -> 7 | D153: =IF(Picks!D153="","",Picks!D153) -> 2.7 | E153: =IF(Picks!E153="","",Picks!E153) -> x | F153: =IF(Picks!F153="","",Picks!F153) ->  | G153: =IF(Picks!G153="","",Picks!G153) -> 
B154: =IF(Picks!B154="","",Picks!B154) -> Leicester | C154: =IF(Picks!C154="","",Picks!C154) -> 1 | D154: =IF(Picks!D154="","",Picks!D154) -> 1.65 | E154: =IF(Picks!E154="","",Picks!E154) -> √ | F154: =IF(Picks!F154="","",Picks!F154) ->  | G154: =IF(Picks!G154="","",Picks!G154) -> 
A155: =IF(Picks!A155="","",Picks!A155) -> Pete Baron | B155: =IF(Picks!B155="","",Picks!B155) -> Newcastle | C155: =IF(Picks!C155="","",Picks!C155) -> 1 | D155: =IF(Picks!D155="","",Picks!D155) -> 2.55 | E155: =IF(Picks!E155="","",Picks!E155) -> x | F155: =IF(Picks!F155="","",Picks!F155) -> -7 | G155: =IF(Picks!G155="","",Picks!G155) -> 36.738875
B156: =IF(Picks!B156="","",Picks!B156) -> Watford | C156: =IF(Picks!C156="","",Picks!C156) -> 7 | D156: =IF(Picks!D156="","",Picks!D156) -> 2.55 | E156: =IF(Picks!E156="","",Picks!E156) -> x | F156: =IF(Picks!F156="","",Picks!F156) ->  | G156: =IF(Picks!G156="","",Picks!G156) -> 
B157: =IF(Picks!B157="","",Picks!B157) -> Derby | C157: =IF(Picks!C157="","",Picks!C157) -> 7 | D157: =IF(Picks!D157="","",Picks!D157) -> 2.55 | E157: =IF(Picks!E157="","",Picks!E157) -> x | F157: =IF(Picks!F157="","",Picks!F157) ->  | G157: =IF(Picks!G157="","",Picks!G157) -> 
A158: =IF(Picks!A158="","",Picks!A158) -> Phil Miller | B158: =IF(Picks!B158="","",Picks!B158) -> Man U | C158: =IF(Picks!C158="","",Picks!C158) -> 7 | D158: =IF(Picks!D158="","",Picks!D158) -> 1.285714286 | E158: =IF(Picks!E158="","",Picks!E158) -> x | F158: =IF(Picks!F158="","",Picks!F158) -> -4.7 | G158: =IF(Picks!G158="","",Picks!G158) -> 18.77714286
B159: =IF(Picks!B159="","",Picks!B159) -> Derby | C159: =IF(Picks!C159="","",Picks!C159) -> 7 | D159: =IF(Picks!D159="","",Picks!D159) -> 2.55 | E159: =IF(Picks!E159="","",Picks!E159) -> x | F159: =IF(Picks!F159="","",Picks!F159) ->  | G159: =IF(Picks!G159="","",Picks!G159) -> 
B160: =IF(Picks!B160="","",Picks!B160) -> Salford | C160: =IF(Picks!C160="","",Picks!C160) -> 7 | D160: =IF(Picks!D160="","",Picks!D160) -> 2.3 | E160: =IF(Picks!E160="","",Picks!E160) -> √ | F160: =IF(Picks!F160="","",Picks!F160) ->  | G160: =IF(Picks!G160="","",Picks!G160) -> 
A161: =IF(Picks!A161="","",Picks!A161) -> Rob England | B161: =IF(Picks!B161="","",Picks!B161) -> Norwich | C161: =IF(Picks!C161="","",Picks!C161) -> 7 | D161: =IF(Picks!D161="","",Picks!D161) -> 1.8 | E161: =IF(Picks!E161="","",Picks!E161) -> x | F161: =IF(Picks!F161="","",Picks!F161) -> -4.375 | G161: =IF(Picks!G161="","",Picks!G161) -> 29.555
B162: =IF(Picks!B162="","",Picks!B162) -> Plymouth | C162: =IF(Picks!C162="","",Picks!C162) -> 7 | D162: =IF(Picks!D162="","",Picks!D162) -> 2.7 | E162: =IF(Picks!E162="","",Picks!E162) -> x | F162: =IF(Picks!F162="","",Picks!F162) ->  | G162: =IF(Picks!G162="","",Picks!G162) -> 
B163: =IF(Picks!B163="","",Picks!B163) -> Colchester | C163: =IF(Picks!C163="","",Picks!C163) -> 7 | D163: =IF(Picks!D163="","",Picks!D163) -> 2.625 | E163: =IF(Picks!E163="","",Picks!E163) -> √ | F163: =IF(Picks!F163="","",Picks!F163) ->  | G163: =IF(Picks!G163="","",Picks!G163) -> 
A164: =IF(Picks!A164="","",Picks!A164) -> Sally Williams | B164: =IF(Picks!B164="","",Picks!B164) -> Grimsby | C164: =IF(Picks!C164="","",Picks!C164) -> 7 | D164: =IF(Picks!D164="","",Picks!D164) -> 3.1 | E164: =IF(Picks!E164="","",Picks!E164) -> x | F164: =IF(Picks!F164="","",Picks!F164) -> -7 | G164: =IF(Picks!G164="","",Picks!G164) -> 58.215
B165: =IF(Picks!B165="","",Picks!B165) -> Morecambe draw | C165: =IF(Picks!C165="","",Picks!C165) -> 7 | D165: =IF(Picks!D165="","",Picks!D165) -> 3.25 | E165: =IF(Picks!E165="","",Picks!E165) -> x | F165: =IF(Picks!F165="","",Picks!F165) ->  | G165: =IF(Picks!G165="","",Picks!G165) -> 
B166: =IF(Picks!B166="","",Picks!B166) -> Orient | C166: =IF(Picks!C166="","",Picks!C166) -> 7 | D166: =IF(Picks!D166="","",Picks!D166) -> 2.8 | E166: =IF(Picks!E166="","",Picks!E166) -> x | F166: =IF(Picks!F166="","",Picks!F166) ->  | G166: =IF(Picks!G166="","",Picks!G166) -> 
A167: =IF(Picks!A167="","",Picks!A167) -> Simon Greenhalgh | B167: =IF(Picks!B167="","",Picks!B167) -> Arsenal | C167: =IF(Picks!C167="","",Picks!C167) -> 7 | D167: =IF(Picks!D167="","",Picks!D167) -> 1.5 | E167: =IF(Picks!E167="","",Picks!E167) -> √ | F167: =IF(Picks!F167="","",Picks!F167) -> -5.5 | G167: =IF(Picks!G167="","",Picks!G167) -> 15.1
B168: =IF(Picks!B168="","",Picks!B168) -> Norwich | C168: =IF(Picks!C168="","",Picks!C168) -> 7 | D168: =IF(Picks!D168="","",Picks!D168) -> 1.8 | E168: =IF(Picks!E168="","",Picks!E168) -> x | F168: =IF(Picks!F168="","",Picks!F168) ->  | G168: =IF(Picks!G168="","",Picks!G168) -> 
B169: =IF(Picks!B169="","",Picks!B169) -> Forest Green | C169: =IF(Picks!C169="","",Picks!C169) -> 7 | D169: =IF(Picks!D169="","",Picks!D169) -> 2.3 | E169: =IF(Picks!E169="","",Picks!E169) -> x | F169: =IF(Picks!F169="","",Picks!F169) ->  | G169: =IF(Picks!G169="","",Picks!G169) -> 
A170: =IF(Picks!A170="","",Picks!A170) -> Stephen Barr | B170: =IF(Picks!B170="","",Picks!B170) -> Newcastle | C170: =IF(Picks!C170="","",Picks!C170) -> 1 | D170: =IF(Picks!D170="","",Picks!D170) -> 2.55 | E170: =IF(Picks!E170="","",Picks!E170) -> x | F170: =IF(Picks!F170="","",Picks!F170) -> 6.72 | G170: =IF(Picks!G170="","",Picks!G170) -> 44.256
B171: =IF(Picks!B171="","",Picks!B171) -> Liverpool | C171: =IF(Picks!C171="","",Picks!C171) -> 1 | D171: =IF(Picks!D171="","",Picks!D171) -> 2.2 | E171: =IF(Picks!E171="","",Picks!E171) -> √ | F171: =IF(Picks!F171="","",Picks!F171) ->  | G171: =IF(Picks!G171="","",Picks!G171) -> 
B172: =IF(Picks!B172="","",Picks!B172) -> Bristol c | C172: =IF(Picks!C172="","",Picks!C172) -> 1 | D172: =IF(Picks!D172="","",Picks!D172) -> 3.6 | E172: =IF(Picks!E172="","",Picks!E172) -> √ | F172: =IF(Picks!F172="","",Picks!F172) ->  | G172: =IF(Picks!G172="","",Picks!G172) -> 
A173: =IF(Picks!A173="","",Picks!A173) -> Stephen Troop | B173: =IF(Picks!B173="","",Picks!B173) -> Man U | C173: =IF(Picks!C173="","",Picks!C173) -> 7 | D173: =IF(Picks!D173="","",Picks!D173) -> 1.285714286 | E173: =IF(Picks!E173="","",Picks!E173) -> x | F173: =IF(Picks!F173="","",Picks!F173) -> -1.330769231 | G173: =IF(Picks!G173="","",Picks!G173) -> 7.243956044
B174: =IF(Picks!B174="","",Picks!B174) -> Leeds | C174: =IF(Picks!C174="","",Picks!C174) -> 7 | D174: =IF(Picks!D174="","",Picks!D174) -> 1.615384615 | E174: =IF(Picks!E174="","",Picks!E174) -> √ | F174: =IF(Picks!F174="","",Picks!F174) ->  | G174: =IF(Picks!G174="","",Picks!G174) -> 
B175: =IF(Picks!B175="","",Picks!B175) -> Everton | C175: =IF(Picks!C175="","",Picks!C175) -> 7 | D175: =IF(Picks!D175="","",Picks!D175) -> 1.55 | E175: =IF(Picks!E175="","",Picks!E175) -> √ | F175: =IF(Picks!F175="","",Picks!F175) ->  | G175: =IF(Picks!G175="","",Picks!G175) -> 
A176: =IF(Picks!A176="","",Picks!A176) -> Steve Baxter | B176: =IF(Picks!B176="","",Picks!B176) -> Arsenal | C176: =IF(Picks!C176="","",Picks!C176) -> 7 | D176: =IF(Picks!D176="","",Picks!D176) -> 1.5 | E176: =IF(Picks!E176="","",Picks!E176) -> √ | F176: =IF(Picks!F176="","",Picks!F176) -> 0 | G176: =IF(Picks!G176="","",Picks!G176) -> 10.28571429
B177: =IF(Picks!B177="","",Picks!B177) -> Man U | C177: =IF(Picks!C177="","",Picks!C177) -> 7 | D177: =IF(Picks!D177="","",Picks!D177) -> 1.285714286 | E177: =IF(Picks!E177="","",Picks!E177) -> x | F177: =IF(Picks!F177="","",Picks!F177) ->  | G177: =IF(Picks!G177="","",Picks!G177) -> 
B178: =IF(Picks!B178="","",Picks!B178) -> Liverpool | C178: =IF(Picks!C178="","",Picks!C178) -> 1 | D178: =IF(Picks!D178="","",Picks!D178) -> 2.2 | E178: =IF(Picks!E178="","",Picks!E178) -> √ | F178: =IF(Picks!F178="","",Picks!F178) ->  | G178: =IF(Picks!G178="","",Picks!G178) -> 
A179: =IF(Picks!A179="","",Picks!A179) -> Steve Carter | B179: =IF(Picks!B179="","",Picks!B179) -> Norwich | C179: =IF(Picks!C179="","",Picks!C179) -> 7 | D179: =IF(Picks!D179="","",Picks!D179) -> 1.8 | E179: =IF(Picks!E179="","",Picks!E179) -> x | F179: =IF(Picks!F179="","",Picks!F179) -> -4.6 | G179: =IF(Picks!G179="","",Picks!G179) -> 25.796
B180: =IF(Picks!B180="","",Picks!B180) -> Reading | C180: =IF(Picks!C180="","",Picks!C180) -> 7 | D180: =IF(Picks!D180="","",Picks!D180) -> 2.4 | E180: =IF(Picks!E180="","",Picks!E180) -> √ | F180: =IF(Picks!F180="","",Picks!F180) ->  | G180: =IF(Picks!G180="","",Picks!G180) -> 
B181: =IF(Picks!B181="","",Picks!B181) -> Newcastle | C181: =IF(Picks!C181="","",Picks!C181) -> 1 | D181: =IF(Picks!D181="","",Picks!D181) -> 2.55 | E181: =IF(Picks!E181="","",Picks!E181) -> x | F181: =IF(Picks!F181="","",Picks!F181) ->  | G181: =IF(Picks!G181="","",Picks!G181) -> 
A182: =IF(Picks!A182="","",Picks!A182) -> Tom Robinson | B182: =IF(Picks!B182="","",Picks!B182) ->  | C182: =IF(Picks!C182="","",Picks!C182) ->  | D182: =IF(Picks!D182="","",Picks!D182) ->  | E182: =IF(Picks!E182="","",Picks!E182) ->  | F182: =IF(Picks!F182="","",Picks!F182) -> -10 | G182: =IF(Picks!G182="","",Picks!G182) -> 
B183: =IF(Picks!B183="","",Picks!B183) ->  | C183: =IF(Picks!C183="","",Picks!C183) ->  | D183: =IF(Picks!D183="","",Picks!D183) ->  | E183: =IF(Picks!E183="","",Picks!E183) ->  | F183: =IF(Picks!F183="","",Picks!F183) ->  | G183: =IF(Picks!G183="","",Picks!G183) -> 
B184: =IF(Picks!B184="","",Picks!B184) ->  | C184: =IF(Picks!C184="","",Picks!C184) ->  | D184: =IF(Picks!D184="","",Picks!D184) ->  | E184: =IF(Picks!E184="","",Picks!E184) ->  | F184: =IF(Picks!F184="","",Picks!F184) ->  | G184: =IF(Picks!G184="","",Picks!G184) -> 
A185: =IF(Picks!A185="","",Picks!A185) -> Vinny Topping | B185: =IF(Picks!B185="","",Picks!B185) -> Harrogate | C185: =IF(Picks!C185="","",Picks!C185) -> 7 | D185: =IF(Picks!D185="","",Picks!D185) -> 2.2 | E185: =IF(Picks!E185="","",Picks!E185) -> x | F185: =IF(Picks!F185="","",Picks!F185) -> 3.0625 | G185: =IF(Picks!G185="","",Picks!G185) -> 27.4
B186: =IF(Picks!B186="","",Picks!B186) -> Hull | C186: =IF(Picks!C186="","",Picks!C186) -> 7 | D186: =IF(Picks!D186="","",Picks!D186) -> 1.95 | E186: =IF(Picks!E186="","",Picks!E186) -> √ | F186: =IF(Picks!F186="","",Picks!F186) ->  | G186: =IF(Picks!G186="","",Picks!G186) -> 
B187: =IF(Picks!B187="","",Picks!B187) -> Lincoln | C187: =IF(Picks!C187="","",Picks!C187) -> 7 | D187: =IF(Picks!D187="","",Picks!D187) -> 2.75 | E187: =IF(Picks!E187="","",Picks!E187) -> √ | F187: =IF(Picks!F187="","",Picks!F187) ->  | G187: =IF(Picks!G187="","",Picks!G187) -> 

Sheet Diary
A1: 36 | B1: 2020 | C1: Autumn
B3: =CONCATENATE("Season PL",$A$1," (",$C$1," ",$B$1,")") -> Season PL36 (Autumn 2020) | I3: Weekly actions
B4: Midweek\ Weekend of… | C4: 3in! PL Week No. | D4: Double/Midweek Fixtures? | E4: Qualifying Fixtures | F4: PL Cup Round | I4: Scrape Odds | J4: Issue Odds | K4: Issue Results
B5: 2020-09-12 | C5: 1 | E5: Prm\Chp\FL1\FL2 | H5: FAC\FL1\FL2 | I5: =IF($B5="","",$B5-5) -> 2020-09-07 | J5: =IF($B5="","",$B5-3) -> 2020-09-09 | K5: =IF($B5="","",$B5+2) -> 2020-09-14
B6: 2020-09-19 | C6: 2 | E6: Prm\Chp\FL1\FL2 | H6: Prm\Chp\FL1\FL2 | I6: =IF($B6="","",$B6-5) -> 2020-09-14 | J6: =IF($B6="","",$B6-3) -> 2020-09-16 | K6: =IF($B6="","",$B6+2) -> 2020-09-21
B7: 2020-09-26 | C7: 3 | D7: D | E7: Prm\Chp\FL1\FL2 | H7: INT\FL1\FL2\NL | I7: 2020-09-21 | J7: 2020-09-23 | K7: 2020-09-28
B8: 2020-09-26 | C8: 4 | D8: D | E8: Prm\Chp\FL1\FL2 | F8: Round 1 | H8: Prm\Chp\FAC | I8: 2020-09-21 | J8: 2020-09-23 | K8: 2020-09-28
B9: 2020-10-03 | C9: 5 | E9: Prm\Chp\FL1\FL2 | F9: Round 1 Rep | I9: 2020-09-28 | J9: 2020-09-30 | K9: 2020-10-05
B10: 2020-10-10 | C10: 6 | E10: INT\FL1\FL2\NL | I10: 2020-10-05 | J10: 2020-10-07 | K10: 2020-10-12
B11: 2020-10-17 | C11: 7 | E11: Prm\Chp\FL1\FL2 | F11: Round 2 | I11: 2020-10-12 | J11: 2020-10-14 | K11: 2020-10-19
B12: 2020-10-24 | C12: 8 | E12: Prm\Chp\FL1\FL2 | F12: Round 2 Rep | I12: 2020-10-19 | J12: 2020-10-21 | K12: 2020-10-26
B13: 2020-10-31 | C13: 9 | E13: Prm\Chp\FL1\FL2 | I13: 2020-10-26 | J13: 2020-10-28 | K13: 2020-11-02
B14: 2020-11-07 | C14: 10 | E14: Prm\Chp\FAC | F14: Round 3 | I14: 2020-11-02 | J14: 2020-11-04 | K14: 2020-11-09
B15: 2020-11-07 | C15: 11 | E15: Prm\Chp\FAC | F15: Round 3 Rep | I15: 2020-11-02 | J15: 2020-11-04 | K15: 2020-11-09
B16: 2020-11-14 | C16: 12 | E16: INT\FL1\FL2\NL | I16: 2020-11-09 | J16: 2020-11-11 | K16: 2020-11-16
B17: 2020-11-21 | C17: 13 | E17: Prm\Chp\FL1\FL2 | F17: Quarter-Final | I17: 2020-11-16 | J17: 2020-11-18 | K17: 2020-11-23
B18: 2020-11-28 | C18: 14 | E18: Prm\Chp\FAC | F18: Quarter-Final Rep | I18: 2020-11-23 | J18: 2020-11-25 | K18: 2020-11-30
B19: 2020-12-05 | C19: 15 | D19: D | E19: Prm\Chp\FL1\FL2 | I19: 2020-11-30 | J19: 2020-12-02 | K19: 2020-12-07
B20: 2020-12-05 | C20: 16 | D20: D | E20: Prm\Chp\FL1\FL2 | F20: Semi-Final | I20: 2020-11-30 | J20: 2020-12-02 | K20: 2020-12-07
B21: 2020-12-12 | C21: 17 | E21: Prm\Chp\FL1\FL2 | F21: Semi-Final Rep | I21: 2020-12-07 | J21: 2020-12-09 | K21: 2020-12-14
B22: 2020-12-16 | C22: 18 | D22: M | E22: Prm\Chp\FL1\FL2 | F22: Final | I22: 2020-12-11 | J22: 2020-12-13 | K22: 2020-12-18
B23: 2020-12-19 | C23: 19 | E23: Prm\Chp\FL1\FL2 | F23: Final Rep | I23: 2020-12-14 | J23: 2020-12-16 | K23: 2020-12-21
B24: 2020-12-26 | C24: 20 | E24: Prm\Chp\FL1\FL2 | I24: 2020-12-21 | J24: 2020-12-23 | K24: 2020-12-28

Sheet Match
A1: Date | B1: Sequence | C1: Comp | D1: Home | E1: Away | F1: Home score | G1: Away score | H1: H1 | I1: H2 | J1: D1 | K1: D2 | L1: A1 | M1: A2 | N1: Off | O1: Home Trim | P1: Away Trim | Q1: HS Trim | R1: AS Trim | S1: Match Odds | T1: Results | U1: Odds | V1: Home odds | W1: Draw Odds | X1: Away Odds | Y1: Home Dec | Z1: Draw Dec | AA1: Away Dec
A2: 2020-09-18 | B2: 11 | C2: Champ | D2: Coventry | E2: QPR | F2: 3 | G2: 2 | H2: 6 | I2: 4 | J2: 9 | K2: 4 | L2: 19 | M2: 10 | O2: =TRIM(D2) -> Coventry | P2: =TRIM(E2) -> QPR | Q2: =TRIM(F2) -> 3 | R2: =TRIM(G2) -> 2 | S2: =IF(A2="","",O2&" v "&P2&" "&U2) -> Coventry v QPR 6/4 9/4 19/10 | T2: =O2&" "&Q2&"-"&R2&" "&P2&" "&N2 -> Coventry 3-2 QPR | U2: =V2&" "&W2&" "&X2 -> 6/4 9/4 19/10 | V2: =CONCATENATE(H2,"/",I2) -> 6/4 | W2: =CONCATENATE(J2,"/",K2) -> 9/4 | X2: =CONCATENATE(L2,"/",M2) -> 19/10 | Y2: =IF(A2="","",1+(H2/I2)) -> 2.5 | Z2: =IF(C2="","",1+(J2/K2)) -> 3.25 | AA2: =IF(D2="","",1+(L2/M2)) -> 2.9
A3: 2020-09-19 | B3: 10 | C3: Premier | D3: Arsenal | E3: West Ham | F3: 2 | G3: 1 | H3: 1 | I3: 2 | J3: 17 | K3: 5 | L3: 5 | M3: 1 | O3: Arsenal | P3: West Ham | Q3: 2 | R3: 1 | S3: Arsenal v West Ham 1/2 17/5 5/1 | T3: Arsenal 2-1 West Ham | U3: =V3&" "&W3&" "&X3 -> 1/2 17/5 5/1 | V3: 1/2 | W3: 17/5 | X3: 5/1 | Y3: =IF(A3="","",1+(H3/I3)) -> 1.5 | Z3: =IF(C3="","",1+(J3/K3)) -> 4.4 | AA3: =IF(D3="","",1+(L3/M3)) -> 6
A4: 2020-09-19 | B4: 10 | C4: Premier | D4: Everton | E4: West Brom | F4: 5 | G4: 2 | H4: 11 | I4: 20 | J4: 16 | K4: 5 | L4: 5 | M4: 1 | O4: Everton | P4: West Brom | Q4: 5 | R4: 2 | S4: Everton v West Brom 11/20 16/5 5/1 | T4: Everton 5-2 West Brom | U4: 11/20 16/5 5/1 | V4: 11/20 | W4: 16/5 | X4: 5/1 | Y4: 1.55 | Z4: 4.2 | AA4: 6
A5: 2020-09-19 | B5: 10 | C5: Premier | D5: Leeds | E5: Fulham | F5: 4 | G5: 3 | H5: 8 | I5: 13 | J5: 3 | K5: 1 | L5: 9 | M5: 2 | O5: Leeds | P5: Fulham | Q5: 4 | R5: 3 | S5: Leeds v Fulham 8/13 3/1 9/2 | T5: Leeds 4-3 Fulham | U5: 8/13 3/1 9/2 | V5: 8/13 | W5: 3/1 | X5: 9/2 | Y5: 1.615384615 | Z5: 4 | AA5: 5.5
A6: 2020-09-19 | B6: 10 | C6: Premier | D6: Man U | E6: Palace | F6: 1 | G6: 3 | H6: 2 | I6: 7 | J6: 9 | K6: 2 | L6: 10 | M6: 1 | O6: Man U | P6: Palace | Q6: 1 | R6: 3 | S6: Man U v Palace 2/7 9/2 10/1 | T6: Man U 1-3 Palace | U6: 2/7 9/2 10/1 | V6: 2/7 | W6: 9/2 | X6: 10/1 | Y6: 1.285714286 | Z6: 5.5 | AA6: 11
A7: 2020-09-19 | B7: 11 | C7: Champ | D7: Blackburn | E7: Wycombe | F7: 5 | G7: 0 | H7: 4 | I7: 7 | J7: 3 | K7: 1 | L7: 5 | M7: 1 | O7: =TRIM(D7) -> Blackburn | P7: Wycombe | Q7: 5 | R7: 0 | S7: Blackburn v Wycombe 4/7 3/1 5/1 | T7: Blackburn 5-0 Wycombe | U7: 4/7 3/1 5/1 | V7: 4/7 | W7: 3/1 | X7: 5/1 | Y7: 1.571428571 | Z7: 4 | AA7: 6
A8: 2020-09-19 | B8: 11 | C8: Champ | D8: Brentford | E8: Huddersfield | F8: 3 | G8: 0 | H8: 11 | I8: 20 | J8: 14 | K8: 5 | L8: 6 | M8: 1 | O8: Brentford | P8: Huddersfield | Q8: 3 | R8: 0 | S8: Brentford v Huddersfield 11/20 14/5 6/1 | T8: Brentford 3-0 Huddersfield | U8: 11/20 14/5 6/1 | V8: 11/20 | W8: 14/5 | X8: 6/1 | Y8: 1.55 | Z8: 3.8 | AA8: 7
A9: 2020-09-19 | B9: 11 | C9: Champ | D9: Forest | E9: Cardiff | F9: 0 | G9: 2 | H9: 29 | I9: 20 | J9: 11 | K9: 5 | L9: 2 | M9: 1 | O9: Forest | P9: Cardiff | Q9: 0 | R9: 2 | S9: Forest v Cardiff 29/20 11/5 2/1 | T9: Forest 0-2 Cardiff | U9: 29/20 11/5 2/1 | V9: 29/20 | W9: 11/5 | X9: 2/1 | Y9: 2.45 | Z9: 3.2 | AA9: 3
A10: 2020-09-19 | B10: 11 | C10: Champ | D10: Luton | E10: Derby | F10: 2 | G10: 1 | H10: 15 | I10: 8 | J10: 9 | K10: 4 | L10: 31 | M10: 20 | O10: Luton | P10: Derby | Q10: 2 | R10: 1 | S10: Luton v Derby 15/8 9/4 31/20 | T10: Luton 2-1 Derby | U10: 15/8 9/4 31/20 | V10: 15/8 | W10: 9/4 | X10: 31/20 | Y10: 2.875 | Z10: 3.25 | AA10: 2.55
A11: 2020-09-19 | B11: 11 | C11: Champ | D11: Middlesbro | E11: Bournemouth | F11: 1 | G11: 1 | H11: 17 | I11: 10 | J11: 11 | K11: 5 | L11: 17 | M11: 10 | O11: Middlesbro | P11: Bournemouth | Q11: 1 | R11: 1 | S11: Middlesbro v Bournemouth 17/10 11/5 17/10 | T11: Middlesbro 1-1 Bournemouth | U11: 17/10 11/5 17/10 | V11: 17/10 | W11: 11/5 | X11: 17/10 | Y11: 2.7 | Z11: 3.2 | AA11: 2.7
A12: 2020-09-19 | B12: 11 | C12: Champ | D12: Norwich | E12: Preston | F12: 2 | G12: 2 | H12: 4 | I12: 5 | J12: 5 | K12: 2 | L12: 19 | M12: 5 | O12: Norwich | P12: Preston | Q12: 2 | R12: 2 | S12: Norwich v Preston 4/5 5/2 19/5 | T12: Norwich 2-2 Preston | U12: 4/5 5/2 19/5 | V12: 4/5 | W12: 5/2 | X12: 19/5 | Y12: 1.8 | Z12: 3.5 | AA12: 4.8
A13: 2020-09-19 | B13: 11 | C13: Champ | D13: Reading | E13: Barnsley | F13: 2 | G13: 0 | H13: 7 | I13: 5 | J13: 23 | K13: 10 | L13: 2 | M13: 1 | O13: Reading | P13: Barnsley | Q13: 2 | R13: 0 | S13: Reading v Barnsley 7/5 23/10 2/1 | T13: Reading 2-0 Barnsley | U13: 7/5 23/10 2/1 | V13: 7/5 | W13: 23/10 | X13: 2/1 | Y13: 2.4 | Z13: 3.3 | AA13: 3
A14: 2020-09-19 | B14: 11 | C14: Champ | D14: Rotherham | E14: Millwall | F14: 0 | G14: 1 | H14: 9 | I14: 5 | J14: 21 | K14: 10 | L14: 17 | M14: 10 | O14: Rotherham | P14: Millwall | Q14: 0 | R14: 1 | S14: Rotherham v Millwall 9/5 21/10 17/10 | T14: Rotherham 0-1 Millwall | U14: 9/5 21/10 17/10 | V14: 9/5 | W14: 21/10 | X14: 17/10 | Y14: 2.8 | Z14: 3.1 | AA14: 2.7
A15: 2020-09-19 | B15: 11 | C15: Champ | D15: Sheff W | E15: Watford | F15: 0 | G15: 0 | H15: 19 | I15: 10 | J15: 11 | K15: 5 | L15: 31 | M15: 20 | O15: Sheff W | P15: Watford | Q15: 0 | R15: 0 | S15: Sheff W v Watford 19/10 11/5 31/20 | T15: Sheff W 0-0 Watford | U15: 19/10 11/5 31/20 | V15: 19/10 | W15: 11/5 | X15: 31/20 | Y15: 2.9 | Z15: 3.2 | AA15: 2.55
A16: 2020-09-19 | B16: 11 | C16: Champ | D16: Swansea | E16: Birmingham | F16: 0 | G16: 0 | H16: 11 | I16: 10 | J16: 11 | K16: 5 | L16: 14 | M16: 5 | O16: Swansea | P16: Birmingham | Q16: 0 | R16: 0 | S16: Swansea v Birmingham 11/10 11/5 14/5 | T16: Swansea 0-0 Birmingham | U16: 11/10 11/5 14/5 | V16: 11/10 | W16: 11/5 | X16: 14/5 | Y16: 2.1 | Z16: 3.2 | AA16: 3.8
A17: 2020-09-19 | B17: 12 | C17: League 1 | D17: Blackpool | E17: Swindon | F17: 2 | G17: 0 | H17: 23 | I17: 20 | J17: 23 | K17: 10 | L17: 5 | M17: 2 | O17: Blackpool | P17: Swindon | Q17: 2 | R17: 0 | S17: Blackpool v Swindon 23/20 23/10 5/2 | T17: Blackpool 2-0 Swindon | U17: 23/20 23/10 5/2 | V17: 23/20 | W17: 23/10 | X17: 5/2 | Y17: 2.15 | Z17: 3.3 | AA17: 3.5
A18: 2020-09-19 | B18: 12 | C18: League 1 | D18: Bristol R | E18: Ipswich | F18: 0 | G18: 2 | H18: 17 | I18: 10 | J18: 23 | K18: 10 | L18: 8 | M18: 5 | O18: Bristol R | P18: Ipswich | Q18: 0 | R18: 2 | S18: Bristol R v Ipswich 17/10 23/10 8/5 | T18: Bristol R 0-2 Ipswich | U18: 17/10 23/10 8/5 | V18: 17/10 | W18: 23/10 | X18: 8/5 | Y18: 2.7 | Z18: 3.3 | AA18: 2.6
A19: 2020-09-19 | B19: 12 | C19: League 1 | D19: Burton | E19: Accrington | F19: 2 | G19: 1 | H19: 27 | I19: 20 | J19: 23 | K19: 10 | L19: 2 | M19: 1 | O19: Burton | P19: Accrington | Q19: 2 | R19: 1 | S19: Burton v Accrington 27/20 23/10 2/1 | T19: Burton 2-1 Accrington | U19: 27/20 23/10 2/1 | V19: 27/20 | W19: 23/10 | X19: 2/1 | Y19: 2.35 | Z19: 3.3 | AA19: 3
A20: 2020-09-19 | B20: 12 | C20: League 1 | D20: Charlton | E20: Doncaster | F20: 1 | G20: 3 | H20: 1 | I20: 1 | J20: 12 | K20: 5 | L20: 27 | M20: 10 | O20: Charlton | P20: Doncaster | Q20: 1 | R20: 3 | S20: Charlton v Doncaster 1/1 12/5 27/10 | T20: Charlton 1-3 Doncaster | U20: 1/1 12/5 27/10 | V20: 1/1 | W20: 12/5 | X20: 27/10 | Y20: 2 | Z20: 3.4 | AA20: 3.7
A21: 2020-09-19 | B21: 12 | C21: League 1 | D21: Hull | E21: Crewe | F21: 1 | G21: 0 | H21: 19 | I21: 20 | J21: 13 | K21: 5 | L21: 11 | M21: 4 | O21: Hull | P21: Crewe | Q21: 1 | R21: 0 | S21: Hull v Crewe 19/20 13/5 11/4 | T21: Hull 1-0 Crewe | U21: 19/20 13/5 11/4 | V21: 19/20 | W21: 13/5 | X21: 11/4 | Y21: 1.95 | Z21: 3.6 | AA21: 3.75
A22: 2020-09-19 | B22: 12 | C22: League 1 | D22: MK Dons | E22: Lincoln | F22: 1 | G22: 2 | H22: 17 | I22: 10 | J22: 21 | K22: 10 | L22: 7 | M22: 4 | O22: MK Dons | P22: Lincoln | Q22: 1 | R22: 2 | S22: MK Dons v Lincoln 17/10 21/10 7/4 | T22: MK Dons 1-2 Lincoln | U22: 17/10 21/10 7/4 | V22: 17/10 | W22: 21/10 | X22: 7/4 | Y22: 2.7 | Z22: 3.1 | AA22: 2.75
A23: 2020-09-19 | B23: 12 | C23: League 1 | D23: Oxford | E23: Sunderland | F23: 0 | G23: 2 | H23: 31 | I23: 20 | J23: 11 | K23: 5 | L23: 9 | M23: 5 | O23: Oxford | P23: Sunderland | Q23: 0 | R23: 2 | S23: Oxford v Sunderland 31/20 11/5 9/5 | T23: Oxford 0-2 Sunderland | U23: 31/20 11/5 9/5 | V23: 31/20 | W23: 11/5 | X23: 9/5 | Y23: 2.55 | Z23: 3.2 | AA23: 2.8
A24: 2020-09-19 | B24: 12 | C24: League 1 | D24: Peterborough | E24: Fleetwood | F24: 2 | G24: 1 | H24: 6 | I24: 5 | J24: 9 | K24: 4 | L24: 12 | M24: 5 | O24: Peterborough | P24: Fleetwood | Q24: 2 | R24: 1 | S24: Peterborough v Fleetwood 6/5 9/4 12/5 | T24: Peterborough 2-1 Fleetwood | U24: 6/5 9/4 12/5 | V24: 6/5 | W24: 9/4 | X24: 12/5 | Y24: 2.2 | Z24: 3.25 | AA24: 3.4
A25: 2020-09-19 | B25: 12 | C25: League 1 | D25: Shrewsbury | E25: Northampton | F25: 1 | G25: 2 | H25: 6 | I25: 5 | J25: 11 | K25: 5 | L25: 12 | M25: 5 | O25: Shrewsbury | P25: Northampton | Q25: 1 | R25: 2 | S25: Shrewsbury v Northampton 6/5 11/5 12/5 | T25: Shrewsbury 1-2 Northampton | U25: 6/5 11/5 12/5 | V25: 6/5 | W25: 11/5 | X25: 12/5 | Y25: 2.2 | Z25: 3.2 | AA25: 3.4
A26: 2020-09-19 | B26: 12 | C26: League 1 | D26: Wimbledon | E26: Plymouth | F26: 4 | G26: 4 | H26: 8 | I26: 5 | J26: 23 | K26: 10 | L26: 17 | M26: 10 | O26: Wimbledon | P26: Plymouth | Q26: 4 | R26: 4 | S26: Wimbledon v Plymouth 8/5 23/10 17/10 | T26: Wimbledon 4-4 Plymouth | U26: 8/5 23/10 17/10 | V26: 8/5 | W26: 23/10 | X26: 17/10 | Y26: 2.6 | Z26: 3.3 | AA26: 2.7
A27: 2020-09-19 | B27: 13 | C27: League 2 | D27: Carlisle | E27: Southend | F27: 2 | G27: 0 | H27: 21 | I27: 20 | J27: 12 | K27: 5 | L27: 13 | M27: 5 | O27: Carlisle | P27: Southend | Q27: 2 | R27: 0 | S27: Carlisle v Southend 21/20 12/5 13/5 | T27: Carlisle 2-0 Southend | U27: 21/20 12/5 13/5 | V27: 21/20 | W27: 12/5 | X27: 13/5 | Y27: 2.05 | Z27: 3.4 | AA27: 3.6
A28: 2020-09-19 | B28: 13 | C28: League 2 | D28: Colchester | E28: Bolton | F28: 2 | G28: 0 | H28: 13 | I28: 8 | J28: 23 | K28: 10 | L28: 17 | M28: 10 | O28: Colchester | P28: Bolton | Q28: 2 | R28: 0 | S28: Colchester v Bolton 13/8 23/10 17/10 | T28: Colchester 2-0 Bolton | U28: 13/8 23/10 17/10 | V28: 13/8 | W28: 23/10 | X28: 17/10 | Y28: 2.625 | Z28: 3.3 | AA28: 2.7
A29: 2020-09-19 | B29: 13 | C29: League 2 | D29: Crawley | E29: Scunthorpe | F29: 1 | G29: 0 | H29: 13 | I29: 10 | J29: 23 | K29: 10 | L29: 21 | M29: 10 | O29: Crawley | P29: Scunthorpe | Q29: 1 | R29: 0 | S29: Crawley v Scunthorpe 13/10 23/10 21/10 | T29: Crawley 1-0 Scunthorpe | U29: 13/10 23/10 21/10 | V29: 13/10 | W29: 23/10 | X29: 21/10 | Y29: 2.3 | Z29: 3.3 | AA29: 3.1
A30: 2020-09-19 | B30: 13 | C30: League 2 | D30: Exeter | E30: Port Vale | F30: 0 | G30: 2 | H30: 5 | I30: 4 | J30: 11 | K30: 5 | L30: 9 | M30: 4 | O30: Exeter | P30: Port Vale | Q30: 0 | R30: 2 | S30: Exeter v Port Vale 5/4 11/5 9/4 | T30: Exeter 0-2 Port Vale | U30: 5/4 11/5 9/4 | V30: 5/4 | W30: 11/5 | X30: 9/4 | Y30: 2.25 | Z30: 3.2 | AA30: 3.25
A31: 2020-09-19 | B31: 13 | C31: League 2 | D31: Forest Green | E31: Bradford | F31: 2 | G31: 2 | H31: 13 | I31: 10 | J31: 9 | K31: 4 | L31: 11 | M31: 5 | O31: Forest Green | P31: Bradford | Q31: 2 | R31: 2 | S31: Forest Green v Bradford 13/10 9/4 11/5 | T31: Forest Green 2-2 Bradford | U31: 13/10 9/4 11/5 | V31: 13/10 | W31: 9/4 | X31: 11/5 | Y31: 2.3 | Z31: 3.25 | AA31: 3.2
A32: 2020-09-19 | B32: 13 | C32: League 2 | D32: Grimsby | E32: Salford | F32: 0 | G32: 4 | H32: 21 | I32: 10 | J32: 23 | K32: 10 | L32: 13 | M32: 10 | O32: Grimsby | P32: Salford | Q32: 0 | R32: 4 | S32: Grimsby v Salford 21/10 23/10 13/10 | T32: Grimsby 0-4 Salford | U32: 21/10 23/10 13/10 | V32: 21/10 | W32: 23/10 | X32: 13/10 | Y32: 3.1 | Z32: 3.3 | AA32: 2.3
A33: 2020-09-19 | B33: 13 | C33: League 2 | D33: Harrogate | E33: Walsall | F33: 2 | G33: 2 | H33: 6 | I33: 5 | J33: 23 | K33: 10 | L33: 23 | M33: 10 | O33: =TRIM(D33) -> Harrogate | P33: =TRIM(E33) -> Walsall | Q33: =TRIM(F33) -> 2 | R33: =TRIM(G33) -> 2 | S33: Harrogate v Walsall 6/5 23/10 23/10 | T33: Harrogate 2-2 Walsall | U33: 6/5 23/10 23/10 | V33: =CONCATENATE(H33,"/",I33) -> 6/5 | W33: =CONCATENATE(J33,"/",K33) -> 23/10 | X33: =CONCATENATE(L33,"/",M33) -> 23/10 | Y33: 2.2 | Z33: 3.3 | AA33: 3.3
A34: 2020-09-19 | B34: 13 | C34: League 2 | D34: Morecambe | E34: Cambridge | F34: 0 | G34: 5 | H34: 27 | I34: 20 | J34: 9 | K34: 4 | L34: 21 | M34: 10 | O34: Morecambe | P34: Cambridge | Q34: 0 | R34: 5 | S34: Morecambe v Cambridge 27/20 9/4 21/10 | T34: Morecambe 0-5 Cambridge | U34: 27/20 9/4 21/10 | V34: 27/20 | W34: 9/4 | X34: 21/10 | Y34: 2.35 | Z34: 3.25 | AA34: 3.1
A35: 2020-09-19 | B35: 13 | C35: League 2 | D35: Newport | E35: Barrow | F35: 2 | G35: 1 | H35: 5 | I35: 4 | J35: 11 | K35: 5 | L35: 23 | M35: 10 | O35: Newport | P35: Barrow | Q35: 2 | R35: 1 | S35: Newport v Barrow 5/4 11/5 23/10 | T35: Newport 2-1 Barrow | U35: 5/4 11/5 23/10 | V35: 5/4 | W35: 11/5 | X35: 23/10 | Y35: 2.25 | Z35: 3.2 | AA35: 3.3
A36: 2020-09-19 | B36: 13 | C36: League 2 | D36: Orient | E36: Mansfield | F36: 2 | G36: 2 | H36: 9 | I36: 5 | J36: 12 | K36: 5 | L36: 29 | M36: 20 | O36: Orient | P36: Mansfield | Q36: 2 | R36: 2 | S36: Orient v Mansfield 9/5 12/5 29/20 | T36: Orient 2-2 Mansfield | U36: 9/5 12/5 29/20 | V36: 9/5 | W36: 12/5 | X36: 29/20 | Y36: 2.8 | Z36: 3.4 | AA36: 2.45
A37: 2020-09-19 | B37: 13 | C37: League 2 | D37: Stevenage | E37: Oldham | F37: 3 | G37: 0 | H37: 7 | I37: 5 | J37: 11 | K37: 5 | L37: 2 | M37: 1 | O37: Stevenage | P37: Oldham | Q37: 3 | R37: 0 | S37: Stevenage v Oldham 7/5 11/5 2/1 | T37: Stevenage 3-0 Oldham | U37: 7/5 11/5 2/1 | V37: 7/5 | W37: 11/5 | X37: 2/1 | Y37: 2.4 | Z37: 3.2 | AA37: 3
A38: 2020-09-19 | B38: 13 | C38: League 2 | D38: Tranmere | E38: Cheltenham | F38: 0 | G38: 3 | H38: 13 | I38: 10 | J38: 23 | K38: 10 | L38: 21 | M38: 10 | O38: Tranmere | P38: Cheltenham | Q38: 0 | R38: 3 | S38: Tranmere v Cheltenham 13/10 23/10 21/10 | T38: Tranmere 0-3 Cheltenham | U38: 13/10 23/10 21/10 | V38: 13/10 | W38: 23/10 | X38: 21/10 | Y38: 2.3 | Z38: 3.3 | AA38: 3.1
A39: 2020-09-20 | B39: 10 | C39: Premier | D39: Chelsea | E39: Liverpool | F39: 0 | G39: 2 | H39: 21 | I39: 10 | J39: 27 | K39: 10 | L39: 6 | M39: 5 | O39: Chelsea | P39: Liverpool | Q39: 0 | R39: 2 | S39: Chelsea v Liverpool 21/10 27/10 6/5 | T39: Chelsea 0-2 Liverpool | U39: 21/10 27/10 6/5 | V39: 21/10 | W39: 27/10 | X39: 6/5 | Y39: 3.1 | Z39: 3.7 | AA39: 2.2
A40: 2020-09-20 | B40: 10 | C40: Premier | D40: Leicester | E40: Burnley | F40: 4 | G40: 2 | H40: 13 | I40: 20 | J40: 14 | K40: 5 | L40: 9 | M40: 2 | O40: Leicester | P40: Burnley | Q40: 4 | R40: 2 | S40: Leicester v Burnley 13/20 14/5 9/2 | T40: Leicester 4-2 Burnley | U40: 13/20 14/5 9/2 | V40: 13/20 | W40: 14/5 | X40: 9/2 | Y40: 1.65 | Z40: 3.8 | AA40: 5.5
A41: 2020-09-20 | B41: 10 | C41: Premier | D41: Newcastle | E41: Brighton | F41: 0 | G41: 3 | H41: 31 | I41: 20 | J41: 11 | K41: 5 | L41: 19 | M41: 10 | O41: Newcastle | P41: Brighton | Q41: 0 | R41: 3 | S41: Newcastle v Brighton 31/20 11/5 19/10 | T41: Newcastle 0-3 Brighton | U41: 31/20 11/5 19/10 | V41: 31/20 | W41: 11/5 | X41: 19/10 | Y41: 2.55 | Z41: 3.2 | AA41: 2.9
A42: 2020-09-20 | B42: 10 | C42: Premier | D42: Southampton | E42: Spurs | F42: 2 | G42: 5 | H42: 2 | I42: 1 | J42: 9 | K42: 4 | L42: 29 | M42: 20 | O42: Southampton | P42: Spurs | Q42: 2 | R42: 5 | S42: Southampton v Spurs 2/1 9/4 29/20 | T42: Southampton 2-5 Spurs | U42: 2/1 9/4 29/20 | V42: 2/1 | W42: 9/4 | X42: 29/20 | Y42: 3 | Z42: 3.25 | AA42: 2.45
A43: 2020-09-20 | B43: 11 | C43: Champ | D43: Stoke | E43: Bristol C | F43: 0 | G43: 2 | H43: 11 | I43: 10 | J43: 12 | K43: 5 | L43: 13 | M43: 5 | O43: Stoke | P43: Bristol C | Q43: 0 | R43: 2 | S43: Stoke v Bristol C 11/10 12/5 13/5 | T43: Stoke 0-2 Bristol C | U43: 11/10 12/5 13/5 | V43: 11/10 | W43: 12/5 | X43: 13/5 | Y43: 2.1 | Z43: 3.4 | AA43: 3.6
A44: 2020-09-20 | B44: 12 | C44: League 1 | D44: Rochdale | E44: Portsmouth | F44: 0 | G44: 0 | H44: 15 | I44: 4 | J44: 13 | K44: 5 | L44: 3 | M44: 4 | O44: Rochdale | P44: Portsmouth | Q44: 0 | R44: 0 | S44: Rochdale v Portsmouth 15/4 13/5 3/4 | T44: Rochdale 0-0 Portsmouth | U44: 15/4 13/5 3/4 | V44: 15/4 | W44: 13/5 | X44: 3/4 | Y44: 4.75 | Z44: 3.6 | AA44: 1.75
T45: - | U45: =V45&" "&W45&" "&X45 -> / / / | V45: / | W45: / | X45: /
T46: - | U46: =V46&" "&W46&" "&X46 -> / / / | V46: / | W46: / | X46: /
T47: =O47&" "&Q47&"-"&R47&" "&P47 -> - | U47: =V47&" "&W47&" "&X47 -> / / / | V47: / | W47: / | X47: /

Sheet Picks
A1: Player | B1: Prediction | C1: Match Day | D1: Decimal | E1: Bet in? | F1: Score | G1: Max | H1: =entrants-SUM(H2:H187) -> 2 | I1: Week Rank | J1: Wk1 | K1: Frac | L1: Dec | M1: Bet up | N1: Points | O1: Wk2 | P1: Results | R1: Choices | S1: Odds | T1: Up | U1: Home team | V1: H Score | W1: Away team | X1: A Score | AC1: ` | AD1: This Week Actual Score | AE1: This Week Correct | AF1: Rank | AH1: Player | AI1: This Week Max Score | AJ1: This Week Correct | AK1: Rank
A2: =Results!B2 -> Alan Rogers | B2: =IF(J2="","",TRIM(CLEAN(J2))) -> Harrogate | C2: =IF(J2="","",INDEX(Odds!B:B,MATCH(J2,Odds!F:F,0))) -> 1900-01-07 | D2: =IF(J2="","",L2) -> 2.2 | E2: =IF(J2="","",IF(M2=1,"√","x")) -> x | F2: =IF(J2="",-10,INDEX(Results!T:T,MATCH(A2,Results!V:V,0))) -> -7 | G2: =IF(J2="","",INDEX(Results!AI:AI,MATCH(A2,Results!V:V,0))) -> 43.072 | H2: =IF(G2="",0,1) -> 1 | I2: =INDEX(Picks!AF:AF,MATCH(A2,Picks!AC:AC,0)) -> 53 | J2: Harrogate | K2: =INDEX(Odds!G:G,MATCH(J2,Odds!F:F,0)) -> 6/5 | L2: =INDEX(Odds!H:H,MATCH(J2,Odds!F:F,0)) -> 2.2 | M2: =INDEX(Odds!I:I,MATCH(J2,Odds!F:F,0)) -> 0 | N2: =L2*M2 -> 0 | P2: =IF(Match!A2="","",Match!T2) -> Coventry 3-2 QPR | R2: =IF(Odds!F2="","",Odds!F2) -> Coventry | S2: =INDEX(Odds!G:G,MATCH(R2,Odds!F:F,0)) -> 6/4 | T2: =IF(V2>X2,1,0) -> 1 | U2: =INDEX(Match!O:O,MATCH(P2,Match!T:T,0)) -> Coventry | V2: =INDEX(Match!F:F,MATCH(P2,Match!T:T,0)) -> 3 | W2: =INDEX(Match!P:P,MATCH(P2,Match!T:T,0)) -> QPR | X2: =INDEX(Match!G:G,MATCH(P2,Match!T:T,0)) -> 2 | AC2: Paul Fairhurst | AD2: =INDEX(Picks!F:F,MATCH(AC2,Picks!A:A,0)) -> 208.72 | AE2: =INDEX(Weekly!I:I,MATCH(AC2,Weekly!E:E,0)) -> 3 | AF2: =IF(AD2="","",_xlfn.RANK.EQ(AD2,TopScores,0)) -> 1 | AH2: Gareth Fallows | AI2: =INDEX(Picks!G:G,MATCH(AH2,Picks!A:A,0)) ->  | AJ2: =INDEX(Weekly!I:I,MATCH(AH2,Weekly!E:E,0)) -> 0 | AK2: =IF(AI2="","",_xlfn.RANK.EQ(AI2,TopMaxScores,0)) -> 
A3: =A2 -> Alan Rogers | B3: =IF(J3="","",J3) -> Orient | C3: =IF(J3="","",INDEX(Odds!B:B,MATCH(J3,Odds!F:F,0))) -> 1900-01-07 | D3: =IF(J3="","",L3) -> 2.8 | E3: =IF(J3="","",IF(M3=1,"√","x")) -> x | J3: Orient | K3: =INDEX(Odds!G:G,MATCH(J3,Odds!F:F,0)) -> 9/5 | L3: =INDEX(Odds!H:H,MATCH(J3,Odds!F:F,0)) -> 2.8 | M3: =INDEX(Odds!I:I,MATCH(J3,Odds!F:F,0)) -> 0 | N3: =L3*M3 -> 0 | P3: =IF(Match!A3="","",Match!T3) -> Arsenal 2-1 West Ham | R3: =IF(Odds!F3="","",Odds!F3) -> Arsenal | S3: =INDEX(Odds!G:G,MATCH(R3,Odds!F:F,0)) -> 1/2 | T3: 1 | U3: =INDEX(Match!O:O,MATCH(P3,Match!T:T,0)) -> Arsenal | V3: =INDEX(Match!F:F,MATCH(P3,Match!T:T,0)) -> 2 | W3: =INDEX(Match!P:P,MATCH(P3,Match!T:T,0)) -> West Ham | X3: =INDEX(Match!G:G,MATCH(P3,Match!T:T,0)) -> 1 | AC3: Gerard Ventom | AD3: =INDEX(Picks!F:F,MATCH(AC3,Picks!A:A,0)) -> 164.8 | AE3: =INDEX(Weekly!I:I,MATCH(AC3,Weekly!E:E,0)) -> 3 | AF3: =IF(AD3="","",_xlfn.RANK.EQ(AD3,TopScores,0)) -> 2 | AH3: Tom Robinson | AI3: =INDEX(Picks!G:G,MATCH(AH3,Picks!A:A,0)) ->  | AJ3: =INDEX(Weekly!I:I,MATCH(AH3,Weekly!E:E,0)) -> 0 | AK3: =IF(AI3="","",_xlfn.RANK.EQ(AI3,TopMaxScores,0)) -> 
A4: =A2 -> Alan Rogers | B4: Stevenage draw | C4: =IF(J4="","",INDEX(Odds!B:B,MATCH(J4,Odds!F:F,0))) -> 1900-01-07 | D4: 3.2 | E4: x | J4: Stevenage draw | K4: =INDEX(Odds!G:G,MATCH(J4,Odds!F:F,0)) -> 11/5 | L4: =INDEX(Odds!H:H,MATCH(J4,Odds!F:F,0)) -> 3.2 | M4: =INDEX(Odds!I:I,MATCH(J4,Odds!F:F,0)) -> 0 | N4: =L4*M4 -> 0 | P4: =IF(Match!A4="","",Match!T4) -> Everton 5-2 West Brom | R4: =IF(Odds!F4="","",Odds!F4) -> Everton | S4: =INDEX(Odds!G:G,MATCH(R4,Odds!F:F,0)) -> 11/20 | T4: 1 | U4: =INDEX(Match!O:O,MATCH(P4,Match!T:T,0)) -> Everton | V4: =INDEX(Match!F:F,MATCH(P4,Match!T:T,0)) -> 5 | W4: =INDEX(Match!P:P,MATCH(P4,Match!T:T,0)) -> West Brom | X4: =INDEX(Match!G:G,MATCH(P4,Match!T:T,0)) -> 2 | AC4: Chris Bow | AD4: =INDEX(Picks!F:F,MATCH(AC4,Picks!A:A,0)) -> 150.1 | AE4: =INDEX(Weekly!I:I,MATCH(AC4,Weekly!E:E,0)) -> 3 | AF4: =IF(AD4="","",_xlfn.RANK.EQ(AD4,TopScores,0)) -> 3 | AH4: Dave Bell | AI4: =INDEX(Picks!G:G,MATCH(AH4,Picks!A:A,0)) -> 538 | AJ4: =INDEX(Weekly!I:I,MATCH(AH4,Weekly!E:E,0)) -> 1 | AK4: =IF(AI4="","",_xlfn.RANK.EQ(AI4,TopMaxScores,0)) -> 1
A5: =Results!B5 -> Alan White | B5: =IF(J5="","",J5) -> Arsenal | C5: =IF(J5="","",INDEX(Odds!B:B,MATCH(J5,Odds!F:F,0))) -> 1900-01-07 | D5: 1.5 | E5: √ | F5: =IF(J5="",-10,INDEX(Results!T:T,MATCH(A5,Results!V:V,0))) -> -1.625 | G5: =IF(J5="","",INDEX(Results!AI:AI,MATCH(A5,Results!V:V,0))) -> 14.63125 | H5: =IF(G5="",0,1) -> 1 | I5: =INDEX(Picks!AF:AF,MATCH(A5,Picks!AC:AC,0)) -> 31 | J5: Arsenal | K5: =INDEX(Odds!G:G,MATCH(J5,Odds!F:F,0)) -> 1/2 | L5: =INDEX(Odds!H:H,MATCH(J5,Odds!F:F,0)) -> 1.5 | M5: =INDEX(Odds!I:I,MATCH(J5,Odds!F:F,0)) -> 1 | N5: =L5*M5 -> 1.5 | P5: =IF(Match!A5="","",Match!T5) -> Leeds 4-3 Fulham | R5: =IF(Odds!F5="","",Odds!F5) -> Leeds | S5: =INDEX(Odds!G:G,MATCH(R5,Odds!F:F,0)) -> 8/13 | T5: 1 | U5: =INDEX(Match!O:O,MATCH(P5,Match!T:T,0)) -> Leeds | V5: =INDEX(Match!F:F,MATCH(P5,Match!T:T,0)) -> 4 | W5: =INDEX(Match!P:P,MATCH(P5,Match!T:T,0)) -> Fulham | X5: =INDEX(Match!G:G,MATCH(P5,Match!T:T,0)) -> 3 | AC5: Dave Orrell | AD5: =INDEX(Picks!F:F,MATCH(AC5,Picks!A:A,0)) -> 28.50625 | AE5: =INDEX(Weekly!I:I,MATCH(AC5,Weekly!E:E,0)) -> 3 | AF5: =IF(AD5="","",_xlfn.RANK.EQ(AD5,TopScores,0)) -> 4 | AH5: Chris Townsend | AI5: =INDEX(Picks!G:G,MATCH(AH5,Picks!A:A,0)) -> 538 | AJ5: =INDEX(Weekly!I:I,MATCH(AH5,Weekly!E:E,0)) -> 1 | AK5: =IF(AI5="","",_xlfn.RANK.EQ(AI5,TopMaxScores,0)) -> 1
A6: =A5 -> Alan White | B6: Everton | C6: =IF(J6="","",INDEX(Odds!B:B,MATCH(J6,Odds!F:F,0))) -> 1900-01-07 | D6: 1.55 | E6: √ | J6: Everton | K6: =INDEX(Odds!G:G,MATCH(J6,Odds!F:F,0)) -> 11/20 | L6: =INDEX(Odds!H:H,MATCH(J6,Odds!F:F,0)) -> 1.55 | M6: =INDEX(Odds!I:I,MATCH(J6,Odds!F:F,0)) -> 1 | N6: 1.55 | P6: =IF(Match!A6="","",Match!T6) -> Man U 1-3 Palace | R6: =IF(Odds!F6="","",Odds!F6) -> Man U | S6: =INDEX(Odds!G:G,MATCH(R6,Odds!F:F,0)) -> 2/7 | T6: 0 | U6: =INDEX(Match!O:O,MATCH(P6,Match!T:T,0)) -> Man U | V6: =INDEX(Match!F:F,MATCH(P6,Match!T:T,0)) -> 1 | W6: =INDEX(Match!P:P,MATCH(P6,Match!T:T,0)) -> Palace | X6: =INDEX(Match!G:G,MATCH(P6,Match!T:T,0)) -> 3 | AC6: Charlie Griffiths | AD6: =INDEX(Picks!F:F,MATCH(AC6,Picks!A:A,0)) -> 10.92 | AE6: =INDEX(Weekly!I:I,MATCH(AC6,Weekly!E:E,0)) -> 2 | AF6: =IF(AD6="","",_xlfn.RANK.EQ(AD6,TopScores,0)) -> 5 | AH6: Paul Fairhurst | AI6: =INDEX(Picks!G:G,MATCH(AH6,Picks!A:A,0)) -> 208.72 | AJ6: =INDEX(Weekly!I:I,MATCH(AH6,Weekly!E:E,0)) -> 3 | AK6: =IF(AI6="","",_xlfn.RANK.EQ(AI6,TopMaxScores,0)) -> 3
A7: =A5 -> Alan White | B7: Newcastle | C7: =IF(J7="","",INDEX(Odds!B:B,MATCH(J7,Odds!F:F,0))) -> 1900-01-01 | D7: 2.55 | E7: x | J7: Newcastle | K7: =INDEX(Odds!G:G,MATCH(J7,Odds!F:F,0)) -> 31/20 | L7: =INDEX(Odds!H:H,MATCH(J7,Odds!F:F,0)) -> 2.55 | M7: =INDEX(Odds!I:I,MATCH(J7,Odds!F:F,0)) -> 0 | N7: 0 | P7: =IF(Match!A7="","",Match!T7) -> Blackburn 5-0 Wycombe | R7: =IF(Odds!F7="","",Odds!F7) -> Blackburn | S7: =INDEX(Odds!G:G,MATCH(R7,Odds!F:F,0)) -> 4/7 | T7: 1 | U7: =INDEX(Match!O:O,MATCH(P7,Match!T:T,0)) -> Blackburn | V7: =INDEX(Match!F:F,MATCH(P7,Match!T:T,0)) -> 5 | W7: =INDEX(Match!P:P,MATCH(P7,Match!T:T,0)) -> Wycombe | X7: =INDEX(Match!G:G,MATCH(P7,Match!T:T,0)) -> 0 | AC7: Alick Rocca | AD7: =INDEX(Picks!F:F,MATCH(AC7,Picks!A:A,0)) -> 10.80625 | AE7: =INDEX(Weekly!I:I,MATCH(AC7,Weekly!E:E,0)) -> 3 | AF7: =IF(AD7="","",_xlfn.RANK.EQ(AD7,TopScores,0)) -> 6 | AH7: Gerard Ventom | AI7: =INDEX(Picks!G:G,MATCH(AH7,Picks!A:A,0)) -> 164.8 | AJ7: =INDEX(Weekly!I:I,MATCH(AH7,Weekly!E:E,0)) -> 3 | AK7: =IF(AI7="","",_xlfn.RANK.EQ(AI7,TopMaxScores,0)) -> 4
A8: =Results!B8 -> Alfie Davies | B8: Everton Draw | C8: =IF(J8="","",INDEX(Odds!B:B,MATCH(J8,Odds!F:F,0))) -> 1900-01-07 | D8: 4.2 | E8: x | F8: =IF(J8="",-10,INDEX(Results!T:T,MATCH(A8,Results!V:V,0))) -> -7 | G8: =IF(J8="","",INDEX(Results!AI:AI,MATCH(A8,Results!V:V,0))) -> 84.82 | H8: =IF(G8="",0,1) -> 1 | I8: =INDEX(Picks!AF:AF,MATCH(A8,Picks!AC:AC,0)) -> 53 | J8: Everton Draw | K8: =INDEX(Odds!G:G,MATCH(J8,Odds!F:F,0)) -> 16/5 | L8: =INDEX(Odds!H:H,MATCH(J8,Odds!F:F,0)) -> 4.2 | M8: =INDEX(Odds!I:I,MATCH(J8,Odds!F:F,0)) -> 0 | N8: 0 | P8: =IF(Match!A8="","",Match!T8) -> Brentford 3-0 Huddersfield | R8: =IF(Odds!F8="","",Odds!F8) -> Brentford | S8: =INDEX(Odds!G:G,MATCH(R8,Odds!F:F,0)) -> 11/20 | T8: 1 | U8: =INDEX(Match!O:O,MATCH(P8,Match!T:T,0)) -> Brentford | V8: =INDEX(Match!F:F,MATCH(P8,Match!T:T,0)) -> 3 | W8: =INDEX(Match!P:P,MATCH(P8,Match!T:T,0)) -> Huddersfield | X8: =INDEX(Match!G:G,MATCH(P8,Match!T:T,0)) -> 0 | AC8: Kevin Carter | AD8: =INDEX(Picks!F:F,MATCH(AC8,Picks!A:A,0)) -> 8.673076923 | AE8: =INDEX(Weekly!I:I,MATCH(AC8,Weekly!E:E,0)) -> 3 | AF8: =IF(AD8="","",_xlfn.RANK.EQ(AD8,TopScores,0)) -> 7 | AH8: Chris Bow | AI8: =INDEX(Picks!G:G,MATCH(AH8,Picks!A:A,0)) -> 150.1 | AJ8: =INDEX(Weekly!I:I,MATCH(AH8,Weekly!E:E,0)) -> 3 | AK8: =IF(AI8="","",_xlfn.RANK.EQ(AI8,TopMaxScores,0)) -> 5
A9: =A8 -> Alfie Davies | B9: Newcastle Draw | C9: =IF(J9="","",INDEX(Odds!B:B,MATCH(J9,Odds!F:F,0))) -> 1900-01-01 | D9: 3.2 | E9: x | J9: Newcastle Draw | K9: =INDEX(Odds!G:G,MATCH(J9,Odds!F:F,0)) -> 11/5 | L9: =INDEX(Odds!H:H,MATCH(J9,Odds!F:F,0)) -> 3.2 | M9: =INDEX(Odds!I:I,MATCH(J9,Odds!F:F,0)) -> 0 | N9: 0 | P9: =IF(Match!A9="","",Match!T9) -> Forest 0-2 Cardiff | R9: =IF(Odds!F9="","",Odds!F9) -> Forest | S9: =INDEX(Odds!G:G,MATCH(R9,Odds!F:F,0)) -> 29/20 | T9: 0 | U9: =INDEX(Match!O:O,MATCH(P9,Match!T:T,0)) -> Forest | V9: =INDEX(Match!F:F,MATCH(P9,Match!T:T,0)) -> 0 | W9: =INDEX(Match!P:P,MATCH(P9,Match!T:T,0)) -> Cardiff | X9: =INDEX(Match!G:G,MATCH(P9,Match!T:T,0)) -> 2 | AC9: Paul Barnes | AD9: =INDEX(Picks!F:F,MATCH(AC9,Picks!A:A,0)) -> 8.673076923 | AE9: =INDEX(Weekly!I:I,MATCH(AC9,Weekly!E:E,0)) -> 3 | AF9: =IF(AD9="","",_xlfn.RANK.EQ(AD9,TopScores,0)) -> 7 | AH9: James Bell | AI9: =INDEX(Picks!G:G,MATCH(AH9,Picks!A:A,0)) -> 140 | AJ9: =INDEX(Weekly!I:I,MATCH(AH9,Weekly!E:E,0)) -> 0 | AK9: =IF(AI9="","",_xlfn.RANK.EQ(AI9,TopMaxScores,0)) -> 6
A10: =A8 -> Alfie Davies | B10: Southampton Draw | C10: =IF(J10="","",INDEX(Odds!B:B,MATCH(J10,Odds!F:F,0))) -> 1900-01-01 | D10: 3.25 | E10: x | J10: Southampton Draw | K10: =INDEX(Odds!G:G,MATCH(J10,Odds!F:F,0)) -> 9/4 | L10: =INDEX(Odds!H:H,MATCH(J10,Odds!F:F,0)) -> 3.25 | M10: =INDEX(Odds!I:I,MATCH(J10,Odds!F:F,0)) -> 0 | N10: 0 | P10: =IF(Match!A10="","",Match!T10) -> Luton 2-1 Derby | R10: =IF(Odds!F10="","",Odds!F10) -> Luton | S10: =INDEX(Odds!G:G,MATCH(R10,Odds!F:F,0)) -> 15/8 | T10: 1 | U10: =INDEX(Match!O:O,MATCH(P10,Match!T:T,0)) -> Luton | V10: =INDEX(Match!F:F,MATCH(P10,Match!T:T,0)) -> 2 | W10: =INDEX(Match!P:P,MATCH(P10,Match!T:T,0)) -> Derby | X10: =INDEX(Match!G:G,MATCH(P10,Match!T:T,0)) -> 1 | AC10: Stephen Barr | AD10: =INDEX(Picks!F:F,MATCH(AC10,Picks!A:A,0)) -> 6.72 | AE10: =INDEX(Weekly!I:I,MATCH(AC10,Weekly!E:E,0)) -> 2 | AF10: =IF(AD10="","",_xlfn.RANK.EQ(AD10,TopScores,0)) -> 9 | AH10: Alfie Davies | AI10: =INDEX(Picks!G:G,MATCH(AH10,Picks!A:A,0)) -> 84.82 | AJ10: =INDEX(Weekly!I:I,MATCH(AH10,Weekly!E:E,0)) -> 0 | AK10: =IF(AI10="","",_xlfn.RANK.EQ(AI10,TopMaxScores,0)) -> 7
A11: =Results!B11 -> Alick Rocca | B11: Arsenal | C11: =IF(J11="","",INDEX(Odds!B:B,MATCH(J11,Odds!F:F,0))) -> 1900-01-07 | D11: 1.5 | E11: √ | F11: =IF(J11="",-10,INDEX(Results!T:T,MATCH(A11,Results!V:V,0))) -> 10.80625 | G11: =IF(J11="","",INDEX(Results!AI:AI,MATCH(A11,Results!V:V,0))) -> 10.80625 | H11: =IF(G11="",0,1) -> 1 | I11: =INDEX(Picks!AF:AF,MATCH(A11,Picks!AC:AC,0)) -> 6 | J11: Arsenal | K11: =INDEX(Odds!G:G,MATCH(J11,Odds!F:F,0)) -> 1/2 | L11: =INDEX(Odds!H:H,MATCH(J11,Odds!F:F,0)) -> 1.5 | M11: =INDEX(Odds!I:I,MATCH(J11,Odds!F:F,0)) -> 1 | N11: 1.5 | P11: =IF(Match!A11="","",Match!T11) -> Middlesbro 1-1 Bournemouth | R11: =IF(Odds!F11="","",Odds!F11) -> Middlesbro | S11: =INDEX(Odds!G:G,MATCH(R11,Odds!F:F,0)) -> 17/10 | T11: 0 | U11: =INDEX(Match!O:O,MATCH(P11,Match!T:T,0)) -> Middlesbro | V11: =INDEX(Match!F:F,MATCH(P11,Match!T:T,0)) -> 1 | W11: =INDEX(Match!P:P,MATCH(P11,Match!T:T,0)) -> Bournemouth | X11: =INDEX(Match!G:G,MATCH(P11,Match!T:T,0)) -> 1 | AC11: Mal Stott | AD11: =INDEX(Picks!F:F,MATCH(AC11,Picks!A:A,0)) -> 5.95 | AE11: =INDEX(Weekly!I:I,MATCH(AC11,Weekly!E:E,0)) -> 2 | AF11: =IF(AD11="","",_xlfn.RANK.EQ(AD11,TopScores,0)) -> 10 | AH11: Charlie Griffiths | AI11: =INDEX(Picks!G:G,MATCH(AH11,Picks!A:A,0)) -> 73.356 | AJ11: =INDEX(Weekly!I:I,MATCH(AH11,Weekly!E:E,0)) -> 2 | AK11: =IF(AI11="","",_xlfn.RANK.EQ(AI11,TopMaxScores,0)) -> 8
A12: =A11 -> Alick Rocca | B12: Everton | C12: =IF(J12="","",INDEX(Odds!B:B,MATCH(J12,Odds!F:F,0))) -> 1900-01-07 | D12: 1.55 | E12: √ | J12: Everton | K12: =INDEX(Odds!G:G,MATCH(J12,Odds!F:F,0)) -> 11/20 | L12: =INDEX(Odds!H:H,MATCH(J12,Odds!F:F,0)) -> 1.55 | M12: =INDEX(Odds!I:I,MATCH(J12,Odds!F:F,0)) -> 1 | N12: 1.55 | P12: =IF(Match!A12="","",Match!T12) -> Norwich 2-2 Preston | R12: =IF(Odds!F12="","",Odds!F12) -> Norwich | S12: =INDEX(Odds!G:G,MATCH(R12,Odds!F:F,0)) -> 4/5 | T12: 0 | U12: =INDEX(Match!O:O,MATCH(P12,Match!T:T,0)) -> Norwich | V12: =INDEX(Match!F:F,MATCH(P12,Match!T:T,0)) -> 2 | W12: =INDEX(Match!P:P,MATCH(P12,Match!T:T,0)) -> Preston | X12: =INDEX(Match!G:G,MATCH(P12,Match!T:T,0)) -> 2 | AC12: Chris Luck | AD12: =INDEX(Picks!F:F,MATCH(AC12,Picks!A:A,0)) -> 5.175 | AE12: =INDEX(Weekly!I:I,MATCH(AC12,Weekly!E:E,0)) -> 2 | AF12: =IF(AD12="","",_xlfn.RANK.EQ(AD12,TopScores,0)) -> 11 | AH12: Liam Wah | AI12: =INDEX(Picks!G:G,MATCH(AH12,Picks!A:A,0)) -> 65.84 | AJ12: =INDEX(Weekly!I:I,MATCH(AH12,Weekly!E:E,0)) -> 1 | AK12: =IF(AI12="","",_xlfn.RANK.EQ(AI12,TopMaxScores,0)) -> 9
A13: =A11 -> Alick Rocca | B13: =IF(J13="","",J13) -> Hull | C13: =IF(J13="","",INDEX(Odds!B:B,MATCH(J13,Odds!F:F,0))) -> 1900-01-07 | D13: 1.95 | E13: √ | J13: Hull | K13: =INDEX(Odds!G:G,MATCH(J13,Odds!F:F,0)) -> 19/20 | L13: =INDEX(Odds!H:H,MATCH(J13,Odds!F:F,0)) -> 1.95 | M13: =INDEX(Odds!I:I,MATCH(J13,Odds!F:F,0)) -> 1 | N13: 1.95 | P13: =IF(Match!A13="","",Match!T13) -> Reading 2-0 Barnsley | R13: =IF(Odds!F13="","",Odds!F13) -> Reading | S13: =INDEX(Odds!G:G,MATCH(R13,Odds!F:F,0)) -> 7/5 | T13: 1 | U13: =INDEX(Match!O:O,MATCH(P13,Match!T:T,0)) -> Reading | V13: =INDEX(Match!F:F,MATCH(P13,Match!T:T,0)) -> 2 | W13: =INDEX(Match!P:P,MATCH(P13,Match!T:T,0)) -> Barnsley | X13: =INDEX(Match!G:G,MATCH(P13,Match!T:T,0)) -> 0 | AC13: Chris Townsend | AD13: =INDEX(Picks!F:F,MATCH(AC13,Picks!A:A,0)) -> 4 | AE13: =INDEX(Weekly!I:I,MATCH(AC13,Weekly!E:E,0)) -> 1 | AF13: =IF(AD13="","",_xlfn.RANK.EQ(AD13,TopScores,0)) -> 12 | AH13: Ian Davies | AI13: =INDEX(Picks!G:G,MATCH(AH13,Picks!A:A,0)) -> 63.02875 | AJ13: =INDEX(Weekly!I:I,MATCH(AH13,Weekly!E:E,0)) -> 1 | AK13: =IF(AI13="","",_xlfn.RANK.EQ(AI13,TopMaxScores,0)) -> 10
A14: =Results!B14 -> Andy Charleston | B14: Newcastle | C14: =IF(J14="","",INDEX(Odds!B:B,MATCH(J14,Odds!F:F,0))) -> 1900-01-01 | D14: 2.55 | E14: x | F14: =IF(J14="",-10,INDEX(Results!T:T,MATCH(A14,Results!V:V,0))) -> -4.55 | G14: =IF(J14="","",INDEX(Results!AI:AI,MATCH(A14,Results!V:V,0))) -> 29.96725 | H14: =IF(G14="",0,1) -> 1 | I14: =INDEX(Picks!AF:AF,MATCH(A14,Picks!AC:AC,0)) -> 36 | J14: Newcastle | K14: =INDEX(Odds!G:G,MATCH(J14,Odds!F:F,0)) -> 31/20 | L14: =INDEX(Odds!H:H,MATCH(J14,Odds!F:F,0)) -> 2.55 | M14: =INDEX(Odds!I:I,MATCH(J14,Odds!F:F,0)) -> 0 | N14: 0 | P14: =IF(Match!A14="","",Match!T14) -> Rotherham 0-1 Millwall | R14: =IF(Odds!F14="","",Odds!F14) -> Rotherham | S14: =INDEX(Odds!G:G,MATCH(R14,Odds!F:F,0)) -> 9/5 | T14: 0 | U14: =INDEX(Match!O:O,MATCH(P14,Match!T:T,0)) -> Rotherham | V14: =INDEX(Match!F:F,MATCH(P14,Match!T:T,0)) -> 0 | W14: =INDEX(Match!P:P,MATCH(P14,Match!T:T,0)) -> Millwall | X14: =INDEX(Match!G:G,MATCH(P14,Match!T:T,0)) -> 1 | AC14: Dave Bell | AD14: =INDEX(Picks!F:F,MATCH(AC14,Picks!A:A,0)) -> 4 | AE14: =INDEX(Weekly!I:I,MATCH(AC14,Weekly!E:E,0)) -> 1 | AF14: =IF(AD14="","",_xlfn.RANK.EQ(AD14,TopScores,0)) -> 12 | AH14: Dan Baxter | AI14: =INDEX(Picks!G:G,MATCH(AH14,Picks!A:A,0)) -> 60.04 | AJ14: =INDEX(Weekly!I:I,MATCH(AH14,Weekly!E:E,0)) -> 0 | AK14: =IF(AI14="","",_xlfn.RANK.EQ(AI14,TopMaxScores,0)) -> 11
A15: =A14 -> Andy Charleston | B15: Spurs | C15: =IF(J15="","",INDEX(Odds!B:B,MATCH(J15,Odds!F:F,0))) -> 1900-01-01 | D15: 2.45 | E15: √ | J15: Spurs | K15: =INDEX(Odds!G:G,MATCH(J15,Odds!F:F,0)) -> 29/20 | L15: =INDEX(Odds!H:H,MATCH(J15,Odds!F:F,0)) -> 2.45 | M15: =INDEX(Odds!I:I,MATCH(J15,Odds!F:F,0)) -> 1 | N15: 2.45 | P15: =IF(Match!A15="","",Match!T15) -> Sheff W 0-0 Watford | R15: =IF(Odds!F15="","",Odds!F15) -> Sheff W | S15: =INDEX(Odds!G:G,MATCH(R15,Odds!F:F,0)) -> 19/10 | T15: 0 | U15: =INDEX(Match!O:O,MATCH(P15,Match!T:T,0)) -> Sheff W | V15: =INDEX(Match!F:F,MATCH(P15,Match!T:T,0)) -> 0 | W15: =INDEX(Match!P:P,MATCH(P15,Match!T:T,0)) -> Watford | X15: =INDEX(Match!G:G,MATCH(P15,Match!T:T,0)) -> 0 | AC15: Vinny Topping | AD15: =INDEX(Picks!F:F,MATCH(AC15,Picks!A:A,0)) -> 3.0625 | AE15: =INDEX(Weekly!I:I,MATCH(AC15,Weekly!E:E,0)) -> 2 | AF15: =IF(AD15="","",_xlfn.RANK.EQ(AD15,TopScores,0)) -> 14 | AH15: Sally Williams | AI15: =INDEX(Picks!G:G,MATCH(AH15,Picks!A:A,0)) -> 58.215 | AJ15: =INDEX(Weekly!I:I,MATCH(AH15,Weekly!E:E,0)) -> 0 | AK15: =IF(AI15="","",_xlfn.RANK.EQ(AI15,TopMaxScores,0)) -> 12
A16: =A14 -> Andy Charleston | B16: Stoke | C16: =IF(J16="","",INDEX(Odds!B:B,MATCH(J16,Odds!F:F,0))) -> 1900-01-01 | D16: 2.1 | E16: x | J16: Stoke | K16: =INDEX(Odds!G:G,MATCH(J16,Odds!F:F,0)) -> 11/10 | L16: =INDEX(Odds!H:H,MATCH(J16,Odds!F:F,0)) -> 2.1 | M16: =INDEX(Odds!I:I,MATCH(J16,Odds!F:F,0)) -> 0 | N16: 0 | P16: =IF(Match!A16="","",Match!T16) -> Swansea 0-0 Birmingham | R16: =IF(Odds!F16="","",Odds!F16) -> Swansea | S16: =INDEX(Odds!G:G,MATCH(R16,Odds!F:F,0)) -> 11/10 | T16: 0 | U16: =INDEX(Match!O:O,MATCH(P16,Match!T:T,0)) -> Swansea | V16: =INDEX(Match!F:F,MATCH(P16,Match!T:T,0)) -> 0 | W16: =INDEX(Match!P:P,MATCH(P16,Match!T:T,0)) -> Birmingham | X16: =INDEX(Match!G:G,MATCH(P16,Match!T:T,0)) -> 0 | AC16: Nigel Heyes | AD16: =INDEX(Picks!F:F,MATCH(AC16,Picks!A:A,0)) -> 2.03 | AE16: =INDEX(Weekly!I:I,MATCH(AC16,Weekly!E:E,0)) -> 2 | AF16: =IF(AD16="","",_xlfn.RANK.EQ(AD16,TopScores,0)) -> 15 | AH16: Mark Bunn | AI16: =INDEX(Picks!G:G,MATCH(AH16,Picks!A:A,0)) -> 55.648 | AJ16: =INDEX(Weekly!I:I,MATCH(AH16,Weekly!E:E,0)) -> 1 | AK16: =IF(AI16="","",_xlfn.RANK.EQ(AI16,TopMaxScores,0)) -> 13
A17: =Results!B17 -> Andy White | B17: Spurs | C17: =IF(J17="","",INDEX(Odds!B:B,MATCH(J17,Odds!F:F,0))) -> 1900-01-01 | D17: 2.45 | E17: √ | F17: =IF(J17="",-10,INDEX(Results!T:T,MATCH(A17,Results!V:V,0))) -> -4.55 | G17: =IF(J17="","",INDEX(Results!AI:AI,MATCH(A17,Results!V:V,0))) -> 49.56325 | H17: =IF(G17="",0,1) -> 1 | I17: =INDEX(Picks!AF:AF,MATCH(A17,Picks!AC:AC,0)) -> 36 | J17: Spurs | K17: =INDEX(Odds!G:G,MATCH(J17,Odds!F:F,0)) -> 29/20 | L17: =INDEX(Odds!H:H,MATCH(J17,Odds!F:F,0)) -> 2.45 | M17: =INDEX(Odds!I:I,MATCH(J17,Odds!F:F,0)) -> 1 | N17: 2.45 | P17: =IF(Match!A17="","",Match!T17) -> Blackpool 2-0 Swindon | R17: =IF(Odds!F17="","",Odds!F17) -> Blackpool | S17: =INDEX(Odds!G:G,MATCH(R17,Odds!F:F,0)) -> 23/20 | T17: 1 | U17: =INDEX(Match!O:O,MATCH(P17,Match!T:T,0)) -> Blackpool | V17: =INDEX(Match!F:F,MATCH(P17,Match!T:T,0)) -> 2 | W17: =INDEX(Match!P:P,MATCH(P17,Match!T:T,0)) -> Swindon | X17: =INDEX(Match!G:G,MATCH(P17,Match!T:T,0)) -> 0 | AC17: Lennie Bow | AD17: =INDEX(Picks!F:F,MATCH(AC17,Picks!A:A,0)) -> 1.88125 | AE17: =INDEX(Weekly!I:I,MATCH(AC17,Weekly!E:E,0)) -> 2 | AF17: =IF(AD17="","",_xlfn.RANK.EQ(AD17,TopScores,0)) -> 16 | AH17: Andy White | AI17: =INDEX(Picks!G:G,MATCH(AH17,Picks!A:A,0)) -> 49.56325 | AJ17: =INDEX(Weekly!I:I,MATCH(AH17,Weekly!E:E,0)) -> 1 | AK17: =IF(AI17="","",_xlfn.RANK.EQ(AI17,TopMaxScores,0)) -> 14
A18: =A17 -> Andy White | B18: =IF(J18="","",J18) -> Newcastle | C18: =IF(J18="","",INDEX(Odds!B:B,MATCH(J18,Odds!F:F,0))) -> 1900-01-01 | D18: 2.55 | E18: x | J18: Newcastle | K18: =INDEX(Odds!G:G,MATCH(J18,Odds!F:F,0)) -> 31/20 | L18: =INDEX(Odds!H:H,MATCH(J18,Odds!F:F,0)) -> 2.55 | M18: =INDEX(Odds!I:I,MATCH(J18,Odds!F:F,0)) -> 0 | N18: 0 | P18: =IF(Match!A18="","",Match!T18) -> Bristol R 0-2 Ipswich | R18: =IF(Odds!F18="","",Odds!F18) -> Bristol R | S18: =INDEX(Odds!G:G,MATCH(R18,Odds!F:F,0)) -> 17/10 | T18: 0 | U18: =INDEX(Match!O:O,MATCH(P18,Match!T:T,0)) -> Bristol R | V18: =INDEX(Match!F:F,MATCH(P18,Match!T:T,0)) -> 0 | W18: =INDEX(Match!P:P,MATCH(P18,Match!T:T,0)) -> Ipswich | X18: =INDEX(Match!G:G,MATCH(P18,Match!T:T,0)) -> 2 | AC18: Paul Fiddler | AD18: =INDEX(Picks!F:F,MATCH(AC18,Picks!A:A,0)) -> 1.2925 | AE18: =INDEX(Weekly!I:I,MATCH(AC18,Weekly!E:E,0)) -> 2 | AF18: =IF(AD18="","",_xlfn.RANK.EQ(AD18,TopScores,0)) -> 17 | AH18: Kei Lok Ma | AI18: =INDEX(Picks!G:G,MATCH(AH18,Picks!A:A,0)) -> 47.82375 | AJ18: =INDEX(Weekly!I:I,MATCH(AH18,Weekly!E:E,0)) -> 0 | AK18: =IF(AI18="","",_xlfn.RANK.EQ(AI18,TopMaxScores,0)) -> 15
A19: =A17 -> Andy White | B19: Chelsea draw | C19: =IF(J19="","",INDEX(Odds!B:B,MATCH(J19,Odds!F:F,0))) -> 1900-01-01 | D19: 3.7 | E19: x | J19: Chelsea draw | K19: =INDEX(Odds!G:G,MATCH(J19,Odds!F:F,0)) -> 27/10 | L19: =INDEX(Odds!H:H,MATCH(J19,Odds!F:F,0)) -> 3.7 | M19: =INDEX(Odds!I:I,MATCH(J19,Odds!F:F,0)) -> 0 | N19: 0 | P19: =IF(Match!A19="","",Match!T19) -> Burton 2-1 Accrington | R19: =IF(Odds!F19="","",Odds!F19) -> Burton | S19: =INDEX(Odds!G:G,MATCH(R19,Odds!F:F,0)) -> 27/20 | T19: 1 | U19: =INDEX(Match!O:O,MATCH(P19,Match!T:T,0)) -> Burton | V19: =INDEX(Match!F:F,MATCH(P19,Match!T:T,0)) -> 2 | W19: =INDEX(Match!P:P,MATCH(P19,Match!T:T,0)) -> Accrington | X19: =INDEX(Match!G:G,MATCH(P19,Match!T:T,0)) -> 1 | AC19: Jack Walsh | AD19: =INDEX(Picks!F:F,MATCH(AC19,Picks!A:A,0)) -> 0.6307692308 | AE19: =INDEX(Weekly!I:I,MATCH(AC19,Weekly!E:E,0)) -> 2 | AF19: =IF(AD19="","",_xlfn.RANK.EQ(AD19,TopScores,0)) -> 18 | AH19: Mike Penk | AI19: =INDEX(Picks!G:G,MATCH(AH19,Picks!A:A,0)) -> 44.54 | AJ19: =INDEX(Weekly!I:I,MATCH(AH19,Weekly!E:E,0)) -> 1 | AK19: =IF(AI19="","",_xlfn.RANK.EQ(AI19,TopMaxScores,0)) -> 16
A20: =Results!B20 -> Ashley Houghton | B20: Arsenal | C20: =IF(J20="","",INDEX(Odds!B:B,MATCH(J20,Odds!F:F,0))) -> 1900-01-07 | D20: 1.5 | E20: √ | F20: =IF(J20="",-10,INDEX(Results!T:T,MATCH(A20,Results!V:V,0))) -> -0.625 | G20: =IF(J20="","",INDEX(Results!AI:AI,MATCH(A20,Results!V:V,0))) -> 14.8625 | H20: =IF(G20="",0,1) -> 1 | I20: =INDEX(Picks!AF:AF,MATCH(A20,Picks!AC:AC,0)) -> 22 | J20: Arsenal | K20: =INDEX(Odds!G:G,MATCH(J20,Odds!F:F,0)) -> 1/2 | L20: =INDEX(Odds!H:H,MATCH(J20,Odds!F:F,0)) -> 1.5 | M20: =INDEX(Odds!I:I,MATCH(J20,Odds!F:F,0)) -> 1 | N20: 1.5 | P20: =IF(Match!A20="","",Match!T20) -> Charlton 1-3 Doncaster | R20: =IF(Odds!F20="","",Odds!F20) -> Charlton | S20: =INDEX(Odds!G:G,MATCH(R20,Odds!F:F,0)) -> 1/1 | T20: 0 | U20: =INDEX(Match!O:O,MATCH(P20,Match!T:T,0)) -> Charlton | V20: =INDEX(Match!F:F,MATCH(P20,Match!T:T,0)) -> 1 | W20: =INDEX(Match!P:P,MATCH(P20,Match!T:T,0)) -> Doncaster | X20: =INDEX(Match!G:G,MATCH(P20,Match!T:T,0)) -> 3 | AC20: Gareth Powell | AD20: =INDEX(Picks!F:F,MATCH(AC20,Picks!A:A,0)) -> 0.3692307692 | AE20: =INDEX(Weekly!I:I,MATCH(AC20,Weekly!E:E,0)) -> 2 | AF20: =IF(AD20="","",_xlfn.RANK.EQ(AD20,TopScores,0)) -> 19 | AH20: Stephen Barr | AI20: =INDEX(Picks!G:G,MATCH(AH20,Picks!A:A,0)) -> 44.256 | AJ20: =INDEX(Weekly!I:I,MATCH(AH20,Weekly!E:E,0)) -> 2 | AK20: =IF(AI20="","",_xlfn.RANK.EQ(AI20,TopMaxScores,0)) -> 17
A21: =A20 -> Ashley Houghton | B21: Hull | C21: =IF(J21="","",INDEX(Odds!B:B,MATCH(J21,Odds!F:F,0))) -> 1900-01-07 | D21: 1.95 | E21: √ | J21: Hull | K21: =INDEX(Odds!G:G,MATCH(J21,Odds!F:F,0)) -> 19/20 | L21: =INDEX(Odds!H:H,MATCH(J21,Odds!F:F,0)) -> 1.95 | M21: =INDEX(Odds!I:I,MATCH(J21,Odds!F:F,0)) -> 1 | N21: 1.95 | P21: =IF(Match!A21="","",Match!T21) -> Hull 1-0 Crewe | R21: =IF(Odds!F21="","",Odds!F21) -> Hull | S21: =INDEX(Odds!G:G,MATCH(R21,Odds!F:F,0)) -> 19/20 | T21: 1 | U21: =INDEX(Match!O:O,MATCH(P21,Match!T:T,0)) -> Hull | V21: =INDEX(Match!F:F,MATCH(P21,Match!T:T,0)) -> 1 | W21: =INDEX(Match!P:P,MATCH(P21,Match!T:T,0)) -> Crewe | X21: =INDEX(Match!G:G,MATCH(P21,Match!T:T,0)) -> 0 | AC21: Steve Baxter | AD21: =INDEX(Picks!F:F,MATCH(AC21,Picks!A:A,0)) -> 0 | AE21: =INDEX(Weekly!I:I,MATCH(AC21,Weekly!E:E,0)) -> 2 | AF21: =IF(AD21="","",_xlfn.RANK.EQ(AD21,TopScores,0)) -> 20 | AH21: Alan Rogers | AI21: =INDEX(Picks!G:G,MATCH(AH21,Picks!A:A,0)) -> 43.072 | AJ21: =INDEX(Weekly!I:I,MATCH(AH21,Weekly!E:E,0)) -> 0 | AK21: =IF(AI21="","",_xlfn.RANK.EQ(AI21,TopMaxScores,0)) -> 18
A22: =A20 -> Ashley Houghton | B22: Swansea | C22: =IF(J22="","",INDEX(Odds!B:B,MATCH(J22,Odds!F:F,0))) -> 1900-01-07 | D22: 2.1 | E22: x | J22: Swansea | K22: =INDEX(Odds!G:G,MATCH(J22,Odds!F:F,0)) -> 11/10 | L22: =INDEX(Odds!H:H,MATCH(J22,Odds!F:F,0)) -> 2.1 | M22: =INDEX(Odds!I:I,MATCH(J22,Odds!F:F,0)) -> 0 | N22: 0 | P22: =IF(Match!A22="","",Match!T22) -> MK Dons 1-2 Lincoln | R22: =IF(Odds!F22="","",Odds!F22) -> MK Dons | S22: =INDEX(Odds!G:G,MATCH(R22,Odds!F:F,0)) -> 17/10 | T22: 0 | U22: =INDEX(Match!O:O,MATCH(P22,Match!T:T,0)) -> MK Dons | V22: =INDEX(Match!F:F,MATCH(P22,Match!T:T,0)) -> 1 | W22: =INDEX(Match!P:P,MATCH(P22,Match!T:T,0)) -> Lincoln | X22: =INDEX(Match!G:G,MATCH(P22,Match!T:T,0)) -> 2 | AC22: Chris Griffin | AD22: =INDEX(Picks!F:F,MATCH(AC22,Picks!A:A,0)) -> -0.2846153846 | AE22: =INDEX(Weekly!I:I,MATCH(AC22,Weekly!E:E,0)) -> 2 | AF22: =IF(AD22="","",_xlfn.RANK.EQ(AD22,TopScores,0)) -> 21 | AH22: Chris Luck | AI22: =INDEX(Picks!G:G,MATCH(AH22,Picks!A:A,0)) -> 37.45375 | AJ22: =INDEX(Weekly!I:I,MATCH(AH22,Weekly!E:E,0)) -> 2 | AK22: =IF(AI22="","",_xlfn.RANK.EQ(AI22,TopMaxScores,0)) -> 19
A23: =Results!B23 -> Barry Birchall | B23: Blackburn | C23: =IF(J23="","",INDEX(Odds!B:B,MATCH(J23,Odds!F:F,0))) -> 1900-01-07 | D23: 1.571428571 | E23: √ | F23: =IF(J23="",-10,INDEX(Results!T:T,MATCH(A23,Results!V:V,0))) -> -1.442857143 | G23: =IF(J23="","",INDEX(Results!AI:AI,MATCH(A23,Results!V:V,0))) -> 20.19571429 | H23: =IF(G23="",0,1) -> 1 | I23: =INDEX(Picks!AF:AF,MATCH(A23,Picks!AC:AC,0)) -> 26 | J23: Blackburn | K23: =INDEX(Odds!G:G,MATCH(J23,Odds!F:F,0)) -> 4/7 | L23: =INDEX(Odds!H:H,MATCH(J23,Odds!F:F,0)) -> 1.571428571 | M23: =INDEX(Odds!I:I,MATCH(J23,Odds!F:F,0)) -> 1 | N23: 1.571428571 | P23: =IF(Match!A23="","",Match!T23) -> Oxford 0-2 Sunderland | R23: =IF(Odds!F23="","",Odds!F23) -> Oxford | S23: =INDEX(Odds!G:G,MATCH(R23,Odds!F:F,0)) -> 31/20 | T23: 0 | U23: =INDEX(Match!O:O,MATCH(P23,Match!T:T,0)) -> Oxford | V23: =INDEX(Match!F:F,MATCH(P23,Match!T:T,0)) -> 0 | W23: =INDEX(Match!P:P,MATCH(P23,Match!T:T,0)) -> Sunderland | X23: =INDEX(Match!G:G,MATCH(P23,Match!T:T,0)) -> 2 | AC23: Ashley Houghton | AD23: =INDEX(Picks!F:F,MATCH(AC23,Picks!A:A,0)) -> -0.625 | AE23: =INDEX(Weekly!I:I,MATCH(AC23,Weekly!E:E,0)) -> 2 | AF23: =IF(AD23="","",_xlfn.RANK.EQ(AD23,TopScores,0)) -> 22 | AH23: Paul Allen | AI23: =INDEX(Picks!G:G,MATCH(AH23,Picks!A:A,0)) -> 37.31575 | AJ23: =INDEX(Weekly!I:I,MATCH(AH23,Weekly!E:E,0)) -> 1 | AK23: =IF(AI23="","",_xlfn.RANK.EQ(AI23,TopMaxScores,0)) -> 20
A24: =A23 -> Barry Birchall | B24: Brentford | C24: =IF(J24="","",INDEX(Odds!B:B,MATCH(J24,Odds!F:F,0))) -> 1900-01-07 | D24: 1.55 | E24: √ | J24: Brentford | K24: =INDEX(Odds!G:G,MATCH(J24,Odds!F:F,0)) -> 11/20 | L24: =INDEX(Odds!H:H,MATCH(J24,Odds!F:F,0)) -> 1.55 | M24: =INDEX(Odds!I:I,MATCH(J24,Odds!F:F,0)) -> 1 | N24: 1.55 | P24: =IF(Match!A24="","",Match!T24) -> Peterborough 2-1 Fleetwood | R24: =IF(Odds!F24="","",Odds!F24) -> Peterborough | S24: =INDEX(Odds!G:G,MATCH(R24,Odds!F:F,0)) -> 6/5 | T24: 1 | U24: =INDEX(Match!O:O,MATCH(P24,Match!T:T,0)) -> Peterborough | V24: =INDEX(Match!F:F,MATCH(P24,Match!T:T,0)) -> 2 | W24: =INDEX(Match!P:P,MATCH(P24,Match!T:T,0)) -> Fleetwood | X24: =INDEX(Match!G:G,MATCH(P24,Match!T:T,0)) -> 1 | AC24: Paul Ridgeway | AD24: =INDEX(Picks!F:F,MATCH(AC24,Picks!A:A,0)) -> -1.069230769 | AE24: =INDEX(Weekly!I:I,MATCH(AC24,Weekly!E:E,0)) -> 2 | AF24: =IF(AD24="","",_xlfn.RANK.EQ(AD24,TopScores,0)) -> 23 | AH24: Pete Baron | AI24: =INDEX(Picks!G:G,MATCH(AH24,Picks!A:A,0)) -> 36.738875 | AJ24: =INDEX(Weekly!I:I,MATCH(AH24,Weekly!E:E,0)) -> 0 | AK24: =IF(AI24="","",_xlfn.RANK.EQ(AI24,TopMaxScores,0)) -> 21
A25: =A23 -> Barry Birchall | B25: Walsall | C25: =IF(J25="","",INDEX(Odds!B:B,MATCH(J25,Odds!F:F,0))) -> 1900-01-07 | D25: 3.3 | E25: x | J25: Walsall | K25: =INDEX(Odds!G:G,MATCH(J25,Odds!F:F,0)) -> 23/10 | L25: =INDEX(Odds!H:H,MATCH(J25,Odds!F:F,0)) -> 3.3 | M25: =INDEX(Odds!I:I,MATCH(J25,Odds!F:F,0)) -> 0 | N25: 0 | P25: =IF(Match!A25="","",Match!T25) -> Shrewsbury 1-2 Northampton | R25: =IF(Odds!F25="","",Odds!F25) -> Shrewsbury | S25: =INDEX(Odds!G:G,MATCH(R25,Odds!F:F,0)) -> 6/5 | T25: 0 | U25: =INDEX(Match!O:O,MATCH(P25,Match!T:T,0)) -> Shrewsbury | V25: =INDEX(Match!F:F,MATCH(P25,Match!T:T,0)) -> 1 | W25: =INDEX(Match!P:P,MATCH(P25,Match!T:T,0)) -> Northampton | X25: =INDEX(Match!G:G,MATCH(P25,Match!T:T,0)) -> 2 | AC25: Stephen Troop | AD25: =INDEX(Picks!F:F,MATCH(AC25,Picks!A:A,0)) -> -1.330769231 | AE25: =INDEX(Weekly!I:I,MATCH(AC25,Weekly!E:E,0)) -> 2 | AF25: =IF(AD25="","",_xlfn.RANK.EQ(AD25,TopScores,0)) -> 24 | AH25: Lewis Buckley | AI25: =INDEX(Picks!G:G,MATCH(AH25,Picks!A:A,0)) -> 36.21525 | AJ25: =INDEX(Weekly!I:I,MATCH(AH25,Weekly!E:E,0)) -> 1 | AK25: =IF(AI25="","",_xlfn.RANK.EQ(AI25,TopMaxScores,0)) -> 22
A26: =Results!B26 -> Ben Rosser | B26: Arsenal draw | C26: =IF(J26="","",INDEX(Odds!B:B,MATCH(J26,Odds!F:F,0))) -> 1900-01-07 | D26: 4.4 | E26: x | F26: =IF(J26="",-10,INDEX(Results!T:T,MATCH(A26,Results!V:V,0))) -> -7 | G26: =IF(J26="","",INDEX(Results!AI:AI,MATCH(A26,Results!V:V,0))) -> 35.81714286 | H26: =IF(G26="",0,1) -> 1 | I26: =INDEX(Picks!AF:AF,MATCH(A26,Picks!AC:AC,0)) -> 53 | J26: Arsenal draw | K26: =INDEX(Odds!G:G,MATCH(J26,Odds!F:F,0)) -> 17/5 | L26: =INDEX(Odds!H:H,MATCH(J26,Odds!F:F,0)) -> 4.4 | M26: =INDEX(Odds!I:I,MATCH(J26,Odds!F:F,0)) -> 0 | N26: 0 | P26: =IF(Match!A26="","",Match!T26) -> Wimbledon 4-4 Plymouth | R26: =IF(Odds!F26="","",Odds!F26) -> Wimbledon | S26: =INDEX(Odds!G:G,MATCH(R26,Odds!F:F,0)) -> 8/5 | T26: 0 | U26: =INDEX(Match!O:O,MATCH(P26,Match!T:T,0)) -> Wimbledon | V26: =INDEX(Match!F:F,MATCH(P26,Match!T:T,0)) -> 4 | W26: =INDEX(Match!P:P,MATCH(P26,Match!T:T,0)) -> Plymouth | X26: =INDEX(Match!G:G,MATCH(P26,Match!T:T,0)) -> 4 | AC26: Martin Molyneux | AD26: =INDEX(Picks!F:F,MATCH(AC26,Picks!A:A,0)) -> -1.375 | AE26: =INDEX(Weekly!I:I,MATCH(AC26,Weekly!E:E,0)) -> 2 | AF26: =IF(AD26="","",_xlfn.RANK.EQ(AD26,TopScores,0)) -> 25 | AH26: Ben Rosser | AI26: =INDEX(Picks!G:G,MATCH(AH26,Picks!A:A,0)) -> 35.81714286 | AJ26: =INDEX(Weekly!I:I,MATCH(AH26,Weekly!E:E,0)) -> 0 | AK26: =IF(AI26="","",_xlfn.RANK.EQ(AI26,TopMaxScores,0)) -> 23
A27: =A26 -> Ben Rosser | B27: Man U | C27: =IF(J27="","",INDEX(Odds!B:B,MATCH(J27,Odds!F:F,0))) -> 1900-01-07 | D27: 1.285714286 | E27: x | J27: Man U | K27: =INDEX(Odds!G:G,MATCH(J27,Odds!F:F,0)) -> 2/7 | L27: =INDEX(Odds!H:H,MATCH(J27,Odds!F:F,0)) -> 1.285714286 | M27: =INDEX(Odds!I:I,MATCH(J27,Odds!F:F,0)) -> 0 | N27: 0 | P27: =IF(Match!A27="","",Match!T27) -> Carlisle 2-0 Southend | R27: =IF(Odds!F27="","",Odds!F27) -> Carlisle | S27: =INDEX(Odds!G:G,MATCH(R27,Odds!F:F,0)) -> 21/20 | T27: 1 | U27: =INDEX(Match!O:O,MATCH(P27,Match!T:T,0)) -> Carlisle | V27: =INDEX(Match!F:F,MATCH(P27,Match!T:T,0)) -> 2 | W27: =INDEX(Match!P:P,MATCH(P27,Match!T:T,0)) -> Southend | X27: =INDEX(Match!G:G,MATCH(P27,Match!T:T,0)) -> 0 | AC27: Nick Blocksidge | AD27: =INDEX(Picks!F:F,MATCH(AC27,Picks!A:A,0)) -> -1.442857143 | AE27: =INDEX(Weekly!I:I,MATCH(AC27,Weekly!E:E,0)) -> 2 | AF27: =IF(AD27="","",_xlfn.RANK.EQ(AD27,TopScores,0)) -> 26 | AH27: Mal Stott | AI27: =INDEX(Picks!G:G,MATCH(AH27,Picks!A:A,0)) -> 35.245 | AJ27: =INDEX(Weekly!I:I,MATCH(AH27,Weekly!E:E,0)) -> 2 | AK27: =IF(AI27="","",_xlfn.RANK.EQ(AI27,TopMaxScores,0)) -> 24
A28: =A26 -> Ben Rosser | B28: Newcastle | C28: =IF(J28="","",INDEX(Odds!B:B,MATCH(J28,Odds!F:F,0))) -> 1900-01-01 | D28: 2.55 | E28: x | J28: Newcastle | K28: =INDEX(Odds!G:G,MATCH(J28,Odds!F:F,0)) -> 31/20 | L28: =INDEX(Odds!H:H,MATCH(J28,Odds!F:F,0)) -> 2.55 | M28: =INDEX(Odds!I:I,MATCH(J28,Odds!F:F,0)) -> 0 | N28: 0 | P28: =IF(Match!A28="","",Match!T28) -> Colchester 2-0 Bolton | R28: =IF(Odds!F28="","",Odds!F28) -> Colchester | S28: =INDEX(Odds!G:G,MATCH(R28,Odds!F:F,0)) -> 13/8 | T28: 1 | U28: =INDEX(Match!O:O,MATCH(P28,Match!T:T,0)) -> Colchester | V28: =INDEX(Match!F:F,MATCH(P28,Match!T:T,0)) -> 2 | W28: =INDEX(Match!P:P,MATCH(P28,Match!T:T,0)) -> Bolton | X28: =INDEX(Match!G:G,MATCH(P28,Match!T:T,0)) -> 0 | AC28: Mo Sudell | AD28: =INDEX(Picks!F:F,MATCH(AC28,Picks!A:A,0)) -> -1.442857143 | AE28: =INDEX(Weekly!I:I,MATCH(AC28,Weekly!E:E,0)) -> 2 | AF28: =IF(AD28="","",_xlfn.RANK.EQ(AD28,TopScores,0)) -> 26 | AH28: John Evans | AI28: =INDEX(Picks!G:G,MATCH(AH28,Picks!A:A,0)) -> 34.466875 | AJ28: =INDEX(Weekly!I:I,MATCH(AH28,Weekly!E:E,0)) -> 1 | AK28: =IF(AI28="","",_xlfn.RANK.EQ(AI28,TopMaxScores,0)) -> 25
A29: =Results!B29 -> Charlie Griffiths | B29: Wimbledon draw | C29: =IF(J29="","",INDEX(Odds!B:B,MATCH(J29,Odds!F:F,0))) -> 1900-01-07 | D29: 3.3 | E29: √ | F29: =IF(J29="",-10,INDEX(Results!T:T,MATCH(A29,Results!V:V,0))) -> 10.92 | G29: =IF(J29="","",INDEX(Results!AI:AI,MATCH(A29,Results!V:V,0))) -> 73.356 | H29: =IF(G29="",0,1) -> 1 | I29: =INDEX(Picks!AF:AF,MATCH(A29,Picks!AC:AC,0)) -> 5 | J29: Wimbledon draw | K29: =INDEX(Odds!G:G,MATCH(J29,Odds!F:F,0)) -> 23/10 | L29: =INDEX(Odds!H:H,MATCH(J29,Odds!F:F,0)) -> 3.3 | M29: =INDEX(Odds!I:I,MATCH(J29,Odds!F:F,0)) -> 1 | N29: 3.3 | P29: =IF(Match!A29="","",Match!T29) -> Crawley 1-0 Scunthorpe | R29: =IF(Odds!F29="","",Odds!F29) -> Crawley | S29: =INDEX(Odds!G:G,MATCH(R29,Odds!F:F,0)) -> 13/10 | T29: 1 | U29: =INDEX(Match!O:O,MATCH(P29,Match!T:T,0)) -> Crawley | V29: =INDEX(Match!F:F,MATCH(P29,Match!T:T,0)) -> 1 | W29: =INDEX(Match!P:P,MATCH(P29,Match!T:T,0)) -> Scunthorpe | X29: =INDEX(Match!G:G,MATCH(P29,Match!T:T,0)) -> 0 | AC29: Barry Birchall | AD29: =INDEX(Picks!F:F,MATCH(AC29,Picks!A:A,0)) -> -1.442857143 | AE29: =INDEX(Weekly!I:I,MATCH(AC29,Weekly!E:E,0)) -> 2 | AF29: =IF(AD29="","",_xlfn.RANK.EQ(AD29,TopScores,0)) -> 26 | AH29: Joel Bent | AI29: =INDEX(Picks!G:G,MATCH(AH29,Picks!A:A,0)) -> 34.1615 | AJ29: =INDEX(Weekly!I:I,MATCH(AH29,Weekly!E:E,0)) -> 1 | AK29: =IF(AI29="","",_xlfn.RANK.EQ(AI29,TopMaxScores,0)) -> 26
A30: =A29 -> Charlie Griffiths | B30: Northampton | C30: =IF(J30="","",INDEX(Odds!B:B,MATCH(J30,Odds!F:F,0))) -> 1900-01-07 | D30: 3.4 | E30: √ | J30: Northampton | K30: =INDEX(Odds!G:G,MATCH(J30,Odds!F:F,0)) -> 12/5 | L30: =INDEX(Odds!H:H,MATCH(J30,Odds!F:F,0)) -> 3.4 | M30: =INDEX(Odds!I:I,MATCH(J30,Odds!F:F,0)) -> 1 | N30: 3.4 | P30: =IF(Match!A30="","",Match!T30) -> Exeter 0-2 Port Vale | R30: =IF(Odds!F30="","",Odds!F30) -> Exeter | S30: =INDEX(Odds!G:G,MATCH(R30,Odds!F:F,0)) -> 5/4 | T30: 0 | U30: =INDEX(Match!O:O,MATCH(P30,Match!T:T,0)) -> Exeter | V30: =INDEX(Match!F:F,MATCH(P30,Match!T:T,0)) -> 0 | W30: =INDEX(Match!P:P,MATCH(P30,Match!T:T,0)) -> Port Vale | X30: =INDEX(Match!G:G,MATCH(P30,Match!T:T,0)) -> 2 | AC30: David Dunn | AD30: =INDEX(Picks!F:F,MATCH(AC30,Picks!A:A,0)) -> -1.461538462 | AE30: =INDEX(Weekly!I:I,MATCH(AC30,Weekly!E:E,0)) -> 2 | AF30: =IF(AD30="","",_xlfn.RANK.EQ(AD30,TopScores,0)) -> 29 | AH30: Gareth McGuire | AI30: =INDEX(Picks!G:G,MATCH(AH30,Picks!A:A,0)) -> 30.74825 | AJ30: =INDEX(Weekly!I:I,MATCH(AH30,Weekly!E:E,0)) -> 1 | AK30: =IF(AI30="","",_xlfn.RANK.EQ(AI30,TopMaxScores,0)) -> 27
A31: =A29 -> Charlie Griffiths | B31: Walsall | C31: =IF(J31="","",INDEX(Odds!B:B,MATCH(J31,Odds!F:F,0))) -> 1900-01-07 | D31: 3.3 | E31: x | J31: Walsall | K31: =INDEX(Odds!G:G,MATCH(J31,Odds!F:F,0)) -> 23/10 | L31: =INDEX(Odds!H:H,MATCH(J31,Odds!F:F,0)) -> 3.3 | M31: =INDEX(Odds!I:I,MATCH(J31,Odds!F:F,0)) -> 0 | N31: 0 | P31: =IF(Match!A31="","",Match!T31) -> Forest Green 2-2 Bradford | R31: =IF(Odds!F31="","",Odds!F31) -> Forest Green | S31: =INDEX(Odds!G:G,MATCH(R31,Odds!F:F,0)) -> 13/10 | T31: 0 | U31: =INDEX(Match!O:O,MATCH(P31,Match!T:T,0)) -> Forest Green | V31: =INDEX(Match!F:F,MATCH(P31,Match!T:T,0)) -> 2 | W31: =INDEX(Match!P:P,MATCH(P31,Match!T:T,0)) -> Bradford | X31: =INDEX(Match!G:G,MATCH(P31,Match!T:T,0)) -> 2 | AC31: Paul Adderley | AD31: =INDEX(Picks!F:F,MATCH(AC31,Picks!A:A,0)) -> -1.461538462 | AE31: =INDEX(Weekly!I:I,MATCH(AC31,Weekly!E:E,0)) -> 2 | AF31: =IF(AD31="","",_xlfn.RANK.EQ(AD31,TopScores,0)) -> 29 | AH31: Andy Charleston | AI31: =INDEX(Picks!G:G,MATCH(AH31,Picks!A:A,0)) -> 29.96725 | AJ31: =INDEX(Weekly!I:I,MATCH(AH31,Weekly!E:E,0)) -> 1 | AK31: =IF(AI31="","",_xlfn.RANK.EQ(AI31,TopMaxScores,0)) -> 28
A32: =Results!B32 -> Chris Bow | B32: Palace | C32: =IF(J32="","",INDEX(Odds!B:B,MATCH(J32,Odds!F:F,0))) -> 1900-01-07 | D32: 11 | E32: √ | F32: =IF(J32="",-10,INDEX(Results!T:T,MATCH(A32,Results!V:V,0))) -> 150.1 | G32: =IF(J32="","",INDEX(Results!AI:AI,MATCH(A32,Results!V:V,0))) -> 150.1 | H32: =IF(G32="",0,1) -> 1 | I32: =INDEX(Picks!AF:AF,MATCH(A32,Picks!AC:AC,0)) -> 3 | J32: Palace | K32: =INDEX(Odds!G:G,MATCH(J32,Odds!F:F,0)) -> 10/1 | L32: =INDEX(Odds!H:H,MATCH(J32,Odds!F:F,0)) -> 11 | M32: =INDEX(Odds!I:I,MATCH(J32,Odds!F:F,0)) -> 1 | N32: 11 | P32: =IF(Match!A32="","",Match!T32) -> Grimsby 0-4 Salford | R32: =IF(Odds!F32="","",Odds!F32) -> Grimsby | S32: =INDEX(Odds!G:G,MATCH(R32,Odds!F:F,0)) -> 21/10 | T32: 0 | U32: =INDEX(Match!O:O,MATCH(P32,Match!T:T,0)) -> Grimsby | V32: =INDEX(Match!F:F,MATCH(P32,Match!T:T,0)) -> 0 | W32: =INDEX(Match!P:P,MATCH(P32,Match!T:T,0)) -> Salford | X32: =INDEX(Match!G:G,MATCH(P32,Match!T:T,0)) -> 4 | AC32: Alan White | AD32: =INDEX(Picks!F:F,MATCH(AC32,Picks!A:A,0)) -> -1.625 | AE32: =INDEX(Weekly!I:I,MATCH(AC32,Weekly!E:E,0)) -> 2 | AF32: =IF(AD32="","",_xlfn.RANK.EQ(AD32,TopScores,0)) -> 31 | AH32: Rob England | AI32: =INDEX(Picks!G:G,MATCH(AH32,Picks!A:A,0)) -> 29.555 | AJ32: =INDEX(Weekly!I:I,MATCH(AH32,Weekly!E:E,0)) -> 1 | AK32: =IF(AI32="","",_xlfn.RANK.EQ(AI32,TopMaxScores,0)) -> 29
A33: =A32 -> Chris Bow | B33: Luton | C33: =IF(J33="","",INDEX(Odds!B:B,MATCH(J33,Odds!F:F,0))) -> 1900-01-07 | D33: 2.875 | E33: √ | J33: Luton | K33: =INDEX(Odds!G:G,MATCH(J33,Odds!F:F,0)) -> 15/8 | L33: =INDEX(Odds!H:H,MATCH(J33,Odds!F:F,0)) -> 2.875 | M33: =INDEX(Odds!I:I,MATCH(J33,Odds!F:F,0)) -> 1 | N33: 2.875 | P33: =IF(Match!A33="","",Match!T33) -> Harrogate 2-2 Walsall | R33: =IF(Odds!F33="","",Odds!F33) -> Harrogate | S33: =INDEX(Odds!G:G,MATCH(R33,Odds!F:F,0)) -> 6/5 | T33: 0 | U33: =INDEX(Match!O:O,MATCH(P33,Match!T:T,0)) -> Harrogate | V33: =INDEX(Match!F:F,MATCH(P33,Match!T:T,0)) -> 2 | W33: =INDEX(Match!P:P,MATCH(P33,Match!T:T,0)) -> Walsall | X33: =INDEX(Match!G:G,MATCH(P33,Match!T:T,0)) -> 2 | AC33: Ian Davies | AD33: =INDEX(Picks!F:F,MATCH(AC33,Picks!A:A,0)) -> -4.125 | AE33: =INDEX(Weekly!I:I,MATCH(AC33,Weekly!E:E,0)) -> 1 | AF33: =IF(AD33="","",_xlfn.RANK.EQ(AD33,TopScores,0)) -> 32 | AH33: Lennie Bow | AI33: =INDEX(Picks!G:G,MATCH(AH33,Picks!A:A,0)) -> 29.54875 | AJ33: =INDEX(Weekly!I:I,MATCH(AH33,Weekly!E:E,0)) -> 2 | AK33: =IF(AI33="","",_xlfn.RANK.EQ(AI33,TopMaxScores,0)) -> 30
A34: =A32 -> Chris Bow | B34: Reading | C34: =IF(J34="","",INDEX(Odds!B:B,MATCH(J34,Odds!F:F,0))) -> 1900-01-07 | D34: 2.4 | E34: √ | J34: Reading | K34: =INDEX(Odds!G:G,MATCH(J34,Odds!F:F,0)) -> 7/5 | L34: =INDEX(Odds!H:H,MATCH(J34,Odds!F:F,0)) -> 2.4 | M34: =INDEX(Odds!I:I,MATCH(J34,Odds!F:F,0)) -> 1 | N34: 2.4 | P34: =IF(Match!A34="","",Match!T34) -> Morecambe 0-5 Cambridge | R34: =IF(Odds!F34="","",Odds!F34) -> Morecambe | S34: =INDEX(Odds!G:G,MATCH(R34,Odds!F:F,0)) -> 27/20 | T34: 0 | U34: =INDEX(Match!O:O,MATCH(P34,Match!T:T,0)) -> Morecambe | V34: =INDEX(Match!F:F,MATCH(P34,Match!T:T,0)) -> 0 | W34: =INDEX(Match!P:P,MATCH(P34,Match!T:T,0)) -> Cambridge | X34: =INDEX(Match!G:G,MATCH(P34,Match!T:T,0)) -> 5 | AC34: Mike Penk | AD34: =INDEX(Picks!F:F,MATCH(AC34,Picks!A:A,0)) -> -4.3 | AE34: =INDEX(Weekly!I:I,MATCH(AC34,Weekly!E:E,0)) -> 1 | AF34: =IF(AD34="","",_xlfn.RANK.EQ(AD34,TopScores,0)) -> 33 | AH34: Martin Tarbuck | AI34: =INDEX(Picks!G:G,MATCH(AH34,Picks!A:A,0)) -> 29.488 | AJ34: =INDEX(Weekly!I:I,MATCH(AH34,Weekly!E:E,0)) -> 1 | AK34: =IF(AI34="","",_xlfn.RANK.EQ(AI34,TopMaxScores,0)) -> 31
A35: =Results!B35 -> Chris Griffin | B35: Hull | C35: =IF(J35="","",INDEX(Odds!B:B,MATCH(J35,Odds!F:F,0))) -> 1900-01-07 | D35: 1.95 | E35: √ | F35: =IF(J35="",-10,INDEX(Results!T:T,MATCH(A35,Results!V:V,0))) -> -0.2846153846 | G35: =IF(J35="","",INDEX(Results!AI:AI,MATCH(A35,Results!V:V,0))) -> 13.60307692 | H35: =IF(G35="",0,1) -> 1 | I35: =INDEX(Picks!AF:AF,MATCH(A35,Picks!AC:AC,0)) -> 21 | J35: Hull | K35: =INDEX(Odds!G:G,MATCH(J35,Odds!F:F,0)) -> 19/20 | L35: =INDEX(Odds!H:H,MATCH(J35,Odds!F:F,0)) -> 1.95 | M35: =INDEX(Odds!I:I,MATCH(J35,Odds!F:F,0)) -> 1 | N35: 1.95 | P35: =IF(Match!A35="","",Match!T35) -> Newport 2-1 Barrow | R35: =IF(Odds!F35="","",Odds!F35) -> Newport | S35: =INDEX(Odds!G:G,MATCH(R35,Odds!F:F,0)) -> 5/4 | T35: 1 | U35: =INDEX(Match!O:O,MATCH(P35,Match!T:T,0)) -> Newport | V35: =INDEX(Match!F:F,MATCH(P35,Match!T:T,0)) -> 2 | W35: =INDEX(Match!P:P,MATCH(P35,Match!T:T,0)) -> Barrow | X35: =INDEX(Match!G:G,MATCH(P35,Match!T:T,0)) -> 1 | AC35: John Evans | AD35: =INDEX(Picks!F:F,MATCH(AC35,Picks!A:A,0)) -> -4.375 | AE35: =INDEX(Weekly!I:I,MATCH(AC35,Weekly!E:E,0)) -> 1 | AF35: =IF(AD35="","",_xlfn.RANK.EQ(AD35,TopScores,0)) -> 34 | AH35: Dave Orrell | AI35: =INDEX(Picks!G:G,MATCH(AH35,Picks!A:A,0)) -> 28.50625 | AJ35: =INDEX(Weekly!I:I,MATCH(AH35,Weekly!E:E,0)) -> 3 | AK35: =IF(AI35="","",_xlfn.RANK.EQ(AI35,TopMaxScores,0)) -> 32
A36: =A35 -> Chris Griffin | B36: Norwich | C36: =IF(J36="","",INDEX(Odds!B:B,MATCH(J36,Odds!F:F,0))) -> 1900-01-07 | D36: 1.8 | E36: x | J36: Norwich | K36: =INDEX(Odds!G:G,MATCH(J36,Odds!F:F,0)) -> 4/5 | L36: =INDEX(Odds!H:H,MATCH(J36,Odds!F:F,0)) -> 1.8 | M36: =INDEX(Odds!I:I,MATCH(J36,Odds!F:F,0)) -> 0 | N36: 0 | P36: =IF(Match!A36="","",Match!T36) -> Orient 2-2 Mansfield | R36: =IF(Odds!F36="","",Odds!F36) -> Orient | S36: =INDEX(Odds!G:G,MATCH(R36,Odds!F:F,0)) -> 9/5 | T36: 0 | U36: =INDEX(Match!O:O,MATCH(P36,Match!T:T,0)) -> Orient | V36: =INDEX(Match!F:F,MATCH(P36,Match!T:T,0)) -> 2 | W36: =INDEX(Match!P:P,MATCH(P36,Match!T:T,0)) -> Mansfield | X36: =INDEX(Match!G:G,MATCH(P36,Match!T:T,0)) -> 2 | AC36: Rob England | AD36: =INDEX(Picks!F:F,MATCH(AC36,Picks!A:A,0)) -> -4.375 | AE36: =INDEX(Weekly!I:I,MATCH(AC36,Weekly!E:E,0)) -> 1 | AF36: =IF(AD36="","",_xlfn.RANK.EQ(AD36,TopScores,0)) -> 34 | AH36: Paul Fiddler | AI36: =INDEX(Picks!G:G,MATCH(AH36,Picks!A:A,0)) -> 28.24075 | AJ36: =INDEX(Weekly!I:I,MATCH(AH36,Weekly!E:E,0)) -> 2 | AK36: =IF(AI36="","",_xlfn.RANK.EQ(AI36,TopMaxScores,0)) -> 33
A37: =A35 -> Chris Griffin | B37: Leeds | C37: =IF(J37="","",INDEX(Odds!B:B,MATCH(J37,Odds!F:F,0))) -> 1900-01-07 | D37: 1.615384615 | E37: √ | J37: Leeds | K37: =INDEX(Odds!G:G,MATCH(J37,Odds!F:F,0)) -> 8/13 | L37: =INDEX(Odds!H:H,MATCH(J37,Odds!F:F,0)) -> 1.615384615 | M37: =INDEX(Odds!I:I,MATCH(J37,Odds!F:F,0)) -> 1 | N37: 1.615384615 | P37: =IF(Match!A37="","",Match!T37) -> Stevenage 3-0 Oldham | R37: =IF(Odds!F37="","",Odds!F37) -> Stevenage | S37: =INDEX(Odds!G:G,MATCH(R37,Odds!F:F,0)) -> 7/5 | T37: 1 | U37: =INDEX(Match!O:O,MATCH(P37,Match!T:T,0)) -> Stevenage | V37: =INDEX(Match!F:F,MATCH(P37,Match!T:T,0)) -> 3 | W37: =INDEX(Match!P:P,MATCH(P37,Match!T:T,0)) -> Oldham | X37: =INDEX(Match!G:G,MATCH(P37,Match!T:T,0)) -> 0 | AC37: Andy White | AD37: =INDEX(Picks!F:F,MATCH(AC37,Picks!A:A,0)) -> -4.55 | AE37: =INDEX(Weekly!I:I,MATCH(AC37,Weekly!E:E,0)) -> 1 | AF37: =IF(AD37="","",_xlfn.RANK.EQ(AD37,TopScores,0)) -> 36 | AH37: Vinny Topping | AI37: =INDEX(Picks!G:G,MATCH(AH37,Picks!A:A,0)) -> 27.4 | AJ37: =INDEX(Weekly!I:I,MATCH(AH37,Weekly!E:E,0)) -> 2 | AK37: =IF(AI37="","",_xlfn.RANK.EQ(AI37,TopMaxScores,0)) -> 34
A38: =Results!B38 -> Chris Luck | B38: Forest | C38: =IF(J38="","",INDEX(Odds!B:B,MATCH(J38,Odds!F:F,0))) -> 1900-01-07 | D38: 2.45 | E38: x | F38: =IF(J38="",-10,INDEX(Results!T:T,MATCH(A38,Results!V:V,0))) -> 5.175 | G38: =IF(J38="","",INDEX(Results!AI:AI,MATCH(A38,Results!V:V,0))) -> 37.45375 | H38: =IF(G38="",0,1) -> 1 | I38: =INDEX(Picks!AF:AF,MATCH(A38,Picks!AC:AC,0)) -> 11 | J38: Forest | K38: =INDEX(Odds!G:G,MATCH(J38,Odds!F:F,0)) -> 29/20 | L38: =INDEX(Odds!H:H,MATCH(J38,Odds!F:F,0)) -> 2.45 | M38: =INDEX(Odds!I:I,MATCH(J38,Odds!F:F,0)) -> 0 | N38: 0 | P38: =IF(Match!A38="","",Match!T38) -> Tranmere 0-3 Cheltenham | R38: =IF(Odds!F38="","",Odds!F38) -> Tranmere | S38: =INDEX(Odds!G:G,MATCH(R38,Odds!F:F,0)) -> 13/10 | T38: 0 | U38: =INDEX(Match!O:O,MATCH(P38,Match!T:T,0)) -> Tranmere | V38: =INDEX(Match!F:F,MATCH(P38,Match!T:T,0)) -> 0 | W38: =INDEX(Match!P:P,MATCH(P38,Match!T:T,0)) -> Cheltenham | X38: =INDEX(Match!G:G,MATCH(P38,Match!T:T,0)) -> 3 | AC38: Andy Charleston | AD38: =INDEX(Picks!F:F,MATCH(AC38,Picks!A:A,0)) -> -4.55 | AE38: =INDEX(Weekly!I:I,MATCH(AC38,Weekly!E:E,0)) -> 1 | AF38: =IF(AD38="","",_xlfn.RANK.EQ(AD38,TopScores,0)) -> 36 | AH38: Jack Walsh | AI38: =INDEX(Picks!G:G,MATCH(AH38,Picks!A:A,0)) -> 27.38615385 | AJ38: =INDEX(Weekly!I:I,MATCH(AH38,Weekly!E:E,0)) -> 2 | AK38: =IF(AI38="","",_xlfn.RANK.EQ(AI38,TopMaxScores,0)) -> 35
A39: =A38 -> Chris Luck | B39: Luton | C39: =IF(J39="","",INDEX(Odds!B:B,MATCH(J39,Odds!F:F,0))) -> 1900-01-07 | D39: 2.875 | E39: √ | J39: Luton | K39: =INDEX(Odds!G:G,MATCH(J39,Odds!F:F,0)) -> 15/8 | L39: =INDEX(Odds!H:H,MATCH(J39,Odds!F:F,0)) -> 2.875 | M39: =INDEX(Odds!I:I,MATCH(J39,Odds!F:F,0)) -> 1 | N39: 2.875 | P39: =IF(Match!A39="","",Match!T39) -> Chelsea 0-2 Liverpool | R39: =IF(Odds!F39="","",Odds!F39) -> Chelsea | S39: =INDEX(Odds!G:G,MATCH(R39,Odds!F:F,0)) -> 21/10 | T39: 0 | U39: =INDEX(Match!O:O,MATCH(P39,Match!T:T,0)) -> Chelsea | V39: =INDEX(Match!F:F,MATCH(P39,Match!T:T,0)) -> 0 | W39: =INDEX(Match!P:P,MATCH(P39,Match!T:T,0)) -> Liverpool | X39: =INDEX(Match!G:G,MATCH(P39,Match!T:T,0)) -> 2 | AC39: Paul Allen | AD39: =INDEX(Picks!F:F,MATCH(AC39,Picks!A:A,0)) -> -4.55 | AE39: =INDEX(Weekly!I:I,MATCH(AC39,Weekly!E:E,0)) -> 1 | AF39: =IF(AD39="","",_xlfn.RANK.EQ(AD39,TopScores,0)) -> 36 | AH39: John Ronan | AI39: =INDEX(Picks!G:G,MATCH(AH39,Picks!A:A,0)) -> 26.66575 | AJ39: =INDEX(Weekly!I:I,MATCH(AH39,Weekly!E:E,0)) -> 1 | AK39: =IF(AI39="","",_xlfn.RANK.EQ(AI39,TopMaxScores,0)) -> 36
A40: =A38 -> Chris Luck | B40: Reading | C40: =IF(J40="","",INDEX(Odds!B:B,MATCH(J40,Odds!F:F,0))) -> 1900-01-07 | D40: 2.4 | E40: √ | J40: Reading | K40: =INDEX(Odds!G:G,MATCH(J40,Odds!F:F,0)) -> 7/5 | L40: =INDEX(Odds!H:H,MATCH(J40,Odds!F:F,0)) -> 2.4 | M40: =INDEX(Odds!I:I,MATCH(J40,Odds!F:F,0)) -> 1 | N40: 2.4 | P40: =IF(Match!A40="","",Match!T40) -> Leicester 4-2 Burnley | R40: =IF(Odds!F40="","",Odds!F40) -> Leicester | S40: =INDEX(Odds!G:G,MATCH(R40,Odds!F:F,0)) -> 13/20 | T40: 1 | U40: =INDEX(Match!O:O,MATCH(P40,Match!T:T,0)) -> Leicester | V40: =INDEX(Match!F:F,MATCH(P40,Match!T:T,0)) -> 4 | W40: =INDEX(Match!P:P,MATCH(P40,Match!T:T,0)) -> Burnley | X40: =INDEX(Match!G:G,MATCH(P40,Match!T:T,0)) -> 2 | AC40: Steve Carter | AD40: =INDEX(Picks!F:F,MATCH(AC40,Picks!A:A,0)) -> -4.6 | AE40: =INDEX(Weekly!I:I,MATCH(AC40,Weekly!E:E,0)) -> 1 | AF40: =IF(AD40="","",_xlfn.RANK.EQ(AD40,TopScores,0)) -> 39 | AH40: Oscar Jackson | AI40: =INDEX(Picks!G:G,MATCH(AH40,Picks!A:A,0)) -> 25.825 | AJ40: =INDEX(Weekly!I:I,MATCH(AH40,Weekly!E:E,0)) -> 1 | AK40: =IF(AI40="","",_xlfn.RANK.EQ(AI40,TopMaxScores,0)) -> 37
A41: =Results!B41 -> Chris Townsend | B41: Burnley | C41: =IF(J41="","",INDEX(Odds!B:B,MATCH(J41,Odds!F:F,0))) -> 1900-01-01 | D41: 5.5 | E41: x | F41: =IF(J41="",-10,INDEX(Results!T:T,MATCH(A41,Results!V:V,0))) -> 4 | G41: =IF(J41="","",INDEX(Results!AI:AI,MATCH(A41,Results!V:V,0))) -> 538 | H41: =IF(G41="",0,1) -> 1 | I41: =INDEX(Picks!AF:AF,MATCH(A41,Picks!AC:AC,0)) -> 12 | J41: Burnley | K41: =INDEX(Odds!G:G,MATCH(J41,Odds!F:F,0)) -> 9/2 | L41: =INDEX(Odds!H:H,MATCH(J41,Odds!F:F,0)) -> 5.5 | M41: =INDEX(Odds!I:I,MATCH(J41,Odds!F:F,0)) -> 0 | N41: 0 | P41: =IF(Match!A41="","",Match!T41) -> Newcastle 0-3 Brighton | R41: =IF(Odds!F41="","",Odds!F41) -> Newcastle | S41: =INDEX(Odds!G:G,MATCH(R41,Odds!F:F,0)) -> 31/20 | T41: 0 | U41: =INDEX(Match!O:O,MATCH(P41,Match!T:T,0)) -> Newcastle | V41: =INDEX(Match!F:F,MATCH(P41,Match!T:T,0)) -> 0 | W41: =INDEX(Match!P:P,MATCH(P41,Match!T:T,0)) -> Brighton | X41: =INDEX(Match!G:G,MATCH(P41,Match!T:T,0)) -> 3 | AC41: Mark Bunn | AD41: =INDEX(Picks!F:F,MATCH(AC41,Picks!A:A,0)) -> -4.6 | AE41: =INDEX(Weekly!I:I,MATCH(AC41,Weekly!E:E,0)) -> 1 | AF41: =IF(AD41="","",_xlfn.RANK.EQ(AD41,TopScores,0)) -> 39 | AH41: Steve Carter | AI41: =INDEX(Picks!G:G,MATCH(AH41,Picks!A:A,0)) -> 25.796 | AJ41: =INDEX(Weekly!I:I,MATCH(AH41,Weekly!E:E,0)) -> 1 | AK41: =IF(AI41="","",_xlfn.RANK.EQ(AI41,TopMaxScores,0)) -> 38
A42: =A41 -> Chris Townsend | B42: Palace | C42: =IF(J42="","",INDEX(Odds!B:B,MATCH(J42,Odds!F:F,0))) -> 1900-01-07 | D42: 11 | E42: √ | J42: Palace | K42: =INDEX(Odds!G:G,MATCH(J42,Odds!F:F,0)) -> 10/1 | L42: =INDEX(Odds!H:H,MATCH(J42,Odds!F:F,0)) -> 11 | M42: =INDEX(Odds!I:I,MATCH(J42,Odds!F:F,0)) -> 1 | N42: 11 | P42: =IF(Match!A42="","",Match!T42) -> Southampton 2-5 Spurs | R42: =IF(Odds!F42="","",Odds!F42) -> Southampton | S42: =INDEX(Odds!G:G,MATCH(R42,Odds!F:F,0)) -> 2/1 | T42: 0 | U42: =INDEX(Match!O:O,MATCH(P42,Match!T:T,0)) -> Southampton | V42: =INDEX(Match!F:F,MATCH(P42,Match!T:T,0)) -> 2 | W42: =INDEX(Match!P:P,MATCH(P42,Match!T:T,0)) -> Spurs | X42: =INDEX(Match!G:G,MATCH(P42,Match!T:T,0)) -> 5 | AC42: Phil Miller | AD42: =INDEX(Picks!F:F,MATCH(AC42,Picks!A:A,0)) -> -4.7 | AE42: =INDEX(Weekly!I:I,MATCH(AC42,Weekly!E:E,0)) -> 1 | AF42: =IF(AD42="","",_xlfn.RANK.EQ(AD42,TopScores,0)) -> 41 | AH42: Nick Blocksidge | AI42: =INDEX(Picks!G:G,MATCH(AH42,Picks!A:A,0)) -> 24.78571429 | AJ42: =INDEX(Weekly!I:I,MATCH(AH42,Weekly!E:E,0)) -> 2 | AK42: =IF(AI42="","",_xlfn.RANK.EQ(AI42,TopMaxScores,0)) -> 39
A43: =A41 -> Chris Townsend | B43: West Brom | C43: =IF(J43="","",INDEX(Odds!B:B,MATCH(J43,Odds!F:F,0))) -> 1900-01-07 | D43: 6 | E43: x | J43: West Brom | K43: =INDEX(Odds!G:G,MATCH(J43,Odds!F:F,0)) -> 5/1 | L43: =INDEX(Odds!H:H,MATCH(J43,Odds!F:F,0)) -> 6 | M43: =INDEX(Odds!I:I,MATCH(J43,Odds!F:F,0)) -> 0 | N43: 0 | P43: =IF(Match!A43="","",Match!T43) -> Stoke 0-2 Bristol C | R43: =IF(Odds!F43="","",Odds!F43) -> Stoke | S43: =INDEX(Odds!G:G,MATCH(R43,Odds!F:F,0)) -> 11/10 | T43: 0 | U43: =INDEX(Match!O:O,MATCH(P43,Match!T:T,0)) -> Stoke | V43: =INDEX(Match!F:F,MATCH(P43,Match!T:T,0)) -> 0 | W43: =INDEX(Match!P:P,MATCH(P43,Match!T:T,0)) -> Bristol C | X43: =INDEX(Match!G:G,MATCH(P43,Match!T:T,0)) -> 2 | AC43: Martin Tarbuck | AD43: =INDEX(Picks!F:F,MATCH(AC43,Picks!A:A,0)) -> -4.7 | AE43: =INDEX(Weekly!I:I,MATCH(AC43,Weekly!E:E,0)) -> 1 | AF43: =IF(AD43="","",_xlfn.RANK.EQ(AD43,TopScores,0)) -> 41 | AH43: Graham Miller | AI43: =INDEX(Picks!G:G,MATCH(AH43,Picks!A:A,0)) -> 23.4175 | AJ43: =INDEX(Weekly!I:I,MATCH(AH43,Weekly!E:E,0)) -> 1 | AK43: =IF(AI43="","",_xlfn.RANK.EQ(AI43,TopMaxScores,0)) -> 40
A44: =Results!B44 -> Dan Baxter | B44: Arsenal draw | C44: =IF(J44="","",INDEX(Odds!B:B,MATCH(J44,Odds!F:F,0))) -> 1900-01-07 | D44: 4.4 | E44: x | F44: =IF(J44="",-10,INDEX(Results!T:T,MATCH(A44,Results!V:V,0))) -> -7 | G44: =IF(J44="","",INDEX(Results!AI:AI,MATCH(A44,Results!V:V,0))) -> 60.04 | H44: =IF(G44="",0,1) -> 1 | I44: =INDEX(Picks!AF:AF,MATCH(A44,Picks!AC:AC,0)) -> 53 | J44: Arsenal draw | K44: =INDEX(Odds!G:G,MATCH(J44,Odds!F:F,0)) -> 17/5 | L44: =INDEX(Odds!H:H,MATCH(J44,Odds!F:F,0)) -> 4.4 | M44: =INDEX(Odds!I:I,MATCH(J44,Odds!F:F,0)) -> 0 | N44: 0 | P44: =IF(Match!A44="","",Match!T44) -> Rochdale 0-0 Portsmouth | R44: =IF(Odds!F44="","",Odds!F44) -> Rochdale | S44: =INDEX(Odds!G:G,MATCH(R44,Odds!F:F,0)) -> 15/4 | T44: 0 | U44: =INDEX(Match!O:O,MATCH(P44,Match!T:T,0)) -> Rochdale | V44: =INDEX(Match!F:F,MATCH(P44,Match!T:T,0)) -> 0 | W44: =INDEX(Match!P:P,MATCH(P44,Match!T:T,0)) -> Portsmouth | X44: =INDEX(Match!G:G,MATCH(P44,Match!T:T,0)) -> 0 | AC44: Liam Wah | AD44: =INDEX(Picks!F:F,MATCH(AC44,Picks!A:A,0)) -> -4.8 | AE44: =INDEX(Weekly!I:I,MATCH(AC44,Weekly!E:E,0)) -> 1 | AF44: =IF(AD44="","",_xlfn.RANK.EQ(AD44,TopScores,0)) -> 43 | AH44: Martin Molyneux | AI44: =INDEX(Picks!G:G,MATCH(AH44,Picks!A:A,0)) -> 23.1375 | AJ44: =INDEX(Weekly!I:I,MATCH(AH44,Weekly!E:E,0)) -> 2 | AK44: =IF(AI44="","",_xlfn.RANK.EQ(AI44,TopMaxScores,0)) -> 41
A45: =A44 -> Dan Baxter | B45: Norwich | C45: =IF(J45="","",INDEX(Odds!B:B,MATCH(J45,Odds!F:F,0))) -> 1900-01-07 | D45: 1.8 | E45: x | J45: Norwich | K45: =INDEX(Odds!G:G,MATCH(J45,Odds!F:F,0)) -> 4/5 | L45: =INDEX(Odds!H:H,MATCH(J45,Odds!F:F,0)) -> 1.8 | M45: =INDEX(Odds!I:I,MATCH(J45,Odds!F:F,0)) -> 0 | N45: 0 | P45: =IF(Match!A45="","",Match!T45) ->  | R45: =IF(Odds!F45="","",Odds!F45) ->  | S45: =INDEX(Odds!G:G,MATCH(R45,Odds!F:F,0)) ->  | U45: =INDEX(Match!O:O,MATCH(P45,Match!T:T,0)) ->  | V45: =INDEX(Match!F:F,MATCH(P45,Match!T:T,0)) ->  | W45: =INDEX(Match!P:P,MATCH(P45,Match!T:T,0)) ->  | X45: =INDEX(Match!G:G,MATCH(P45,Match!T:T,0)) ->  | AC45: John Ronan | AD45: =INDEX(Picks!F:F,MATCH(AC45,Picks!A:A,0)) -> -4.85 | AE45: =INDEX(Weekly!I:I,MATCH(AC45,Weekly!E:E,0)) -> 1 | AF45: =IF(AD45="","",_xlfn.RANK.EQ(AD45,TopScores,0)) -> 44 | AH45: Nigel Heyes | AI45: =INDEX(Picks!G:G,MATCH(AH45,Picks!A:A,0)) -> 22.09 | AJ45: =INDEX(Weekly!I:I,MATCH(AH45,Weekly!E:E,0)) -> 2 | AK45: =IF(AI45="","",_xlfn.RANK.EQ(AI45,TopMaxScores,0)) -> 42
A46: =A44 -> Dan Baxter | B46: Swindon | C46: =IF(J46="","",INDEX(Odds!B:B,MATCH(J46,Odds!F:F,0))) -> 1900-01-07 | D46: 3.5 | E46: x | J46: Swindon | K46: =INDEX(Odds!G:G,MATCH(J46,Odds!F:F,0)) -> 5/2 | L46: =INDEX(Odds!H:H,MATCH(J46,Odds!F:F,0)) -> 3.5 | M46: =INDEX(Odds!I:I,MATCH(J46,Odds!F:F,0)) -> 0 | N46: 0 | P46: =IF(Match!A46="","",Match!T46) ->  | R46: =IF(Odds!F46="","",Odds!F46) ->  | S46: =INDEX(Odds!G:G,MATCH(R46,Odds!F:F,0)) ->  | U46: =INDEX(Match!O:O,MATCH(P46,Match!T:T,0)) ->  | V46: =INDEX(Match!F:F,MATCH(P46,Match!T:T,0)) ->  | W46: =INDEX(Match!P:P,MATCH(P46,Match!T:T,0)) ->  | X46: =INDEX(Match!G:G,MATCH(P46,Match!T:T,0)) ->  | AC46: Graham Miller | AD46: =INDEX(Picks!F:F,MATCH(AC46,Picks!A:A,0)) -> -5.05 | AE46: =INDEX(Weekly!I:I,MATCH(AC46,Weekly!E:E,0)) -> 1 | AF46: =IF(AD46="","",_xlfn.RANK.EQ(AD46,TopScores,0)) -> 45 | AH46: Barry Birchall | AI46: =INDEX(Picks!G:G,MATCH(AH46,Picks!A:A,0)) -> 20.19571429 | AJ46: =INDEX(Weekly!I:I,MATCH(AH46,Weekly!E:E,0)) -> 2 | AK46: =IF(AI46="","",_xlfn.RANK.EQ(AI46,TopMaxScores,0)) -> 43
A47: =Results!B47 -> Dave Bell | B47: West Brom | C47: =IF(J47="","",INDEX(Odds!B:B,MATCH(J47,Odds!F:F,0))) -> 1900-01-07 | D47: 6 | E47: x | F47: =IF(J47="",-10,INDEX(Results!T:T,MATCH(A47,Results!V:V,0))) -> 4 | G47: =IF(J47="","",INDEX(Results!AI:AI,MATCH(A47,Results!V:V,0))) -> 538 | H47: =IF(G47="",0,1) -> 1 | I47: =INDEX(Picks!AF:AF,MATCH(A47,Picks!AC:AC,0)) -> 12 | J47: West Brom | K47: =INDEX(Odds!G:G,MATCH(J47,Odds!F:F,0)) -> 5/1 | L47: =INDEX(Odds!H:H,MATCH(J47,Odds!F:F,0)) -> 6 | M47: =INDEX(Odds!I:I,MATCH(J47,Odds!F:F,0)) -> 0 | N47: 0 | P47: =IF(Match!A47="","",Match!T47) ->  | R47: =IF(Odds!F47="","",Odds!F47) ->  | S47: =INDEX(Odds!G:G,MATCH(R47,Odds!F:F,0)) ->  | T47: =IF(V47>X47,1,0) ->  | U47: =INDEX(Match!O:O,MATCH(P47,Match!T:T,0)) ->  | V47: =INDEX(Match!F:F,MATCH(P47,Match!T:T,0)) ->  | W47: =INDEX(Match!P:P,MATCH(P47,Match!T:T,0)) ->  | X47: =INDEX(Match!G:G,MATCH(P47,Match!T:T,0)) ->  | AC47: Gareth McGuire | AD47: =INDEX(Picks!F:F,MATCH(AC47,Picks!A:A,0)) -> -5.05 | AE47: =INDEX(Weekly!I:I,MATCH(AC47,Weekly!E:E,0)) -> 1 | AF47: =IF(AD47="","",_xlfn.RANK.EQ(AD47,TopScores,0)) -> 45 | AH47: Phil Miller | AI47: =INDEX(Picks!G:G,MATCH(AH47,Picks!A:A,0)) -> 18.77714286 | AJ47: =INDEX(Weekly!I:I,MATCH(AH47,Weekly!E:E,0)) -> 1 | AK47: =IF(AI47="","",_xlfn.RANK.EQ(AI47,TopMaxScores,0)) -> 44
A48: =A47 -> Dave Bell | B48: Palace | C48: =IF(J48="","",INDEX(Odds!B:B,MATCH(J48,Odds!F:F,0))) -> 1900-01-07 | D48: 11 | E48: √ | J48: Palace | K48: =INDEX(Odds!G:G,MATCH(J48,Odds!F:F,0)) -> 10/1 | L48: =INDEX(Odds!H:H,MATCH(J48,Odds!F:F,0)) -> 11 | M48: =INDEX(Odds!I:I,MATCH(J48,Odds!F:F,0)) -> 1 | N48: 11 | R48: =IF(Odds!F48="","",Odds!F48) -> Coventry draw | S48: =INDEX(Odds!G:G,MATCH(R48,Odds!F:F,0)) -> 9/4 | T48: =IF(V2=X2,1,0) -> 0 | AC48: Lewis Buckley | AD48: =INDEX(Picks!F:F,MATCH(AC48,Picks!A:A,0)) -> -5.35 | AE48: =INDEX(Weekly!I:I,MATCH(AC48,Weekly!E:E,0)) -> 1 | AF48: =IF(AD48="","",_xlfn.RANK.EQ(AD48,TopScores,0)) -> 47 | AH48: Gareth Powell | AI48: =INDEX(Picks!G:G,MATCH(AH48,Picks!A:A,0)) -> 17.94461538 | AJ48: =INDEX(Weekly!I:I,MATCH(AH48,Weekly!E:E,0)) -> 2 | AK48: =IF(AI48="","",_xlfn.RANK.EQ(AI48,TopMaxScores,0)) -> 45
A49: =A47 -> Dave Bell | B49: Fulham | C49: =IF(J49="","",INDEX(Odds!B:B,MATCH(J49,Odds!F:F,0))) -> 1900-01-07 | D49: 5.5 | E49: x | J49: Fulham | K49: =INDEX(Odds!G:G,MATCH(J49,Odds!F:F,0)) -> 9/2 | L49: =INDEX(Odds!H:H,MATCH(J49,Odds!F:F,0)) -> 5.5 | M49: =INDEX(Odds!I:I,MATCH(J49,Odds!F:F,0)) -> 0 | N49: 0 | R49: =IF(Odds!F49="","",Odds!F49) -> Arsenal draw | S49: =INDEX(Odds!G:G,MATCH(R49,Odds!F:F,0)) -> 17/5 | T49: 0 | AC49: Joel Bent | AD49: =INDEX(Picks!F:F,MATCH(AC49,Picks!A:A,0)) -> -5.35 | AE49: =INDEX(Weekly!I:I,MATCH(AC49,Weekly!E:E,0)) -> 1 | AF49: =IF(AD49="","",_xlfn.RANK.EQ(AD49,TopScores,0)) -> 47 | AH49: Paul Ridgeway | AI49: =INDEX(Picks!G:G,MATCH(AH49,Picks!A:A,0)) -> 17.64384615 | AJ49: =INDEX(Weekly!I:I,MATCH(AH49,Weekly!E:E,0)) -> 2 | AK49: =IF(AI49="","",_xlfn.RANK.EQ(AI49,TopMaxScores,0)) -> 46
A50: =Results!B50 -> Dave Orrell | B50: Hull | C50: =IF(J50="","",INDEX(Odds!B:B,MATCH(J50,Odds!F:F,0))) -> 1900-01-07 | D50: 1.95 | E50: √ | F50: =IF(J50="",-10,INDEX(Results!T:T,MATCH(A50,Results!V:V,0))) -> 28.50625 | G50: =IF(J50="","",INDEX(Results!AI:AI,MATCH(A50,Results!V:V,0))) -> 28.50625 | H50: =IF(G50="",0,1) -> 1 | I50: =INDEX(Picks!AF:AF,MATCH(A50,Picks!AC:AC,0)) -> 4 | J50: Hull | K50: =INDEX(Odds!G:G,MATCH(J50,Odds!F:F,0)) -> 19/20 | L50: =INDEX(Odds!H:H,MATCH(J50,Odds!F:F,0)) -> 1.95 | M50: =INDEX(Odds!I:I,MATCH(J50,Odds!F:F,0)) -> 1 | N50: 1.95 | Q50: ` | R50: =IF(Odds!F50="","",Odds!F50) -> Everton draw | S50: =INDEX(Odds!G:G,MATCH(R50,Odds!F:F,0)) -> 16/5 | T50: 0 | AC50: Howard Bradley | AD50: =INDEX(Picks!F:F,MATCH(AC50,Picks!A:A,0)) -> -5.428571429 | AE50: =INDEX(Weekly!I:I,MATCH(AC50,Weekly!E:E,0)) -> 1 | AF50: =IF(AD50="","",_xlfn.RANK.EQ(AD50,TopScores,0)) -> 49 | AH50: David Dunn | AI50: =INDEX(Picks!G:G,MATCH(AH50,Picks!A:A,0)) -> 17.5 | AJ50: =INDEX(Weekly!I:I,MATCH(AH50,Weekly!E:E,0)) -> 2 | AK50: =IF(AI50="","",_xlfn.RANK.EQ(AI50,TopMaxScores,0)) -> 47
A51: =A50 -> Dave Orrell | B51: Lincoln | C51: =IF(J51="","",INDEX(Odds!B:B,MATCH(J51,Odds!F:F,0))) -> 1900-01-07 | D51: 2.75 | E51: √ | J51: Lincoln | K51: =INDEX(Odds!G:G,MATCH(J51,Odds!F:F,0)) -> 7/4 | L51: =INDEX(Odds!H:H,MATCH(J51,Odds!F:F,0)) -> 2.75 | M51: =INDEX(Odds!I:I,MATCH(J51,Odds!F:F,0)) -> 1 | N51: 2.75 | R51: =IF(Odds!F51="","",Odds!F51) -> Leeds draw | S51: =INDEX(Odds!G:G,MATCH(R51,Odds!F:F,0)) -> 3/1 | T51: 0 | AC51: Mark Saunders | AD51: =INDEX(Picks!F:F,MATCH(AC51,Picks!A:A,0)) -> -5.5 | AE51: =INDEX(Weekly!I:I,MATCH(AC51,Weekly!E:E,0)) -> 1 | AF51: =IF(AD51="","",_xlfn.RANK.EQ(AD51,TopScores,0)) -> 50 | AH51: Howard Bradley | AI51: =INDEX(Picks!G:G,MATCH(AH51,Picks!A:A,0)) -> 17.10357143 | AJ51: =INDEX(Weekly!I:I,MATCH(AH51,Weekly!E:E,0)) -> 1 | AK51: =IF(AI51="","",_xlfn.RANK.EQ(AI51,TopMaxScores,0)) -> 48
A52: =A50 -> Dave Orrell | B52: Salford | C52: =IF(J52="","",INDEX(Odds!B:B,MATCH(J52,Odds!F:F,0))) -> 1900-01-07 | D52: 2.3 | E52: √ | J52: Salford | K52: =INDEX(Odds!G:G,MATCH(J52,Odds!F:F,0)) -> 13/10 | L52: =INDEX(Odds!H:H,MATCH(J52,Odds!F:F,0)) -> 2.3 | M52: =INDEX(Odds!I:I,MATCH(J52,Odds!F:F,0)) -> 1 | N52: 2.3 | R52: =IF(Odds!F52="","",Odds!F52) -> Man U draw | S52: =INDEX(Odds!G:G,MATCH(R52,Odds!F:F,0)) -> 9/2 | T52: 0 | AC52: Oscar Jackson | AD52: =INDEX(Picks!F:F,MATCH(AC52,Picks!A:A,0)) -> -5.5 | AE52: =INDEX(Weekly!I:I,MATCH(AC52,Weekly!E:E,0)) -> 1 | AF52: =IF(AD52="","",_xlfn.RANK.EQ(AD52,TopScores,0)) -> 50 | AH52: Mark Saunders | AI52: =INDEX(Picks!G:G,MATCH(AH52,Picks!A:A,0)) -> 16.85 | AJ52: =INDEX(Weekly!I:I,MATCH(AH52,Weekly!E:E,0)) -> 1 | AK52: =IF(AI52="","",_xlfn.RANK.EQ(AI52,TopMaxScores,0)) -> 49
A53: =Results!B53 -> David Dunn | B53: QPR | C53: =IF(J53="","",INDEX(Odds!B:B,MATCH(J53,Odds!F:F,0))) -> 1900-01-06 | D53: 2.9 | E53: x | F53: =IF(J53="",-10,INDEX(Results!T:T,MATCH(A53,Results!V:V,0))) -> -1.461538462 | G53: =IF(J53="","",INDEX(Results!AI:AI,MATCH(A53,Results!V:V,0))) -> 17.5 | H53: =IF(G53="",0,1) -> 1 | I53: =INDEX(Picks!AF:AF,MATCH(A53,Picks!AC:AC,0)) -> 29 | J53: QPR | K53: =INDEX(Odds!G:G,MATCH(J53,Odds!F:F,0)) -> 19/10 | L53: =INDEX(Odds!H:H,MATCH(J53,Odds!F:F,0)) -> 2.9 | M53: =INDEX(Odds!I:I,MATCH(J53,Odds!F:F,0)) -> 0 | N53: 0 | R53: =IF(Odds!F53="","",Odds!F53) -> Blackburn draw | S53: =INDEX(Odds!G:G,MATCH(R53,Odds!F:F,0)) -> 3/1 | T53: 0 | AC53: Simon Greenhalgh | AD53: =INDEX(Picks!F:F,MATCH(AC53,Picks!A:A,0)) -> -5.5 | AE53: =INDEX(Weekly!I:I,MATCH(AC53,Weekly!E:E,0)) -> 1 | AF53: =IF(AD53="","",_xlfn.RANK.EQ(AD53,TopScores,0)) -> 50 | AH53: Simon Greenhalgh | AI53: =INDEX(Picks!G:G,MATCH(AH53,Picks!A:A,0)) -> 15.1 | AJ53: =INDEX(Weekly!I:I,MATCH(AH53,Weekly!E:E,0)) -> 1 | AK53: =IF(AI53="","",_xlfn.RANK.EQ(AI53,TopMaxScores,0)) -> 50
A54: =A53 -> David Dunn | B54: Arsenal | C54: =IF(J54="","",INDEX(Odds!B:B,MATCH(J54,Odds!F:F,0))) -> 1900-01-07 | D54: 1.5 | E54: √ | J54: Arsenal | K54: =INDEX(Odds!G:G,MATCH(J54,Odds!F:F,0)) -> 1/2 | L54: =INDEX(Odds!H:H,MATCH(J54,Odds!F:F,0)) -> 1.5 | M54: =INDEX(Odds!I:I,MATCH(J54,Odds!F:F,0)) -> 1 | N54: 1.5 | R54: =IF(Odds!F54="","",Odds!F54) -> Brentford draw | S54: =INDEX(Odds!G:G,MATCH(R54,Odds!F:F,0)) -> 14/5 | T54: 0 | AC54: Pete Baron | AD54: =INDEX(Picks!F:F,MATCH(AC54,Picks!A:A,0)) -> -7 | AE54: =INDEX(Weekly!I:I,MATCH(AC54,Weekly!E:E,0)) -> 0 | AF54: =IF(AD54="","",_xlfn.RANK.EQ(AD54,TopScores,0)) -> 53 | AH54: Ashley Houghton | AI54: =INDEX(Picks!G:G,MATCH(AH54,Picks!A:A,0)) -> 14.8625 | AJ54: =INDEX(Weekly!I:I,MATCH(AH54,Weekly!E:E,0)) -> 2 | AK54: =IF(AI54="","",_xlfn.RANK.EQ(AI54,TopMaxScores,0)) -> 51
A55: =A53 -> David Dunn | B55: Leeds | C55: =IF(J55="","",INDEX(Odds!B:B,MATCH(J55,Odds!F:F,0))) -> 1900-01-07 | D55: 1.615384615 | E55: √ | J55: Leeds | K55: =INDEX(Odds!G:G,MATCH(J55,Odds!F:F,0)) -> 8/13 | L55: =INDEX(Odds!H:H,MATCH(J55,Odds!F:F,0)) -> 1.615384615 | M55: =INDEX(Odds!I:I,MATCH(J55,Odds!F:F,0)) -> 1 | N55: 1.615384615 | R55: =IF(Odds!F55="","",Odds!F55) -> Forest draw | S55: =INDEX(Odds!G:G,MATCH(R55,Odds!F:F,0)) -> 11/5 | T55: 0 | AC55: Sally Williams | AD55: =INDEX(Picks!F:F,MATCH(AC55,Picks!A:A,0)) -> -7 | AE55: =INDEX(Weekly!I:I,MATCH(AC55,Weekly!E:E,0)) -> 0 | AF55: =IF(AD55="","",_xlfn.RANK.EQ(AD55,TopScores,0)) -> 53 | AH55: Alan White | AI55: =INDEX(Picks!G:G,MATCH(AH55,Picks!A:A,0)) -> 14.63125 | AJ55: =INDEX(Weekly!I:I,MATCH(AH55,Weekly!E:E,0)) -> 2 | AK55: =IF(AI55="","",_xlfn.RANK.EQ(AI55,TopMaxScores,0)) -> 52
A56: =Results!B56 -> Gareth Fallows | C56: =IF(J56="","",INDEX(Odds!B:B,MATCH(J56,Odds!F:F,0))) ->  | F56: =IF(J56="",-10,INDEX(Results!T:T,MATCH(A56,Results!V:V,0))) -> -10 | G56: =IF(J56="","",INDEX(Results!AI:AI,MATCH(A56,Results!V:V,0))) ->  | H56: =IF(G56="",0,1) -> 0 | I56: =INDEX(Picks!AF:AF,MATCH(A56,Picks!AC:AC,0)) -> 61 | K56: =INDEX(Odds!G:G,MATCH(J56,Odds!F:F,0)) ->  | L56: =INDEX(Odds!H:H,MATCH(J56,Odds!F:F,0)) ->  | M56: =INDEX(Odds!I:I,MATCH(J56,Odds!F:F,0)) ->  | R56: =IF(Odds!F56="","",Odds!F56) -> Luton draw | S56: =INDEX(Odds!G:G,MATCH(R56,Odds!F:F,0)) -> 9/4 | T56: 0 | AC56: Alan Rogers | AD56: =INDEX(Picks!F:F,MATCH(AC56,Picks!A:A,0)) -> -7 | AE56: =INDEX(Weekly!I:I,MATCH(AC56,Weekly!E:E,0)) -> 0 | AF56: =IF(AD56="","",_xlfn.RANK.EQ(AD56,TopScores,0)) -> 53 | AH56: Chris Griffin | AI56: =INDEX(Picks!G:G,MATCH(AH56,Picks!A:A,0)) -> 13.60307692 | AJ56: =INDEX(Weekly!I:I,MATCH(AH56,Weekly!E:E,0)) -> 2 | AK56: =IF(AI56="","",_xlfn.RANK.EQ(AI56,TopMaxScores,0)) -> 53
A57: =A56 -> Gareth Fallows | C57: =IF(J57="","",INDEX(Odds!B:B,MATCH(J57,Odds!F:F,0))) ->  | K57: =INDEX(Odds!G:G,MATCH(J57,Odds!F:F,0)) ->  | L57: =INDEX(Odds!H:H,MATCH(J57,Odds!F:F,0)) ->  | M57: =INDEX(Odds!I:I,MATCH(J57,Odds!F:F,0)) ->  | R57: =IF(Odds!F57="","",Odds!F57) -> Middlesbro draw | S57: =INDEX(Odds!G:G,MATCH(R57,Odds!F:F,0)) -> 11/5 | T57: 1 | AC57: Kei Lok Ma | AD57: =INDEX(Picks!F:F,MATCH(AC57,Picks!A:A,0)) -> -7 | AE57: =INDEX(Weekly!I:I,MATCH(AC57,Weekly!E:E,0)) -> 0 | AF57: =IF(AD57="","",_xlfn.RANK.EQ(AD57,TopScores,0)) -> 53 | AH57: Alick Rocca | AI57: =INDEX(Picks!G:G,MATCH(AH57,Picks!A:A,0)) -> 10.80625 | AJ57: =INDEX(Weekly!I:I,MATCH(AH57,Weekly!E:E,0)) -> 3 | AK57: =IF(AI57="","",_xlfn.RANK.EQ(AI57,TopMaxScores,0)) -> 54
A58: =A56 -> Gareth Fallows | C58: =IF(J58="","",INDEX(Odds!B:B,MATCH(J58,Odds!F:F,0))) ->  | K58: =INDEX(Odds!G:G,MATCH(J58,Odds!F:F,0)) ->  | L58: =INDEX(Odds!H:H,MATCH(J58,Odds!F:F,0)) ->  | M58: =INDEX(Odds!I:I,MATCH(J58,Odds!F:F,0)) ->  | R58: =IF(Odds!F58="","",Odds!F58) -> Norwich draw | S58: =INDEX(Odds!G:G,MATCH(R58,Odds!F:F,0)) -> 5/2 | T58: 1 | AC58: Alfie Davies | AD58: =INDEX(Picks!F:F,MATCH(AC58,Picks!A:A,0)) -> -7 | AE58: =INDEX(Weekly!I:I,MATCH(AC58,Weekly!E:E,0)) -> 0 | AF58: =IF(AD58="","",_xlfn.RANK.EQ(AD58,TopScores,0)) -> 53 | AH58: Steve Baxter | AI58: =INDEX(Picks!G:G,MATCH(AH58,Picks!A:A,0)) -> 10.28571429 | AJ58: =INDEX(Weekly!I:I,MATCH(AH58,Weekly!E:E,0)) -> 2 | AK58: =IF(AI58="","",_xlfn.RANK.EQ(AI58,TopMaxScores,0)) -> 55
A59: =Results!B59 -> Gareth McGuire | B59: Bournemouth | C59: =IF(J59="","",INDEX(Odds!B:B,MATCH(J59,Odds!F:F,0))) -> 1900-01-07 | D59: 2.7 | E59: x | F59: =IF(J59="",-10,INDEX(Results!T:T,MATCH(A59,Results!V:V,0))) -> -5.05 | G59: =IF(J59="","",INDEX(Results!AI:AI,MATCH(A59,Results!V:V,0))) -> 30.74825 | H59: =IF(G59="",0,1) -> 1 | I59: =INDEX(Picks!AF:AF,MATCH(A59,Picks!AC:AC,0)) -> 45 | J59: Bournemouth | K59: =INDEX(Odds!G:G,MATCH(J59,Odds!F:F,0)) -> 17/10 | L59: =INDEX(Odds!H:H,MATCH(J59,Odds!F:F,0)) -> 2.7 | M59: =INDEX(Odds!I:I,MATCH(J59,Odds!F:F,0)) -> 0 | N59: 0 | R59: =IF(Odds!F59="","",Odds!F59) -> Reading draw | S59: =INDEX(Odds!G:G,MATCH(R59,Odds!F:F,0)) -> 23/10 | T59: 0 | AC59: Ben Rosser | AD59: =INDEX(Picks!F:F,MATCH(AC59,Picks!A:A,0)) -> -7 | AE59: =INDEX(Weekly!I:I,MATCH(AC59,Weekly!E:E,0)) -> 0 | AF59: =IF(AD59="","",_xlfn.RANK.EQ(AD59,TopScores,0)) -> 53 | AH59: Mo Sudell | AI59: =INDEX(Picks!G:G,MATCH(AH59,Picks!A:A,0)) -> 10.03214286 | AJ59: =INDEX(Weekly!I:I,MATCH(AH59,Weekly!E:E,0)) -> 2 | AK59: =IF(AI59="","",_xlfn.RANK.EQ(AI59,TopMaxScores,0)) -> 56
A60: =A59 -> Gareth McGuire | B60: =IF(J60="","",J60) -> Watford | C60: =IF(J60="","",INDEX(Odds!B:B,MATCH(J60,Odds!F:F,0))) -> 1900-01-07 | D60: 2.55 | E60: x | J60: Watford | K60: =INDEX(Odds!G:G,MATCH(J60,Odds!F:F,0)) -> 31/20 | L60: =INDEX(Odds!H:H,MATCH(J60,Odds!F:F,0)) -> 2.55 | M60: =INDEX(Odds!I:I,MATCH(J60,Odds!F:F,0)) -> 0 | N60: 0 | R60: =IF(Odds!F60="","",Odds!F60) -> Rotherham draw | S60: =INDEX(Odds!G:G,MATCH(R60,Odds!F:F,0)) -> 21/10 | T60: 0 | AC60: Dan Baxter | AD60: =INDEX(Picks!F:F,MATCH(AC60,Picks!A:A,0)) -> -7 | AE60: =INDEX(Weekly!I:I,MATCH(AC60,Weekly!E:E,0)) -> 0 | AF60: =IF(AD60="","",_xlfn.RANK.EQ(AD60,TopScores,0)) -> 53 | AH60: Paul Barnes | AI60: =INDEX(Picks!G:G,MATCH(AH60,Picks!A:A,0)) -> 8.673076923 | AJ60: =INDEX(Weekly!I:I,MATCH(AH60,Weekly!E:E,0)) -> 3 | AK60: =IF(AI60="","",_xlfn.RANK.EQ(AI60,TopMaxScores,0)) -> 57
A61: =A59 -> Gareth McGuire | B61: =IF(J61="","",J61) -> Hull | C61: =IF(J61="","",INDEX(Odds!B:B,MATCH(J61,Odds!F:F,0))) -> 1900-01-07 | D61: =IF(J61="","",L61) -> 1.95 | E61: √ | J61: Hull | K61: =INDEX(Odds!G:G,MATCH(J61,Odds!F:F,0)) -> 19/20 | L61: =INDEX(Odds!H:H,MATCH(J61,Odds!F:F,0)) -> 1.95 | M61: =INDEX(Odds!I:I,MATCH(J61,Odds!F:F,0)) -> 1 | N61: 1.95 | R61: =IF(Odds!F61="","",Odds!F61) -> Sheff W draw | S61: =INDEX(Odds!G:G,MATCH(R61,Odds!F:F,0)) -> 11/5 | T61: 1 | AC61: James Bell | AD61: =INDEX(Picks!F:F,MATCH(AC61,Picks!A:A,0)) -> -7 | AE61: =INDEX(Weekly!I:I,MATCH(AC61,Weekly!E:E,0)) -> 0 | AF61: =IF(AD61="","",_xlfn.RANK.EQ(AD61,TopScores,0)) -> 53 | AH61: Kevin Carter | AI61: =INDEX(Picks!G:G,MATCH(AH61,Picks!A:A,0)) -> 8.673076923 | AJ61: =INDEX(Weekly!I:I,MATCH(AH61,Weekly!E:E,0)) -> 3 | AK61: =IF(AI61="","",_xlfn.RANK.EQ(AI61,TopMaxScores,0)) -> 57
A62: =Results!B62 -> Gareth Powell | B62: Leeds | C62: =IF(J62="","",INDEX(Odds!B:B,MATCH(J62,Odds!F:F,0))) -> 1900-01-07 | D62: 1.615384615 | E62: √ | F62: =IF(J62="",-10,INDEX(Results!T:T,MATCH(A62,Results!V:V,0))) -> 0.3692307692 | G62: =IF(J62="","",INDEX(Results!AI:AI,MATCH(A62,Results!V:V,0))) -> 17.94461538 | H62: =IF(G62="",0,1) -> 1 | I62: =INDEX(Picks!AF:AF,MATCH(A62,Picks!AC:AC,0)) -> 19 | J62: Leeds | K62: =INDEX(Odds!G:G,MATCH(J62,Odds!F:F,0)) -> 8/13 | L62: =INDEX(Odds!H:H,MATCH(J62,Odds!F:F,0)) -> 1.615384615 | M62: =INDEX(Odds!I:I,MATCH(J62,Odds!F:F,0)) -> 1 | N62: =L62*M62 -> 1.615384615 | R62: =IF(Odds!F62="","",Odds!F62) -> Swansea draw | S62: =INDEX(Odds!G:G,MATCH(R62,Odds!F:F,0)) -> 11/5 | T62: 1 | AC62: Tom Robinson | AD62: =INDEX(Picks!F:F,MATCH(AC62,Picks!A:A,0)) -> -10 | AE62: =INDEX(Weekly!I:I,MATCH(AC62,Weekly!E:E,0)) -> 0 | AF62: =IF(AD62="","",_xlfn.RANK.EQ(AD62,TopScores,0)) -> 61 | AH62: Stephen Troop | AI62: =INDEX(Picks!G:G,MATCH(AH62,Picks!A:A,0)) -> 7.243956044 | AJ62: =INDEX(Weekly!I:I,MATCH(AH62,Weekly!E:E,0)) -> 2 | AK62: =IF(AI62="","",_xlfn.RANK.EQ(AI62,TopMaxScores,0)) -> 59
A63: =A62 -> Gareth Powell | B63: =IF(J63="","",J63) -> Swansea | C63: =IF(J63="","",INDEX(Odds!B:B,MATCH(J63,Odds!F:F,0))) -> 1900-01-07 | D63: =IF(J63="","",L63) -> 2.1 | E63: =IF(J63="","",IF(M63=1,"√","x")) -> x | J63: Swansea | K63: =INDEX(Odds!G:G,MATCH(J63,Odds!F:F,0)) -> 11/10 | L63: =INDEX(Odds!H:H,MATCH(J63,Odds!F:F,0)) -> 2.1 | M63: =INDEX(Odds!I:I,MATCH(J63,Odds!F:F,0)) -> 0 | N63: 0 | R63: =IF(Odds!F63="","",Odds!F63) -> Blackpool draw | S63: =INDEX(Odds!G:G,MATCH(R63,Odds!F:F,0)) -> 23/10 | T63: 0 | AC63: Gareth Fallows | AD63: =INDEX(Picks!F:F,MATCH(AC63,Picks!A:A,0)) -> -10 | AE63: =INDEX(Weekly!I:I,MATCH(AC63,Weekly!E:E,0)) -> 0 | AF63: =IF(AD63="","",_xlfn.RANK.EQ(AD63,TopScores,0)) -> 61 | AH63: Paul Adderley | AI63: =INDEX(Picks!G:G,MATCH(AH63,Picks!A:A,0)) -> 6.945054945 | AJ63: =INDEX(Weekly!I:I,MATCH(AH63,Weekly!E:E,0)) -> 2 | AK63: =IF(AI63="","",_xlfn.RANK.EQ(AI63,TopMaxScores,0)) -> 60
A64: =A62 -> Gareth Powell | B64: Liverpool | C64: =IF(J64="","",INDEX(Odds!B:B,MATCH(J64,Odds!F:F,0))) -> 1900-01-01 | D64: 2.2 | E64: √ | J64: Liverpool | K64: =INDEX(Odds!G:G,MATCH(J64,Odds!F:F,0)) -> 6/5 | L64: =INDEX(Odds!H:H,MATCH(J64,Odds!F:F,0)) -> 2.2 | M64: =INDEX(Odds!I:I,MATCH(J64,Odds!F:F,0)) -> 1 | N64: 2.2 | R64: =IF(Odds!F64="","",Odds!F64) -> Bristol R draw | S64: =INDEX(Odds!G:G,MATCH(R64,Odds!F:F,0)) -> 23/10 | T64: 0
A65: =Results!B65 -> Gerard Ventom | B65: Palace | C65: =IF(J65="","",INDEX(Odds!B:B,MATCH(J65,Odds!F:F,0))) -> 1900-01-07 | D65: 11 | E65: √ | F65: =IF(J65="",-10,INDEX(Results!T:T,MATCH(A65,Results!V:V,0))) -> 164.8 | G65: =IF(J65="","",INDEX(Results!AI:AI,MATCH(A65,Results!V:V,0))) -> 164.8 | H65: =IF(G65="",0,1) -> 1 | I65: =INDEX(Picks!AF:AF,MATCH(A65,Picks!AC:AC,0)) -> 2 | J65: Palace | K65: =INDEX(Odds!G:G,MATCH(J65,Odds!F:F,0)) -> 10/1 | L65: =INDEX(Odds!H:H,MATCH(J65,Odds!F:F,0)) -> 11 | M65: =INDEX(Odds!I:I,MATCH(J65,Odds!F:F,0)) -> 1 | N65: 11 | R65: =IF(Odds!F65="","",Odds!F65) -> Burton draw | S65: =INDEX(Odds!G:G,MATCH(R65,Odds!F:F,0)) -> 23/10 | T65: 0
A66: =A65 -> Gerard Ventom | B66: Cardiff | C66: =IF(J66="","",INDEX(Odds!B:B,MATCH(J66,Odds!F:F,0))) -> 1900-01-07 | D66: 3 | E66: √ | J66: Cardiff | K66: =INDEX(Odds!G:G,MATCH(J66,Odds!F:F,0)) -> 2/1 | L66: =INDEX(Odds!H:H,MATCH(J66,Odds!F:F,0)) -> 3 | M66: =INDEX(Odds!I:I,MATCH(J66,Odds!F:F,0)) -> 1 | N66: 3 | R66: =IF(Odds!F66="","",Odds!F66) -> Charlton draw | S66: =INDEX(Odds!G:G,MATCH(R66,Odds!F:F,0)) -> 12/5 | T66: 0
A67: =A65 -> Gerard Ventom | B67: Ipswich | C67: =IF(J67="","",INDEX(Odds!B:B,MATCH(J67,Odds!F:F,0))) -> 1900-01-07 | D67: 2.6 | E67: =IF(J67="","",IF(M67=1,"√","x")) -> √ | J67: Ipswich | K67: =INDEX(Odds!G:G,MATCH(J67,Odds!F:F,0)) -> 8/5 | L67: =INDEX(Odds!H:H,MATCH(J67,Odds!F:F,0)) -> 2.6 | M67: =INDEX(Odds!I:I,MATCH(J67,Odds!F:F,0)) -> 1 | N67: 2.6 | R67: =IF(Odds!F67="","",Odds!F67) -> Hull draw | S67: =INDEX(Odds!G:G,MATCH(R67,Odds!F:F,0)) -> 13/5 | T67: 0
A68: =Results!B68 -> Graham Miller | B68: Newcastle | C68: =IF(J68="","",INDEX(Odds!B:B,MATCH(J68,Odds!F:F,0))) -> 1900-01-01 | D68: 2.55 | E68: x | F68: =IF(J68="",-10,INDEX(Results!T:T,MATCH(A68,Results!V:V,0))) -> -5.05 | G68: =IF(J68="","",INDEX(Results!AI:AI,MATCH(A68,Results!V:V,0))) -> 23.4175 | H68: =IF(G68="",0,1) -> 1 | I68: =INDEX(Picks!AF:AF,MATCH(A68,Picks!AC:AC,0)) -> 45 | J68: Newcastle | K68: =INDEX(Odds!G:G,MATCH(J68,Odds!F:F,0)) -> 31/20 | L68: =INDEX(Odds!H:H,MATCH(J68,Odds!F:F,0)) -> 2.55 | M68: =INDEX(Odds!I:I,MATCH(J68,Odds!F:F,0)) -> 0 | N68: 0 | R68: =IF(Odds!F68="","",Odds!F68) -> MK Dons draw | S68: =INDEX(Odds!G:G,MATCH(R68,Odds!F:F,0)) -> 21/10 | T68: 0
A69: =A68 -> Graham Miller | B69: Hull | C69: =IF(J69="","",INDEX(Odds!B:B,MATCH(J69,Odds!F:F,0))) -> 1900-01-07 | D69: 1.95 | E69: √ | J69: Hull | K69: =INDEX(Odds!G:G,MATCH(J69,Odds!F:F,0)) -> 19/20 | L69: =INDEX(Odds!H:H,MATCH(J69,Odds!F:F,0)) -> 1.95 | M69: =INDEX(Odds!I:I,MATCH(J69,Odds!F:F,0)) -> 1 | N69: 1.95 | R69: =IF(Odds!F69="","",Odds!F69) -> Oxford draw | S69: =INDEX(Odds!G:G,MATCH(R69,Odds!F:F,0)) -> 11/5 | T69: 0
A70: =A68 -> Graham Miller | B70: Charlton | C70: =IF(J70="","",INDEX(Odds!B:B,MATCH(J70,Odds!F:F,0))) -> 1900-01-07 | D70: 2 | E70: x | J70: Charlton | K70: =INDEX(Odds!G:G,MATCH(J70,Odds!F:F,0)) -> 1/1 | L70: =INDEX(Odds!H:H,MATCH(J70,Odds!F:F,0)) -> 2 | M70: =INDEX(Odds!I:I,MATCH(J70,Odds!F:F,0)) -> 0 | N70: 0 | R70: =IF(Odds!F70="","",Odds!F70) -> Peterborough draw | S70: =INDEX(Odds!G:G,MATCH(R70,Odds!F:F,0)) -> 9/4 | T70: 0
A71: =Results!B71 -> Howard Bradley | B71: =IF(J71="","",J71) -> Blackburn | C71: =IF(J71="","",INDEX(Odds!B:B,MATCH(J71,Odds!F:F,0))) -> 1900-01-07 | D71: =IF(J71="","",L71) -> 1.571428571 | E71: =IF(J71="","",IF(M71=1,"√","x")) -> √ | F71: =IF(J71="",-10,INDEX(Results!T:T,MATCH(A71,Results!V:V,0))) -> -5.428571429 | G71: =IF(J71="","",INDEX(Results!AI:AI,MATCH(A71,Results!V:V,0))) -> 17.10357143 | H71: =IF(G71="",0,1) -> 1 | I71: =INDEX(Picks!AF:AF,MATCH(A71,Picks!AC:AC,0)) -> 49 | J71: Blackburn | K71: =INDEX(Odds!G:G,MATCH(J71,Odds!F:F,0)) -> 4/7 | L71: =INDEX(Odds!H:H,MATCH(J71,Odds!F:F,0)) -> 1.571428571 | M71: =INDEX(Odds!I:I,MATCH(J71,Odds!F:F,0)) -> 1 | N71: 1.571428571 | R71: =IF(Odds!F71="","",Odds!F71) -> Shrewsbury draw | S71: =INDEX(Odds!G:G,MATCH(R71,Odds!F:F,0)) -> 11/5 | T71: 0
A72: =A71 -> Howard Bradley | B72: Portsmouth | C72: =IF(J72="","",INDEX(Odds!B:B,MATCH(J72,Odds!F:F,0))) -> 1900-01-01 | D72: 1.75 | E72: x | J72: Portsmouth | K72: =INDEX(Odds!G:G,MATCH(J72,Odds!F:F,0)) -> 3/4 | L72: =INDEX(Odds!H:H,MATCH(J72,Odds!F:F,0)) -> 1.75 | M72: =INDEX(Odds!I:I,MATCH(J72,Odds!F:F,0)) -> 0 | N72: 0 | R72: =IF(Odds!F72="","",Odds!F72) -> Wimbledon draw | S72: =INDEX(Odds!G:G,MATCH(R72,Odds!F:F,0)) -> 23/10 | T72: 1
A73: =A71 -> Howard Bradley | B73: Derby | C73: =IF(J73="","",INDEX(Odds!B:B,MATCH(J73,Odds!F:F,0))) -> 1900-01-07 | D73: 2.55 | E73: x | J73: Derby | K73: =INDEX(Odds!G:G,MATCH(J73,Odds!F:F,0)) -> 31/20 | L73: =INDEX(Odds!H:H,MATCH(J73,Odds!F:F,0)) -> 2.55 | M73: =INDEX(Odds!I:I,MATCH(J73,Odds!F:F,0)) -> 0 | N73: 0 | R73: =IF(Odds!F73="","",Odds!F73) -> Carlisle draw | S73: =INDEX(Odds!G:G,MATCH(R73,Odds!F:F,0)) -> 12/5 | T73: 0
A74: =Results!B74 -> Ian Davies | B74: Luton | C74: =IF(J74="","",INDEX(Odds!B:B,MATCH(J74,Odds!F:F,0))) -> 1900-01-07 | D74: 2.875 | E74: √ | F74: =IF(J74="",-10,INDEX(Results!T:T,MATCH(A74,Results!V:V,0))) -> -4.125 | G74: =IF(J74="","",INDEX(Results!AI:AI,MATCH(A74,Results!V:V,0))) -> 63.02875 | H74: =IF(G74="",0,1) -> 1 | I74: =INDEX(Picks!AF:AF,MATCH(A74,Picks!AC:AC,0)) -> 32 | J74: Luton | K74: =INDEX(Odds!G:G,MATCH(J74,Odds!F:F,0)) -> 15/8 | L74: =INDEX(Odds!H:H,MATCH(J74,Odds!F:F,0)) -> 2.875 | M74: =INDEX(Odds!I:I,MATCH(J74,Odds!F:F,0)) -> 1 | N74: 2.875 | R74: =IF(Odds!F74="","",Odds!F74) -> Colchester draw | S74: =INDEX(Odds!G:G,MATCH(R74,Odds!F:F,0)) -> 23/10 | T74: 0
A75: =A74 -> Ian Davies | B75: Sheff W | C75: =IF(J75="","",INDEX(Odds!B:B,MATCH(J75,Odds!F:F,0))) -> 1900-01-07 | D75: 2.9 | E75: x | J75: Sheff W | K75: =INDEX(Odds!G:G,MATCH(J75,Odds!F:F,0)) -> 19/10 | L75: =INDEX(Odds!H:H,MATCH(J75,Odds!F:F,0)) -> 2.9 | M75: =INDEX(Odds!I:I,MATCH(J75,Odds!F:F,0)) -> 0 | N75: 0 | R75: =IF(Odds!F75="","",Odds!F75) -> Crawley draw | S75: =INDEX(Odds!G:G,MATCH(R75,Odds!F:F,0)) -> 23/10 | T75: 0
A76: =A74 -> Ian Davies | B76: Chelsea draw | C76: =IF(J76="","",INDEX(Odds!B:B,MATCH(J76,Odds!F:F,0))) -> 1900-01-01 | D76: 3.7 | E76: x | J76: Chelsea draw | K76: =INDEX(Odds!G:G,MATCH(J76,Odds!F:F,0)) -> 27/10 | L76: =INDEX(Odds!H:H,MATCH(J76,Odds!F:F,0)) -> 3.7 | M76: =INDEX(Odds!I:I,MATCH(J76,Odds!F:F,0)) -> 0 | N76: 0 | R76: =IF(Odds!F76="","",Odds!F76) -> Exeter draw | S76: =INDEX(Odds!G:G,MATCH(R76,Odds!F:F,0)) -> 11/5 | T76: 0
A77: =Results!B77 -> Jack Walsh | B77: Chelsea | C77: =IF(J77="","",INDEX(Odds!B:B,MATCH(J77,Odds!F:F,0))) -> 1900-01-01 | D77: 3.1 | E77: x | F77: =IF(J77="",-10,INDEX(Results!T:T,MATCH(A77,Results!V:V,0))) -> 0.6307692308 | G77: =IF(J77="","",INDEX(Results!AI:AI,MATCH(A77,Results!V:V,0))) -> 27.38615385 | H77: =IF(G77="",0,1) -> 1 | I77: =INDEX(Picks!AF:AF,MATCH(A77,Picks!AC:AC,0)) -> 18 | J77: Chelsea | K77: =INDEX(Odds!G:G,MATCH(J77,Odds!F:F,0)) -> 21/10 | L77: =INDEX(Odds!H:H,MATCH(J77,Odds!F:F,0)) -> 3.1 | M77: =INDEX(Odds!I:I,MATCH(J77,Odds!F:F,0)) -> 0 | N77: 0 | R77: =IF(Odds!F77="","",Odds!F77) -> Forest Green draw | S77: =INDEX(Odds!G:G,MATCH(R77,Odds!F:F,0)) -> 9/4 | T77: 1
A78: =A77 -> Jack Walsh | B78: Leeds | C78: =IF(J78="","",INDEX(Odds!B:B,MATCH(J78,Odds!F:F,0))) -> 1900-01-07 | D78: 1.615384615 | E78: √ | J78: Leeds | K78: =INDEX(Odds!G:G,MATCH(J78,Odds!F:F,0)) -> 8/13 | L78: =INDEX(Odds!H:H,MATCH(J78,Odds!F:F,0)) -> 1.615384615 | M78: =INDEX(Odds!I:I,MATCH(J78,Odds!F:F,0)) -> 1 | N78: 1.615384615 | R78: =IF(Odds!F78="","",Odds!F78) -> Grimsby draw | S78: =INDEX(Odds!G:G,MATCH(R78,Odds!F:F,0)) -> 23/10 | T78: 0
A79: =A77 -> Jack Walsh | B79: Salford | C79: =IF(J79="","",INDEX(Odds!B:B,MATCH(J79,Odds!F:F,0))) -> 1900-01-07 | D79: 2.3 | E79: √ | J79: Salford | K79: =INDEX(Odds!G:G,MATCH(J79,Odds!F:F,0)) -> 13/10 | L79: =INDEX(Odds!H:H,MATCH(J79,Odds!F:F,0)) -> 2.3 | M79: =INDEX(Odds!I:I,MATCH(J79,Odds!F:F,0)) -> 1 | N79: 2.3 | R79: =IF(Odds!F79="","",Odds!F79) -> Harrogate draw | S79: =INDEX(Odds!G:G,MATCH(R79,Odds!F:F,0)) -> 23/10 | T79: 1
A80: =Results!B80 -> James Bell | B80: Leeds draw | C80: =IF(J80="","",INDEX(Odds!B:B,MATCH(J80,Odds!F:F,0))) -> 1900-01-07 | D80: 4 | E80: x | F80: =IF(J80="",-10,INDEX(Results!T:T,MATCH(A80,Results!V:V,0))) -> -7 | G80: =IF(J80="","",INDEX(Results!AI:AI,MATCH(A80,Results!V:V,0))) -> 140 | H80: =IF(G80="",0,1) -> 1 | I80: =INDEX(Picks!AF:AF,MATCH(A80,Picks!AC:AC,0)) -> 53 | J80: Leeds draw | K80: =INDEX(Odds!G:G,MATCH(J80,Odds!F:F,0)) -> 3/1 | L80: =INDEX(Odds!H:H,MATCH(J80,Odds!F:F,0)) -> 4 | M80: =INDEX(Odds!I:I,MATCH(J80,Odds!F:F,0)) -> 0 | N80: 0 | R80: =IF(Odds!F80="","",Odds!F80) -> Morecambe draw | S80: =INDEX(Odds!G:G,MATCH(R80,Odds!F:F,0)) -> 9/4 | T80: 0
A81: =A80 -> James Bell | B81: Huddersfield | C81: =IF(J81="","",INDEX(Odds!B:B,MATCH(J81,Odds!F:F,0))) -> 1900-01-07 | D81: 7 | E81: x | J81: Huddersfield | K81: =INDEX(Odds!G:G,MATCH(J81,Odds!F:F,0)) -> 6/1 | L81: =INDEX(Odds!H:H,MATCH(J81,Odds!F:F,0)) -> 7 | M81: =INDEX(Odds!I:I,MATCH(J81,Odds!F:F,0)) -> 0 | N81: 0 | R81: =IF(Odds!F81="","",Odds!F81) -> Newport draw | S81: =INDEX(Odds!G:G,MATCH(R81,Odds!F:F,0)) -> 11/5 | T81: 0
A82: =A80 -> James Bell | B82: MK Dons | C82: =IF(J82="","",INDEX(Odds!B:B,MATCH(J82,Odds!F:F,0))) -> 1900-01-07 | D82: 2.7 | E82: x | J82: MK Dons | K82: =INDEX(Odds!G:G,MATCH(J82,Odds!F:F,0)) -> 17/10 | L82: =INDEX(Odds!H:H,MATCH(J82,Odds!F:F,0)) -> 2.7 | M82: =INDEX(Odds!I:I,MATCH(J82,Odds!F:F,0)) -> 0 | N82: 0 | R82: =IF(Odds!F82="","",Odds!F82) -> Orient draw | S82: =INDEX(Odds!G:G,MATCH(R82,Odds!F:F,0)) -> 12/5 | T82: 1
A83: =Results!B83 -> Joel Bent | B83: Bournemouth | C83: =IF(J83="","",INDEX(Odds!B:B,MATCH(J83,Odds!F:F,0))) -> 1900-01-07 | D83: 2.7 | E83: x | F83: =IF(J83="",-10,INDEX(Results!T:T,MATCH(A83,Results!V:V,0))) -> -5.35 | G83: =IF(J83="","",INDEX(Results!AI:AI,MATCH(A83,Results!V:V,0))) -> 34.1615 | H83: =IF(G83="",0,1) -> 1 | I83: =INDEX(Picks!AF:AF,MATCH(A83,Picks!AC:AC,0)) -> 47 | J83: Bournemouth | K83: =INDEX(Odds!G:G,MATCH(J83,Odds!F:F,0)) -> 17/10 | L83: =INDEX(Odds!H:H,MATCH(J83,Odds!F:F,0)) -> 2.7 | M83: =INDEX(Odds!I:I,MATCH(J83,Odds!F:F,0)) -> 0 | N83: 0 | R83: =IF(Odds!F83="","",Odds!F83) -> Stevenage draw | S83: =INDEX(Odds!G:G,MATCH(R83,Odds!F:F,0)) -> 11/5 | T83: 0
A84: =A83 -> Joel Bent | B84: Bristol R draw | C84: =IF(J84="","",INDEX(Odds!B:B,MATCH(J84,Odds!F:F,0))) -> 1900-01-07 | D84: 3.3 | E84: x | J84: Bristol R draw | K84: =INDEX(Odds!G:G,MATCH(J84,Odds!F:F,0)) -> 23/10 | L84: =INDEX(Odds!H:H,MATCH(J84,Odds!F:F,0)) -> 3.3 | M84: =INDEX(Odds!I:I,MATCH(J84,Odds!F:F,0)) -> 0 | N84: 0 | R84: =IF(Odds!F84="","",Odds!F84) -> Tranmere draw | S84: =INDEX(Odds!G:G,MATCH(R84,Odds!F:F,0)) -> 23/10 | T84: 0
A85: =A83 -> Joel Bent | B85: Leicester | C85: =IF(J85="","",INDEX(Odds!B:B,MATCH(J85,Odds!F:F,0))) -> 1900-01-01 | D85: 1.65 | E85: √ | J85: Leicester | K85: =INDEX(Odds!G:G,MATCH(J85,Odds!F:F,0)) -> 13/20 | L85: =INDEX(Odds!H:H,MATCH(J85,Odds!F:F,0)) -> 1.65 | M85: =INDEX(Odds!I:I,MATCH(J85,Odds!F:F,0)) -> 1 | N85: 1.65 | R85: =IF(Odds!F85="","",Odds!F85) -> Chelsea draw | S85: =INDEX(Odds!G:G,MATCH(R85,Odds!F:F,0)) -> 27/10 | T85: 0
A86: =Results!B86 -> John Evans | B86: Derby | C86: =IF(J86="","",INDEX(Odds!B:B,MATCH(J86,Odds!F:F,0))) -> 1900-01-07 | D86: 2.55 | E86: x | F86: =IF(J86="",-10,INDEX(Results!T:T,MATCH(A86,Results!V:V,0))) -> -4.375 | G86: =IF(J86="","",INDEX(Results!AI:AI,MATCH(A86,Results!V:V,0))) -> 34.466875 | H86: =IF(G86="",0,1) -> 1 | I86: =INDEX(Picks!AF:AF,MATCH(A86,Picks!AC:AC,0)) -> 34 | J86: Derby | K86: =INDEX(Odds!G:G,MATCH(J86,Odds!F:F,0)) -> 31/20 | L86: =INDEX(Odds!H:H,MATCH(J86,Odds!F:F,0)) -> 2.55 | M86: =INDEX(Odds!I:I,MATCH(J86,Odds!F:F,0)) -> 0 | N86: 0 | R86: =IF(Odds!F86="","",Odds!F86) -> Leicester draw | S86: =INDEX(Odds!G:G,MATCH(R86,Odds!F:F,0)) -> 14/5 | T86: 0
A87: =A86 -> John Evans | B87: Colchester | C87: =IF(J87="","",INDEX(Odds!B:B,MATCH(J87,Odds!F:F,0))) -> 1900-01-07 | D87: 2.625 | E87: √ | J87: Colchester | K87: =INDEX(Odds!G:G,MATCH(J87,Odds!F:F,0)) -> 13/8 | L87: =INDEX(Odds!H:H,MATCH(J87,Odds!F:F,0)) -> 2.625 | M87: =INDEX(Odds!I:I,MATCH(J87,Odds!F:F,0)) -> 1 | N87: 2.625 | R87: =IF(Odds!F87="","",Odds!F87) -> Newcastle draw | S87: =INDEX(Odds!G:G,MATCH(R87,Odds!F:F,0)) -> 11/5 | T87: 0
A88: =A86 -> John Evans | B88: Forest Green | C88: =IF(J88="","",INDEX(Odds!B:B,MATCH(J88,Odds!F:F,0))) -> 1900-01-07 | D88: 2.3 | E88: x | J88: Forest Green | K88: =INDEX(Odds!G:G,MATCH(J88,Odds!F:F,0)) -> 13/10 | L88: =INDEX(Odds!H:H,MATCH(J88,Odds!F:F,0)) -> 2.3 | M88: =INDEX(Odds!I:I,MATCH(J88,Odds!F:F,0)) -> 0 | N88: 0 | R88: =IF(Odds!F88="","",Odds!F88) -> Southampton draw | S88: =INDEX(Odds!G:G,MATCH(R88,Odds!F:F,0)) -> 9/4 | T88: 0
A89: =Results!B89 -> John Ronan | B89: Derby | C89: =IF(J89="","",INDEX(Odds!B:B,MATCH(J89,Odds!F:F,0))) -> 1900-01-07 | D89: 2.55 | E89: x | F89: =IF(J89="",-10,INDEX(Results!T:T,MATCH(A89,Results!V:V,0))) -> -4.85 | G89: =IF(J89="","",INDEX(Results!AI:AI,MATCH(A89,Results!V:V,0))) -> 26.66575 | H89: =IF(G89="",0,1) -> 1 | I89: =INDEX(Picks!AF:AF,MATCH(A89,Picks!AC:AC,0)) -> 44 | J89: Derby | K89: =INDEX(Odds!G:G,MATCH(J89,Odds!F:F,0)) -> 31/20 | L89: =INDEX(Odds!H:H,MATCH(J89,Odds!F:F,0)) -> 2.55 | M89: =INDEX(Odds!I:I,MATCH(J89,Odds!F:F,0)) -> 0 | N89: 0 | R89: =IF(Odds!F89="","",Odds!F89) -> Stoke draw | S89: =INDEX(Odds!G:G,MATCH(R89,Odds!F:F,0)) -> 12/5 | T89: 0
A90: =A89 -> John Ronan | B90: Swansea | C90: =IF(J90="","",INDEX(Odds!B:B,MATCH(J90,Odds!F:F,0))) -> 1900-01-07 | D90: 2.1 | E90: x | J90: Swansea | K90: =INDEX(Odds!G:G,MATCH(J90,Odds!F:F,0)) -> 11/10 | L90: =INDEX(Odds!H:H,MATCH(J90,Odds!F:F,0)) -> 2.1 | M90: =INDEX(Odds!I:I,MATCH(J90,Odds!F:F,0)) -> 0 | N90: 0 | R90: =IF(Odds!F90="","",Odds!F90) -> Rochdale draw | S90: =INDEX(Odds!G:G,MATCH(R90,Odds!F:F,0)) -> 13/5 | T90: 1
A91: =A89 -> John Ronan | B91: Blackpool | C91: =IF(J91="","",INDEX(Odds!B:B,MATCH(J91,Odds!F:F,0))) -> 1900-01-07 | D91: 2.15 | E91: √ | J91: Blackpool | K91: =INDEX(Odds!G:G,MATCH(J91,Odds!F:F,0)) -> 23/20 | L91: =INDEX(Odds!H:H,MATCH(J91,Odds!F:F,0)) -> 2.15 | M91: =INDEX(Odds!I:I,MATCH(J91,Odds!F:F,0)) -> 1 | N91: 2.15 | R91: =IF(Odds!F91="","",Odds!F91) ->  | S91: =INDEX(Odds!G:G,MATCH(R91,Odds!F:F,0)) -> 
A92: =Results!B92 -> Kei Lok Ma | B92: Newcastle | C92: =IF(J92="","",INDEX(Odds!B:B,MATCH(J92,Odds!F:F,0))) -> 1900-01-01 | D92: 2.55 | E92: x | F92: =IF(J92="",-10,INDEX(Results!T:T,MATCH(A92,Results!V:V,0))) -> -7 | G92: =IF(J92="","",INDEX(Results!AI:AI,MATCH(A92,Results!V:V,0))) -> 47.82375 | H92: =IF(G92="",0,1) -> 1 | I92: =INDEX(Picks!AF:AF,MATCH(A92,Picks!AC:AC,0)) -> 53 | J92: Newcastle | K92: =INDEX(Odds!G:G,MATCH(J92,Odds!F:F,0)) -> 31/20 | L92: =INDEX(Odds!H:H,MATCH(J92,Odds!F:F,0)) -> 2.55 | M92: =INDEX(Odds!I:I,MATCH(J92,Odds!F:F,0)) -> 0 | N92: 0 | R92: =IF(Odds!F92="","",Odds!F92) ->  | S92: =INDEX(Odds!G:G,MATCH(R92,Odds!F:F,0)) -> 
A93: =A92 -> Kei Lok Ma | B93: Southampton draw | C93: =IF(J93="","",INDEX(Odds!B:B,MATCH(J93,Odds!F:F,0))) -> 1900-01-01 | D93: 3.25 | E93: x | J93: Southampton draw | K93: =INDEX(Odds!G:G,MATCH(J93,Odds!F:F,0)) -> 9/4 | L93: =INDEX(Odds!H:H,MATCH(J93,Odds!F:F,0)) -> 3.25 | M93: =INDEX(Odds!I:I,MATCH(J93,Odds!F:F,0)) -> 0 | N93: 0 | R93: =IF(Odds!F93="","",Odds!F93) ->  | S93: =INDEX(Odds!G:G,MATCH(R93,Odds!F:F,0)) -> 
A94: =A92 -> Kei Lok Ma | B94: Bournemouth | C94: =IF(J94="","",INDEX(Odds!B:B,MATCH(J94,Odds!F:F,0))) -> 1900-01-07 | D94: 2.7 | E94: x | J94: Bournemouth | K94: =INDEX(Odds!G:G,MATCH(J94,Odds!F:F,0)) -> 17/10 | L94: =INDEX(Odds!H:H,MATCH(J94,Odds!F:F,0)) -> 2.7 | M94: =INDEX(Odds!I:I,MATCH(J94,Odds!F:F,0)) -> 0 | N94: 0 | R94: =IF(Odds!F94="","",Odds!F94) -> QPR | S94: =INDEX(Odds!G:G,MATCH(R94,Odds!F:F,0)) -> 19/10 | T94: =IF(V2<X2,1,0) -> 0
A95: =Results!B95 -> Kevin Carter | B95: Arsenal | C95: =IF(J95="","",INDEX(Odds!B:B,MATCH(J95,Odds!F:F,0))) -> 1900-01-07 | D95: 1.5 | E95: √ | F95: =IF(J95="",-10,INDEX(Results!T:T,MATCH(A95,Results!V:V,0))) -> 8.673076923 | G95: =IF(J95="","",INDEX(Results!AI:AI,MATCH(A95,Results!V:V,0))) -> 8.673076923 | H95: =IF(G95="",0,1) -> 1 | I95: =INDEX(Picks!AF:AF,MATCH(A95,Picks!AC:AC,0)) -> 7 | J95: Arsenal | K95: =INDEX(Odds!G:G,MATCH(J95,Odds!F:F,0)) -> 1/2 | L95: =INDEX(Odds!H:H,MATCH(J95,Odds!F:F,0)) -> 1.5 | M95: =INDEX(Odds!I:I,MATCH(J95,Odds!F:F,0)) -> 1 | N95: 1.5 | R95: =IF(Odds!F95="","",Odds!F95) -> West Ham | S95: =INDEX(Odds!G:G,MATCH(R95,Odds!F:F,0)) -> 5/1 | T95: 0
A96: =A95 -> Kevin Carter | B96: Everton | C96: =IF(J96="","",INDEX(Odds!B:B,MATCH(J96,Odds!F:F,0))) -> 1900-01-07 | D96: 1.55 | E96: √ | J96: Everton | K96: =INDEX(Odds!G:G,MATCH(J96,Odds!F:F,0)) -> 11/20 | L96: =INDEX(Odds!H:H,MATCH(J96,Odds!F:F,0)) -> 1.55 | M96: =INDEX(Odds!I:I,MATCH(J96,Odds!F:F,0)) -> 1 | N96: 1.55 | R96: =IF(Odds!F96="","",Odds!F96) -> West Brom | S96: =INDEX(Odds!G:G,MATCH(R96,Odds!F:F,0)) -> 5/1 | T96: 0
A97: =A95 -> Kevin Carter | B97: Leeds | C97: =IF(J97="","",INDEX(Odds!B:B,MATCH(J97,Odds!F:F,0))) -> 1900-01-07 | D97: 1.615384615 | E97: √ | J97: Leeds | K97: =INDEX(Odds!G:G,MATCH(J97,Odds!F:F,0)) -> 8/13 | L97: =INDEX(Odds!H:H,MATCH(J97,Odds!F:F,0)) -> 1.615384615 | M97: =INDEX(Odds!I:I,MATCH(J97,Odds!F:F,0)) -> 1 | N97: 1.615384615 | R97: =IF(Odds!F97="","",Odds!F97) -> Fulham | S97: =INDEX(Odds!G:G,MATCH(R97,Odds!F:F,0)) -> 9/2 | T97: 0
A98: =Results!B98 -> Lennie Bow | B98: Brentford | C98: =IF(J98="","",INDEX(Odds!B:B,MATCH(J98,Odds!F:F,0))) -> 1900-01-07 | D98: 1.55 | E98: √ | F98: =IF(J98="",-10,INDEX(Results!T:T,MATCH(A98,Results!V:V,0))) -> 1.88125 | G98: =IF(J98="","",INDEX(Results!AI:AI,MATCH(A98,Results!V:V,0))) -> 29.54875 | H98: =IF(G98="",0,1) -> 1 | I98: =INDEX(Picks!AF:AF,MATCH(A98,Picks!AC:AC,0)) -> 16 | J98: Brentford | K98: =INDEX(Odds!G:G,MATCH(J98,Odds!F:F,0)) -> 11/20 | L98: =INDEX(Odds!H:H,MATCH(J98,Odds!F:F,0)) -> 1.55 | M98: =INDEX(Odds!I:I,MATCH(J98,Odds!F:F,0)) -> 1 | N98: =L98*M98 -> 1.55 | R98: =IF(Odds!F98="","",Odds!F98) -> Palace | S98: =INDEX(Odds!G:G,MATCH(R98,Odds!F:F,0)) -> 10/1 | T98: 1
A99: =A98 -> Lennie Bow | B99: Luton | C99: =IF(J99="","",INDEX(Odds!B:B,MATCH(J99,Odds!F:F,0))) -> 1900-01-07 | D99: 2.875 | E99: √ | J99: Luton | K99: =INDEX(Odds!G:G,MATCH(J99,Odds!F:F,0)) -> 15/8 | L99: =INDEX(Odds!H:H,MATCH(J99,Odds!F:F,0)) -> 2.875 | M99: =INDEX(Odds!I:I,MATCH(J99,Odds!F:F,0)) -> 1 | N99: 2.875 | R99: =IF(Odds!F99="","",Odds!F99) -> Wycombe | S99: =INDEX(Odds!G:G,MATCH(R99,Odds!F:F,0)) -> 5/1 | T99: 0
A100: =A98 -> Lennie Bow | B100: Orient | C100: =IF(J100="","",INDEX(Odds!B:B,MATCH(J100,Odds!F:F,0))) -> 1900-01-07 | D100: 2.8 | E100: x | J100: Orient | K100: =INDEX(Odds!G:G,MATCH(J100,Odds!F:F,0)) -> 9/5 | L100: =INDEX(Odds!H:H,MATCH(J100,Odds!F:F,0)) -> 2.8 | M100: =INDEX(Odds!I:I,MATCH(J100,Odds!F:F,0)) -> 0 | N100: 0 | R100: =IF(Odds!F100="","",Odds!F100) -> Huddersfield | S100: =INDEX(Odds!G:G,MATCH(R100,Odds!F:F,0)) -> 6/1 | T100: 0
A101: =Results!B101 -> Lewis Buckley | B101: Chelsea draw | C101: =IF(J101="","",INDEX(Odds!B:B,MATCH(J101,Odds!F:F,0))) -> 1900-01-01 | D101: 3.7 | E101: x | F101: =IF(J101="",-10,INDEX(Results!T:T,MATCH(A101,Results!V:V,0))) -> -5.35 | G101: =IF(J101="","",INDEX(Results!AI:AI,MATCH(A101,Results!V:V,0))) -> 36.21525 | H101: =IF(G101="",0,1) -> 1 | I101: =INDEX(Picks!AF:AF,MATCH(A101,Picks!AC:AC,0)) -> 47 | J101: Chelsea draw | K101: =INDEX(Odds!G:G,MATCH(J101,Odds!F:F,0)) -> 27/10 | L101: =INDEX(Odds!H:H,MATCH(J101,Odds!F:F,0)) -> 3.7 | M101: =INDEX(Odds!I:I,MATCH(J101,Odds!F:F,0)) -> 0 | N101: 0 | R101: =IF(Odds!F101="","",Odds!F101) -> Cardiff | S101: =INDEX(Odds!G:G,MATCH(R101,Odds!F:F,0)) -> 2/1 | T101: 1
A102: =A101 -> Lewis Buckley | B102: Newcastle | C102: =IF(J102="","",INDEX(Odds!B:B,MATCH(J102,Odds!F:F,0))) -> 1900-01-01 | D102: 2.55 | E102: x | J102: Newcastle | K102: =INDEX(Odds!G:G,MATCH(J102,Odds!F:F,0)) -> 31/20 | L102: =INDEX(Odds!H:H,MATCH(J102,Odds!F:F,0)) -> 2.55 | M102: =INDEX(Odds!I:I,MATCH(J102,Odds!F:F,0)) -> 0 | N102: 0 | R102: =IF(Odds!F102="","",Odds!F102) -> Derby | S102: =INDEX(Odds!G:G,MATCH(R102,Odds!F:F,0)) -> 31/20 | T102: 0
A103: =A101 -> Lewis Buckley | B103: Leicester | C103: =IF(J103="","",INDEX(Odds!B:B,MATCH(J103,Odds!F:F,0))) -> 1900-01-01 | D103: 1.65 | E103: √ | J103: Leicester | K103: =INDEX(Odds!G:G,MATCH(J103,Odds!F:F,0)) -> 13/20 | L103: =INDEX(Odds!H:H,MATCH(J103,Odds!F:F,0)) -> 1.65 | M103: =INDEX(Odds!I:I,MATCH(J103,Odds!F:F,0)) -> 1 | N103: 1.65 | R103: =IF(Odds!F103="","",Odds!F103) -> Bournemouth | S103: =INDEX(Odds!G:G,MATCH(R103,Odds!F:F,0)) -> 17/10 | T103: 0
A104: =Results!B104 -> Liam Wah | B104: Man U draw | C104: =IF(J104="","",INDEX(Odds!B:B,MATCH(J104,Odds!F:F,0))) -> 1900-01-07 | D104: 5.5 | E104: x | F104: =IF(J104="",-10,INDEX(Results!T:T,MATCH(A104,Results!V:V,0))) -> -4.8 | G104: =IF(J104="","",INDEX(Results!AI:AI,MATCH(A104,Results!V:V,0))) -> 65.84 | H104: =IF(G104="",0,1) -> 1 | I104: =INDEX(Picks!AF:AF,MATCH(A104,Picks!AC:AC,0)) -> 43 | J104: Man U draw | K104: =INDEX(Odds!G:G,MATCH(J104,Odds!F:F,0)) -> 9/2 | L104: =INDEX(Odds!H:H,MATCH(J104,Odds!F:F,0)) -> 5.5 | M104: =INDEX(Odds!I:I,MATCH(J104,Odds!F:F,0)) -> 0 | N104: 0 | R104: =IF(Odds!F104="","",Odds!F104) -> Preston | S104: =INDEX(Odds!G:G,MATCH(R104,Odds!F:F,0)) -> 19/5 | T104: 0
A105: =A104 -> Liam Wah | B105: Liverpool | C105: =IF(J105="","",INDEX(Odds!B:B,MATCH(J105,Odds!F:F,0))) -> 1900-01-01 | D105: 2.2 | E105: √ | J105: Liverpool | K105: =INDEX(Odds!G:G,MATCH(J105,Odds!F:F,0)) -> 6/5 | L105: =INDEX(Odds!H:H,MATCH(J105,Odds!F:F,0)) -> 2.2 | M105: =INDEX(Odds!I:I,MATCH(J105,Odds!F:F,0)) -> 1 | N105: 2.2 | R105: =IF(Odds!F105="","",Odds!F105) -> Barnsley | S105: =INDEX(Odds!G:G,MATCH(R105,Odds!F:F,0)) -> 2/1 | T105: 0
A106: =A104 -> Liam Wah | B106: Newcastle | C106: =IF(J106="","",INDEX(Odds!B:B,MATCH(J106,Odds!F:F,0))) -> 1900-01-01 | D106: 2.55 | E106: x | J106: Newcastle | K106: =INDEX(Odds!G:G,MATCH(J106,Odds!F:F,0)) -> 31/20 | L106: =INDEX(Odds!H:H,MATCH(J106,Odds!F:F,0)) -> 2.55 | M106: =INDEX(Odds!I:I,MATCH(J106,Odds!F:F,0)) -> 0 | N106: 0 | R106: =IF(Odds!F106="","",Odds!F106) -> Millwall | S106: =INDEX(Odds!G:G,MATCH(R106,Odds!F:F,0)) -> 17/10 | T106: 1
A107: =Results!B107 -> Mal Stott | B107: Luton | C107: =IF(J107="","",INDEX(Odds!B:B,MATCH(J107,Odds!F:F,0))) -> 1900-01-07 | D107: 2.875 | E107: √ | F107: =IF(J107="",-10,INDEX(Results!T:T,MATCH(A107,Results!V:V,0))) -> 5.95 | G107: =IF(J107="","",INDEX(Results!AI:AI,MATCH(A107,Results!V:V,0))) -> 35.245 | H107: =IF(G107="",0,1) -> 1 | I107: =INDEX(Picks!AF:AF,MATCH(A107,Picks!AC:AC,0)) -> 10 | J107: Luton | K107: =INDEX(Odds!G:G,MATCH(J107,Odds!F:F,0)) -> 15/8 | L107: =INDEX(Odds!H:H,MATCH(J107,Odds!F:F,0)) -> 2.875 | M107: =INDEX(Odds!I:I,MATCH(J107,Odds!F:F,0)) -> 1 | N107: 2.875 | R107: =IF(Odds!F107="","",Odds!F107) -> Watford | S107: =INDEX(Odds!G:G,MATCH(R107,Odds!F:F,0)) -> 31/20 | T107: 0
A108: =A107 -> Mal Stott | B108: Swansea | C108: =IF(J108="","",INDEX(Odds!B:B,MATCH(J108,Odds!F:F,0))) -> 1900-01-07 | D108: 2.1 | E108: x | J108: Swansea | K108: =INDEX(Odds!G:G,MATCH(J108,Odds!F:F,0)) -> 11/10 | L108: =INDEX(Odds!H:H,MATCH(J108,Odds!F:F,0)) -> 2.1 | M108: =INDEX(Odds!I:I,MATCH(J108,Odds!F:F,0)) -> 0 | N108: 0 | R108: =IF(Odds!F108="","",Odds!F108) -> Birmingham | S108: =INDEX(Odds!G:G,MATCH(R108,Odds!F:F,0)) -> 14/5 | T108: 0
A109: =A107 -> Mal Stott | B109: Ipswich | C109: =IF(J109="","",INDEX(Odds!B:B,MATCH(J109,Odds!F:F,0))) -> 1900-01-07 | D109: 2.6 | E109: √ | J109: Ipswich | K109: =INDEX(Odds!G:G,MATCH(J109,Odds!F:F,0)) -> 8/5 | L109: =INDEX(Odds!H:H,MATCH(J109,Odds!F:F,0)) -> 2.6 | M109: =INDEX(Odds!I:I,MATCH(J109,Odds!F:F,0)) -> 1 | N109: 2.6 | R109: =IF(Odds!F109="","",Odds!F109) -> Swindon | S109: =INDEX(Odds!G:G,MATCH(R109,Odds!F:F,0)) -> 5/2 | T109: 0
A110: =Results!B110 -> Mark Bunn | B110: =IF(J110="","",J110) -> QPR | C110: =IF(J110="","",INDEX(Odds!B:B,MATCH(J110,Odds!F:F,0))) -> 1900-01-06 | D110: =IF(J110="","",L110) -> 2.9 | E110: x | F110: =IF(J110="",-10,INDEX(Results!T:T,MATCH(A110,Results!V:V,0))) -> -4.6 | G110: =IF(J110="","",INDEX(Results!AI:AI,MATCH(A110,Results!V:V,0))) -> 55.648 | H110: =IF(G110="",0,1) -> 1 | I110: =INDEX(Picks!AF:AF,MATCH(A110,Picks!AC:AC,0)) -> 39 | J110: QPR | K110: =INDEX(Odds!G:G,MATCH(J110,Odds!F:F,0)) -> 19/10 | L110: =INDEX(Odds!H:H,MATCH(J110,Odds!F:F,0)) -> 2.9 | M110: =INDEX(Odds!I:I,MATCH(J110,Odds!F:F,0)) -> 0 | N110: 0 | R110: =IF(Odds!F110="","",Odds!F110) -> Ipswich | S110: =INDEX(Odds!G:G,MATCH(R110,Odds!F:F,0)) -> 8/5 | T110: 1
A111: =A110 -> Mark Bunn | B111: Reading | C111: =IF(J111="","",INDEX(Odds!B:B,MATCH(J111,Odds!F:F,0))) -> 1900-01-07 | D111: 2.4 | E111: √ | J111: Reading | K111: =INDEX(Odds!G:G,MATCH(J111,Odds!F:F,0)) -> 7/5 | L111: =INDEX(Odds!H:H,MATCH(J111,Odds!F:F,0)) -> 2.4 | M111: =INDEX(Odds!I:I,MATCH(J111,Odds!F:F,0)) -> 1 | N111: 2.4 | R111: =IF(Odds!F111="","",Odds!F111) -> Accrington | S111: =INDEX(Odds!G:G,MATCH(R111,Odds!F:F,0)) -> 2/1 | T111: 0
A112: =A110 -> Mark Bunn | B112: Birmingham | C112: =IF(J112="","",INDEX(Odds!B:B,MATCH(J112,Odds!F:F,0))) -> 1900-01-07 | D112: 3.8 | E112: x | J112: Birmingham | K112: =INDEX(Odds!G:G,MATCH(J112,Odds!F:F,0)) -> 14/5 | L112: =INDEX(Odds!H:H,MATCH(J112,Odds!F:F,0)) -> 3.8 | M112: =INDEX(Odds!I:I,MATCH(J112,Odds!F:F,0)) -> 0 | N112: 0 | R112: =IF(Odds!F112="","",Odds!F112) -> Doncaster | S112: =INDEX(Odds!G:G,MATCH(R112,Odds!F:F,0)) -> 27/10 | T112: 1
A113: =Results!B113 -> Mark Saunders | B113: Norwich | C113: =IF(J113="","",INDEX(Odds!B:B,MATCH(J113,Odds!F:F,0))) -> 1900-01-07 | D113: 1.8 | E113: x | F113: =IF(J113="",-10,INDEX(Results!T:T,MATCH(A113,Results!V:V,0))) -> -5.5 | G113: =IF(J113="","",INDEX(Results!AI:AI,MATCH(A113,Results!V:V,0))) -> 16.85 | H113: =IF(G113="",0,1) -> 1 | I113: =INDEX(Picks!AF:AF,MATCH(A113,Picks!AC:AC,0)) -> 50 | J113: Norwich | K113: =INDEX(Odds!G:G,MATCH(J113,Odds!F:F,0)) -> 4/5 | L113: =INDEX(Odds!H:H,MATCH(J113,Odds!F:F,0)) -> 1.8 | M113: =INDEX(Odds!I:I,MATCH(J113,Odds!F:F,0)) -> 0 | N113: 0 | R113: =IF(Odds!F113="","",Odds!F113) -> Crewe | S113: =INDEX(Odds!G:G,MATCH(R113,Odds!F:F,0)) -> 11/4 | T113: 0
A114: =A113 -> Mark Saunders | B114: Newcastle | C114: =IF(J114="","",INDEX(Odds!B:B,MATCH(J114,Odds!F:F,0))) -> 1900-01-01 | D114: 2.55 | E114: x | J114: Newcastle | K114: =INDEX(Odds!G:G,MATCH(J114,Odds!F:F,0)) -> 31/20 | L114: =INDEX(Odds!H:H,MATCH(J114,Odds!F:F,0)) -> 2.55 | M114: =INDEX(Odds!I:I,MATCH(J114,Odds!F:F,0)) -> 0 | N114: 0 | R114: =IF(Odds!F114="","",Odds!F114) -> Lincoln | S114: =INDEX(Odds!G:G,MATCH(R114,Odds!F:F,0)) -> 7/4 | T114: 1
A115: =A113 -> Mark Saunders | B115: Arsenal | C115: =IF(J115="","",INDEX(Odds!B:B,MATCH(J115,Odds!F:F,0))) -> 1900-01-07 | D115: 1.5 | E115: √ | J115: Arsenal | K115: =INDEX(Odds!G:G,MATCH(J115,Odds!F:F,0)) -> 1/2 | L115: =INDEX(Odds!H:H,MATCH(J115,Odds!F:F,0)) -> 1.5 | M115: =INDEX(Odds!I:I,MATCH(J115,Odds!F:F,0)) -> 1 | N115: 1.5 | R115: =IF(Odds!F115="","",Odds!F115) -> Sunderland | S115: =INDEX(Odds!G:G,MATCH(R115,Odds!F:F,0)) -> 9/5 | T115: 1
A116: =Results!B116 -> Martin Molyneux | B116: Arsenal | C116: =IF(J116="","",INDEX(Odds!B:B,MATCH(J116,Odds!F:F,0))) -> 1900-01-07 | D116: 1.5 | E116: √ | F116: =IF(J116="",-10,INDEX(Results!T:T,MATCH(A116,Results!V:V,0))) -> -1.375 | G116: =IF(J116="","",INDEX(Results!AI:AI,MATCH(A116,Results!V:V,0))) -> 23.1375 | H116: =IF(G116="",0,1) -> 1 | I116: =INDEX(Picks!AF:AF,MATCH(A116,Picks!AC:AC,0)) -> 25 | J116: Arsenal | K116: =INDEX(Odds!G:G,MATCH(J116,Odds!F:F,0)) -> 1/2 | L116: =INDEX(Odds!H:H,MATCH(J116,Odds!F:F,0)) -> 1.5 | M116: =INDEX(Odds!I:I,MATCH(J116,Odds!F:F,0)) -> 1 | N116: 1.5 | R116: =IF(Odds!F116="","",Odds!F116) -> Fleetwood | S116: =INDEX(Odds!G:G,MATCH(R116,Odds!F:F,0)) -> 12/5 | T116: 0
A117: =A116 -> Martin Molyneux | B117: Leicester | C117: =IF(J117="","",INDEX(Odds!B:B,MATCH(J117,Odds!F:F,0))) -> 1900-01-01 | D117: 1.65 | E117: √ | J117: Leicester | K117: =INDEX(Odds!G:G,MATCH(J117,Odds!F:F,0)) -> 13/20 | L117: =INDEX(Odds!H:H,MATCH(J117,Odds!F:F,0)) -> 1.65 | M117: =INDEX(Odds!I:I,MATCH(J117,Odds!F:F,0)) -> 1 | N117: 1.65 | R117: =IF(Odds!F117="","",Odds!F117) -> Northampton | S117: =INDEX(Odds!G:G,MATCH(R117,Odds!F:F,0)) -> 12/5 | T117: 1
A118: =A116 -> Martin Molyneux | B118: Chelsea Draw | C118: =IF(J118="","",INDEX(Odds!B:B,MATCH(J118,Odds!F:F,0))) -> 1900-01-01 | D118: 3.7 | E118: x | J118: Chelsea Draw | K118: =INDEX(Odds!G:G,MATCH(J118,Odds!F:F,0)) -> 27/10 | L118: =INDEX(Odds!H:H,MATCH(J118,Odds!F:F,0)) -> 3.7 | M118: =INDEX(Odds!I:I,MATCH(J118,Odds!F:F,0)) -> 0 | N118: 0 | R118: =IF(Odds!F118="","",Odds!F118) -> Plymouth | S118: =INDEX(Odds!G:G,MATCH(R118,Odds!F:F,0)) -> 17/10 | T118: 0
A119: =Results!B119 -> Martin Tarbuck | B119: Harrogate | C119: =IF(J119="","",INDEX(Odds!B:B,MATCH(J119,Odds!F:F,0))) -> 1900-01-07 | D119: 2.2 | E119: x | F119: =IF(J119="",-10,INDEX(Results!T:T,MATCH(A119,Results!V:V,0))) -> -4.7 | G119: =IF(J119="","",INDEX(Results!AI:AI,MATCH(A119,Results!V:V,0))) -> 29.488 | H119: =IF(G119="",0,1) -> 1 | I119: =INDEX(Picks!AF:AF,MATCH(A119,Picks!AC:AC,0)) -> 41 | J119: Harrogate | K119: =INDEX(Odds!G:G,MATCH(J119,Odds!F:F,0)) -> 6/5 | L119: =INDEX(Odds!H:H,MATCH(J119,Odds!F:F,0)) -> 2.2 | M119: =INDEX(Odds!I:I,MATCH(J119,Odds!F:F,0)) -> 0 | N119: 0 | R119: =IF(Odds!F119="","",Odds!F119) -> Southend | S119: =INDEX(Odds!G:G,MATCH(R119,Odds!F:F,0)) -> 13/5 | T119: 0
A120: =A119 -> Martin Tarbuck | B120: Salford | C120: =IF(J120="","",INDEX(Odds!B:B,MATCH(J120,Odds!F:F,0))) -> 1900-01-07 | D120: 2.3 | E120: √ | J120: Salford | K120: =INDEX(Odds!G:G,MATCH(J120,Odds!F:F,0)) -> 13/10 | L120: =INDEX(Odds!H:H,MATCH(J120,Odds!F:F,0)) -> 2.3 | M120: =INDEX(Odds!I:I,MATCH(J120,Odds!F:F,0)) -> 1 | N120: 2.3 | R120: =IF(Odds!F120="","",Odds!F120) -> Bolton | S120: =INDEX(Odds!G:G,MATCH(R120,Odds!F:F,0)) -> 17/10 | T120: 0
A121: =A119 -> Martin Tarbuck | B121: Derby | C121: =IF(J121="","",INDEX(Odds!B:B,MATCH(J121,Odds!F:F,0))) -> 1900-01-07 | D121: 2.55 | E121: x | J121: Derby | K121: =INDEX(Odds!G:G,MATCH(J121,Odds!F:F,0)) -> 31/20 | L121: =INDEX(Odds!H:H,MATCH(J121,Odds!F:F,0)) -> 2.55 | M121: =INDEX(Odds!I:I,MATCH(J121,Odds!F:F,0)) -> 0 | N121: 0 | R121: =IF(Odds!F121="","",Odds!F121) -> Scunthorpe | S121: =INDEX(Odds!G:G,MATCH(R121,Odds!F:F,0)) -> 21/10 | T121: 0
A122: =Results!B122 -> Mike Penk | B122: Millwall | C122: =IF(J122="","",INDEX(Odds!B:B,MATCH(J122,Odds!F:F,0))) -> 1900-01-07 | D122: 2.7 | E122: √ | F122: =IF(J122="",-10,INDEX(Results!T:T,MATCH(A122,Results!V:V,0))) -> -4.3 | G122: =IF(J122="","",INDEX(Results!AI:AI,MATCH(A122,Results!V:V,0))) -> 44.54 | H122: =IF(G122="",0,1) -> 1 | I122: =INDEX(Picks!AF:AF,MATCH(A122,Picks!AC:AC,0)) -> 33 | J122: Millwall | K122: =INDEX(Odds!G:G,MATCH(J122,Odds!F:F,0)) -> 17/10 | L122: =INDEX(Odds!H:H,MATCH(J122,Odds!F:F,0)) -> 2.7 | M122: =INDEX(Odds!I:I,MATCH(J122,Odds!F:F,0)) -> 1 | N122: 2.7 | R122: =IF(Odds!F122="","",Odds!F122) -> Port Vale | S122: =INDEX(Odds!G:G,MATCH(R122,Odds!F:F,0)) -> 9/4 | T122: 1
A123: =A122 -> Mike Penk | B123: Newcastle | C123: =IF(J123="","",INDEX(Odds!B:B,MATCH(J123,Odds!F:F,0))) -> 1900-01-01 | D123: 2.55 | E123: x | J123: Newcastle | K123: =INDEX(Odds!G:G,MATCH(J123,Odds!F:F,0)) -> 31/20 | L123: =INDEX(Odds!H:H,MATCH(J123,Odds!F:F,0)) -> 2.55 | M123: =INDEX(Odds!I:I,MATCH(J123,Odds!F:F,0)) -> 0 | N123: 0 | R123: =IF(Odds!F123="","",Odds!F123) -> Bradford | S123: =INDEX(Odds!G:G,MATCH(R123,Odds!F:F,0)) -> 11/5 | T123: 0
A124: =A122 -> Mike Penk | B124: Southampton | C124: =IF(J124="","",INDEX(Odds!B:B,MATCH(J124,Odds!F:F,0))) -> 1900-01-01 | D124: 3 | E124: x | J124: Southampton | K124: =INDEX(Odds!G:G,MATCH(J124,Odds!F:F,0)) -> 2/1 | L124: =INDEX(Odds!H:H,MATCH(J124,Odds!F:F,0)) -> 3 | M124: =INDEX(Odds!I:I,MATCH(J124,Odds!F:F,0)) -> 0 | N124: 0 | R124: =IF(Odds!F124="","",Odds!F124) -> Salford | S124: =INDEX(Odds!G:G,MATCH(R124,Odds!F:F,0)) -> 13/10 | T124: 1
A125: =Results!B125 -> Mo Sudell | B125: Everton | C125: =IF(J125="","",INDEX(Odds!B:B,MATCH(J125,Odds!F:F,0))) -> 1900-01-07 | D125: 1.55 | E125: √ | F125: =IF(J125="",-10,INDEX(Results!T:T,MATCH(A125,Results!V:V,0))) -> -1.442857143 | G125: =IF(J125="","",INDEX(Results!AI:AI,MATCH(A125,Results!V:V,0))) -> 10.03214286 | H125: =IF(G125="",0,1) -> 1 | I125: =INDEX(Picks!AF:AF,MATCH(A125,Picks!AC:AC,0)) -> 26 | J125: Everton | K125: =INDEX(Odds!G:G,MATCH(J125,Odds!F:F,0)) -> 11/20 | L125: =INDEX(Odds!H:H,MATCH(J125,Odds!F:F,0)) -> 1.55 | M125: =INDEX(Odds!I:I,MATCH(J125,Odds!F:F,0)) -> 1 | N125: 1.55 | R125: =IF(Odds!F125="","",Odds!F125) -> Walsall | S125: =INDEX(Odds!G:G,MATCH(R125,Odds!F:F,0)) -> 23/10 | T125: 0
A126: =A125 -> Mo Sudell | B126: Blackburn | C126: =IF(J126="","",INDEX(Odds!B:B,MATCH(J126,Odds!F:F,0))) -> 1900-01-07 | D126: 1.571428571 | E126: √ | J126: Blackburn | K126: =INDEX(Odds!G:G,MATCH(J126,Odds!F:F,0)) -> 4/7 | L126: =INDEX(Odds!H:H,MATCH(J126,Odds!F:F,0)) -> 1.571428571 | M126: =INDEX(Odds!I:I,MATCH(J126,Odds!F:F,0)) -> 1 | N126: 1.571428571 | R126: =IF(Odds!F126="","",Odds!F126) -> Cambridge | S126: =INDEX(Odds!G:G,MATCH(R126,Odds!F:F,0)) -> 21/10 | T126: 1
A127: =A125 -> Mo Sudell | B127: Portsmouth | C127: =IF(J127="","",INDEX(Odds!B:B,MATCH(J127,Odds!F:F,0))) -> 1900-01-01 | D127: 1.75 | E127: x | J127: Portsmouth | K127: =INDEX(Odds!G:G,MATCH(J127,Odds!F:F,0)) -> 3/4 | L127: =INDEX(Odds!H:H,MATCH(J127,Odds!F:F,0)) -> 1.75 | M127: =INDEX(Odds!I:I,MATCH(J127,Odds!F:F,0)) -> 0 | N127: 0 | R127: =IF(Odds!F127="","",Odds!F127) -> Barrow | S127: =INDEX(Odds!G:G,MATCH(R127,Odds!F:F,0)) -> 23/10 | T127: 0
A128: =Results!B128 -> Nick Blocksidge | B128: Blackburn | C128: =IF(J128="","",INDEX(Odds!B:B,MATCH(J128,Odds!F:F,0))) -> 1900-01-07 | D128: 1.571428571 | E128: √ | F128: =IF(J128="",-10,INDEX(Results!T:T,MATCH(A128,Results!V:V,0))) -> -1.442857143 | G128: =IF(J128="","",INDEX(Results!AI:AI,MATCH(A128,Results!V:V,0))) -> 24.78571429 | H128: =IF(G128="",0,1) -> 1 | I128: =INDEX(Picks!AF:AF,MATCH(A128,Picks!AC:AC,0)) -> 26 | J128: Blackburn | K128: =INDEX(Odds!G:G,MATCH(J128,Odds!F:F,0)) -> 4/7 | L128: =INDEX(Odds!H:H,MATCH(J128,Odds!F:F,0)) -> 1.571428571 | M128: =INDEX(Odds!I:I,MATCH(J128,Odds!F:F,0)) -> 1 | N128: 1.571428571 | R128: =IF(Odds!F128="","",Odds!F128) -> Mansfield | S128: =INDEX(Odds!G:G,MATCH(R128,Odds!F:F,0)) -> 29/20 | T128: 0
A129: =A128 -> Nick Blocksidge | B129: Everton | C129: =IF(J129="","",INDEX(Odds!B:B,MATCH(J129,Odds!F:F,0))) -> 1900-01-07 | D129: 1.55 | E129: √ | J129: Everton | K129: =INDEX(Odds!G:G,MATCH(J129,Odds!F:F,0)) -> 11/20 | L129: =INDEX(Odds!H:H,MATCH(J129,Odds!F:F,0)) -> 1.55 | M129: =INDEX(Odds!I:I,MATCH(J129,Odds!F:F,0)) -> 1 | N129: 1.55 | R129: =IF(Odds!F129="","",Odds!F129) -> Oldham | S129: =INDEX(Odds!G:G,MATCH(R129,Odds!F:F,0)) -> 2/1 | T129: 0
A130: =A128 -> Nick Blocksidge | B130: Leeds draw | C130: =IF(J130="","",INDEX(Odds!B:B,MATCH(J130,Odds!F:F,0))) -> 1900-01-07 | D130: 4 | E130: x | J130: Leeds draw | K130: =INDEX(Odds!G:G,MATCH(J130,Odds!F:F,0)) -> 3/1 | L130: =INDEX(Odds!H:H,MATCH(J130,Odds!F:F,0)) -> 4 | M130: =INDEX(Odds!I:I,MATCH(J130,Odds!F:F,0)) -> 0 | N130: 0 | R130: =IF(Odds!F130="","",Odds!F130) -> Cheltenham | S130: =INDEX(Odds!G:G,MATCH(R130,Odds!F:F,0)) -> 21/10 | T130: 1
A131: =Results!B131 -> Nigel Heyes | B131: Reading | C131: =IF(J131="","",INDEX(Odds!B:B,MATCH(J131,Odds!F:F,0))) -> 1900-01-07 | D131: 2.4 | E131: =IF(J131="","",IF(M131=1,"√","x")) -> √ | F131: =IF(J131="",-10,INDEX(Results!T:T,MATCH(A131,Results!V:V,0))) -> 2.03 | G131: =IF(J131="","",INDEX(Results!AI:AI,MATCH(A131,Results!V:V,0))) -> 22.09 | H131: =IF(G131="",0,1) -> 1 | I131: =INDEX(Picks!AF:AF,MATCH(A131,Picks!AC:AC,0)) -> 15 | J131: Reading | K131: =INDEX(Odds!G:G,MATCH(J131,Odds!F:F,0)) -> 7/5 | L131: =INDEX(Odds!H:H,MATCH(J131,Odds!F:F,0)) -> 2.4 | M131: =INDEX(Odds!I:I,MATCH(J131,Odds!F:F,0)) -> 1 | N131: 2.4 | R131: =IF(Odds!F131="","",Odds!F131) -> Liverpool | S131: =INDEX(Odds!G:G,MATCH(R131,Odds!F:F,0)) -> 6/5 | T131: 1
A132: =A131 -> Nigel Heyes | B132: Charlton | C132: =IF(J132="","",INDEX(Odds!B:B,MATCH(J132,Odds!F:F,0))) -> 1900-01-07 | D132: 2 | E132: x | J132: Charlton | K132: =INDEX(Odds!G:G,MATCH(J132,Odds!F:F,0)) -> 1/1 | L132: =INDEX(Odds!H:H,MATCH(J132,Odds!F:F,0)) -> 2 | M132: =INDEX(Odds!I:I,MATCH(J132,Odds!F:F,0)) -> 0 | N132: 0 | R132: =IF(Odds!F132="","",Odds!F132) -> Burnley | S132: =INDEX(Odds!G:G,MATCH(R132,Odds!F:F,0)) -> 9/2 | T132: 0
A133: =A131 -> Nigel Heyes | B133: Hull | C133: =IF(J133="","",INDEX(Odds!B:B,MATCH(J133,Odds!F:F,0))) -> 1900-01-07 | D133: 1.95 | E133: √ | J133: Hull | K133: =INDEX(Odds!G:G,MATCH(J133,Odds!F:F,0)) -> 19/20 | L133: =INDEX(Odds!H:H,MATCH(J133,Odds!F:F,0)) -> 1.95 | M133: =INDEX(Odds!I:I,MATCH(J133,Odds!F:F,0)) -> 1 | N133: 1.95 | R133: =IF(Odds!F133="","",Odds!F133) -> Brighton | S133: =INDEX(Odds!G:G,MATCH(R133,Odds!F:F,0)) -> 19/10 | T133: 1
A134: =Results!B134 -> Oscar Jackson | B134: Arsenal | C134: =IF(J134="","",INDEX(Odds!B:B,MATCH(J134,Odds!F:F,0))) -> 1900-01-07 | D134: 1.5 | E134: √ | F134: =IF(J134="",-10,INDEX(Results!T:T,MATCH(A134,Results!V:V,0))) -> -5.5 | G134: =IF(J134="","",INDEX(Results!AI:AI,MATCH(A134,Results!V:V,0))) -> 25.825 | H134: =IF(G134="",0,1) -> 1 | I134: =INDEX(Picks!AF:AF,MATCH(A134,Picks!AC:AC,0)) -> 50 | J134: Arsenal | K134: =INDEX(Odds!G:G,MATCH(J134,Odds!F:F,0)) -> 1/2 | L134: =INDEX(Odds!H:H,MATCH(J134,Odds!F:F,0)) -> 1.5 | M134: =INDEX(Odds!I:I,MATCH(J134,Odds!F:F,0)) -> 1 | N134: 1.5 | R134: =IF(Odds!F134="","",Odds!F134) -> Spurs | S134: =INDEX(Odds!G:G,MATCH(R134,Odds!F:F,0)) -> 29/20 | T134: 1
A135: =A134 -> Oscar Jackson | B135: Forest Green | C135: =IF(J135="","",INDEX(Odds!B:B,MATCH(J135,Odds!F:F,0))) -> 1900-01-07 | D135: 2.3 | E135: x | J135: Forest Green | K135: =INDEX(Odds!G:G,MATCH(J135,Odds!F:F,0)) -> 13/10 | L135: =INDEX(Odds!H:H,MATCH(J135,Odds!F:F,0)) -> 2.3 | M135: =INDEX(Odds!I:I,MATCH(J135,Odds!F:F,0)) -> 0 | N135: 0 | R135: =IF(Odds!F135="","",Odds!F135) -> Bristol C | S135: =INDEX(Odds!G:G,MATCH(R135,Odds!F:F,0)) -> 13/5 | T135: 1
A136: =A134 -> Oscar Jackson | B136: Chelsea | C136: =IF(J136="","",INDEX(Odds!B:B,MATCH(J136,Odds!F:F,0))) -> 1900-01-01 | D136: 3.1 | E136: x | J136: Chelsea | K136: =INDEX(Odds!G:G,MATCH(J136,Odds!F:F,0)) -> 21/10 | L136: =INDEX(Odds!H:H,MATCH(J136,Odds!F:F,0)) -> 3.1 | M136: =INDEX(Odds!I:I,MATCH(J136,Odds!F:F,0)) -> 0 | N136: 0 | R136: =IF(Odds!F136="","",Odds!F136) -> Portsmouth | S136: =INDEX(Odds!G:G,MATCH(R136,Odds!F:F,0)) -> 3/4 | T136: 0
